Workbook

Sheet ProjectInformation
A1: CPN DATA
A2: INFORMATION ADDED BY DESIGNER
A3: Design Team | B3: Flattery\Bell
A4: County | B4: BENTON
A5: Project Number | B5: NHS-030-6(87)--19-06
A6: English or Metric | B6: English
A7: Revised
A8: Bridge Block
A9: Design No.
A10: File No.

Sheet PrintSheets
Y13: =BridgeBlock!M2 ->  | Z13: =BridgeBlock!N2 -> 
Y14: =BridgeBlock!M3 -> 0 | Z14: =BridgeBlock!N3 -> 0
Y15: =BridgeBlock!M4 -> 0 | Z15: =BridgeBlock!N4 -> 0
Y16: =BridgeBlock!M5 -> 0 | Z16: =BridgeBlock!N5 -> 0
B94: =UPPER(ProjectInformation!B6) -> ENGLISH | P94: IOWA DOT | W94: DESIGN TEAM | AF94: =ProjectInformation!B3 -> Flattery\Bell | BN94: =ProjectInformation!B4 -> BENTON | CX94: COUNTY | DD94: PROJECT NUMBER | DP94: =ProjectInformation!B5 -> NHS-030-6(87)--19-06 | ET94: SHEET NUMBER | FD94: G.? | FJ94: =IF(FP94<>0,"REVISED","") ->  | FP94: =ProjectInformation!B7 -> 00:00:00
B95: 9/24/2013 11:37:12 AM kbell c:\pw_work\pwmain\kbell\dms36272\06030087G1.xlsm

Sheet DE101_18
A1: TabTitle | B1: =C15 -> SUPERELEVATION DATA
A2: Number of Tab Columns | B2: 20 | AX2: Standard Road Plan | AY2: Superelevation Transition | AZ2: Case
A3: DE Starter Row Number | B3: 23 | AX3: PV-301 | AY3: Tangent to Curve | AZ3: A
A4: TabSheet Starter Row Number | B4: 10 | AX4: PV-302 | AY4: Spiral Curve | AZ4: B
A5: TabSheet Header Row Count | B5: 9 | AX5: PV-303
A6: Top Header Cell | B6: AC15 | AX6: PV-304
A7: Bottom Header Cell | B7: AV23 | AX7: PV-305
A8: DESheet Row Count | B8: 16 | AX8: PV-306
A9: Fixed Empty Rows | B9: 0
A10: Usable Empty Rows | B10: 10
A11: Total Rows Placed | B11: 26 | C11: xlLeft(1) | D11: xlCenter | E11: xlRight(1) | F11: xlRight(1) | G11: xlRight(1) | H11: xlRight(1) | I11: xlCenter | O11: xlRight(1) | P11: xlRight(1) | Q11: xlRight(1) | R11: xlRight(1) | S11: xlRight(1) | T11: xlRight(1) | U11: xlRight(1) | V11: xlRight(1) | W11: xlRight(1) | X11: xlRight(1) | Y11: xlRight(1) | Z11: xlRight(1) | AA11: xlLeft(1) | AC11: =C11 -> xlLeft(1) | AD11: xlCenter | AE11: xlRight(1) | AF11: xlRight(1) | AG11: xlRight(1) | AH11: xlRight(1) | AI11: xlCenter | AJ11: =O11 -> xlRight(1) | AK11: xlRight(1) | AL11: xlRight(1) | AM11: xlRight(1) | AN11: xlRight(1) | AO11: xlRight(1) | AP11: xlRight(1) | AQ11: xlRight(1) | AR11: xlRight(1) | AS11: xlRight(1) | AT11: xlRight(1) | AU11: xlRight(1) | AV11: xlLeft(1)
A12: Total Rows Needed | B12: =SUM(B8:B10) -> 26 | C12: General | D12: General | E12: General | F12: 0.0 | G12: General | H12: General | I12: General | O12: #+00.00 | P12: #+00.00 | Q12: #+00.00 | R12: #+00.00 | S12: #+00.00 | T12: #+00.00 | U12: #+00.00 | V12: #+00.00 | W12: #+00.00 | X12: #+00.00 | Y12: #+00.00 | Z12: #+00.00 | AA12: General | AC12: General | AD12: General | AE12: General | AF12: 0.0 | AG12: General | AH12: General | AI12: General | AJ12: #+00.00 | AK12: #+00.00 | AL12: #+00.00 | AM12: #+00.00 | AN12: #+00.00 | AO12: #+00.00 | AP12: #+00.00 | AQ12: #+00.00 | AR12: #+00.00 | AS12: #+00.00 | AT12: #+00.00 | AU12: #+00.00 | AV12: General
A13: Last Tab DE Starter Row | B13: 23 | C13: =CELL("width", C13) -> 19 | D13: 19 | E13: 9 | F13: 9 | G13: 9 | H13: 9 | I13: 12 | O13: =CELL("width", O13) -> 15 | P13: 15 | Q13: 15 | R13: 15 | S13: 15 | T13: 15 | U13: 15 | V13: 15 | W13: 15 | X13: 15 | Y13: 15 | Z13: 15 | AA13: 43 | AC13: =CELL("width", AC13) -> 0 | AD13: 0 | AE13: 0 | AF13: 0 | AG13: 0 | AH13: 0 | AI13: 0 | AJ13: 0 | AK13: 0 | AL13: 0 | AM13: 0 | AN13: 0 | AO13: 0 | AP13: 0 | AQ13: 0 | AR13: 0 | AS13: 0 | AT13: 0 | AU13: 0 | AV13: 0
A14: Last Tab Tabsheet Starter Row | B14: 10 | C14: A | D14: B | E14: C | F14: D | G14: E | H14: F | I14: G | O14: H | P14: I | Q14: J | R14: K | S14: L | T14: M | U14: N | V14: O | W14: P | X14: Q | Y14: R | Z14: S | AA14: T | AC14: =LOWER(C14) -> a | AD14: b | AE14: c | AF14: d | AG14: e | AH14: f | AI14: g | AJ14: =LOWER(O14) -> h | AK14: i | AL14: j | AM14: k | AN14: l | AO14: m | AP14: n | AQ14: o | AR14: p | AS14: q | AT14: r | AU14: s | AV14: t
A15: Last Copy Starter Row | B15: 1 | C15: SUPERELEVATION DATA | AC15: 101-18
A16: Tab Loop Number | B16: 2 | AC16: =B17 -> 2011-04-19
A17: Revision Date | B17: 2011-04-19 | C17: See PV-300 Series | AC17: =$C$15 -> SUPERELEVATION DATA
A18: Tabulation Width | B18: 4 | C18: ="This Data Entry Sheet fills Tab "&AC15&" effective "&TEXT(B17,"mm-dd-yy") -> This Data Entry Sheet fills Tab 101-18 effective 04-19-11
A19: Horizontal Grid Lines | B19: Yes | C19: Road Identification | D19: Circular Curve or Spiral Curve Name | E19: Radius | F19: Superelevation Data | I19: Standard Road Plan | J19: PC Station or SC Station | K19: PT Station or CS Station | L19: Superelevation Transition | M19: Normal Shoulder Slope | N19: Case A or B | O19: Section A-A | P19: Section B-B | Q19: Section C-C | R19: Section D-D | S19: Section E-E | T19: Section F-F | U19: Case A | V19: Case B | W19: Case C | X19: Case S | Y19: Case T | Z19: Case U | AA19: Remarks | AC19: =C17 -> See PV-300 Series
AC20: =C19 -> Road Identification | AD20: =D19 -> Circular Curve or Spiral Curve Name | AE20: =E19 -> Radius | AF20: =F19 -> Superelevation Data | AI20: =I19 -> Standard Road Plan | AJ20: =O19 -> Section A-A | AK20: Section B-B | AL20: Section C-C | AM20: Section D-D | AN20: Section E-E | AO20: Section F-F | AP20: Case A | AQ20: Case B | AR20: Case C | AS20: Case S | AT20: Case T | AU20: Case U | AV20: Remarks
F21: e | G21: L | H21: x
E22: FT | F22: % | G22: FT | H22: FT | M22: % | N22: (PV-303 Only) | AF22: =F21 -> e | AG22: L | AH22: x
C23: IA 21 Ramp A | D23: 81001 | E23: 1330 | F23: 6 | G23: 186 | H23: 62 | I23: PV-303 | J23: 154996.28 | K23: 155300 | L23: Tangent to Curve | M23: 4 | N23: B | O23: =IF(OR(I23="PV-301",I23="PV-302"),P23-H23,IF(OR(I23="PV-304",I23="PV-305",I23="PV-306"),Q23-H23,IF(AND(I23="PV-303",N23="A"),P23-H23,IF(AND(I23="PV-303",N23="B"),R23-(G23-H23),"")))) -> 154928.08 | P23: =IF(OR(I23="PV-301",I23="PV-302"),R23-G23,IF(OR(I23="PV-304",I23="PV-305",I23="PV-306"),O23+H23/5,IF(AND(I23="PV-303",N23="A"),R23-G23,""))) ->  | Q23: =IF(OR(I23="PV-301",I23="PV-302"),P23+H23,IF(OR(I23="PV-304",I23="PV-305",I23="PV-306"),T23-G23,IF(I23="PV-303",J23,""))) -> 154996.28 | R23: =IF(AND(OR(I23="PV-301",I23="PV-302"),L23="Tangent to Curve"),J23+(G23*0.3),IF(AND(OR(I23="PV-301",I23="PV-302"),L23="Spiral Curve"),J23,IF(AND(OR(I23="PV-304",I23="PV-305",I23="PV-306"),F23>=2),S23-(H23/5),IF(I23="PV-303",J23+(G23*0.3),"")))) -> 155052.08 | S23: =IF(AND(OR(I23="PV-304",I23="PV-305",I23="PV-306"),F23>=2.5),Q23+H23,"") ->  | T23: =IF(AND(OR(I23="PV-304",I23="PV-305",I23="PV-306"),L23="Tangent to Curve"),J23+(G23*0.3),IF(AND(OR(I23="PV-304",I23="PV-305",I23="PV-306"),L23="Spiral Curve"),J23,"")) ->  | U23: =IF(AND(OR(I23="PV-301",I23="PV-302"),F23>2.8),J23,IF(AND(OR(I23="PV-304",I23="PV-305",I23="PV-306"),F23>=3.6),J23,"")) ->  | V23: =IF(AND(OR(I23="PV-301",I23="PV-302"),F23<=2.8),J23,IF(AND(OR(I23="PV-304",I23="PV-305",I23="PV-306"),AND(F23>2.8,F23<3.6)),J23,"")) ->  | W23: =IF(AND(OR(I23="PV-304",I23="PV-305",I23="PV-306"),F23<=2.8),J23,"") ->  | X23: =IF(AND(OR(I23="PV-301",I23="PV-302",I23="PV-303"),F23>=M23),R23-(G23/F23)*(F23-M23),IF(AND(OR(I23="PV-304",I23="PV-305",I23="PV-306"),F23>=M23),T23-(G23/F23)*(F23-M23),"")) -> 154990.08 | Y23: =IF(AND(OR(I23="PV-301",I23="PV-302",I23="PV-303"),M23+F23>=8),R23-(G23/F23)*(F23-(8-M23)),IF(AND(OR(I23="PV-304",I23="PV-305",I23="PV-306"),M23+F23>=8),T23-(G23/F23)*(F23-(8-M23)),"")) -> 154990.08 | Z23: =IF(AND(OR(I23="PV-301",I23="PV-302",I23="PV-303"),F23>=7),R23-(F23-7)*(G23/F23),"") ->  | AE23: =E22 -> FT | AF23: % | AG23: FT | AH23: FT
P24: =IF(OR(I23="PV-301",I23="PV-302"),R24+G23,IF(OR(I23="PV-304",I23="PV-305",I23="PV-306"),O24-H23/5,IF(AND(I23="PV-303",N23="A"),R24+G23,""))) ->  | Q24: =IF(OR(I23="PV-301",I23="PV-302"),P24-H23,IF(OR(I23="PV-304",I23="PV-305",I23="PV-306"),T24+G23,IF(I23="PV-303",K23,""))) -> 155300 | R24: =IF(AND(OR(I23="PV-301",I23="PV-302"),L23="Tangent to Curve"),K23-(G23*0.3),IF(AND(OR(I23="PV-301",I23="PV-302"),L23="Spiral Curve"),K23,IF(AND(OR(I23="PV-304",I23="PV-305",I23="PV-306"),F23>=2),S24+(H23/5),IF(I23="PV-303",K23-(G23*0.3),"")))) -> 155244.2 | S24: =IF(AND(OR(I23="PV-304",I23="PV-305",I23="PV-306"),F23>=2.5),Q24-H23,"") ->  | T24: =IF(AND(OR(I23="PV-304",I23="PV-305",I23="PV-306"),L23="Tangent to Curve"),K23-(G23*0.3),IF(AND(OR(I23="PV-304",I23="PV-305",I23="PV-306"),L23="Spiral Curve"),K23,"")) ->  | U24: =IF(AND(OR(I23="PV-301",I23="PV-302"),F23>2.8),K23,IF(AND(OR(I23="PV-304",I23="PV-305",I23="PV-306"),F23>=3.6),K23,"")) ->  | V24: =IF(AND(OR(I23="PV-301",I23="PV-302"),F23<=2.8),K23,IF(AND(OR(I23="PV-304",I23="PV-305",I23="PV-306"),AND(F23>2.8,F23<3.6)),K23,"")) ->  | W24: =IF(AND(OR(I23="PV-304",I23="PV-305",I23="PV-306"),F23<=2.8),K23,"") ->  | X24: =IF(AND(OR(I23="PV-301",I23="PV-302",I23="PV-303"),F23>=M23),R24+(G23/F23)*(F23-M23),IF(AND(OR(I23="PV-304",I23="PV-305",I23="PV-306"),F23>=M23),T24+(G23/F23)*(F23-M23),"")) -> 155306.2 | Y24: =IF(AND(OR(I23="PV-301",I23="PV-302",I23="PV-303"),M23+F23>=8),R24+(G23/F23)*(F23-(8-M23)),IF(AND(OR(I23="PV-304",I23="PV-305",I23="PV-306"),M23+F23>=8),T24+(G23/F23)*(F23-(8-M23)),"")) -> 155306.2 | Z24: =IF(AND(OR(I23="PV-301",I23="PV-302",I23="PV-303"),F23>=7),R24+(F23-7)*(G23/F23),"") -> 
O25: =IF(OR(I25="PV-301",I25="PV-302"),P25-H25,IF(OR(I25="PV-304",I25="PV-305",I25="PV-306"),Q25-H25,IF(AND(I25="PV-303",N25="A"),P25-H25,IF(AND(I25="PV-303",N25="B"),R25-(G25-H25),"")))) ->  | P25: =IF(OR(I25="PV-301",I25="PV-302"),R25-G25,IF(OR(I25="PV-304",I25="PV-305",I25="PV-306"),O25+H25/5,IF(AND(I25="PV-303",N25="A"),R25-G25,""))) ->  | Q25: =IF(OR(I25="PV-301",I25="PV-302"),P25+H25,IF(OR(I25="PV-304",I25="PV-305",I25="PV-306"),T25-G25,IF(I25="PV-303",J25,""))) ->  | R25: =IF(AND(OR(I25="PV-301",I25="PV-302"),L25="Tangent to Curve"),J25+(G25*0.3),IF(AND(OR(I25="PV-301",I25="PV-302"),L25="Spiral Curve"),J25,IF(AND(OR(I25="PV-304",I25="PV-305",I25="PV-306"),F25>=2),S25-(H25/5),IF(I25="PV-303",J25+(G25*0.3),"")))) ->  | S25: =IF(AND(OR(I25="PV-304",I25="PV-305",I25="PV-306"),F25>=2.5),Q25+H25,"") ->  | T25: =IF(AND(OR(I25="PV-304",I25="PV-305",I25="PV-306"),L25="Tangent to Curve"),J25+(G25*0.3),IF(AND(OR(I25="PV-304",I25="PV-305",I25="PV-306"),L25="Spiral Curve"),J25,"")) ->  | U25: =IF(AND(OR(I25="PV-301",I25="PV-302"),F25>2.8),J25,IF(AND(OR(I25="PV-304",I25="PV-305",I25="PV-306"),F25>=3.6),J25,"")) ->  | V25: =IF(AND(OR(I25="PV-301",I25="PV-302"),F25<=2.8),J25,IF(AND(OR(I25="PV-304",I25="PV-305",I25="PV-306"),AND(F25>2.8,F25<3.6)),J25,"")) ->  | W25: =IF(AND(OR(I25="PV-304",I25="PV-305",I25="PV-306"),F25<=2.8),J25,"") ->  | X25: =IF(AND(OR(I25="PV-301",I25="PV-302",I25="PV-303"),F25>=M25),R25-(G25/F25)*(F25-M25),IF(AND(OR(I25="PV-304",I25="PV-305",I25="PV-306"),F25>=M25),T25-(G25/F25)*(F25-M25),"")) ->  | Y25: =IF(AND(OR(I25="PV-301",I25="PV-302",I25="PV-303"),M25+F25>=8),R25-(G25/F25)*(F25-(8-M25)),IF(AND(OR(I25="PV-304",I25="PV-305",I25="PV-306"),M25+F25>=8),T25-(G25/F25)*(F25-(8-M25)),"")) ->  | Z25: =IF(AND(OR(I25="PV-301",I25="PV-302",I25="PV-303"),F25>=7),R25-(F25-7)*(G25/F25),"") -> 
O26: =IF(OR(I25="PV-301",I25="PV-302"),P26+H25,IF(OR(I25="PV-304",I25="PV-305",I25="PV-306"),Q26+H25,IF(AND(I25="PV-303",N25="A"),P26+H25,IF(AND(I25="PV-303",N25="B"),R26+(G25-H25),"")))) ->  | P26: =IF(OR(I25="PV-301",I25="PV-302"),R26+G25,IF(OR(I25="PV-304",I25="PV-305",I25="PV-306"),O26-H25/5,IF(AND(I25="PV-303",N25="A"),R26+G25,""))) ->  | Q26: =IF(OR(I25="PV-301",I25="PV-302"),P26-H25,IF(OR(I25="PV-304",I25="PV-305",I25="PV-306"),T26+G25,IF(I25="PV-303",K25,""))) ->  | R26: =IF(AND(OR(I25="PV-301",I25="PV-302"),L25="Tangent to Curve"),K25-(G25*0.3),IF(AND(OR(I25="PV-301",I25="PV-302"),L25="Spiral Curve"),K25,IF(AND(OR(I25="PV-304",I25="PV-305",I25="PV-306"),F25>=2),S26+(H25/5),IF(I25="PV-303",K25-(G25*0.3),"")))) ->  | S26: =IF(AND(OR(I25="PV-304",I25="PV-305",I25="PV-306"),F25>=2.5),Q26-H25,"") ->  | T26: =IF(AND(OR(I25="PV-304",I25="PV-305",I25="PV-306"),L25="Tangent to Curve"),K25-(G25*0.3),IF(AND(OR(I25="PV-304",I25="PV-305",I25="PV-306"),L25="Spiral Curve"),K25,"")) ->  | U26: =IF(AND(OR(I25="PV-301",I25="PV-302"),F25>2.8),K25,IF(AND(OR(I25="PV-304",I25="PV-305",I25="PV-306"),F25>=3.6),K25,"")) ->  | V26: =IF(AND(OR(I25="PV-301",I25="PV-302"),F25<=2.8),K25,IF(AND(OR(I25="PV-304",I25="PV-305",I25="PV-306"),AND(F25>2.8,F25<3.6)),K25,"")) ->  | W26: =IF(AND(OR(I25="PV-304",I25="PV-305",I25="PV-306"),F25<=2.8),K25,"") ->  | X26: =IF(AND(OR(I25="PV-301",I25="PV-302",I25="PV-303"),F25>=M25),R26+(G25/F25)*(F25-M25),IF(AND(OR(I25="PV-304",I25="PV-305",I25="PV-306"),F25>=M25),T26+(G25/F25)*(F25-M25),"")) ->  | Y26: =IF(AND(OR(I25="PV-301",I25="PV-302",I25="PV-303"),M25+F25>=8),R26+(G25/F25)*(F25-(8-M25)),IF(AND(OR(I25="PV-304",I25="PV-305",I25="PV-306"),M25+F25>=8),T26+(G25/F25)*(F25-(8-M25)),"")) ->  | Z26: =IF(AND(OR(I25="PV-301",I25="PV-302",I25="PV-303"),F25>=7),R26+(F25-7)*(G25/F25),"") -> 
C27: IA 21 Ramp B | D27: 82001 | E27: 1330 | F27: 6 | G27: 186 | H27: 62 | I27: PV-303 | J27: 252900 | K27: 253200.48 | L27: Tangent to Curve | M27: 4 | N27: B | P27: =IF(OR(I27="PV-301",I27="PV-302"),R27-G27,IF(OR(I27="PV-304",I27="PV-305",I27="PV-306"),O27+H27/5,IF(AND(I27="PV-303",N27="A"),R27-G27,""))) ->  | Q27: =IF(OR(I27="PV-301",I27="PV-302"),P27+H27,IF(OR(I27="PV-304",I27="PV-305",I27="PV-306"),T27-G27,IF(I27="PV-303",J27,""))) -> 252900 | R27: =IF(AND(OR(I27="PV-301",I27="PV-302"),L27="Tangent to Curve"),J27+(G27*0.3),IF(AND(OR(I27="PV-301",I27="PV-302"),L27="Spiral Curve"),J27,IF(AND(OR(I27="PV-304",I27="PV-305",I27="PV-306"),F27>=2),S27-(H27/5),IF(I27="PV-303",J27+(G27*0.3),"")))) -> 252955.8 | S27: =IF(AND(OR(I27="PV-304",I27="PV-305",I27="PV-306"),F27>=2.5),Q27+H27,"") ->  | T27: =IF(AND(OR(I27="PV-304",I27="PV-305",I27="PV-306"),L27="Tangent to Curve"),J27+(G27*0.3),IF(AND(OR(I27="PV-304",I27="PV-305",I27="PV-306"),L27="Spiral Curve"),J27,"")) ->  | U27: =IF(AND(OR(I27="PV-301",I27="PV-302"),F27>2.8),J27,IF(AND(OR(I27="PV-304",I27="PV-305",I27="PV-306"),F27>=3.6),J27,"")) ->  | V27: =IF(AND(OR(I27="PV-301",I27="PV-302"),F27<=2.8),J27,IF(AND(OR(I27="PV-304",I27="PV-305",I27="PV-306"),AND(F27>2.8,F27<3.6)),J27,"")) ->  | W27: =IF(AND(OR(I27="PV-304",I27="PV-305",I27="PV-306"),F27<=2.8),J27,"") ->  | X27: =IF(AND(OR(I27="PV-301",I27="PV-302",I27="PV-303"),F27>=M27),R27-(G27/F27)*(F27-M27),IF(AND(OR(I27="PV-304",I27="PV-305",I27="PV-306"),F27>=M27),T27-(G27/F27)*(F27-M27),"")) -> 252893.8 | Y27: =IF(AND(OR(I27="PV-301",I27="PV-302",I27="PV-303"),M27+F27>=8),R27-(G27/F27)*(F27-(8-M27)),IF(AND(OR(I27="PV-304",I27="PV-305",I27="PV-306"),M27+F27>=8),T27-(G27/F27)*(F27-(8-M27)),"")) -> 252893.8 | Z27: =IF(AND(OR(I27="PV-301",I27="PV-302",I27="PV-303"),F27>=7),R27-(F27-7)*(G27/F27),"") -> 
O28: =IF(OR(I27="PV-301",I27="PV-302"),P28+H27,IF(OR(I27="PV-304",I27="PV-305",I27="PV-306"),Q28+H27,IF(AND(I27="PV-303",N27="A"),P28+H27,IF(AND(I27="PV-303",N27="B"),R28+(G27-H27),"")))) -> 253268.68 | P28: =IF(OR(I27="PV-301",I27="PV-302"),R28+G27,IF(OR(I27="PV-304",I27="PV-305",I27="PV-306"),O28-H27/5,IF(AND(I27="PV-303",N27="A"),R28+G27,""))) ->  | Q28: =IF(OR(I27="PV-301",I27="PV-302"),P28-H27,IF(OR(I27="PV-304",I27="PV-305",I27="PV-306"),T28+G27,IF(I27="PV-303",K27,""))) -> 253200.48 | R28: =IF(AND(OR(I27="PV-301",I27="PV-302"),L27="Tangent to Curve"),K27-(G27*0.3),IF(AND(OR(I27="PV-301",I27="PV-302"),L27="Spiral Curve"),K27,IF(AND(OR(I27="PV-304",I27="PV-305",I27="PV-306"),F27>=2),S28+(H27/5),IF(I27="PV-303",K27-(G27*0.3),"")))) -> 253144.68 | S28: =IF(AND(OR(I27="PV-304",I27="PV-305",I27="PV-306"),F27>=2.5),Q28-H27,"") ->  | T28: =IF(AND(OR(I27="PV-304",I27="PV-305",I27="PV-306"),L27="Tangent to Curve"),K27-(G27*0.3),IF(AND(OR(I27="PV-304",I27="PV-305",I27="PV-306"),L27="Spiral Curve"),K27,"")) ->  | U28: =IF(AND(OR(I27="PV-301",I27="PV-302"),F27>2.8),K27,IF(AND(OR(I27="PV-304",I27="PV-305",I27="PV-306"),F27>=3.6),K27,"")) ->  | V28: =IF(AND(OR(I27="PV-301",I27="PV-302"),F27<=2.8),K27,IF(AND(OR(I27="PV-304",I27="PV-305",I27="PV-306"),AND(F27>2.8,F27<3.6)),K27,"")) ->  | W28: =IF(AND(OR(I27="PV-304",I27="PV-305",I27="PV-306"),F27<=2.8),K27,"") ->  | X28: =IF(AND(OR(I27="PV-301",I27="PV-302",I27="PV-303"),F27>=M27),R28+(G27/F27)*(F27-M27),IF(AND(OR(I27="PV-304",I27="PV-305",I27="PV-306"),F27>=M27),T28+(G27/F27)*(F27-M27),"")) -> 253206.68 | Y28: =IF(AND(OR(I27="PV-301",I27="PV-302",I27="PV-303"),M27+F27>=8),R28+(G27/F27)*(F27-(8-M27)),IF(AND(OR(I27="PV-304",I27="PV-305",I27="PV-306"),M27+F27>=8),T28+(G27/F27)*(F27-(8-M27)),"")) -> 253206.68 | Z28: =IF(AND(OR(I27="PV-301",I27="PV-302",I27="PV-303"),F27>=7),R28+(F27-7)*(G27/F27),"") -> 
O29: =IF(OR(I29="PV-301",I29="PV-302"),P29-H29,IF(OR(I29="PV-304",I29="PV-305",I29="PV-306"),Q29-H29,IF(AND(I29="PV-303",N29="A"),P29-H29,IF(AND(I29="PV-303",N29="B"),R29-(G29-H29),"")))) ->  | P29: =IF(OR(I29="PV-301",I29="PV-302"),R29-G29,IF(OR(I29="PV-304",I29="PV-305",I29="PV-306"),O29+H29/5,IF(AND(I29="PV-303",N29="A"),R29-G29,""))) ->  | Q29: =IF(OR(I29="PV-301",I29="PV-302"),P29+H29,IF(OR(I29="PV-304",I29="PV-305",I29="PV-306"),T29-G29,IF(I29="PV-303",J29,""))) ->  | R29: =IF(AND(OR(I29="PV-301",I29="PV-302"),L29="Tangent to Curve"),J29+(G29*0.3),IF(AND(OR(I29="PV-301",I29="PV-302"),L29="Spiral Curve"),J29,IF(AND(OR(I29="PV-304",I29="PV-305",I29="PV-306"),F29>=2),S29-(H29/5),IF(I29="PV-303",J29+(G29*0.3),"")))) ->  | S29: =IF(AND(OR(I29="PV-304",I29="PV-305",I29="PV-306"),F29>=2.5),Q29+H29,"") ->  | T29: =IF(AND(OR(I29="PV-304",I29="PV-305",I29="PV-306"),L29="Tangent to Curve"),J29+(G29*0.3),IF(AND(OR(I29="PV-304",I29="PV-305",I29="PV-306"),L29="Spiral Curve"),J29,"")) ->  | U29: =IF(AND(OR(I29="PV-301",I29="PV-302"),F29>2.8),J29,IF(AND(OR(I29="PV-304",I29="PV-305",I29="PV-306"),F29>=3.6),J29,"")) ->  | V29: =IF(AND(OR(I29="PV-301",I29="PV-302"),F29<=2.8),J29,IF(AND(OR(I29="PV-304",I29="PV-305",I29="PV-306"),AND(F29>2.8,F29<3.6)),J29,"")) ->  | W29: =IF(AND(OR(I29="PV-304",I29="PV-305",I29="PV-306"),F29<=2.8),J29,"") ->  | X29: =IF(AND(OR(I29="PV-301",I29="PV-302",I29="PV-303"),F29>=M29),R29-(G29/F29)*(F29-M29),IF(AND(OR(I29="PV-304",I29="PV-305",I29="PV-306"),F29>=M29),T29-(G29/F29)*(F29-M29),"")) ->  | Y29: =IF(AND(OR(I29="PV-301",I29="PV-302",I29="PV-303"),M29+F29>=8),R29-(G29/F29)*(F29-(8-M29)),IF(AND(OR(I29="PV-304",I29="PV-305",I29="PV-306"),M29+F29>=8),T29-(G29/F29)*(F29-(8-M29)),"")) ->  | Z29: =IF(AND(OR(I29="PV-301",I29="PV-302",I29="PV-303"),F29>=7),R29-(F29-7)*(G29/F29),"") -> 
O30: =IF(OR(I29="PV-301",I29="PV-302"),P30+H29,IF(OR(I29="PV-304",I29="PV-305",I29="PV-306"),Q30+H29,IF(AND(I29="PV-303",N29="A"),P30+H29,IF(AND(I29="PV-303",N29="B"),R30+(G29-H29),"")))) ->  | P30: =IF(OR(I29="PV-301",I29="PV-302"),R30+G29,IF(OR(I29="PV-304",I29="PV-305",I29="PV-306"),O30-H29/5,IF(AND(I29="PV-303",N29="A"),R30+G29,""))) ->  | Q30: =IF(OR(I29="PV-301",I29="PV-302"),P30-H29,IF(OR(I29="PV-304",I29="PV-305",I29="PV-306"),T30+G29,IF(I29="PV-303",K29,""))) ->  | R30: =IF(AND(OR(I29="PV-301",I29="PV-302"),L29="Tangent to Curve"),K29-(G29*0.3),IF(AND(OR(I29="PV-301",I29="PV-302"),L29="Spiral Curve"),K29,IF(AND(OR(I29="PV-304",I29="PV-305",I29="PV-306"),F29>=2),S30+(H29/5),IF(I29="PV-303",K29-(G29*0.3),"")))) ->  | S30: =IF(AND(OR(I29="PV-304",I29="PV-305",I29="PV-306"),F29>=2.5),Q30-H29,"") ->  | T30: =IF(AND(OR(I29="PV-304",I29="PV-305",I29="PV-306"),L29="Tangent to Curve"),K29-(G29*0.3),IF(AND(OR(I29="PV-304",I29="PV-305",I29="PV-306"),L29="Spiral Curve"),K29,"")) ->  | U30: =IF(AND(OR(I29="PV-301",I29="PV-302"),F29>2.8),K29,IF(AND(OR(I29="PV-304",I29="PV-305",I29="PV-306"),F29>=3.6),K29,"")) ->  | V30: =IF(AND(OR(I29="PV-301",I29="PV-302"),F29<=2.8),K29,IF(AND(OR(I29="PV-304",I29="PV-305",I29="PV-306"),AND(F29>2.8,F29<3.6)),K29,"")) ->  | W30: =IF(AND(OR(I29="PV-304",I29="PV-305",I29="PV-306"),F29<=2.8),K29,"") ->  | X30: =IF(AND(OR(I29="PV-301",I29="PV-302",I29="PV-303"),F29>=M29),R30+(G29/F29)*(F29-M29),IF(AND(OR(I29="PV-304",I29="PV-305",I29="PV-306"),F29>=M29),T30+(G29/F29)*(F29-M29),"")) ->  | Y30: =IF(AND(OR(I29="PV-301",I29="PV-302",I29="PV-303"),M29+F29>=8),R30+(G29/F29)*(F29-(8-M29)),IF(AND(OR(I29="PV-304",I29="PV-305",I29="PV-306"),M29+F29>=8),T30+(G29/F29)*(F29-(8-M29)),"")) ->  | Z30: =IF(AND(OR(I29="PV-301",I29="PV-302",I29="PV-303"),F29>=7),R30+(F29-7)*(G29/F29),"") -> 
C31: IA 21 Ramp C | D31: 83001 | E31: 2000 | F31: 5.4 | G31: 168 | H31: 62 | I31: PV-303 | J31: 352800 | K31: 353426.94 | L31: Tangent to Curve | M31: 4 | N31: B | P31: =IF(OR(I31="PV-301",I31="PV-302"),R31-G31,IF(OR(I31="PV-304",I31="PV-305",I31="PV-306"),O31+H31/5,IF(AND(I31="PV-303",N31="A"),R31-G31,""))) ->  | Q31: =IF(OR(I31="PV-301",I31="PV-302"),P31+H31,IF(OR(I31="PV-304",I31="PV-305",I31="PV-306"),T31-G31,IF(I31="PV-303",J31,""))) -> 352800 | R31: =IF(AND(OR(I31="PV-301",I31="PV-302"),L31="Tangent to Curve"),J31+(G31*0.3),IF(AND(OR(I31="PV-301",I31="PV-302"),L31="Spiral Curve"),J31,IF(AND(OR(I31="PV-304",I31="PV-305",I31="PV-306"),F31>=2),S31-(H31/5),IF(I31="PV-303",J31+(G31*0.3),"")))) -> 352850.4 | S31: =IF(AND(OR(I31="PV-304",I31="PV-305",I31="PV-306"),F31>=2.5),Q31+H31,"") ->  | T31: =IF(AND(OR(I31="PV-304",I31="PV-305",I31="PV-306"),L31="Tangent to Curve"),J31+(G31*0.3),IF(AND(OR(I31="PV-304",I31="PV-305",I31="PV-306"),L31="Spiral Curve"),J31,"")) ->  | U31: =IF(AND(OR(I31="PV-301",I31="PV-302"),F31>2.8),J31,IF(AND(OR(I31="PV-304",I31="PV-305",I31="PV-306"),F31>=3.6),J31,"")) ->  | V31: =IF(AND(OR(I31="PV-301",I31="PV-302"),F31<=2.8),J31,IF(AND(OR(I31="PV-304",I31="PV-305",I31="PV-306"),AND(F31>2.8,F31<3.6)),J31,"")) ->  | W31: =IF(AND(OR(I31="PV-304",I31="PV-305",I31="PV-306"),F31<=2.8),J31,"") ->  | X31: =IF(AND(OR(I31="PV-301",I31="PV-302",I31="PV-303"),F31>=M31),R31-(G31/F31)*(F31-M31),IF(AND(OR(I31="PV-304",I31="PV-305",I31="PV-306"),F31>=M31),T31-(G31/F31)*(F31-M31),"")) -> 352806.8444 | Y31: =IF(AND(OR(I31="PV-301",I31="PV-302",I31="PV-303"),M31+F31>=8),R31-(G31/F31)*(F31-(8-M31)),IF(AND(OR(I31="PV-304",I31="PV-305",I31="PV-306"),M31+F31>=8),T31-(G31/F31)*(F31-(8-M31)),"")) -> 352806.8444 | Z31: =IF(AND(OR(I31="PV-301",I31="PV-302",I31="PV-303"),F31>=7),R31-(F31-7)*(G31/F31),"") -> 
O32: =IF(OR(I31="PV-301",I31="PV-302"),P32+H31,IF(OR(I31="PV-304",I31="PV-305",I31="PV-306"),Q32+H31,IF(AND(I31="PV-303",N31="A"),P32+H31,IF(AND(I31="PV-303",N31="B"),R32+(G31-H31),"")))) -> 353482.54 | P32: =IF(OR(I31="PV-301",I31="PV-302"),R32+G31,IF(OR(I31="PV-304",I31="PV-305",I31="PV-306"),O32-H31/5,IF(AND(I31="PV-303",N31="A"),R32+G31,""))) ->  | Q32: =IF(OR(I31="PV-301",I31="PV-302"),P32-H31,IF(OR(I31="PV-304",I31="PV-305",I31="PV-306"),T32+G31,IF(I31="PV-303",K31,""))) -> 353426.94 | R32: =IF(AND(OR(I31="PV-301",I31="PV-302"),L31="Tangent to Curve"),K31-(G31*0.3),IF(AND(OR(I31="PV-301",I31="PV-302"),L31="Spiral Curve"),K31,IF(AND(OR(I31="PV-304",I31="PV-305",I31="PV-306"),F31>=2),S32+(H31/5),IF(I31="PV-303",K31-(G31*0.3),"")))) -> 353376.54 | S32: =IF(AND(OR(I31="PV-304",I31="PV-305",I31="PV-306"),F31>=2.5),Q32-H31,"") ->  | T32: =IF(AND(OR(I31="PV-304",I31="PV-305",I31="PV-306"),L31="Tangent to Curve"),K31-(G31*0.3),IF(AND(OR(I31="PV-304",I31="PV-305",I31="PV-306"),L31="Spiral Curve"),K31,"")) ->  | U32: =IF(AND(OR(I31="PV-301",I31="PV-302"),F31>2.8),K31,IF(AND(OR(I31="PV-304",I31="PV-305",I31="PV-306"),F31>=3.6),K31,"")) ->  | V32: =IF(AND(OR(I31="PV-301",I31="PV-302"),F31<=2.8),K31,IF(AND(OR(I31="PV-304",I31="PV-305",I31="PV-306"),AND(F31>2.8,F31<3.6)),K31,"")) ->  | W32: =IF(AND(OR(I31="PV-304",I31="PV-305",I31="PV-306"),F31<=2.8),K31,"") ->  | X32: =IF(AND(OR(I31="PV-301",I31="PV-302",I31="PV-303"),F31>=M31),R32+(G31/F31)*(F31-M31),IF(AND(OR(I31="PV-304",I31="PV-305",I31="PV-306"),F31>=M31),T32+(G31/F31)*(F31-M31),"")) -> 353420.0956 | Y32: =IF(AND(OR(I31="PV-301",I31="PV-302",I31="PV-303"),M31+F31>=8),R32+(G31/F31)*(F31-(8-M31)),IF(AND(OR(I31="PV-304",I31="PV-305",I31="PV-306"),M31+F31>=8),T32+(G31/F31)*(F31-(8-M31)),"")) -> 353420.0956 | Z32: =IF(AND(OR(I31="PV-301",I31="PV-302",I31="PV-303"),F31>=7),R32+(F31-7)*(G31/F31),"") -> 
O33: =IF(OR(I33="PV-301",I33="PV-302"),P33-H33,IF(OR(I33="PV-304",I33="PV-305",I33="PV-306"),Q33-H33,IF(AND(I33="PV-303",N33="A"),P33-H33,IF(AND(I33="PV-303",N33="B"),R33-(G33-H33),"")))) ->  | P33: =IF(OR(I33="PV-301",I33="PV-302"),R33-G33,IF(OR(I33="PV-304",I33="PV-305",I33="PV-306"),O33+H33/5,IF(AND(I33="PV-303",N33="A"),R33-G33,""))) ->  | Q33: =IF(OR(I33="PV-301",I33="PV-302"),P33+H33,IF(OR(I33="PV-304",I33="PV-305",I33="PV-306"),T33-G33,IF(I33="PV-303",J33,""))) ->  | R33: =IF(AND(OR(I33="PV-301",I33="PV-302"),L33="Tangent to Curve"),J33+(G33*0.3),IF(AND(OR(I33="PV-301",I33="PV-302"),L33="Spiral Curve"),J33,IF(AND(OR(I33="PV-304",I33="PV-305",I33="PV-306"),F33>=2),S33-(H33/5),IF(I33="PV-303",J33+(G33*0.3),"")))) ->  | S33: =IF(AND(OR(I33="PV-304",I33="PV-305",I33="PV-306"),F33>=2.5),Q33+H33,"") ->  | T33: =IF(AND(OR(I33="PV-304",I33="PV-305",I33="PV-306"),L33="Tangent to Curve"),J33+(G33*0.3),IF(AND(OR(I33="PV-304",I33="PV-305",I33="PV-306"),L33="Spiral Curve"),J33,"")) ->  | U33: =IF(AND(OR(I33="PV-301",I33="PV-302"),F33>2.8),J33,IF(AND(OR(I33="PV-304",I33="PV-305",I33="PV-306"),F33>=3.6),J33,"")) ->  | V33: =IF(AND(OR(I33="PV-301",I33="PV-302"),F33<=2.8),J33,IF(AND(OR(I33="PV-304",I33="PV-305",I33="PV-306"),AND(F33>2.8,F33<3.6)),J33,"")) ->  | W33: =IF(AND(OR(I33="PV-304",I33="PV-305",I33="PV-306"),F33<=2.8),J33,"") ->  | X33: =IF(AND(OR(I33="PV-301",I33="PV-302",I33="PV-303"),F33>=M33),R33-(G33/F33)*(F33-M33),IF(AND(OR(I33="PV-304",I33="PV-305",I33="PV-306"),F33>=M33),T33-(G33/F33)*(F33-M33),"")) ->  | Y33: =IF(AND(OR(I33="PV-301",I33="PV-302",I33="PV-303"),M33+F33>=8),R33-(G33/F33)*(F33-(8-M33)),IF(AND(OR(I33="PV-304",I33="PV-305",I33="PV-306"),M33+F33>=8),T33-(G33/F33)*(F33-(8-M33)),"")) ->  | Z33: =IF(AND(OR(I33="PV-301",I33="PV-302",I33="PV-303"),F33>=7),R33-(F33-7)*(G33/F33),"") -> 
O34: =IF(OR(I33="PV-301",I33="PV-302"),P34+H33,IF(OR(I33="PV-304",I33="PV-305",I33="PV-306"),Q34+H33,IF(AND(I33="PV-303",N33="A"),P34+H33,IF(AND(I33="PV-303",N33="B"),R34+(G33-H33),"")))) ->  | P34: =IF(OR(I33="PV-301",I33="PV-302"),R34+G33,IF(OR(I33="PV-304",I33="PV-305",I33="PV-306"),O34-H33/5,IF(AND(I33="PV-303",N33="A"),R34+G33,""))) ->  | Q34: =IF(OR(I33="PV-301",I33="PV-302"),P34-H33,IF(OR(I33="PV-304",I33="PV-305",I33="PV-306"),T34+G33,IF(I33="PV-303",K33,""))) ->  | R34: =IF(AND(OR(I33="PV-301",I33="PV-302"),L33="Tangent to Curve"),K33-(G33*0.3),IF(AND(OR(I33="PV-301",I33="PV-302"),L33="Spiral Curve"),K33,IF(AND(OR(I33="PV-304",I33="PV-305",I33="PV-306"),F33>=2),S34+(H33/5),IF(I33="PV-303",K33-(G33*0.3),"")))) ->  | S34: =IF(AND(OR(I33="PV-304",I33="PV-305",I33="PV-306"),F33>=2.5),Q34-H33,"") ->  | T34: =IF(AND(OR(I33="PV-304",I33="PV-305",I33="PV-306"),L33="Tangent to Curve"),K33-(G33*0.3),IF(AND(OR(I33="PV-304",I33="PV-305",I33="PV-306"),L33="Spiral Curve"),K33,"")) ->  | U34: =IF(AND(OR(I33="PV-301",I33="PV-302"),F33>2.8),K33,IF(AND(OR(I33="PV-304",I33="PV-305",I33="PV-306"),F33>=3.6),K33,"")) ->  | V34: =IF(AND(OR(I33="PV-301",I33="PV-302"),F33<=2.8),K33,IF(AND(OR(I33="PV-304",I33="PV-305",I33="PV-306"),AND(F33>2.8,F33<3.6)),K33,"")) ->  | W34: =IF(AND(OR(I33="PV-304",I33="PV-305",I33="PV-306"),F33<=2.8),K33,"") ->  | X34: =IF(AND(OR(I33="PV-301",I33="PV-302",I33="PV-303"),F33>=M33),R34+(G33/F33)*(F33-M33),IF(AND(OR(I33="PV-304",I33="PV-305",I33="PV-306"),F33>=M33),T34+(G33/F33)*(F33-M33),"")) ->  | Y34: =IF(AND(OR(I33="PV-301",I33="PV-302",I33="PV-303"),M33+F33>=8),R34+(G33/F33)*(F33-(8-M33)),IF(AND(OR(I33="PV-304",I33="PV-305",I33="PV-306"),M33+F33>=8),T34+(G33/F33)*(F33-(8-M33)),"")) ->  | Z34: =IF(AND(OR(I33="PV-301",I33="PV-302",I33="PV-303"),F33>=7),R34+(F33-7)*(G33/F33),"") -> 
C35: IA 21 Ramp D | D35: 84001 | E35: 1330 | F35: 5.4 | G35: 151 | H35: 56 | I35: PV-303 | J35: 454540.73 | K35: 454940 | L35: Tangent to Curve | M35: 4 | N35: B | O35: =IF(OR(I35="PV-301",I35="PV-302"),P35-H35,IF(OR(I35="PV-304",I35="PV-305",I35="PV-306"),Q35-H35,IF(AND(I35="PV-303",N35="A"),P35-H35,IF(AND(I35="PV-303",N35="B"),R35-(G35-H35),"")))) -> 454491.03 | P35: =IF(OR(I35="PV-301",I35="PV-302"),R35-G35,IF(OR(I35="PV-304",I35="PV-305",I35="PV-306"),O35+H35/5,IF(AND(I35="PV-303",N35="A"),R35-G35,""))) ->  | Q35: =IF(OR(I35="PV-301",I35="PV-302"),P35+H35,IF(OR(I35="PV-304",I35="PV-305",I35="PV-306"),T35-G35,IF(I35="PV-303",J35,""))) -> 454540.73 | R35: =IF(AND(OR(I35="PV-301",I35="PV-302"),L35="Tangent to Curve"),J35+(G35*0.3),IF(AND(OR(I35="PV-301",I35="PV-302"),L35="Spiral Curve"),J35,IF(AND(OR(I35="PV-304",I35="PV-305",I35="PV-306"),F35>=2),S35-(H35/5),IF(I35="PV-303",J35+(G35*0.3),"")))) -> 454586.03 | S35: =IF(AND(OR(I35="PV-304",I35="PV-305",I35="PV-306"),F35>=2.5),Q35+H35,"") ->  | T35: =IF(AND(OR(I35="PV-304",I35="PV-305",I35="PV-306"),L35="Tangent to Curve"),J35+(G35*0.3),IF(AND(OR(I35="PV-304",I35="PV-305",I35="PV-306"),L35="Spiral Curve"),J35,"")) ->  | U35: =IF(AND(OR(I35="PV-301",I35="PV-302"),F35>2.8),J35,IF(AND(OR(I35="PV-304",I35="PV-305",I35="PV-306"),F35>=3.6),J35,"")) ->  | V35: =IF(AND(OR(I35="PV-301",I35="PV-302"),F35<=2.8),J35,IF(AND(OR(I35="PV-304",I35="PV-305",I35="PV-306"),AND(F35>2.8,F35<3.6)),J35,"")) ->  | W35: =IF(AND(OR(I35="PV-304",I35="PV-305",I35="PV-306"),F35<=2.8),J35,"") ->  | X35: =IF(AND(OR(I35="PV-301",I35="PV-302",I35="PV-303"),F35>=M35),R35-(G35/F35)*(F35-M35),IF(AND(OR(I35="PV-304",I35="PV-305",I35="PV-306"),F35>=M35),T35-(G35/F35)*(F35-M35),"")) -> 454546.8819 | Y35: =IF(AND(OR(I35="PV-301",I35="PV-302",I35="PV-303"),M35+F35>=8),R35-(G35/F35)*(F35-(8-M35)),IF(AND(OR(I35="PV-304",I35="PV-305",I35="PV-306"),M35+F35>=8),T35-(G35/F35)*(F35-(8-M35)),"")) -> 454546.8819 | Z35: =IF(AND(OR(I35="PV-301",I35="PV-302",I35="PV-303"),F35>=7),R35-(F35-7)*(G35/F35),"") -> 
P36: =IF(OR(I35="PV-301",I35="PV-302"),R36+G35,IF(OR(I35="PV-304",I35="PV-305",I35="PV-306"),O36-H35/5,IF(AND(I35="PV-303",N35="A"),R36+G35,""))) ->  | R36: 454940 | S36: =IF(AND(OR(I35="PV-304",I35="PV-305",I35="PV-306"),F35>=2.5),Q36-H35,"") ->  | T36: =IF(AND(OR(I35="PV-304",I35="PV-305",I35="PV-306"),L35="Tangent to Curve"),K35-(G35*0.3),IF(AND(OR(I35="PV-304",I35="PV-305",I35="PV-306"),L35="Spiral Curve"),K35,"")) ->  | U36: =IF(AND(OR(I35="PV-301",I35="PV-302"),F35>2.8),K35,IF(AND(OR(I35="PV-304",I35="PV-305",I35="PV-306"),F35>=3.6),K35,"")) ->  | V36: =IF(AND(OR(I35="PV-301",I35="PV-302"),F35<=2.8),K35,IF(AND(OR(I35="PV-304",I35="PV-305",I35="PV-306"),AND(F35>2.8,F35<3.6)),K35,"")) ->  | W36: =IF(AND(OR(I35="PV-304",I35="PV-305",I35="PV-306"),F35<=2.8),K35,"") ->  | X36: =IF(AND(OR(I35="PV-301",I35="PV-302",I35="PV-303"),F35>=M35),R36+(G35/F35)*(F35-M35),IF(AND(OR(I35="PV-304",I35="PV-305",I35="PV-306"),F35>=M35),T36+(G35/F35)*(F35-M35),"")) -> 454979.1481 | Y36: =IF(AND(OR(I35="PV-301",I35="PV-302",I35="PV-303"),M35+F35>=8),R36+(G35/F35)*(F35-(8-M35)),IF(AND(OR(I35="PV-304",I35="PV-305",I35="PV-306"),M35+F35>=8),T36+(G35/F35)*(F35-(8-M35)),"")) -> 454979.1481 | Z36: =IF(AND(OR(I35="PV-301",I35="PV-302",I35="PV-303"),F35>=7),R36+(F35-7)*(G35/F35),"") -> 
C37: IA 21 Ramp D | D37: 84002 | E37: 2000 | F37: 5.4 | G37: 168 | H37: 62 | I37: PV-303 | J37: 454940 | K37: 455200 | L37: Tangent to Curve | M37: 4 | N37: B | P37: =IF(OR(I37="PV-301",I37="PV-302"),R37-G37,IF(OR(I37="PV-304",I37="PV-305",I37="PV-306"),O37+H37/5,IF(AND(I37="PV-303",N37="A"),R37-G37,""))) ->  | R37: 454940 | S37: =IF(AND(OR(I37="PV-304",I37="PV-305",I37="PV-306"),F37>=2.5),Q37+H37,"") ->  | T37: =IF(AND(OR(I37="PV-304",I37="PV-305",I37="PV-306"),L37="Tangent to Curve"),J37+(G37*0.3),IF(AND(OR(I37="PV-304",I37="PV-305",I37="PV-306"),L37="Spiral Curve"),J37,"")) ->  | U37: =IF(AND(OR(I37="PV-301",I37="PV-302"),F37>2.8),J37,IF(AND(OR(I37="PV-304",I37="PV-305",I37="PV-306"),F37>=3.6),J37,"")) ->  | V37: =IF(AND(OR(I37="PV-301",I37="PV-302"),F37<=2.8),J37,IF(AND(OR(I37="PV-304",I37="PV-305",I37="PV-306"),AND(F37>2.8,F37<3.6)),J37,"")) ->  | W37: =IF(AND(OR(I37="PV-304",I37="PV-305",I37="PV-306"),F37<=2.8),J37,"") ->  | X37: =IF(AND(OR(I37="PV-301",I37="PV-302",I37="PV-303"),F37>=M37),R37-(G37/F37)*(F37-M37),IF(AND(OR(I37="PV-304",I37="PV-305",I37="PV-306"),F37>=M37),T37-(G37/F37)*(F37-M37),"")) -> 454896.4444 | Y37: =IF(AND(OR(I37="PV-301",I37="PV-302",I37="PV-303"),M37+F37>=8),R37-(G37/F37)*(F37-(8-M37)),IF(AND(OR(I37="PV-304",I37="PV-305",I37="PV-306"),M37+F37>=8),T37-(G37/F37)*(F37-(8-M37)),"")) -> 454896.4444 | Z37: =IF(AND(OR(I37="PV-301",I37="PV-302",I37="PV-303"),F37>=7),R37-(F37-7)*(G37/F37),"") -> 
P38: =IF(OR(I37="PV-301",I37="PV-302"),R38+G37,IF(OR(I37="PV-304",I37="PV-305",I37="PV-306"),O38-H37/5,IF(AND(I37="PV-303",N37="A"),R38+G37,""))) ->  | Q38: =IF(OR(I37="PV-301",I37="PV-302"),P38-H37,IF(OR(I37="PV-304",I37="PV-305",I37="PV-306"),T38+G37,IF(I37="PV-303",K37,""))) -> 455200 | R38: =IF(AND(OR(I37="PV-301",I37="PV-302"),L37="Tangent to Curve"),K37-(G37*0.3),IF(AND(OR(I37="PV-301",I37="PV-302"),L37="Spiral Curve"),K37,IF(AND(OR(I37="PV-304",I37="PV-305",I37="PV-306"),F37>=2),S38+(H37/5),IF(I37="PV-303",K37-(G37*0.3),"")))) -> 455149.6 | S38: =IF(AND(OR(I37="PV-304",I37="PV-305",I37="PV-306"),F37>=2.5),Q38-H37,"") ->  | T38: =IF(AND(OR(I37="PV-304",I37="PV-305",I37="PV-306"),L37="Tangent to Curve"),K37-(G37*0.3),IF(AND(OR(I37="PV-304",I37="PV-305",I37="PV-306"),L37="Spiral Curve"),K37,"")) ->  | U38: =IF(AND(OR(I37="PV-301",I37="PV-302"),F37>2.8),K37,IF(AND(OR(I37="PV-304",I37="PV-305",I37="PV-306"),F37>=3.6),K37,"")) ->  | V38: =IF(AND(OR(I37="PV-301",I37="PV-302"),F37<=2.8),K37,IF(AND(OR(I37="PV-304",I37="PV-305",I37="PV-306"),AND(F37>2.8,F37<3.6)),K37,"")) ->  | W38: =IF(AND(OR(I37="PV-304",I37="PV-305",I37="PV-306"),F37<=2.8),K37,"") ->  | X38: =IF(AND(OR(I37="PV-301",I37="PV-302",I37="PV-303"),F37>=M37),R38+(G37/F37)*(F37-M37),IF(AND(OR(I37="PV-304",I37="PV-305",I37="PV-306"),F37>=M37),T38+(G37/F37)*(F37-M37),"")) -> 455193.1556 | Y38: =IF(AND(OR(I37="PV-301",I37="PV-302",I37="PV-303"),M37+F37>=8),R38+(G37/F37)*(F37-(8-M37)),IF(AND(OR(I37="PV-304",I37="PV-305",I37="PV-306"),M37+F37>=8),T38+(G37/F37)*(F37-(8-M37)),"")) -> 455193.1556 | Z38: =IF(AND(OR(I37="PV-301",I37="PV-302",I37="PV-303"),F37>=7),R38+(F37-7)*(G37/F37),"") -> 
O39: =IF(OR(I39="PV-301",I39="PV-302"),P39-H39,IF(OR(I39="PV-304",I39="PV-305",I39="PV-306"),Q39-H39,IF(AND(I39="PV-303",N39="A"),P39-H39,IF(AND(I39="PV-303",N39="B"),R39-(G39-H39),"")))) ->  | P39: =IF(OR(I39="PV-301",I39="PV-302"),R39-G39,IF(OR(I39="PV-304",I39="PV-305",I39="PV-306"),O39+H39/5,IF(AND(I39="PV-303",N39="A"),R39-G39,""))) ->  | Q39: =IF(OR(I39="PV-301",I39="PV-302"),P39+H39,IF(OR(I39="PV-304",I39="PV-305",I39="PV-306"),T39-G39,IF(I39="PV-303",J39,""))) ->  | R39: =IF(AND(OR(I39="PV-301",I39="PV-302"),L39="Tangent to Curve"),J39+(G39*0.3),IF(AND(OR(I39="PV-301",I39="PV-302"),L39="Spiral Curve"),J39,IF(AND(OR(I39="PV-304",I39="PV-305",I39="PV-306"),F39>=2),S39-(H39/5),IF(I39="PV-303",J39+(G39*0.3),"")))) ->  | S39: =IF(AND(OR(I39="PV-304",I39="PV-305",I39="PV-306"),F39>=2.5),Q39+H39,"") ->  | T39: =IF(AND(OR(I39="PV-304",I39="PV-305",I39="PV-306"),L39="Tangent to Curve"),J39+(G39*0.3),IF(AND(OR(I39="PV-304",I39="PV-305",I39="PV-306"),L39="Spiral Curve"),J39,"")) ->  | U39: =IF(AND(OR(I39="PV-301",I39="PV-302"),F39>2.8),J39,IF(AND(OR(I39="PV-304",I39="PV-305",I39="PV-306"),F39>=3.6),J39,"")) ->  | V39: =IF(AND(OR(I39="PV-301",I39="PV-302"),F39<=2.8),J39,IF(AND(OR(I39="PV-304",I39="PV-305",I39="PV-306"),AND(F39>2.8,F39<3.6)),J39,"")) ->  | W39: =IF(AND(OR(I39="PV-304",I39="PV-305",I39="PV-306"),F39<=2.8),J39,"") ->  | X39: =IF(AND(OR(I39="PV-301",I39="PV-302",I39="PV-303"),F39>=M39),R39-(G39/F39)*(F39-M39),IF(AND(OR(I39="PV-304",I39="PV-305",I39="PV-306"),F39>=M39),T39-(G39/F39)*(F39-M39),"")) ->  | Y39: =IF(AND(OR(I39="PV-301",I39="PV-302",I39="PV-303"),M39+F39>=8),R39-(G39/F39)*(F39-(8-M39)),IF(AND(OR(I39="PV-304",I39="PV-305",I39="PV-306"),M39+F39>=8),T39-(G39/F39)*(F39-(8-M39)),"")) ->  | Z39: =IF(AND(OR(I39="PV-301",I39="PV-302",I39="PV-303"),F39>=7),R39-(F39-7)*(G39/F39),"") -> 
O40: =IF(OR(I39="PV-301",I39="PV-302"),P40+H39,IF(OR(I39="PV-304",I39="PV-305",I39="PV-306"),Q40+H39,IF(AND(I39="PV-303",N39="A"),P40+H39,IF(AND(I39="PV-303",N39="B"),R40+(G39-H39),"")))) ->  | P40: =IF(OR(I39="PV-301",I39="PV-302"),R40+G39,IF(OR(I39="PV-304",I39="PV-305",I39="PV-306"),O40-H39/5,IF(AND(I39="PV-303",N39="A"),R40+G39,""))) ->  | Q40: =IF(OR(I39="PV-301",I39="PV-302"),P40-H39,IF(OR(I39="PV-304",I39="PV-305",I39="PV-306"),T40+G39,IF(I39="PV-303",K39,""))) ->  | R40: =IF(AND(OR(I39="PV-301",I39="PV-302"),L39="Tangent to Curve"),K39-(G39*0.3),IF(AND(OR(I39="PV-301",I39="PV-302"),L39="Spiral Curve"),K39,IF(AND(OR(I39="PV-304",I39="PV-305",I39="PV-306"),F39>=2),S40+(H39/5),IF(I39="PV-303",K39-(G39*0.3),"")))) ->  | S40: =IF(AND(OR(I39="PV-304",I39="PV-305",I39="PV-306"),F39>=2.5),Q40-H39,"") ->  | T40: =IF(AND(OR(I39="PV-304",I39="PV-305",I39="PV-306"),L39="Tangent to Curve"),K39-(G39*0.3),IF(AND(OR(I39="PV-304",I39="PV-305",I39="PV-306"),L39="Spiral Curve"),K39,"")) ->  | U40: =IF(AND(OR(I39="PV-301",I39="PV-302"),F39>2.8),K39,IF(AND(OR(I39="PV-304",I39="PV-305",I39="PV-306"),F39>=3.6),K39,"")) ->  | V40: =IF(AND(OR(I39="PV-301",I39="PV-302"),F39<=2.8),K39,IF(AND(OR(I39="PV-304",I39="PV-305",I39="PV-306"),AND(F39>2.8,F39<3.6)),K39,"")) ->  | W40: =IF(AND(OR(I39="PV-304",I39="PV-305",I39="PV-306"),F39<=2.8),K39,"") ->  | X40: =IF(AND(OR(I39="PV-301",I39="PV-302",I39="PV-303"),F39>=M39),R40+(G39/F39)*(F39-M39),IF(AND(OR(I39="PV-304",I39="PV-305",I39="PV-306"),F39>=M39),T40+(G39/F39)*(F39-M39),"")) ->  | Y40: =IF(AND(OR(I39="PV-301",I39="PV-302",I39="PV-303"),M39+F39>=8),R40+(G39/F39)*(F39-(8-M39)),IF(AND(OR(I39="PV-304",I39="PV-305",I39="PV-306"),M39+F39>=8),T40+(G39/F39)*(F39-(8-M39)),"")) ->  | Z40: =IF(AND(OR(I39="PV-301",I39="PV-302",I39="PV-303"),F39>=7),R40+(F39-7)*(G39/F39),"") -> 
O41: =IF(OR(I41="PV-301",I41="PV-302"),P41-H41,IF(OR(I41="PV-304",I41="PV-305",I41="PV-306"),Q41-H41,IF(AND(I41="PV-303",N41="A"),P41-H41,IF(AND(I41="PV-303",N41="B"),R41-(G41-H41),"")))) ->  | P41: =IF(OR(I41="PV-301",I41="PV-302"),R41-G41,IF(OR(I41="PV-304",I41="PV-305",I41="PV-306"),O41+H41/5,IF(AND(I41="PV-303",N41="A"),R41-G41,""))) ->  | Q41: =IF(OR(I41="PV-301",I41="PV-302"),P41+H41,IF(OR(I41="PV-304",I41="PV-305",I41="PV-306"),T41-G41,IF(I41="PV-303",J41,""))) ->  | R41: =IF(AND(OR(I41="PV-301",I41="PV-302"),L41="Tangent to Curve"),J41+(G41*0.3),IF(AND(OR(I41="PV-301",I41="PV-302"),L41="Spiral Curve"),J41,IF(AND(OR(I41="PV-304",I41="PV-305",I41="PV-306"),F41>=2),S41-(H41/5),IF(I41="PV-303",J41+(G41*0.3),"")))) ->  | S41: =IF(AND(OR(I41="PV-304",I41="PV-305",I41="PV-306"),F41>=2.5),Q41+H41,"") ->  | T41: =IF(AND(OR(I41="PV-304",I41="PV-305",I41="PV-306"),L41="Tangent to Curve"),J41+(G41*0.3),IF(AND(OR(I41="PV-304",I41="PV-305",I41="PV-306"),L41="Spiral Curve"),J41,"")) ->  | U41: =IF(AND(OR(I41="PV-301",I41="PV-302"),F41>2.8),J41,IF(AND(OR(I41="PV-304",I41="PV-305",I41="PV-306"),F41>=3.6),J41,"")) ->  | V41: =IF(AND(OR(I41="PV-301",I41="PV-302"),F41<=2.8),J41,IF(AND(OR(I41="PV-304",I41="PV-305",I41="PV-306"),AND(F41>2.8,F41<3.6)),J41,"")) ->  | W41: =IF(AND(OR(I41="PV-304",I41="PV-305",I41="PV-306"),F41<=2.8),J41,"") ->  | X41: =IF(AND(OR(I41="PV-301",I41="PV-302",I41="PV-303"),F41>=M41),R41-(G41/F41)*(F41-M41),IF(AND(OR(I41="PV-304",I41="PV-305",I41="PV-306"),F41>=M41),T41-(G41/F41)*(F41-M41),"")) ->  | Y41: =IF(AND(OR(I41="PV-301",I41="PV-302",I41="PV-303"),M41+F41>=8),R41-(G41/F41)*(F41-(8-M41)),IF(AND(OR(I41="PV-304",I41="PV-305",I41="PV-306"),M41+F41>=8),T41-(G41/F41)*(F41-(8-M41)),"")) ->  | Z41: =IF(AND(OR(I41="PV-301",I41="PV-302",I41="PV-303"),F41>=7),R41-(F41-7)*(G41/F41),"") -> 
O42: =IF(OR(I41="PV-301",I41="PV-302"),P42+H41,IF(OR(I41="PV-304",I41="PV-305",I41="PV-306"),Q42+H41,IF(AND(I41="PV-303",N41="A"),P42+H41,IF(AND(I41="PV-303",N41="B"),R42+(G41-H41),"")))) ->  | P42: =IF(OR(I41="PV-301",I41="PV-302"),R42+G41,IF(OR(I41="PV-304",I41="PV-305",I41="PV-306"),O42-H41/5,IF(AND(I41="PV-303",N41="A"),R42+G41,""))) ->  | Q42: =IF(OR(I41="PV-301",I41="PV-302"),P42-H41,IF(OR(I41="PV-304",I41="PV-305",I41="PV-306"),T42+G41,IF(I41="PV-303",K41,""))) ->  | R42: =IF(AND(OR(I41="PV-301",I41="PV-302"),L41="Tangent to Curve"),K41-(G41*0.3),IF(AND(OR(I41="PV-301",I41="PV-302"),L41="Spiral Curve"),K41,IF(AND(OR(I41="PV-304",I41="PV-305",I41="PV-306"),F41>=2),S42+(H41/5),IF(I41="PV-303",K41-(G41*0.3),"")))) ->  | S42: =IF(AND(OR(I41="PV-304",I41="PV-305",I41="PV-306"),F41>=2.5),Q42-H41,"") ->  | T42: =IF(AND(OR(I41="PV-304",I41="PV-305",I41="PV-306"),L41="Tangent to Curve"),K41-(G41*0.3),IF(AND(OR(I41="PV-304",I41="PV-305",I41="PV-306"),L41="Spiral Curve"),K41,"")) ->  | U42: =IF(AND(OR(I41="PV-301",I41="PV-302"),F41>2.8),K41,IF(AND(OR(I41="PV-304",I41="PV-305",I41="PV-306"),F41>=3.6),K41,"")) ->  | V42: =IF(AND(OR(I41="PV-301",I41="PV-302"),F41<=2.8),K41,IF(AND(OR(I41="PV-304",I41="PV-305",I41="PV-306"),AND(F41>2.8,F41<3.6)),K41,"")) ->  | W42: =IF(AND(OR(I41="PV-304",I41="PV-305",I41="PV-306"),F41<=2.8),K41,"") ->  | X42: =IF(AND(OR(I41="PV-301",I41="PV-302",I41="PV-303"),F41>=M41),R42+(G41/F41)*(F41-M41),IF(AND(OR(I41="PV-304",I41="PV-305",I41="PV-306"),F41>=M41),T42+(G41/F41)*(F41-M41),"")) ->  | Y42: =IF(AND(OR(I41="PV-301",I41="PV-302",I41="PV-303"),M41+F41>=8),R42+(G41/F41)*(F41-(8-M41)),IF(AND(OR(I41="PV-304",I41="PV-305",I41="PV-306"),M41+F41>=8),T42+(G41/F41)*(F41-(8-M41)),"")) ->  | Z42: =IF(AND(OR(I41="PV-301",I41="PV-302",I41="PV-303"),F41>=7),R42+(F41-7)*(G41/F41),"") -> 
O43: =IF(OR(I43="PV-301",I43="PV-302"),P43-H43,IF(OR(I43="PV-304",I43="PV-305",I43="PV-306"),Q43-H43,IF(AND(I43="PV-303",N43="A"),P43-H43,IF(AND(I43="PV-303",N43="B"),R43-(G43-H43),"")))) ->  | P43: =IF(OR(I43="PV-301",I43="PV-302"),R43-G43,IF(OR(I43="PV-304",I43="PV-305",I43="PV-306"),O43+H43/5,IF(AND(I43="PV-303",N43="A"),R43-G43,""))) ->  | Q43: =IF(OR(I43="PV-301",I43="PV-302"),P43+H43,IF(OR(I43="PV-304",I43="PV-305",I43="PV-306"),T43-G43,IF(I43="PV-303",J43,""))) ->  | R43: =IF(AND(OR(I43="PV-301",I43="PV-302"),L43="Tangent to Curve"),J43+(G43*0.3),IF(AND(OR(I43="PV-301",I43="PV-302"),L43="Spiral Curve"),J43,IF(AND(OR(I43="PV-304",I43="PV-305",I43="PV-306"),F43>=2),S43-(H43/5),IF(I43="PV-303",J43+(G43*0.3),"")))) ->  | S43: =IF(AND(OR(I43="PV-304",I43="PV-305",I43="PV-306"),F43>=2.5),Q43+H43,"") ->  | T43: =IF(AND(OR(I43="PV-304",I43="PV-305",I43="PV-306"),L43="Tangent to Curve"),J43+(G43*0.3),IF(AND(OR(I43="PV-304",I43="PV-305",I43="PV-306"),L43="Spiral Curve"),J43,"")) ->  | U43: =IF(AND(OR(I43="PV-301",I43="PV-302"),F43>2.8),J43,IF(AND(OR(I43="PV-304",I43="PV-305",I43="PV-306"),F43>=3.6),J43,"")) ->  | V43: =IF(AND(OR(I43="PV-301",I43="PV-302"),F43<=2.8),J43,IF(AND(OR(I43="PV-304",I43="PV-305",I43="PV-306"),AND(F43>2.8,F43<3.6)),J43,"")) ->  | W43: =IF(AND(OR(I43="PV-304",I43="PV-305",I43="PV-306"),F43<=2.8),J43,"") ->  | X43: =IF(AND(OR(I43="PV-301",I43="PV-302",I43="PV-303"),F43>=M43),R43-(G43/F43)*(F43-M43),IF(AND(OR(I43="PV-304",I43="PV-305",I43="PV-306"),F43>=M43),T43-(G43/F43)*(F43-M43),"")) ->  | Y43: =IF(AND(OR(I43="PV-301",I43="PV-302",I43="PV-303"),M43+F43>=8),R43-(G43/F43)*(F43-(8-M43)),IF(AND(OR(I43="PV-304",I43="PV-305",I43="PV-306"),M43+F43>=8),T43-(G43/F43)*(F43-(8-M43)),"")) ->  | Z43: =IF(AND(OR(I43="PV-301",I43="PV-302",I43="PV-303"),F43>=7),R43-(F43-7)*(G43/F43),"") -> 
O44: =IF(OR(I43="PV-301",I43="PV-302"),P44+H43,IF(OR(I43="PV-304",I43="PV-305",I43="PV-306"),Q44+H43,IF(AND(I43="PV-303",N43="A"),P44+H43,IF(AND(I43="PV-303",N43="B"),R44+(G43-H43),"")))) ->  | P44: =IF(OR(I43="PV-301",I43="PV-302"),R44+G43,IF(OR(I43="PV-304",I43="PV-305",I43="PV-306"),O44-H43/5,IF(AND(I43="PV-303",N43="A"),R44+G43,""))) ->  | Q44: =IF(OR(I43="PV-301",I43="PV-302"),P44-H43,IF(OR(I43="PV-304",I43="PV-305",I43="PV-306"),T44+G43,IF(I43="PV-303",K43,""))) ->  | R44: =IF(AND(OR(I43="PV-301",I43="PV-302"),L43="Tangent to Curve"),K43-(G43*0.3),IF(AND(OR(I43="PV-301",I43="PV-302"),L43="Spiral Curve"),K43,IF(AND(OR(I43="PV-304",I43="PV-305",I43="PV-306"),F43>=2),S44+(H43/5),IF(I43="PV-303",K43-(G43*0.3),"")))) ->  | S44: =IF(AND(OR(I43="PV-304",I43="PV-305",I43="PV-306"),F43>=2.5),Q44-H43,"") ->  | T44: =IF(AND(OR(I43="PV-304",I43="PV-305",I43="PV-306"),L43="Tangent to Curve"),K43-(G43*0.3),IF(AND(OR(I43="PV-304",I43="PV-305",I43="PV-306"),L43="Spiral Curve"),K43,"")) ->  | U44: =IF(AND(OR(I43="PV-301",I43="PV-302"),F43>2.8),K43,IF(AND(OR(I43="PV-304",I43="PV-305",I43="PV-306"),F43>=3.6),K43,"")) ->  | V44: =IF(AND(OR(I43="PV-301",I43="PV-302"),F43<=2.8),K43,IF(AND(OR(I43="PV-304",I43="PV-305",I43="PV-306"),AND(F43>2.8,F43<3.6)),K43,"")) ->  | W44: =IF(AND(OR(I43="PV-304",I43="PV-305",I43="PV-306"),F43<=2.8),K43,"") ->  | X44: =IF(AND(OR(I43="PV-301",I43="PV-302",I43="PV-303"),F43>=M43),R44+(G43/F43)*(F43-M43),IF(AND(OR(I43="PV-304",I43="PV-305",I43="PV-306"),F43>=M43),T44+(G43/F43)*(F43-M43),"")) ->  | Y44: =IF(AND(OR(I43="PV-301",I43="PV-302",I43="PV-303"),M43+F43>=8),R44+(G43/F43)*(F43-(8-M43)),IF(AND(OR(I43="PV-304",I43="PV-305",I43="PV-306"),M43+F43>=8),T44+(G43/F43)*(F43-(8-M43)),"")) ->  | Z44: =IF(AND(OR(I43="PV-301",I43="PV-302",I43="PV-303"),F43>=7),R44+(F43-7)*(G43/F43),"") -> 
O45: =IF(OR(I45="PV-301",I45="PV-302"),P45-H45,IF(OR(I45="PV-304",I45="PV-305",I45="PV-306"),Q45-H45,IF(AND(I45="PV-303",N45="A"),P45-H45,IF(AND(I45="PV-303",N45="B"),R45-(G45-H45),"")))) ->  | P45: =IF(OR(I45="PV-301",I45="PV-302"),R45-G45,IF(OR(I45="PV-304",I45="PV-305",I45="PV-306"),O45+H45/5,IF(AND(I45="PV-303",N45="A"),R45-G45,""))) ->  | Q45: =IF(OR(I45="PV-301",I45="PV-302"),P45+H45,IF(OR(I45="PV-304",I45="PV-305",I45="PV-306"),T45-G45,IF(I45="PV-303",J45,""))) ->  | R45: =IF(AND(OR(I45="PV-301",I45="PV-302"),L45="Tangent to Curve"),J45+(G45*0.3),IF(AND(OR(I45="PV-301",I45="PV-302"),L45="Spiral Curve"),J45,IF(AND(OR(I45="PV-304",I45="PV-305",I45="PV-306"),F45>=2),S45-(H45/5),IF(I45="PV-303",J45+(G45*0.3),"")))) ->  | S45: =IF(AND(OR(I45="PV-304",I45="PV-305",I45="PV-306"),F45>=2.5),Q45+H45,"") ->  | T45: =IF(AND(OR(I45="PV-304",I45="PV-305",I45="PV-306"),L45="Tangent to Curve"),J45+(G45*0.3),IF(AND(OR(I45="PV-304",I45="PV-305",I45="PV-306"),L45="Spiral Curve"),J45,"")) ->  | U45: =IF(AND(OR(I45="PV-301",I45="PV-302"),F45>2.8),J45,IF(AND(OR(I45="PV-304",I45="PV-305",I45="PV-306"),F45>=3.6),J45,"")) ->  | V45: =IF(AND(OR(I45="PV-301",I45="PV-302"),F45<=2.8),J45,IF(AND(OR(I45="PV-304",I45="PV-305",I45="PV-306"),AND(F45>2.8,F45<3.6)),J45,"")) ->  | W45: =IF(AND(OR(I45="PV-304",I45="PV-305",I45="PV-306"),F45<=2.8),J45,"") ->  | X45: =IF(AND(OR(I45="PV-301",I45="PV-302",I45="PV-303"),F45>=M45),R45-(G45/F45)*(F45-M45),IF(AND(OR(I45="PV-304",I45="PV-305",I45="PV-306"),F45>=M45),T45-(G45/F45)*(F45-M45),"")) ->  | Y45: =IF(AND(OR(I45="PV-301",I45="PV-302",I45="PV-303"),M45+F45>=8),R45-(G45/F45)*(F45-(8-M45)),IF(AND(OR(I45="PV-304",I45="PV-305",I45="PV-306"),M45+F45>=8),T45-(G45/F45)*(F45-(8-M45)),"")) ->  | Z45: =IF(AND(OR(I45="PV-301",I45="PV-302",I45="PV-303"),F45>=7),R45-(F45-7)*(G45/F45),"") -> 
O46: =IF(OR(I45="PV-301",I45="PV-302"),P46+H45,IF(OR(I45="PV-304",I45="PV-305",I45="PV-306"),Q46+H45,IF(AND(I45="PV-303",N45="A"),P46+H45,IF(AND(I45="PV-303",N45="B"),R46+(G45-H45),"")))) ->  | P46: =IF(OR(I45="PV-301",I45="PV-302"),R46+G45,IF(OR(I45="PV-304",I45="PV-305",I45="PV-306"),O46-H45/5,IF(AND(I45="PV-303",N45="A"),R46+G45,""))) ->  | Q46: =IF(OR(I45="PV-301",I45="PV-302"),P46-H45,IF(OR(I45="PV-304",I45="PV-305",I45="PV-306"),T46+G45,IF(I45="PV-303",K45,""))) ->  | R46: =IF(AND(OR(I45="PV-301",I45="PV-302"),L45="Tangent to Curve"),K45-(G45*0.3),IF(AND(OR(I45="PV-301",I45="PV-302"),L45="Spiral Curve"),K45,IF(AND(OR(I45="PV-304",I45="PV-305",I45="PV-306"),F45>=2),S46+(H45/5),IF(I45="PV-303",K45-(G45*0.3),"")))) ->  | S46: =IF(AND(OR(I45="PV-304",I45="PV-305",I45="PV-306"),F45>=2.5),Q46-H45,"") ->  | T46: =IF(AND(OR(I45="PV-304",I45="PV-305",I45="PV-306"),L45="Tangent to Curve"),K45-(G45*0.3),IF(AND(OR(I45="PV-304",I45="PV-305",I45="PV-306"),L45="Spiral Curve"),K45,"")) ->  | U46: =IF(AND(OR(I45="PV-301",I45="PV-302"),F45>2.8),K45,IF(AND(OR(I45="PV-304",I45="PV-305",I45="PV-306"),F45>=3.6),K45,"")) ->  | V46: =IF(AND(OR(I45="PV-301",I45="PV-302"),F45<=2.8),K45,IF(AND(OR(I45="PV-304",I45="PV-305",I45="PV-306"),AND(F45>2.8,F45<3.6)),K45,"")) ->  | W46: =IF(AND(OR(I45="PV-304",I45="PV-305",I45="PV-306"),F45<=2.8),K45,"") ->  | X46: =IF(AND(OR(I45="PV-301",I45="PV-302",I45="PV-303"),F45>=M45),R46+(G45/F45)*(F45-M45),IF(AND(OR(I45="PV-304",I45="PV-305",I45="PV-306"),F45>=M45),T46+(G45/F45)*(F45-M45),"")) ->  | Y46: =IF(AND(OR(I45="PV-301",I45="PV-302",I45="PV-303"),M45+F45>=8),R46+(G45/F45)*(F45-(8-M45)),IF(AND(OR(I45="PV-304",I45="PV-305",I45="PV-306"),M45+F45>=8),T46+(G45/F45)*(F45-(8-M45)),"")) ->  | Z46: =IF(AND(OR(I45="PV-301",I45="PV-302",I45="PV-303"),F45>=7),R46+(F45-7)*(G45/F45),"") -> 
O47: =IF(OR(I47="PV-301",I47="PV-302"),P47-H47,IF(OR(I47="PV-304",I47="PV-305",I47="PV-306"),Q47-H47,IF(AND(I47="PV-303",N47="A"),P47-H47,IF(AND(I47="PV-303",N47="B"),R47-(G47-H47),"")))) ->  | P47: =IF(OR(I47="PV-301",I47="PV-302"),R47-G47,IF(OR(I47="PV-304",I47="PV-305",I47="PV-306"),O47+H47/5,IF(AND(I47="PV-303",N47="A"),R47-G47,""))) ->  | Q47: =IF(OR(I47="PV-301",I47="PV-302"),P47+H47,IF(OR(I47="PV-304",I47="PV-305",I47="PV-306"),T47-G47,IF(I47="PV-303",J47,""))) ->  | R47: =IF(AND(OR(I47="PV-301",I47="PV-302"),L47="Tangent to Curve"),J47+(G47*0.3),IF(AND(OR(I47="PV-301",I47="PV-302"),L47="Spiral Curve"),J47,IF(AND(OR(I47="PV-304",I47="PV-305",I47="PV-306"),F47>=2),S47-(H47/5),IF(I47="PV-303",J47+(G47*0.3),"")))) ->  | S47: =IF(AND(OR(I47="PV-304",I47="PV-305",I47="PV-306"),F47>=2.5),Q47+H47,"") ->  | T47: =IF(AND(OR(I47="PV-304",I47="PV-305",I47="PV-306"),L47="Tangent to Curve"),J47+(G47*0.3),IF(AND(OR(I47="PV-304",I47="PV-305",I47="PV-306"),L47="Spiral Curve"),J47,"")) ->  | U47: =IF(AND(OR(I47="PV-301",I47="PV-302"),F47>2.8),J47,IF(AND(OR(I47="PV-304",I47="PV-305",I47="PV-306"),F47>=3.6),J47,"")) ->  | V47: =IF(AND(OR(I47="PV-301",I47="PV-302"),F47<=2.8),J47,IF(AND(OR(I47="PV-304",I47="PV-305",I47="PV-306"),AND(F47>2.8,F47<3.6)),J47,"")) ->  | W47: =IF(AND(OR(I47="PV-304",I47="PV-305",I47="PV-306"),F47<=2.8),J47,"") ->  | X47: =IF(AND(OR(I47="PV-301",I47="PV-302",I47="PV-303"),F47>=M47),R47-(G47/F47)*(F47-M47),IF(AND(OR(I47="PV-304",I47="PV-305",I47="PV-306"),F47>=M47),T47-(G47/F47)*(F47-M47),"")) ->  | Y47: =IF(AND(OR(I47="PV-301",I47="PV-302",I47="PV-303"),M47+F47>=8),R47-(G47/F47)*(F47-(8-M47)),IF(AND(OR(I47="PV-304",I47="PV-305",I47="PV-306"),M47+F47>=8),T47-(G47/F47)*(F47-(8-M47)),"")) ->  | Z47: =IF(AND(OR(I47="PV-301",I47="PV-302",I47="PV-303"),F47>=7),R47-(F47-7)*(G47/F47),"") -> 
O48: =IF(OR(I47="PV-301",I47="PV-302"),P48+H47,IF(OR(I47="PV-304",I47="PV-305",I47="PV-306"),Q48+H47,IF(AND(I47="PV-303",N47="A"),P48+H47,IF(AND(I47="PV-303",N47="B"),R48+(G47-H47),"")))) ->  | P48: =IF(OR(I47="PV-301",I47="PV-302"),R48+G47,IF(OR(I47="PV-304",I47="PV-305",I47="PV-306"),O48-H47/5,IF(AND(I47="PV-303",N47="A"),R48+G47,""))) ->  | Q48: =IF(OR(I47="PV-301",I47="PV-302"),P48-H47,IF(OR(I47="PV-304",I47="PV-305",I47="PV-306"),T48+G47,IF(I47="PV-303",K47,""))) ->  | R48: =IF(AND(OR(I47="PV-301",I47="PV-302"),L47="Tangent to Curve"),K47-(G47*0.3),IF(AND(OR(I47="PV-301",I47="PV-302"),L47="Spiral Curve"),K47,IF(AND(OR(I47="PV-304",I47="PV-305",I47="PV-306"),F47>=2),S48+(H47/5),IF(I47="PV-303",K47-(G47*0.3),"")))) ->  | S48: =IF(AND(OR(I47="PV-304",I47="PV-305",I47="PV-306"),F47>=2.5),Q48-H47,"") ->  | T48: =IF(AND(OR(I47="PV-304",I47="PV-305",I47="PV-306"),L47="Tangent to Curve"),K47-(G47*0.3),IF(AND(OR(I47="PV-304",I47="PV-305",I47="PV-306"),L47="Spiral Curve"),K47,"")) ->  | U48: =IF(AND(OR(I47="PV-301",I47="PV-302"),F47>2.8),K47,IF(AND(OR(I47="PV-304",I47="PV-305",I47="PV-306"),F47>=3.6),K47,"")) ->  | V48: =IF(AND(OR(I47="PV-301",I47="PV-302"),F47<=2.8),K47,IF(AND(OR(I47="PV-304",I47="PV-305",I47="PV-306"),AND(F47>2.8,F47<3.6)),K47,"")) ->  | W48: =IF(AND(OR(I47="PV-304",I47="PV-305",I47="PV-306"),F47<=2.8),K47,"") ->  | X48: =IF(AND(OR(I47="PV-301",I47="PV-302",I47="PV-303"),F47>=M47),R48+(G47/F47)*(F47-M47),IF(AND(OR(I47="PV-304",I47="PV-305",I47="PV-306"),F47>=M47),T48+(G47/F47)*(F47-M47),"")) ->  | Y48: =IF(AND(OR(I47="PV-301",I47="PV-302",I47="PV-303"),M47+F47>=8),R48+(G47/F47)*(F47-(8-M47)),IF(AND(OR(I47="PV-304",I47="PV-305",I47="PV-306"),M47+F47>=8),T48+(G47/F47)*(F47-(8-M47)),"")) ->  | Z48: =IF(AND(OR(I47="PV-301",I47="PV-302",I47="PV-303"),F47>=7),R48+(F47-7)*(G47/F47),"") -> 
O49: =IF(OR(I49="PV-301",I49="PV-302"),P49-H49,IF(OR(I49="PV-304",I49="PV-305",I49="PV-306"),Q49-H49,IF(AND(I49="PV-303",N49="A"),P49-H49,IF(AND(I49="PV-303",N49="B"),R49-(G49-H49),"")))) ->  | P49: =IF(OR(I49="PV-301",I49="PV-302"),R49-G49,IF(OR(I49="PV-304",I49="PV-305",I49="PV-306"),O49+H49/5,IF(AND(I49="PV-303",N49="A"),R49-G49,""))) ->  | Q49: =IF(OR(I49="PV-301",I49="PV-302"),P49+H49,IF(OR(I49="PV-304",I49="PV-305",I49="PV-306"),T49-G49,IF(I49="PV-303",J49,""))) ->  | R49: =IF(AND(OR(I49="PV-301",I49="PV-302"),L49="Tangent to Curve"),J49+(G49*0.3),IF(AND(OR(I49="PV-301",I49="PV-302"),L49="Spiral Curve"),J49,IF(AND(OR(I49="PV-304",I49="PV-305",I49="PV-306"),F49>=2),S49-(H49/5),IF(I49="PV-303",J49+(G49*0.3),"")))) ->  | S49: =IF(AND(OR(I49="PV-304",I49="PV-305",I49="PV-306"),F49>=2.5),Q49+H49,"") ->  | T49: =IF(AND(OR(I49="PV-304",I49="PV-305",I49="PV-306"),L49="Tangent to Curve"),J49+(G49*0.3),IF(AND(OR(I49="PV-304",I49="PV-305",I49="PV-306"),L49="Spiral Curve"),J49,"")) ->  | U49: =IF(AND(OR(I49="PV-301",I49="PV-302"),F49>2.8),J49,IF(AND(OR(I49="PV-304",I49="PV-305",I49="PV-306"),F49>=3.6),J49,"")) ->  | V49: =IF(AND(OR(I49="PV-301",I49="PV-302"),F49<=2.8),J49,IF(AND(OR(I49="PV-304",I49="PV-305",I49="PV-306"),AND(F49>2.8,F49<3.6)),J49,"")) ->  | W49: =IF(AND(OR(I49="PV-304",I49="PV-305",I49="PV-306"),F49<=2.8),J49,"") ->  | X49: =IF(AND(OR(I49="PV-301",I49="PV-302",I49="PV-303"),F49>=M49),R49-(G49/F49)*(F49-M49),IF(AND(OR(I49="PV-304",I49="PV-305",I49="PV-306"),F49>=M49),T49-(G49/F49)*(F49-M49),"")) ->  | Y49: =IF(AND(OR(I49="PV-301",I49="PV-302",I49="PV-303"),M49+F49>=8),R49-(G49/F49)*(F49-(8-M49)),IF(AND(OR(I49="PV-304",I49="PV-305",I49="PV-306"),M49+F49>=8),T49-(G49/F49)*(F49-(8-M49)),"")) ->  | Z49: =IF(AND(OR(I49="PV-301",I49="PV-302",I49="PV-303"),F49>=7),R49-(F49-7)*(G49/F49),"") -> 
O50: =IF(OR(I49="PV-301",I49="PV-302"),P50+H49,IF(OR(I49="PV-304",I49="PV-305",I49="PV-306"),Q50+H49,IF(AND(I49="PV-303",N49="A"),P50+H49,IF(AND(I49="PV-303",N49="B"),R50+(G49-H49),"")))) ->  | P50: =IF(OR(I49="PV-301",I49="PV-302"),R50+G49,IF(OR(I49="PV-304",I49="PV-305",I49="PV-306"),O50-H49/5,IF(AND(I49="PV-303",N49="A"),R50+G49,""))) ->  | Q50: =IF(OR(I49="PV-301",I49="PV-302"),P50-H49,IF(OR(I49="PV-304",I49="PV-305",I49="PV-306"),T50+G49,IF(I49="PV-303",K49,""))) ->  | R50: =IF(AND(OR(I49="PV-301",I49="PV-302"),L49="Tangent to Curve"),K49-(G49*0.3),IF(AND(OR(I49="PV-301",I49="PV-302"),L49="Spiral Curve"),K49,IF(AND(OR(I49="PV-304",I49="PV-305",I49="PV-306"),F49>=2),S50+(H49/5),IF(I49="PV-303",K49-(G49*0.3),"")))) ->  | S50: =IF(AND(OR(I49="PV-304",I49="PV-305",I49="PV-306"),F49>=2.5),Q50-H49,"") ->  | T50: =IF(AND(OR(I49="PV-304",I49="PV-305",I49="PV-306"),L49="Tangent to Curve"),K49-(G49*0.3),IF(AND(OR(I49="PV-304",I49="PV-305",I49="PV-306"),L49="Spiral Curve"),K49,"")) ->  | U50: =IF(AND(OR(I49="PV-301",I49="PV-302"),F49>2.8),K49,IF(AND(OR(I49="PV-304",I49="PV-305",I49="PV-306"),F49>=3.6),K49,"")) ->  | V50: =IF(AND(OR(I49="PV-301",I49="PV-302"),F49<=2.8),K49,IF(AND(OR(I49="PV-304",I49="PV-305",I49="PV-306"),AND(F49>2.8,F49<3.6)),K49,"")) ->  | W50: =IF(AND(OR(I49="PV-304",I49="PV-305",I49="PV-306"),F49<=2.8),K49,"") ->  | X50: =IF(AND(OR(I49="PV-301",I49="PV-302",I49="PV-303"),F49>=M49),R50+(G49/F49)*(F49-M49),IF(AND(OR(I49="PV-304",I49="PV-305",I49="PV-306"),F49>=M49),T50+(G49/F49)*(F49-M49),"")) ->  | Y50: =IF(AND(OR(I49="PV-301",I49="PV-302",I49="PV-303"),M49+F49>=8),R50+(G49/F49)*(F49-(8-M49)),IF(AND(OR(I49="PV-304",I49="PV-305",I49="PV-306"),M49+F49>=8),T50+(G49/F49)*(F49-(8-M49)),"")) ->  | Z50: =IF(AND(OR(I49="PV-301",I49="PV-302",I49="PV-303"),F49>=7),R50+(F49-7)*(G49/F49),"") -> 
O51: =IF(OR(I51="PV-301",I51="PV-302"),P51-H51,IF(OR(I51="PV-304",I51="PV-305",I51="PV-306"),Q51-H51,IF(AND(I51="PV-303",N51="A"),P51-H51,IF(AND(I51="PV-303",N51="B"),R51-(G51-H51),"")))) ->  | P51: =IF(OR(I51="PV-301",I51="PV-302"),R51-G51,IF(OR(I51="PV-304",I51="PV-305",I51="PV-306"),O51+H51/5,IF(AND(I51="PV-303",N51="A"),R51-G51,""))) ->  | Q51: =IF(OR(I51="PV-301",I51="PV-302"),P51+H51,IF(OR(I51="PV-304",I51="PV-305",I51="PV-306"),T51-G51,IF(I51="PV-303",J51,""))) ->  | R51: =IF(AND(OR(I51="PV-301",I51="PV-302"),L51="Tangent to Curve"),J51+(G51*0.3),IF(AND(OR(I51="PV-301",I51="PV-302"),L51="Spiral Curve"),J51,IF(AND(OR(I51="PV-304",I51="PV-305",I51="PV-306"),F51>=2),S51-(H51/5),IF(I51="PV-303",J51+(G51*0.3),"")))) ->  | S51: =IF(AND(OR(I51="PV-304",I51="PV-305",I51="PV-306"),F51>=2.5),Q51+H51,"") ->  | T51: =IF(AND(OR(I51="PV-304",I51="PV-305",I51="PV-306"),L51="Tangent to Curve"),J51+(G51*0.3),IF(AND(OR(I51="PV-304",I51="PV-305",I51="PV-306"),L51="Spiral Curve"),J51,"")) ->  | U51: =IF(AND(OR(I51="PV-301",I51="PV-302"),F51>2.8),J51,IF(AND(OR(I51="PV-304",I51="PV-305",I51="PV-306"),F51>=3.6),J51,"")) ->  | V51: =IF(AND(OR(I51="PV-301",I51="PV-302"),F51<=2.8),J51,IF(AND(OR(I51="PV-304",I51="PV-305",I51="PV-306"),AND(F51>2.8,F51<3.6)),J51,"")) ->  | W51: =IF(AND(OR(I51="PV-304",I51="PV-305",I51="PV-306"),F51<=2.8),J51,"") ->  | X51: =IF(AND(OR(I51="PV-301",I51="PV-302",I51="PV-303"),F51>=M51),R51-(G51/F51)*(F51-M51),IF(AND(OR(I51="PV-304",I51="PV-305",I51="PV-306"),F51>=M51),T51-(G51/F51)*(F51-M51),"")) ->  | Y51: =IF(AND(OR(I51="PV-301",I51="PV-302",I51="PV-303"),M51+F51>=8),R51-(G51/F51)*(F51-(8-M51)),IF(AND(OR(I51="PV-304",I51="PV-305",I51="PV-306"),M51+F51>=8),T51-(G51/F51)*(F51-(8-M51)),"")) ->  | Z51: =IF(AND(OR(I51="PV-301",I51="PV-302",I51="PV-303"),F51>=7),R51-(F51-7)*(G51/F51),"") -> 
O52: =IF(OR(I51="PV-301",I51="PV-302"),P52+H51,IF(OR(I51="PV-304",I51="PV-305",I51="PV-306"),Q52+H51,IF(AND(I51="PV-303",N51="A"),P52+H51,IF(AND(I51="PV-303",N51="B"),R52+(G51-H51),"")))) ->  | P52: =IF(OR(I51="PV-301",I51="PV-302"),R52+G51,IF(OR(I51="PV-304",I51="PV-305",I51="PV-306"),O52-H51/5,IF(AND(I51="PV-303",N51="A"),R52+G51,""))) ->  | Q52: =IF(OR(I51="PV-301",I51="PV-302"),P52-H51,IF(OR(I51="PV-304",I51="PV-305",I51="PV-306"),T52+G51,IF(I51="PV-303",K51,""))) ->  | R52: =IF(AND(OR(I51="PV-301",I51="PV-302"),L51="Tangent to Curve"),K51-(G51*0.3),IF(AND(OR(I51="PV-301",I51="PV-302"),L51="Spiral Curve"),K51,IF(AND(OR(I51="PV-304",I51="PV-305",I51="PV-306"),F51>=2),S52+(H51/5),IF(I51="PV-303",K51-(G51*0.3),"")))) ->  | S52: =IF(AND(OR(I51="PV-304",I51="PV-305",I51="PV-306"),F51>=2.5),Q52-H51,"") ->  | T52: =IF(AND(OR(I51="PV-304",I51="PV-305",I51="PV-306"),L51="Tangent to Curve"),K51-(G51*0.3),IF(AND(OR(I51="PV-304",I51="PV-305",I51="PV-306"),L51="Spiral Curve"),K51,"")) ->  | U52: =IF(AND(OR(I51="PV-301",I51="PV-302"),F51>2.8),K51,IF(AND(OR(I51="PV-304",I51="PV-305",I51="PV-306"),F51>=3.6),K51,"")) ->  | V52: =IF(AND(OR(I51="PV-301",I51="PV-302"),F51<=2.8),K51,IF(AND(OR(I51="PV-304",I51="PV-305",I51="PV-306"),AND(F51>2.8,F51<3.6)),K51,"")) ->  | W52: =IF(AND(OR(I51="PV-304",I51="PV-305",I51="PV-306"),F51<=2.8),K51,"") ->  | X52: =IF(AND(OR(I51="PV-301",I51="PV-302",I51="PV-303"),F51>=M51),R52+(G51/F51)*(F51-M51),IF(AND(OR(I51="PV-304",I51="PV-305",I51="PV-306"),F51>=M51),T52+(G51/F51)*(F51-M51),"")) ->  | Y52: =IF(AND(OR(I51="PV-301",I51="PV-302",I51="PV-303"),M51+F51>=8),R52+(G51/F51)*(F51-(8-M51)),IF(AND(OR(I51="PV-304",I51="PV-305",I51="PV-306"),M51+F51>=8),T52+(G51/F51)*(F51-(8-M51)),"")) ->  | Z52: =IF(AND(OR(I51="PV-301",I51="PV-302",I51="PV-303"),F51>=7),R52+(F51-7)*(G51/F51),"") -> 
O53: =IF(OR(I53="PV-301",I53="PV-302"),P53-H53,IF(OR(I53="PV-304",I53="PV-305",I53="PV-306"),Q53-H53,IF(AND(I53="PV-303",N53="A"),P53-H53,IF(AND(I53="PV-303",N53="B"),R53-(G53-H53),"")))) ->  | P53: =IF(OR(I53="PV-301",I53="PV-302"),R53-G53,IF(OR(I53="PV-304",I53="PV-305",I53="PV-306"),O53+H53/5,IF(AND(I53="PV-303",N53="A"),R53-G53,""))) ->  | Q53: =IF(OR(I53="PV-301",I53="PV-302"),P53+H53,IF(OR(I53="PV-304",I53="PV-305",I53="PV-306"),T53-G53,IF(I53="PV-303",J53,""))) ->  | R53: =IF(AND(OR(I53="PV-301",I53="PV-302"),L53="Tangent to Curve"),J53+(G53*0.3),IF(AND(OR(I53="PV-301",I53="PV-302"),L53="Spiral Curve"),J53,IF(AND(OR(I53="PV-304",I53="PV-305",I53="PV-306"),F53>=2),S53-(H53/5),IF(I53="PV-303",J53+(G53*0.3),"")))) ->  | S53: =IF(AND(OR(I53="PV-304",I53="PV-305",I53="PV-306"),F53>=2.5),Q53+H53,"") ->  | T53: =IF(AND(OR(I53="PV-304",I53="PV-305",I53="PV-306"),L53="Tangent to Curve"),J53+(G53*0.3),IF(AND(OR(I53="PV-304",I53="PV-305",I53="PV-306"),L53="Spiral Curve"),J53,"")) ->  | U53: =IF(AND(OR(I53="PV-301",I53="PV-302"),F53>2.8),J53,IF(AND(OR(I53="PV-304",I53="PV-305",I53="PV-306"),F53>=3.6),J53,"")) ->  | V53: =IF(AND(OR(I53="PV-301",I53="PV-302"),F53<=2.8),J53,IF(AND(OR(I53="PV-304",I53="PV-305",I53="PV-306"),AND(F53>2.8,F53<3.6)),J53,"")) ->  | W53: =IF(AND(OR(I53="PV-304",I53="PV-305",I53="PV-306"),F53<=2.8),J53,"") ->  | X53: =IF(AND(OR(I53="PV-301",I53="PV-302",I53="PV-303"),F53>=M53),R53-(G53/F53)*(F53-M53),IF(AND(OR(I53="PV-304",I53="PV-305",I53="PV-306"),F53>=M53),T53-(G53/F53)*(F53-M53),"")) ->  | Y53: =IF(AND(OR(I53="PV-301",I53="PV-302",I53="PV-303"),M53+F53>=8),R53-(G53/F53)*(F53-(8-M53)),IF(AND(OR(I53="PV-304",I53="PV-305",I53="PV-306"),M53+F53>=8),T53-(G53/F53)*(F53-(8-M53)),"")) ->  | Z53: =IF(AND(OR(I53="PV-301",I53="PV-302",I53="PV-303"),F53>=7),R53-(F53-7)*(G53/F53),"") -> 
O54: =IF(OR(I53="PV-301",I53="PV-302"),P54+H53,IF(OR(I53="PV-304",I53="PV-305",I53="PV-306"),Q54+H53,IF(AND(I53="PV-303",N53="A"),P54+H53,IF(AND(I53="PV-303",N53="B"),R54+(G53-H53),"")))) ->  | P54: =IF(OR(I53="PV-301",I53="PV-302"),R54+G53,IF(OR(I53="PV-304",I53="PV-305",I53="PV-306"),O54-H53/5,IF(AND(I53="PV-303",N53="A"),R54+G53,""))) ->  | Q54: =IF(OR(I53="PV-301",I53="PV-302"),P54-H53,IF(OR(I53="PV-304",I53="PV-305",I53="PV-306"),T54+G53,IF(I53="PV-303",K53,""))) ->  | R54: =IF(AND(OR(I53="PV-301",I53="PV-302"),L53="Tangent to Curve"),K53-(G53*0.3),IF(AND(OR(I53="PV-301",I53="PV-302"),L53="Spiral Curve"),K53,IF(AND(OR(I53="PV-304",I53="PV-305",I53="PV-306"),F53>=2),S54+(H53/5),IF(I53="PV-303",K53-(G53*0.3),"")))) ->  | S54: =IF(AND(OR(I53="PV-304",I53="PV-305",I53="PV-306"),F53>=2.5),Q54-H53,"") ->  | T54: =IF(AND(OR(I53="PV-304",I53="PV-305",I53="PV-306"),L53="Tangent to Curve"),K53-(G53*0.3),IF(AND(OR(I53="PV-304",I53="PV-305",I53="PV-306"),L53="Spiral Curve"),K53,"")) ->  | U54: =IF(AND(OR(I53="PV-301",I53="PV-302"),F53>2.8),K53,IF(AND(OR(I53="PV-304",I53="PV-305",I53="PV-306"),F53>=3.6),K53,"")) ->  | V54: =IF(AND(OR(I53="PV-301",I53="PV-302"),F53<=2.8),K53,IF(AND(OR(I53="PV-304",I53="PV-305",I53="PV-306"),AND(F53>2.8,F53<3.6)),K53,"")) ->  | W54: =IF(AND(OR(I53="PV-304",I53="PV-305",I53="PV-306"),F53<=2.8),K53,"") ->  | X54: =IF(AND(OR(I53="PV-301",I53="PV-302",I53="PV-303"),F53>=M53),R54+(G53/F53)*(F53-M53),IF(AND(OR(I53="PV-304",I53="PV-305",I53="PV-306"),F53>=M53),T54+(G53/F53)*(F53-M53),"")) ->  | Y54: =IF(AND(OR(I53="PV-301",I53="PV-302",I53="PV-303"),M53+F53>=8),R54+(G53/F53)*(F53-(8-M53)),IF(AND(OR(I53="PV-304",I53="PV-305",I53="PV-306"),M53+F53>=8),T54+(G53/F53)*(F53-(8-M53)),"")) ->  | Z54: =IF(AND(OR(I53="PV-301",I53="PV-302",I53="PV-303"),F53>=7),R54+(F53-7)*(G53/F53),"") -> 
O55: =IF(OR(I55="PV-301",I55="PV-302"),P55-H55,IF(OR(I55="PV-304",I55="PV-305",I55="PV-306"),Q55-H55,IF(AND(I55="PV-303",N55="A"),P55-H55,IF(AND(I55="PV-303",N55="B"),R55-(G55-H55),"")))) ->  | P55: =IF(OR(I55="PV-301",I55="PV-302"),R55-G55,IF(OR(I55="PV-304",I55="PV-305",I55="PV-306"),O55+H55/5,IF(AND(I55="PV-303",N55="A"),R55-G55,""))) ->  | Q55: =IF(OR(I55="PV-301",I55="PV-302"),P55+H55,IF(OR(I55="PV-304",I55="PV-305",I55="PV-306"),T55-G55,IF(I55="PV-303",J55,""))) ->  | R55: =IF(AND(OR(I55="PV-301",I55="PV-302"),L55="Tangent to Curve"),J55+(G55*0.3),IF(AND(OR(I55="PV-301",I55="PV-302"),L55="Spiral Curve"),J55,IF(AND(OR(I55="PV-304",I55="PV-305",I55="PV-306"),F55>=2),S55-(H55/5),IF(I55="PV-303",J55+(G55*0.3),"")))) ->  | S55: =IF(AND(OR(I55="PV-304",I55="PV-305",I55="PV-306"),F55>=2.5),Q55+H55,"") ->  | T55: =IF(AND(OR(I55="PV-304",I55="PV-305",I55="PV-306"),L55="Tangent to Curve"),J55+(G55*0.3),IF(AND(OR(I55="PV-304",I55="PV-305",I55="PV-306"),L55="Spiral Curve"),J55,"")) ->  | U55: =IF(AND(OR(I55="PV-301",I55="PV-302"),F55>2.8),J55,IF(AND(OR(I55="PV-304",I55="PV-305",I55="PV-306"),F55>=3.6),J55,"")) ->  | V55: =IF(AND(OR(I55="PV-301",I55="PV-302"),F55<=2.8),J55,IF(AND(OR(I55="PV-304",I55="PV-305",I55="PV-306"),AND(F55>2.8,F55<3.6)),J55,"")) ->  | W55: =IF(AND(OR(I55="PV-304",I55="PV-305",I55="PV-306"),F55<=2.8),J55,"") ->  | X55: =IF(AND(OR(I55="PV-301",I55="PV-302",I55="PV-303"),F55>=M55),R55-(G55/F55)*(F55-M55),IF(AND(OR(I55="PV-304",I55="PV-305",I55="PV-306"),F55>=M55),T55-(G55/F55)*(F55-M55),"")) ->  | Y55: =IF(AND(OR(I55="PV-301",I55="PV-302",I55="PV-303"),M55+F55>=8),R55-(G55/F55)*(F55-(8-M55)),IF(AND(OR(I55="PV-304",I55="PV-305",I55="PV-306"),M55+F55>=8),T55-(G55/F55)*(F55-(8-M55)),"")) ->  | Z55: =IF(AND(OR(I55="PV-301",I55="PV-302",I55="PV-303"),F55>=7),R55-(F55-7)*(G55/F55),"") -> 
O56: =IF(OR(I55="PV-301",I55="PV-302"),P56+H55,IF(OR(I55="PV-304",I55="PV-305",I55="PV-306"),Q56+H55,IF(AND(I55="PV-303",N55="A"),P56+H55,IF(AND(I55="PV-303",N55="B"),R56+(G55-H55),"")))) ->  | P56: =IF(OR(I55="PV-301",I55="PV-302"),R56+G55,IF(OR(I55="PV-304",I55="PV-305",I55="PV-306"),O56-H55/5,IF(AND(I55="PV-303",N55="A"),R56+G55,""))) ->  | Q56: =IF(OR(I55="PV-301",I55="PV-302"),P56-H55,IF(OR(I55="PV-304",I55="PV-305",I55="PV-306"),T56+G55,IF(I55="PV-303",K55,""))) ->  | R56: =IF(AND(OR(I55="PV-301",I55="PV-302"),L55="Tangent to Curve"),K55-(G55*0.3),IF(AND(OR(I55="PV-301",I55="PV-302"),L55="Spiral Curve"),K55,IF(AND(OR(I55="PV-304",I55="PV-305",I55="PV-306"),F55>=2),S56+(H55/5),IF(I55="PV-303",K55-(G55*0.3),"")))) ->  | S56: =IF(AND(OR(I55="PV-304",I55="PV-305",I55="PV-306"),F55>=2.5),Q56-H55,"") ->  | T56: =IF(AND(OR(I55="PV-304",I55="PV-305",I55="PV-306"),L55="Tangent to Curve"),K55-(G55*0.3),IF(AND(OR(I55="PV-304",I55="PV-305",I55="PV-306"),L55="Spiral Curve"),K55,"")) ->  | U56: =IF(AND(OR(I55="PV-301",I55="PV-302"),F55>2.8),K55,IF(AND(OR(I55="PV-304",I55="PV-305",I55="PV-306"),F55>=3.6),K55,"")) ->  | V56: =IF(AND(OR(I55="PV-301",I55="PV-302"),F55<=2.8),K55,IF(AND(OR(I55="PV-304",I55="PV-305",I55="PV-306"),AND(F55>2.8,F55<3.6)),K55,"")) ->  | W56: =IF(AND(OR(I55="PV-304",I55="PV-305",I55="PV-306"),F55<=2.8),K55,"") ->  | X56: =IF(AND(OR(I55="PV-301",I55="PV-302",I55="PV-303"),F55>=M55),R56+(G55/F55)*(F55-M55),IF(AND(OR(I55="PV-304",I55="PV-305",I55="PV-306"),F55>=M55),T56+(G55/F55)*(F55-M55),"")) ->  | Y56: =IF(AND(OR(I55="PV-301",I55="PV-302",I55="PV-303"),M55+F55>=8),R56+(G55/F55)*(F55-(8-M55)),IF(AND(OR(I55="PV-304",I55="PV-305",I55="PV-306"),M55+F55>=8),T56+(G55/F55)*(F55-(8-M55)),"")) ->  | Z56: =IF(AND(OR(I55="PV-301",I55="PV-302",I55="PV-303"),F55>=7),R56+(F55-7)*(G55/F55),"") -> 
O57: =IF(OR(I57="PV-301",I57="PV-302"),P57-H57,IF(OR(I57="PV-304",I57="PV-305",I57="PV-306"),Q57-H57,IF(AND(I57="PV-303",N57="A"),P57-H57,IF(AND(I57="PV-303",N57="B"),R57-(G57-H57),"")))) ->  | P57: =IF(OR(I57="PV-301",I57="PV-302"),R57-G57,IF(OR(I57="PV-304",I57="PV-305",I57="PV-306"),O57+H57/5,IF(AND(I57="PV-303",N57="A"),R57-G57,""))) ->  | Q57: =IF(OR(I57="PV-301",I57="PV-302"),P57+H57,IF(OR(I57="PV-304",I57="PV-305",I57="PV-306"),T57-G57,IF(I57="PV-303",J57,""))) ->  | R57: =IF(AND(OR(I57="PV-301",I57="PV-302"),L57="Tangent to Curve"),J57+(G57*0.3),IF(AND(OR(I57="PV-301",I57="PV-302"),L57="Spiral Curve"),J57,IF(AND(OR(I57="PV-304",I57="PV-305",I57="PV-306"),F57>=2),S57-(H57/5),IF(I57="PV-303",J57+(G57*0.3),"")))) ->  | S57: =IF(AND(OR(I57="PV-304",I57="PV-305",I57="PV-306"),F57>=2.5),Q57+H57,"") ->  | T57: =IF(AND(OR(I57="PV-304",I57="PV-305",I57="PV-306"),L57="Tangent to Curve"),J57+(G57*0.3),IF(AND(OR(I57="PV-304",I57="PV-305",I57="PV-306"),L57="Spiral Curve"),J57,"")) ->  | U57: =IF(AND(OR(I57="PV-301",I57="PV-302"),F57>2.8),J57,IF(AND(OR(I57="PV-304",I57="PV-305",I57="PV-306"),F57>=3.6),J57,"")) ->  | V57: =IF(AND(OR(I57="PV-301",I57="PV-302"),F57<=2.8),J57,IF(AND(OR(I57="PV-304",I57="PV-305",I57="PV-306"),AND(F57>2.8,F57<3.6)),J57,"")) ->  | W57: =IF(AND(OR(I57="PV-304",I57="PV-305",I57="PV-306"),F57<=2.8),J57,"") ->  | X57: =IF(AND(OR(I57="PV-301",I57="PV-302",I57="PV-303"),F57>=M57),R57-(G57/F57)*(F57-M57),IF(AND(OR(I57="PV-304",I57="PV-305",I57="PV-306"),F57>=M57),T57-(G57/F57)*(F57-M57),"")) ->  | Y57: =IF(AND(OR(I57="PV-301",I57="PV-302",I57="PV-303"),M57+F57>=8),R57-(G57/F57)*(F57-(8-M57)),IF(AND(OR(I57="PV-304",I57="PV-305",I57="PV-306"),M57+F57>=8),T57-(G57/F57)*(F57-(8-M57)),"")) ->  | Z57: =IF(AND(OR(I57="PV-301",I57="PV-302",I57="PV-303"),F57>=7),R57-(F57-7)*(G57/F57),"") -> 
O58: =IF(OR(I57="PV-301",I57="PV-302"),P58+H57,IF(OR(I57="PV-304",I57="PV-305",I57="PV-306"),Q58+H57,IF(AND(I57="PV-303",N57="A"),P58+H57,IF(AND(I57="PV-303",N57="B"),R58+(G57-H57),"")))) ->  | P58: =IF(OR(I57="PV-301",I57="PV-302"),R58+G57,IF(OR(I57="PV-304",I57="PV-305",I57="PV-306"),O58-H57/5,IF(AND(I57="PV-303",N57="A"),R58+G57,""))) ->  | Q58: =IF(OR(I57="PV-301",I57="PV-302"),P58-H57,IF(OR(I57="PV-304",I57="PV-305",I57="PV-306"),T58+G57,IF(I57="PV-303",K57,""))) ->  | R58: =IF(AND(OR(I57="PV-301",I57="PV-302"),L57="Tangent to Curve"),K57-(G57*0.3),IF(AND(OR(I57="PV-301",I57="PV-302"),L57="Spiral Curve"),K57,IF(AND(OR(I57="PV-304",I57="PV-305",I57="PV-306"),F57>=2),S58+(H57/5),IF(I57="PV-303",K57-(G57*0.3),"")))) ->  | S58: =IF(AND(OR(I57="PV-304",I57="PV-305",I57="PV-306"),F57>=2.5),Q58-H57,"") ->  | T58: =IF(AND(OR(I57="PV-304",I57="PV-305",I57="PV-306"),L57="Tangent to Curve"),K57-(G57*0.3),IF(AND(OR(I57="PV-304",I57="PV-305",I57="PV-306"),L57="Spiral Curve"),K57,"")) ->  | U58: =IF(AND(OR(I57="PV-301",I57="PV-302"),F57>2.8),K57,IF(AND(OR(I57="PV-304",I57="PV-305",I57="PV-306"),F57>=3.6),K57,"")) ->  | V58: =IF(AND(OR(I57="PV-301",I57="PV-302"),F57<=2.8),K57,IF(AND(OR(I57="PV-304",I57="PV-305",I57="PV-306"),AND(F57>2.8,F57<3.6)),K57,"")) ->  | W58: =IF(AND(OR(I57="PV-304",I57="PV-305",I57="PV-306"),F57<=2.8),K57,"") ->  | X58: =IF(AND(OR(I57="PV-301",I57="PV-302",I57="PV-303"),F57>=M57),R58+(G57/F57)*(F57-M57),IF(AND(OR(I57="PV-304",I57="PV-305",I57="PV-306"),F57>=M57),T58+(G57/F57)*(F57-M57),"")) ->  | Y58: =IF(AND(OR(I57="PV-301",I57="PV-302",I57="PV-303"),M57+F57>=8),R58+(G57/F57)*(F57-(8-M57)),IF(AND(OR(I57="PV-304",I57="PV-305",I57="PV-306"),M57+F57>=8),T58+(G57/F57)*(F57-(8-M57)),"")) ->  | Z58: =IF(AND(OR(I57="PV-301",I57="PV-302",I57="PV-303"),F57>=7),R58+(F57-7)*(G57/F57),"") -> 
O59: =IF(OR(I59="PV-301",I59="PV-302"),P59-H59,IF(OR(I59="PV-304",I59="PV-305",I59="PV-306"),Q59-H59,IF(AND(I59="PV-303",N59="A"),P59-H59,IF(AND(I59="PV-303",N59="B"),R59-(G59-H59),"")))) ->  | P59: =IF(OR(I59="PV-301",I59="PV-302"),R59-G59,IF(OR(I59="PV-304",I59="PV-305",I59="PV-306"),O59+H59/5,IF(AND(I59="PV-303",N59="A"),R59-G59,""))) ->  | Q59: =IF(OR(I59="PV-301",I59="PV-302"),P59+H59,IF(OR(I59="PV-304",I59="PV-305",I59="PV-306"),T59-G59,IF(I59="PV-303",J59,""))) ->  | R59: =IF(AND(OR(I59="PV-301",I59="PV-302"),L59="Tangent to Curve"),J59+(G59*0.3),IF(AND(OR(I59="PV-301",I59="PV-302"),L59="Spiral Curve"),J59,IF(AND(OR(I59="PV-304",I59="PV-305",I59="PV-306"),F59>=2),S59-(H59/5),IF(I59="PV-303",J59+(G59*0.3),"")))) ->  | S59: =IF(AND(OR(I59="PV-304",I59="PV-305",I59="PV-306"),F59>=2.5),Q59+H59,"") ->  | T59: =IF(AND(OR(I59="PV-304",I59="PV-305",I59="PV-306"),L59="Tangent to Curve"),J59+(G59*0.3),IF(AND(OR(I59="PV-304",I59="PV-305",I59="PV-306"),L59="Spiral Curve"),J59,"")) ->  | U59: =IF(AND(OR(I59="PV-301",I59="PV-302"),F59>2.8),J59,IF(AND(OR(I59="PV-304",I59="PV-305",I59="PV-306"),F59>=3.6),J59,"")) ->  | V59: =IF(AND(OR(I59="PV-301",I59="PV-302"),F59<=2.8),J59,IF(AND(OR(I59="PV-304",I59="PV-305",I59="PV-306"),AND(F59>2.8,F59<3.6)),J59,"")) ->  | W59: =IF(AND(OR(I59="PV-304",I59="PV-305",I59="PV-306"),F59<=2.8),J59,"") ->  | X59: =IF(AND(OR(I59="PV-301",I59="PV-302",I59="PV-303"),F59>=M59),R59-(G59/F59)*(F59-M59),IF(AND(OR(I59="PV-304",I59="PV-305",I59="PV-306"),F59>=M59),T59-(G59/F59)*(F59-M59),"")) ->  | Y59: =IF(AND(OR(I59="PV-301",I59="PV-302",I59="PV-303"),M59+F59>=8),R59-(G59/F59)*(F59-(8-M59)),IF(AND(OR(I59="PV-304",I59="PV-305",I59="PV-306"),M59+F59>=8),T59-(G59/F59)*(F59-(8-M59)),"")) ->  | Z59: =IF(AND(OR(I59="PV-301",I59="PV-302",I59="PV-303"),F59>=7),R59-(F59-7)*(G59/F59),"") -> 
O60: =IF(OR(I59="PV-301",I59="PV-302"),P60+H59,IF(OR(I59="PV-304",I59="PV-305",I59="PV-306"),Q60+H59,IF(AND(I59="PV-303",N59="A"),P60+H59,IF(AND(I59="PV-303",N59="B"),R60+(G59-H59),"")))) ->  | P60: =IF(OR(I59="PV-301",I59="PV-302"),R60+G59,IF(OR(I59="PV-304",I59="PV-305",I59="PV-306"),O60-H59/5,IF(AND(I59="PV-303",N59="A"),R60+G59,""))) ->  | Q60: =IF(OR(I59="PV-301",I59="PV-302"),P60-H59,IF(OR(I59="PV-304",I59="PV-305",I59="PV-306"),T60+G59,IF(I59="PV-303",K59,""))) ->  | R60: =IF(AND(OR(I59="PV-301",I59="PV-302"),L59="Tangent to Curve"),K59-(G59*0.3),IF(AND(OR(I59="PV-301",I59="PV-302"),L59="Spiral Curve"),K59,IF(AND(OR(I59="PV-304",I59="PV-305",I59="PV-306"),F59>=2),S60+(H59/5),IF(I59="PV-303",K59-(G59*0.3),"")))) ->  | S60: =IF(AND(OR(I59="PV-304",I59="PV-305",I59="PV-306"),F59>=2.5),Q60-H59,"") ->  | T60: =IF(AND(OR(I59="PV-304",I59="PV-305",I59="PV-306"),L59="Tangent to Curve"),K59-(G59*0.3),IF(AND(OR(I59="PV-304",I59="PV-305",I59="PV-306"),L59="Spiral Curve"),K59,"")) ->  | U60: =IF(AND(OR(I59="PV-301",I59="PV-302"),F59>2.8),K59,IF(AND(OR(I59="PV-304",I59="PV-305",I59="PV-306"),F59>=3.6),K59,"")) ->  | V60: =IF(AND(OR(I59="PV-301",I59="PV-302"),F59<=2.8),K59,IF(AND(OR(I59="PV-304",I59="PV-305",I59="PV-306"),AND(F59>2.8,F59<3.6)),K59,"")) ->  | W60: =IF(AND(OR(I59="PV-304",I59="PV-305",I59="PV-306"),F59<=2.8),K59,"") ->  | X60: =IF(AND(OR(I59="PV-301",I59="PV-302",I59="PV-303"),F59>=M59),R60+(G59/F59)*(F59-M59),IF(AND(OR(I59="PV-304",I59="PV-305",I59="PV-306"),F59>=M59),T60+(G59/F59)*(F59-M59),"")) ->  | Y60: =IF(AND(OR(I59="PV-301",I59="PV-302",I59="PV-303"),M59+F59>=8),R60+(G59/F59)*(F59-(8-M59)),IF(AND(OR(I59="PV-304",I59="PV-305",I59="PV-306"),M59+F59>=8),T60+(G59/F59)*(F59-(8-M59)),"")) ->  | Z60: =IF(AND(OR(I59="PV-301",I59="PV-302",I59="PV-303"),F59>=7),R60+(F59-7)*(G59/F59),"") -> 
O61: =IF(OR(I61="PV-301",I61="PV-302"),P61-H61,IF(OR(I61="PV-304",I61="PV-305",I61="PV-306"),Q61-H61,IF(AND(I61="PV-303",N61="A"),P61-H61,IF(AND(I61="PV-303",N61="B"),R61-(G61-H61),"")))) ->  | P61: =IF(OR(I61="PV-301",I61="PV-302"),R61-G61,IF(OR(I61="PV-304",I61="PV-305",I61="PV-306"),O61+H61/5,IF(AND(I61="PV-303",N61="A"),R61-G61,""))) ->  | Q61: =IF(OR(I61="PV-301",I61="PV-302"),P61+H61,IF(OR(I61="PV-304",I61="PV-305",I61="PV-306"),T61-G61,IF(I61="PV-303",J61,""))) ->  | R61: =IF(AND(OR(I61="PV-301",I61="PV-302"),L61="Tangent to Curve"),J61+(G61*0.3),IF(AND(OR(I61="PV-301",I61="PV-302"),L61="Spiral Curve"),J61,IF(AND(OR(I61="PV-304",I61="PV-305",I61="PV-306"),F61>=2),S61-(H61/5),IF(I61="PV-303",J61+(G61*0.3),"")))) ->  | S61: =IF(AND(OR(I61="PV-304",I61="PV-305",I61="PV-306"),F61>=2.5),Q61+H61,"") ->  | T61: =IF(AND(OR(I61="PV-304",I61="PV-305",I61="PV-306"),L61="Tangent to Curve"),J61+(G61*0.3),IF(AND(OR(I61="PV-304",I61="PV-305",I61="PV-306"),L61="Spiral Curve"),J61,"")) ->  | U61: =IF(AND(OR(I61="PV-301",I61="PV-302"),F61>2.8),J61,IF(AND(OR(I61="PV-304",I61="PV-305",I61="PV-306"),F61>=3.6),J61,"")) ->  | V61: =IF(AND(OR(I61="PV-301",I61="PV-302"),F61<=2.8),J61,IF(AND(OR(I61="PV-304",I61="PV-305",I61="PV-306"),AND(F61>2.8,F61<3.6)),J61,"")) ->  | W61: =IF(AND(OR(I61="PV-304",I61="PV-305",I61="PV-306"),F61<=2.8),J61,"") ->  | X61: =IF(AND(OR(I61="PV-301",I61="PV-302",I61="PV-303"),F61>=M61),R61-(G61/F61)*(F61-M61),IF(AND(OR(I61="PV-304",I61="PV-305",I61="PV-306"),F61>=M61),T61-(G61/F61)*(F61-M61),"")) ->  | Y61: =IF(AND(OR(I61="PV-301",I61="PV-302",I61="PV-303"),M61+F61>=8),R61-(G61/F61)*(F61-(8-M61)),IF(AND(OR(I61="PV-304",I61="PV-305",I61="PV-306"),M61+F61>=8),T61-(G61/F61)*(F61-(8-M61)),"")) ->  | Z61: =IF(AND(OR(I61="PV-301",I61="PV-302",I61="PV-303"),F61>=7),R61-(F61-7)*(G61/F61),"") -> 
O62: =IF(OR(I61="PV-301",I61="PV-302"),P62+H61,IF(OR(I61="PV-304",I61="PV-305",I61="PV-306"),Q62+H61,IF(AND(I61="PV-303",N61="A"),P62+H61,IF(AND(I61="PV-303",N61="B"),R62+(G61-H61),"")))) ->  | P62: =IF(OR(I61="PV-301",I61="PV-302"),R62+G61,IF(OR(I61="PV-304",I61="PV-305",I61="PV-306"),O62-H61/5,IF(AND(I61="PV-303",N61="A"),R62+G61,""))) ->  | Q62: =IF(OR(I61="PV-301",I61="PV-302"),P62-H61,IF(OR(I61="PV-304",I61="PV-305",I61="PV-306"),T62+G61,IF(I61="PV-303",K61,""))) ->  | R62: =IF(AND(OR(I61="PV-301",I61="PV-302"),L61="Tangent to Curve"),K61-(G61*0.3),IF(AND(OR(I61="PV-301",I61="PV-302"),L61="Spiral Curve"),K61,IF(AND(OR(I61="PV-304",I61="PV-305",I61="PV-306"),F61>=2),S62+(H61/5),IF(I61="PV-303",K61-(G61*0.3),"")))) ->  | S62: =IF(AND(OR(I61="PV-304",I61="PV-305",I61="PV-306"),F61>=2.5),Q62-H61,"") ->  | T62: =IF(AND(OR(I61="PV-304",I61="PV-305",I61="PV-306"),L61="Tangent to Curve"),K61-(G61*0.3),IF(AND(OR(I61="PV-304",I61="PV-305",I61="PV-306"),L61="Spiral Curve"),K61,"")) ->  | U62: =IF(AND(OR(I61="PV-301",I61="PV-302"),F61>2.8),K61,IF(AND(OR(I61="PV-304",I61="PV-305",I61="PV-306"),F61>=3.6),K61,"")) ->  | V62: =IF(AND(OR(I61="PV-301",I61="PV-302"),F61<=2.8),K61,IF(AND(OR(I61="PV-304",I61="PV-305",I61="PV-306"),AND(F61>2.8,F61<3.6)),K61,"")) ->  | W62: =IF(AND(OR(I61="PV-304",I61="PV-305",I61="PV-306"),F61<=2.8),K61,"") ->  | X62: =IF(AND(OR(I61="PV-301",I61="PV-302",I61="PV-303"),F61>=M61),R62+(G61/F61)*(F61-M61),IF(AND(OR(I61="PV-304",I61="PV-305",I61="PV-306"),F61>=M61),T62+(G61/F61)*(F61-M61),"")) ->  | Y62: =IF(AND(OR(I61="PV-301",I61="PV-302",I61="PV-303"),M61+F61>=8),R62+(G61/F61)*(F61-(8-M61)),IF(AND(OR(I61="PV-304",I61="PV-305",I61="PV-306"),M61+F61>=8),T62+(G61/F61)*(F61-(8-M61)),"")) ->  | Z62: =IF(AND(OR(I61="PV-301",I61="PV-302",I61="PV-303"),F61>=7),R62+(F61-7)*(G61/F61),"") -> 
O63: =IF(OR(I63="PV-301",I63="PV-302"),P63-H63,IF(OR(I63="PV-304",I63="PV-305",I63="PV-306"),Q63-H63,IF(AND(I63="PV-303",N63="A"),P63-H63,IF(AND(I63="PV-303",N63="B"),R63-(G63-H63),"")))) ->  | P63: =IF(OR(I63="PV-301",I63="PV-302"),R63-G63,IF(OR(I63="PV-304",I63="PV-305",I63="PV-306"),O63+H63/5,IF(AND(I63="PV-303",N63="A"),R63-G63,""))) ->  | Q63: =IF(OR(I63="PV-301",I63="PV-302"),P63+H63,IF(OR(I63="PV-304",I63="PV-305",I63="PV-306"),T63-G63,IF(I63="PV-303",J63,""))) ->  | R63: =IF(AND(OR(I63="PV-301",I63="PV-302"),L63="Tangent to Curve"),J63+(G63*0.3),IF(AND(OR(I63="PV-301",I63="PV-302"),L63="Spiral Curve"),J63,IF(AND(OR(I63="PV-304",I63="PV-305",I63="PV-306"),F63>=2),S63-(H63/5),IF(I63="PV-303",J63+(G63*0.3),"")))) ->  | S63: =IF(AND(OR(I63="PV-304",I63="PV-305",I63="PV-306"),F63>=2.5),Q63+H63,"") ->  | T63: =IF(AND(OR(I63="PV-304",I63="PV-305",I63="PV-306"),L63="Tangent to Curve"),J63+(G63*0.3),IF(AND(OR(I63="PV-304",I63="PV-305",I63="PV-306"),L63="Spiral Curve"),J63,"")) ->  | U63: =IF(AND(OR(I63="PV-301",I63="PV-302"),F63>2.8),J63,IF(AND(OR(I63="PV-304",I63="PV-305",I63="PV-306"),F63>=3.6),J63,"")) ->  | V63: =IF(AND(OR(I63="PV-301",I63="PV-302"),F63<=2.8),J63,IF(AND(OR(I63="PV-304",I63="PV-305",I63="PV-306"),AND(F63>2.8,F63<3.6)),J63,"")) ->  | W63: =IF(AND(OR(I63="PV-304",I63="PV-305",I63="PV-306"),F63<=2.8),J63,"") ->  | X63: =IF(AND(OR(I63="PV-301",I63="PV-302",I63="PV-303"),F63>=M63),R63-(G63/F63)*(F63-M63),IF(AND(OR(I63="PV-304",I63="PV-305",I63="PV-306"),F63>=M63),T63-(G63/F63)*(F63-M63),"")) ->  | Y63: =IF(AND(OR(I63="PV-301",I63="PV-302",I63="PV-303"),M63+F63>=8),R63-(G63/F63)*(F63-(8-M63)),IF(AND(OR(I63="PV-304",I63="PV-305",I63="PV-306"),M63+F63>=8),T63-(G63/F63)*(F63-(8-M63)),"")) ->  | Z63: =IF(AND(OR(I63="PV-301",I63="PV-302",I63="PV-303"),F63>=7),R63-(F63-7)*(G63/F63),"") -> 
O64: =IF(OR(I63="PV-301",I63="PV-302"),P64+H63,IF(OR(I63="PV-304",I63="PV-305",I63="PV-306"),Q64+H63,IF(AND(I63="PV-303",N63="A"),P64+H63,IF(AND(I63="PV-303",N63="B"),R64+(G63-H63),"")))) ->  | P64: =IF(OR(I63="PV-301",I63="PV-302"),R64+G63,IF(OR(I63="PV-304",I63="PV-305",I63="PV-306"),O64-H63/5,IF(AND(I63="PV-303",N63="A"),R64+G63,""))) ->  | Q64: =IF(OR(I63="PV-301",I63="PV-302"),P64-H63,IF(OR(I63="PV-304",I63="PV-305",I63="PV-306"),T64+G63,IF(I63="PV-303",K63,""))) ->  | R64: =IF(AND(OR(I63="PV-301",I63="PV-302"),L63="Tangent to Curve"),K63-(G63*0.3),IF(AND(OR(I63="PV-301",I63="PV-302"),L63="Spiral Curve"),K63,IF(AND(OR(I63="PV-304",I63="PV-305",I63="PV-306"),F63>=2),S64+(H63/5),IF(I63="PV-303",K63-(G63*0.3),"")))) ->  | S64: =IF(AND(OR(I63="PV-304",I63="PV-305",I63="PV-306"),F63>=2.5),Q64-H63,"") ->  | T64: =IF(AND(OR(I63="PV-304",I63="PV-305",I63="PV-306"),L63="Tangent to Curve"),K63-(G63*0.3),IF(AND(OR(I63="PV-304",I63="PV-305",I63="PV-306"),L63="Spiral Curve"),K63,"")) ->  | U64: =IF(AND(OR(I63="PV-301",I63="PV-302"),F63>2.8),K63,IF(AND(OR(I63="PV-304",I63="PV-305",I63="PV-306"),F63>=3.6),K63,"")) ->  | V64: =IF(AND(OR(I63="PV-301",I63="PV-302"),F63<=2.8),K63,IF(AND(OR(I63="PV-304",I63="PV-305",I63="PV-306"),AND(F63>2.8,F63<3.6)),K63,"")) ->  | W64: =IF(AND(OR(I63="PV-304",I63="PV-305",I63="PV-306"),F63<=2.8),K63,"") ->  | X64: =IF(AND(OR(I63="PV-301",I63="PV-302",I63="PV-303"),F63>=M63),R64+(G63/F63)*(F63-M63),IF(AND(OR(I63="PV-304",I63="PV-305",I63="PV-306"),F63>=M63),T64+(G63/F63)*(F63-M63),"")) ->  | Y64: =IF(AND(OR(I63="PV-301",I63="PV-302",I63="PV-303"),M63+F63>=8),R64+(G63/F63)*(F63-(8-M63)),IF(AND(OR(I63="PV-304",I63="PV-305",I63="PV-306"),M63+F63>=8),T64+(G63/F63)*(F63-(8-M63)),"")) ->  | Z64: =IF(AND(OR(I63="PV-301",I63="PV-302",I63="PV-303"),F63>=7),R64+(F63-7)*(G63/F63),"") -> 
O65: =IF(OR(I65="PV-301",I65="PV-302"),P65-H65,IF(OR(I65="PV-304",I65="PV-305",I65="PV-306"),Q65-H65,IF(AND(I65="PV-303",N65="A"),P65-H65,IF(AND(I65="PV-303",N65="B"),R65-(G65-H65),"")))) ->  | P65: =IF(OR(I65="PV-301",I65="PV-302"),R65-G65,IF(OR(I65="PV-304",I65="PV-305",I65="PV-306"),O65+H65/5,IF(AND(I65="PV-303",N65="A"),R65-G65,""))) ->  | Q65: =IF(OR(I65="PV-301",I65="PV-302"),P65+H65,IF(OR(I65="PV-304",I65="PV-305",I65="PV-306"),T65-G65,IF(I65="PV-303",J65,""))) ->  | R65: =IF(AND(OR(I65="PV-301",I65="PV-302"),L65="Tangent to Curve"),J65+(G65*0.3),IF(AND(OR(I65="PV-301",I65="PV-302"),L65="Spiral Curve"),J65,IF(AND(OR(I65="PV-304",I65="PV-305",I65="PV-306"),F65>=2),S65-(H65/5),IF(I65="PV-303",J65+(G65*0.3),"")))) ->  | S65: =IF(AND(OR(I65="PV-304",I65="PV-305",I65="PV-306"),F65>=2.5),Q65+H65,"") ->  | T65: =IF(AND(OR(I65="PV-304",I65="PV-305",I65="PV-306"),L65="Tangent to Curve"),J65+(G65*0.3),IF(AND(OR(I65="PV-304",I65="PV-305",I65="PV-306"),L65="Spiral Curve"),J65,"")) ->  | U65: =IF(AND(OR(I65="PV-301",I65="PV-302"),F65>2.8),J65,IF(AND(OR(I65="PV-304",I65="PV-305",I65="PV-306"),F65>=3.6),J65,"")) ->  | V65: =IF(AND(OR(I65="PV-301",I65="PV-302"),F65<=2.8),J65,IF(AND(OR(I65="PV-304",I65="PV-305",I65="PV-306"),AND(F65>2.8,F65<3.6)),J65,"")) ->  | W65: =IF(AND(OR(I65="PV-304",I65="PV-305",I65="PV-306"),F65<=2.8),J65,"") ->  | X65: =IF(AND(OR(I65="PV-301",I65="PV-302",I65="PV-303"),F65>=M65),R65-(G65/F65)*(F65-M65),IF(AND(OR(I65="PV-304",I65="PV-305",I65="PV-306"),F65>=M65),T65-(G65/F65)*(F65-M65),"")) ->  | Y65: =IF(AND(OR(I65="PV-301",I65="PV-302",I65="PV-303"),M65+F65>=8),R65-(G65/F65)*(F65-(8-M65)),IF(AND(OR(I65="PV-304",I65="PV-305",I65="PV-306"),M65+F65>=8),T65-(G65/F65)*(F65-(8-M65)),"")) ->  | Z65: =IF(AND(OR(I65="PV-301",I65="PV-302",I65="PV-303"),F65>=7),R65-(F65-7)*(G65/F65),"") -> 
O66: =IF(OR(I65="PV-301",I65="PV-302"),P66+H65,IF(OR(I65="PV-304",I65="PV-305",I65="PV-306"),Q66+H65,IF(AND(I65="PV-303",N65="A"),P66+H65,IF(AND(I65="PV-303",N65="B"),R66+(G65-H65),"")))) ->  | P66: =IF(OR(I65="PV-301",I65="PV-302"),R66+G65,IF(OR(I65="PV-304",I65="PV-305",I65="PV-306"),O66-H65/5,IF(AND(I65="PV-303",N65="A"),R66+G65,""))) ->  | Q66: =IF(OR(I65="PV-301",I65="PV-302"),P66-H65,IF(OR(I65="PV-304",I65="PV-305",I65="PV-306"),T66+G65,IF(I65="PV-303",K65,""))) ->  | R66: =IF(AND(OR(I65="PV-301",I65="PV-302"),L65="Tangent to Curve"),K65-(G65*0.3),IF(AND(OR(I65="PV-301",I65="PV-302"),L65="Spiral Curve"),K65,IF(AND(OR(I65="PV-304",I65="PV-305",I65="PV-306"),F65>=2),S66+(H65/5),IF(I65="PV-303",K65-(G65*0.3),"")))) ->  | S66: =IF(AND(OR(I65="PV-304",I65="PV-305",I65="PV-306"),F65>=2.5),Q66-H65,"") ->  | T66: =IF(AND(OR(I65="PV-304",I65="PV-305",I65="PV-306"),L65="Tangent to Curve"),K65-(G65*0.3),IF(AND(OR(I65="PV-304",I65="PV-305",I65="PV-306"),L65="Spiral Curve"),K65,"")) ->  | U66: =IF(AND(OR(I65="PV-301",I65="PV-302"),F65>2.8),K65,IF(AND(OR(I65="PV-304",I65="PV-305",I65="PV-306"),F65>=3.6),K65,"")) ->  | V66: =IF(AND(OR(I65="PV-301",I65="PV-302"),F65<=2.8),K65,IF(AND(OR(I65="PV-304",I65="PV-305",I65="PV-306"),AND(F65>2.8,F65<3.6)),K65,"")) ->  | W66: =IF(AND(OR(I65="PV-304",I65="PV-305",I65="PV-306"),F65<=2.8),K65,"") ->  | X66: =IF(AND(OR(I65="PV-301",I65="PV-302",I65="PV-303"),F65>=M65),R66+(G65/F65)*(F65-M65),IF(AND(OR(I65="PV-304",I65="PV-305",I65="PV-306"),F65>=M65),T66+(G65/F65)*(F65-M65),"")) ->  | Y66: =IF(AND(OR(I65="PV-301",I65="PV-302",I65="PV-303"),M65+F65>=8),R66+(G65/F65)*(F65-(8-M65)),IF(AND(OR(I65="PV-304",I65="PV-305",I65="PV-306"),M65+F65>=8),T66+(G65/F65)*(F65-(8-M65)),"")) ->  | Z66: =IF(AND(OR(I65="PV-301",I65="PV-302",I65="PV-303"),F65>=7),R66+(F65-7)*(G65/F65),"") -> 
O67: =IF(OR(I67="PV-301",I67="PV-302"),P67-H67,IF(OR(I67="PV-304",I67="PV-305",I67="PV-306"),Q67-H67,IF(AND(I67="PV-303",N67="A"),P67-H67,IF(AND(I67="PV-303",N67="B"),R67-(G67-H67),"")))) ->  | P67: =IF(OR(I67="PV-301",I67="PV-302"),R67-G67,IF(OR(I67="PV-304",I67="PV-305",I67="PV-306"),O67+H67/5,IF(AND(I67="PV-303",N67="A"),R67-G67,""))) ->  | Q67: =IF(OR(I67="PV-301",I67="PV-302"),P67+H67,IF(OR(I67="PV-304",I67="PV-305",I67="PV-306"),T67-G67,IF(I67="PV-303",J67,""))) ->  | R67: =IF(AND(OR(I67="PV-301",I67="PV-302"),L67="Tangent to Curve"),J67+(G67*0.3),IF(AND(OR(I67="PV-301",I67="PV-302"),L67="Spiral Curve"),J67,IF(AND(OR(I67="PV-304",I67="PV-305",I67="PV-306"),F67>=2),S67-(H67/5),IF(I67="PV-303",J67+(G67*0.3),"")))) ->  | S67: =IF(AND(OR(I67="PV-304",I67="PV-305",I67="PV-306"),F67>=2.5),Q67+H67,"") ->  | T67: =IF(AND(OR(I67="PV-304",I67="PV-305",I67="PV-306"),L67="Tangent to Curve"),J67+(G67*0.3),IF(AND(OR(I67="PV-304",I67="PV-305",I67="PV-306"),L67="Spiral Curve"),J67,"")) ->  | U67: =IF(AND(OR(I67="PV-301",I67="PV-302"),F67>2.8),J67,IF(AND(OR(I67="PV-304",I67="PV-305",I67="PV-306"),F67>=3.6),J67,"")) ->  | V67: =IF(AND(OR(I67="PV-301",I67="PV-302"),F67<=2.8),J67,IF(AND(OR(I67="PV-304",I67="PV-305",I67="PV-306"),AND(F67>2.8,F67<3.6)),J67,"")) ->  | W67: =IF(AND(OR(I67="PV-304",I67="PV-305",I67="PV-306"),F67<=2.8),J67,"") ->  | X67: =IF(AND(OR(I67="PV-301",I67="PV-302",I67="PV-303"),F67>=M67),R67-(G67/F67)*(F67-M67),IF(AND(OR(I67="PV-304",I67="PV-305",I67="PV-306"),F67>=M67),T67-(G67/F67)*(F67-M67),"")) ->  | Y67: =IF(AND(OR(I67="PV-301",I67="PV-302",I67="PV-303"),M67+F67>=8),R67-(G67/F67)*(F67-(8-M67)),IF(AND(OR(I67="PV-304",I67="PV-305",I67="PV-306"),M67+F67>=8),T67-(G67/F67)*(F67-(8-M67)),"")) ->  | Z67: =IF(AND(OR(I67="PV-301",I67="PV-302",I67="PV-303"),F67>=7),R67-(F67-7)*(G67/F67),"") -> 
O68: =IF(OR(I67="PV-301",I67="PV-302"),P68+H67,IF(OR(I67="PV-304",I67="PV-305",I67="PV-306"),Q68+H67,IF(AND(I67="PV-303",N67="A"),P68+H67,IF(AND(I67="PV-303",N67="B"),R68+(G67-H67),"")))) ->  | P68: =IF(OR(I67="PV-301",I67="PV-302"),R68+G67,IF(OR(I67="PV-304",I67="PV-305",I67="PV-306"),O68-H67/5,IF(AND(I67="PV-303",N67="A"),R68+G67,""))) ->  | Q68: =IF(OR(I67="PV-301",I67="PV-302"),P68-H67,IF(OR(I67="PV-304",I67="PV-305",I67="PV-306"),T68+G67,IF(I67="PV-303",K67,""))) ->  | R68: =IF(AND(OR(I67="PV-301",I67="PV-302"),L67="Tangent to Curve"),K67-(G67*0.3),IF(AND(OR(I67="PV-301",I67="PV-302"),L67="Spiral Curve"),K67,IF(AND(OR(I67="PV-304",I67="PV-305",I67="PV-306"),F67>=2),S68+(H67/5),IF(I67="PV-303",K67-(G67*0.3),"")))) ->  | S68: =IF(AND(OR(I67="PV-304",I67="PV-305",I67="PV-306"),F67>=2.5),Q68-H67,"") ->  | T68: =IF(AND(OR(I67="PV-304",I67="PV-305",I67="PV-306"),L67="Tangent to Curve"),K67-(G67*0.3),IF(AND(OR(I67="PV-304",I67="PV-305",I67="PV-306"),L67="Spiral Curve"),K67,"")) ->  | U68: =IF(AND(OR(I67="PV-301",I67="PV-302"),F67>2.8),K67,IF(AND(OR(I67="PV-304",I67="PV-305",I67="PV-306"),F67>=3.6),K67,"")) ->  | V68: =IF(AND(OR(I67="PV-301",I67="PV-302"),F67<=2.8),K67,IF(AND(OR(I67="PV-304",I67="PV-305",I67="PV-306"),AND(F67>2.8,F67<3.6)),K67,"")) ->  | W68: =IF(AND(OR(I67="PV-304",I67="PV-305",I67="PV-306"),F67<=2.8),K67,"") ->  | X68: =IF(AND(OR(I67="PV-301",I67="PV-302",I67="PV-303"),F67>=M67),R68+(G67/F67)*(F67-M67),IF(AND(OR(I67="PV-304",I67="PV-305",I67="PV-306"),F67>=M67),T68+(G67/F67)*(F67-M67),"")) ->  | Y68: =IF(AND(OR(I67="PV-301",I67="PV-302",I67="PV-303"),M67+F67>=8),R68+(G67/F67)*(F67-(8-M67)),IF(AND(OR(I67="PV-304",I67="PV-305",I67="PV-306"),M67+F67>=8),T68+(G67/F67)*(F67-(8-M67)),"")) ->  | Z68: =IF(AND(OR(I67="PV-301",I67="PV-302",I67="PV-303"),F67>=7),R68+(F67-7)*(G67/F67),"") -> 
O69: =IF(OR(I69="PV-301",I69="PV-302"),P69-H69,IF(OR(I69="PV-304",I69="PV-305",I69="PV-306"),Q69-H69,IF(AND(I69="PV-303",N69="A"),P69-H69,IF(AND(I69="PV-303",N69="B"),R69-(G69-H69),"")))) ->  | P69: =IF(OR(I69="PV-301",I69="PV-302"),R69-G69,IF(OR(I69="PV-304",I69="PV-305",I69="PV-306"),O69+H69/5,IF(AND(I69="PV-303",N69="A"),R69-G69,""))) ->  | Q69: =IF(OR(I69="PV-301",I69="PV-302"),P69+H69,IF(OR(I69="PV-304",I69="PV-305",I69="PV-306"),T69-G69,IF(I69="PV-303",J69,""))) ->  | R69: =IF(AND(OR(I69="PV-301",I69="PV-302"),L69="Tangent to Curve"),J69+(G69*0.3),IF(AND(OR(I69="PV-301",I69="PV-302"),L69="Spiral Curve"),J69,IF(AND(OR(I69="PV-304",I69="PV-305",I69="PV-306"),F69>=2),S69-(H69/5),IF(I69="PV-303",J69+(G69*0.3),"")))) ->  | S69: =IF(AND(OR(I69="PV-304",I69="PV-305",I69="PV-306"),F69>=2.5),Q69+H69,"") ->  | T69: =IF(AND(OR(I69="PV-304",I69="PV-305",I69="PV-306"),L69="Tangent to Curve"),J69+(G69*0.3),IF(AND(OR(I69="PV-304",I69="PV-305",I69="PV-306"),L69="Spiral Curve"),J69,"")) ->  | U69: =IF(AND(OR(I69="PV-301",I69="PV-302"),F69>2.8),J69,IF(AND(OR(I69="PV-304",I69="PV-305",I69="PV-306"),F69>=3.6),J69,"")) ->  | V69: =IF(AND(OR(I69="PV-301",I69="PV-302"),F69<=2.8),J69,IF(AND(OR(I69="PV-304",I69="PV-305",I69="PV-306"),AND(F69>2.8,F69<3.6)),J69,"")) ->  | W69: =IF(AND(OR(I69="PV-304",I69="PV-305",I69="PV-306"),F69<=2.8),J69,"") ->  | X69: =IF(AND(OR(I69="PV-301",I69="PV-302",I69="PV-303"),F69>=M69),R69-(G69/F69)*(F69-M69),IF(AND(OR(I69="PV-304",I69="PV-305",I69="PV-306"),F69>=M69),T69-(G69/F69)*(F69-M69),"")) ->  | Y69: =IF(AND(OR(I69="PV-301",I69="PV-302",I69="PV-303"),M69+F69>=8),R69-(G69/F69)*(F69-(8-M69)),IF(AND(OR(I69="PV-304",I69="PV-305",I69="PV-306"),M69+F69>=8),T69-(G69/F69)*(F69-(8-M69)),"")) ->  | Z69: =IF(AND(OR(I69="PV-301",I69="PV-302",I69="PV-303"),F69>=7),R69-(F69-7)*(G69/F69),"") -> 
O70: =IF(OR(I69="PV-301",I69="PV-302"),P70+H69,IF(OR(I69="PV-304",I69="PV-305",I69="PV-306"),Q70+H69,IF(AND(I69="PV-303",N69="A"),P70+H69,IF(AND(I69="PV-303",N69="B"),R70+(G69-H69),"")))) ->  | P70: =IF(OR(I69="PV-301",I69="PV-302"),R70+G69,IF(OR(I69="PV-304",I69="PV-305",I69="PV-306"),O70-H69/5,IF(AND(I69="PV-303",N69="A"),R70+G69,""))) ->  | Q70: =IF(OR(I69="PV-301",I69="PV-302"),P70-H69,IF(OR(I69="PV-304",I69="PV-305",I69="PV-306"),T70+G69,IF(I69="PV-303",K69,""))) ->  | R70: =IF(AND(OR(I69="PV-301",I69="PV-302"),L69="Tangent to Curve"),K69-(G69*0.3),IF(AND(OR(I69="PV-301",I69="PV-302"),L69="Spiral Curve"),K69,IF(AND(OR(I69="PV-304",I69="PV-305",I69="PV-306"),F69>=2),S70+(H69/5),IF(I69="PV-303",K69-(G69*0.3),"")))) ->  | S70: =IF(AND(OR(I69="PV-304",I69="PV-305",I69="PV-306"),F69>=2.5),Q70-H69,"") ->  | T70: =IF(AND(OR(I69="PV-304",I69="PV-305",I69="PV-306"),L69="Tangent to Curve"),K69-(G69*0.3),IF(AND(OR(I69="PV-304",I69="PV-305",I69="PV-306"),L69="Spiral Curve"),K69,"")) ->  | U70: =IF(AND(OR(I69="PV-301",I69="PV-302"),F69>2.8),K69,IF(AND(OR(I69="PV-304",I69="PV-305",I69="PV-306"),F69>=3.6),K69,"")) ->  | V70: =IF(AND(OR(I69="PV-301",I69="PV-302"),F69<=2.8),K69,IF(AND(OR(I69="PV-304",I69="PV-305",I69="PV-306"),AND(F69>2.8,F69<3.6)),K69,"")) ->  | W70: =IF(AND(OR(I69="PV-304",I69="PV-305",I69="PV-306"),F69<=2.8),K69,"") ->  | X70: =IF(AND(OR(I69="PV-301",I69="PV-302",I69="PV-303"),F69>=M69),R70+(G69/F69)*(F69-M69),IF(AND(OR(I69="PV-304",I69="PV-305",I69="PV-306"),F69>=M69),T70+(G69/F69)*(F69-M69),"")) ->  | Y70: =IF(AND(OR(I69="PV-301",I69="PV-302",I69="PV-303"),M69+F69>=8),R70+(G69/F69)*(F69-(8-M69)),IF(AND(OR(I69="PV-304",I69="PV-305",I69="PV-306"),M69+F69>=8),T70+(G69/F69)*(F69-(8-M69)),"")) ->  | Z70: =IF(AND(OR(I69="PV-301",I69="PV-302",I69="PV-303"),F69>=7),R70+(F69-7)*(G69/F69),"") -> 
O71: =IF(OR(I71="PV-301",I71="PV-302"),P71-H71,IF(OR(I71="PV-304",I71="PV-305",I71="PV-306"),Q71-H71,IF(AND(I71="PV-303",N71="A"),P71-H71,IF(AND(I71="PV-303",N71="B"),R71-(G71-H71),"")))) ->  | P71: =IF(OR(I71="PV-301",I71="PV-302"),R71-G71,IF(OR(I71="PV-304",I71="PV-305",I71="PV-306"),O71+H71/5,IF(AND(I71="PV-303",N71="A"),R71-G71,""))) ->  | Q71: =IF(OR(I71="PV-301",I71="PV-302"),P71+H71,IF(OR(I71="PV-304",I71="PV-305",I71="PV-306"),T71-G71,IF(I71="PV-303",J71,""))) ->  | R71: =IF(AND(OR(I71="PV-301",I71="PV-302"),L71="Tangent to Curve"),J71+(G71*0.3),IF(AND(OR(I71="PV-301",I71="PV-302"),L71="Spiral Curve"),J71,IF(AND(OR(I71="PV-304",I71="PV-305",I71="PV-306"),F71>=2),S71-(H71/5),IF(I71="PV-303",J71+(G71*0.3),"")))) ->  | S71: =IF(AND(OR(I71="PV-304",I71="PV-305",I71="PV-306"),F71>=2.5),Q71+H71,"") ->  | T71: =IF(AND(OR(I71="PV-304",I71="PV-305",I71="PV-306"),L71="Tangent to Curve"),J71+(G71*0.3),IF(AND(OR(I71="PV-304",I71="PV-305",I71="PV-306"),L71="Spiral Curve"),J71,"")) ->  | U71: =IF(AND(OR(I71="PV-301",I71="PV-302"),F71>2.8),J71,IF(AND(OR(I71="PV-304",I71="PV-305",I71="PV-306"),F71>=3.6),J71,"")) ->  | V71: =IF(AND(OR(I71="PV-301",I71="PV-302"),F71<=2.8),J71,IF(AND(OR(I71="PV-304",I71="PV-305",I71="PV-306"),AND(F71>2.8,F71<3.6)),J71,"")) ->  | W71: =IF(AND(OR(I71="PV-304",I71="PV-305",I71="PV-306"),F71<=2.8),J71,"") ->  | X71: =IF(AND(OR(I71="PV-301",I71="PV-302",I71="PV-303"),F71>=M71),R71-(G71/F71)*(F71-M71),IF(AND(OR(I71="PV-304",I71="PV-305",I71="PV-306"),F71>=M71),T71-(G71/F71)*(F71-M71),"")) ->  | Y71: =IF(AND(OR(I71="PV-301",I71="PV-302",I71="PV-303"),M71+F71>=8),R71-(G71/F71)*(F71-(8-M71)),IF(AND(OR(I71="PV-304",I71="PV-305",I71="PV-306"),M71+F71>=8),T71-(G71/F71)*(F71-(8-M71)),"")) ->  | Z71: =IF(AND(OR(I71="PV-301",I71="PV-302",I71="PV-303"),F71>=7),R71-(F71-7)*(G71/F71),"") -> 
O72: =IF(OR(I71="PV-301",I71="PV-302"),P72+H71,IF(OR(I71="PV-304",I71="PV-305",I71="PV-306"),Q72+H71,IF(AND(I71="PV-303",N71="A"),P72+H71,IF(AND(I71="PV-303",N71="B"),R72+(G71-H71),"")))) ->  | P72: =IF(OR(I71="PV-301",I71="PV-302"),R72+G71,IF(OR(I71="PV-304",I71="PV-305",I71="PV-306"),O72-H71/5,IF(AND(I71="PV-303",N71="A"),R72+G71,""))) ->  | Q72: =IF(OR(I71="PV-301",I71="PV-302"),P72-H71,IF(OR(I71="PV-304",I71="PV-305",I71="PV-306"),T72+G71,IF(I71="PV-303",K71,""))) ->  | R72: =IF(AND(OR(I71="PV-301",I71="PV-302"),L71="Tangent to Curve"),K71-(G71*0.3),IF(AND(OR(I71="PV-301",I71="PV-302"),L71="Spiral Curve"),K71,IF(AND(OR(I71="PV-304",I71="PV-305",I71="PV-306"),F71>=2),S72+(H71/5),IF(I71="PV-303",K71-(G71*0.3),"")))) ->  | S72: =IF(AND(OR(I71="PV-304",I71="PV-305",I71="PV-306"),F71>=2.5),Q72-H71,"") ->  | T72: =IF(AND(OR(I71="PV-304",I71="PV-305",I71="PV-306"),L71="Tangent to Curve"),K71-(G71*0.3),IF(AND(OR(I71="PV-304",I71="PV-305",I71="PV-306"),L71="Spiral Curve"),K71,"")) ->  | U72: =IF(AND(OR(I71="PV-301",I71="PV-302"),F71>2.8),K71,IF(AND(OR(I71="PV-304",I71="PV-305",I71="PV-306"),F71>=3.6),K71,"")) ->  | V72: =IF(AND(OR(I71="PV-301",I71="PV-302"),F71<=2.8),K71,IF(AND(OR(I71="PV-304",I71="PV-305",I71="PV-306"),AND(F71>2.8,F71<3.6)),K71,"")) ->  | W72: =IF(AND(OR(I71="PV-304",I71="PV-305",I71="PV-306"),F71<=2.8),K71,"") ->  | X72: =IF(AND(OR(I71="PV-301",I71="PV-302",I71="PV-303"),F71>=M71),R72+(G71/F71)*(F71-M71),IF(AND(OR(I71="PV-304",I71="PV-305",I71="PV-306"),F71>=M71),T72+(G71/F71)*(F71-M71),"")) ->  | Y72: =IF(AND(OR(I71="PV-301",I71="PV-302",I71="PV-303"),M71+F71>=8),R72+(G71/F71)*(F71-(8-M71)),IF(AND(OR(I71="PV-304",I71="PV-305",I71="PV-306"),M71+F71>=8),T72+(G71/F71)*(F71-(8-M71)),"")) ->  | Z72: =IF(AND(OR(I71="PV-301",I71="PV-302",I71="PV-303"),F71>=7),R72+(F71-7)*(G71/F71),"") -> 
O73: =IF(OR(I73="PV-301",I73="PV-302"),P73-H73,IF(OR(I73="PV-304",I73="PV-305",I73="PV-306"),Q73-H73,IF(AND(I73="PV-303",N73="A"),P73-H73,IF(AND(I73="PV-303",N73="B"),R73-(G73-H73),"")))) ->  | P73: =IF(OR(I73="PV-301",I73="PV-302"),R73-G73,IF(OR(I73="PV-304",I73="PV-305",I73="PV-306"),O73+H73/5,IF(AND(I73="PV-303",N73="A"),R73-G73,""))) ->  | Q73: =IF(OR(I73="PV-301",I73="PV-302"),P73+H73,IF(OR(I73="PV-304",I73="PV-305",I73="PV-306"),T73-G73,IF(I73="PV-303",J73,""))) ->  | R73: =IF(AND(OR(I73="PV-301",I73="PV-302"),L73="Tangent to Curve"),J73+(G73*0.3),IF(AND(OR(I73="PV-301",I73="PV-302"),L73="Spiral Curve"),J73,IF(AND(OR(I73="PV-304",I73="PV-305",I73="PV-306"),F73>=2),S73-(H73/5),IF(I73="PV-303",J73+(G73*0.3),"")))) ->  | S73: =IF(AND(OR(I73="PV-304",I73="PV-305",I73="PV-306"),F73>=2.5),Q73+H73,"") ->  | T73: =IF(AND(OR(I73="PV-304",I73="PV-305",I73="PV-306"),L73="Tangent to Curve"),J73+(G73*0.3),IF(AND(OR(I73="PV-304",I73="PV-305",I73="PV-306"),L73="Spiral Curve"),J73,"")) ->  | U73: =IF(AND(OR(I73="PV-301",I73="PV-302"),F73>2.8),J73,IF(AND(OR(I73="PV-304",I73="PV-305",I73="PV-306"),F73>=3.6),J73,"")) ->  | V73: =IF(AND(OR(I73="PV-301",I73="PV-302"),F73<=2.8),J73,IF(AND(OR(I73="PV-304",I73="PV-305",I73="PV-306"),AND(F73>2.8,F73<3.6)),J73,"")) ->  | W73: =IF(AND(OR(I73="PV-304",I73="PV-305",I73="PV-306"),F73<=2.8),J73,"") ->  | X73: =IF(AND(OR(I73="PV-301",I73="PV-302",I73="PV-303"),F73>=M73),R73-(G73/F73)*(F73-M73),IF(AND(OR(I73="PV-304",I73="PV-305",I73="PV-306"),F73>=M73),T73-(G73/F73)*(F73-M73),"")) ->  | Y73: =IF(AND(OR(I73="PV-301",I73="PV-302",I73="PV-303"),M73+F73>=8),R73-(G73/F73)*(F73-(8-M73)),IF(AND(OR(I73="PV-304",I73="PV-305",I73="PV-306"),M73+F73>=8),T73-(G73/F73)*(F73-(8-M73)),"")) ->  | Z73: =IF(AND(OR(I73="PV-301",I73="PV-302",I73="PV-303"),F73>=7),R73-(F73-7)*(G73/F73),"") -> 
O74: =IF(OR(I73="PV-301",I73="PV-302"),P74+H73,IF(OR(I73="PV-304",I73="PV-305",I73="PV-306"),Q74+H73,IF(AND(I73="PV-303",N73="A"),P74+H73,IF(AND(I73="PV-303",N73="B"),R74+(G73-H73),"")))) ->  | P74: =IF(OR(I73="PV-301",I73="PV-302"),R74+G73,IF(OR(I73="PV-304",I73="PV-305",I73="PV-306"),O74-H73/5,IF(AND(I73="PV-303",N73="A"),R74+G73,""))) ->  | Q74: =IF(OR(I73="PV-301",I73="PV-302"),P74-H73,IF(OR(I73="PV-304",I73="PV-305",I73="PV-306"),T74+G73,IF(I73="PV-303",K73,""))) ->  | R74: =IF(AND(OR(I73="PV-301",I73="PV-302"),L73="Tangent to Curve"),K73-(G73*0.3),IF(AND(OR(I73="PV-301",I73="PV-302"),L73="Spiral Curve"),K73,IF(AND(OR(I73="PV-304",I73="PV-305",I73="PV-306"),F73>=2),S74+(H73/5),IF(I73="PV-303",K73-(G73*0.3),"")))) ->  | S74: =IF(AND(OR(I73="PV-304",I73="PV-305",I73="PV-306"),F73>=2.5),Q74-H73,"") ->  | T74: =IF(AND(OR(I73="PV-304",I73="PV-305",I73="PV-306"),L73="Tangent to Curve"),K73-(G73*0.3),IF(AND(OR(I73="PV-304",I73="PV-305",I73="PV-306"),L73="Spiral Curve"),K73,"")) ->  | U74: =IF(AND(OR(I73="PV-301",I73="PV-302"),F73>2.8),K73,IF(AND(OR(I73="PV-304",I73="PV-305",I73="PV-306"),F73>=3.6),K73,"")) ->  | V74: =IF(AND(OR(I73="PV-301",I73="PV-302"),F73<=2.8),K73,IF(AND(OR(I73="PV-304",I73="PV-305",I73="PV-306"),AND(F73>2.8,F73<3.6)),K73,"")) ->  | W74: =IF(AND(OR(I73="PV-304",I73="PV-305",I73="PV-306"),F73<=2.8),K73,"") ->  | X74: =IF(AND(OR(I73="PV-301",I73="PV-302",I73="PV-303"),F73>=M73),R74+(G73/F73)*(F73-M73),IF(AND(OR(I73="PV-304",I73="PV-305",I73="PV-306"),F73>=M73),T74+(G73/F73)*(F73-M73),"")) ->  | Y74: =IF(AND(OR(I73="PV-301",I73="PV-302",I73="PV-303"),M73+F73>=8),R74+(G73/F73)*(F73-(8-M73)),IF(AND(OR(I73="PV-304",I73="PV-305",I73="PV-306"),M73+F73>=8),T74+(G73/F73)*(F73-(8-M73)),"")) ->  | Z74: =IF(AND(OR(I73="PV-301",I73="PV-302",I73="PV-303"),F73>=7),R74+(F73-7)*(G73/F73),"") -> 
O75: =IF(OR(I75="PV-301",I75="PV-302"),P75-H75,IF(OR(I75="PV-304",I75="PV-305",I75="PV-306"),Q75-H75,IF(AND(I75="PV-303",N75="A"),P75-H75,IF(AND(I75="PV-303",N75="B"),R75-(G75-H75),"")))) ->  | P75: =IF(OR(I75="PV-301",I75="PV-302"),R75-G75,IF(OR(I75="PV-304",I75="PV-305",I75="PV-306"),O75+H75/5,IF(AND(I75="PV-303",N75="A"),R75-G75,""))) ->  | Q75: =IF(OR(I75="PV-301",I75="PV-302"),P75+H75,IF(OR(I75="PV-304",I75="PV-305",I75="PV-306"),T75-G75,IF(I75="PV-303",J75,""))) ->  | R75: =IF(AND(OR(I75="PV-301",I75="PV-302"),L75="Tangent to Curve"),J75+(G75*0.3),IF(AND(OR(I75="PV-301",I75="PV-302"),L75="Spiral Curve"),J75,IF(AND(OR(I75="PV-304",I75="PV-305",I75="PV-306"),F75>=2),S75-(H75/5),IF(I75="PV-303",J75+(G75*0.3),"")))) ->  | S75: =IF(AND(OR(I75="PV-304",I75="PV-305",I75="PV-306"),F75>=2.5),Q75+H75,"") ->  | T75: =IF(AND(OR(I75="PV-304",I75="PV-305",I75="PV-306"),L75="Tangent to Curve"),J75+(G75*0.3),IF(AND(OR(I75="PV-304",I75="PV-305",I75="PV-306"),L75="Spiral Curve"),J75,"")) ->  | U75: =IF(AND(OR(I75="PV-301",I75="PV-302"),F75>2.8),J75,IF(AND(OR(I75="PV-304",I75="PV-305",I75="PV-306"),F75>=3.6),J75,"")) ->  | V75: =IF(AND(OR(I75="PV-301",I75="PV-302"),F75<=2.8),J75,IF(AND(OR(I75="PV-304",I75="PV-305",I75="PV-306"),AND(F75>2.8,F75<3.6)),J75,"")) ->  | W75: =IF(AND(OR(I75="PV-304",I75="PV-305",I75="PV-306"),F75<=2.8),J75,"") ->  | X75: =IF(AND(OR(I75="PV-301",I75="PV-302",I75="PV-303"),F75>=M75),R75-(G75/F75)*(F75-M75),IF(AND(OR(I75="PV-304",I75="PV-305",I75="PV-306"),F75>=M75),T75-(G75/F75)*(F75-M75),"")) ->  | Y75: =IF(AND(OR(I75="PV-301",I75="PV-302",I75="PV-303"),M75+F75>=8),R75-(G75/F75)*(F75-(8-M75)),IF(AND(OR(I75="PV-304",I75="PV-305",I75="PV-306"),M75+F75>=8),T75-(G75/F75)*(F75-(8-M75)),"")) ->  | Z75: =IF(AND(OR(I75="PV-301",I75="PV-302",I75="PV-303"),F75>=7),R75-(F75-7)*(G75/F75),"") -> 
O76: =IF(OR(I75="PV-301",I75="PV-302"),P76+H75,IF(OR(I75="PV-304",I75="PV-305",I75="PV-306"),Q76+H75,IF(AND(I75="PV-303",N75="A"),P76+H75,IF(AND(I75="PV-303",N75="B"),R76+(G75-H75),"")))) ->  | P76: =IF(OR(I75="PV-301",I75="PV-302"),R76+G75,IF(OR(I75="PV-304",I75="PV-305",I75="PV-306"),O76-H75/5,IF(AND(I75="PV-303",N75="A"),R76+G75,""))) ->  | Q76: =IF(OR(I75="PV-301",I75="PV-302"),P76-H75,IF(OR(I75="PV-304",I75="PV-305",I75="PV-306"),T76+G75,IF(I75="PV-303",K75,""))) ->  | R76: =IF(AND(OR(I75="PV-301",I75="PV-302"),L75="Tangent to Curve"),K75-(G75*0.3),IF(AND(OR(I75="PV-301",I75="PV-302"),L75="Spiral Curve"),K75,IF(AND(OR(I75="PV-304",I75="PV-305",I75="PV-306"),F75>=2),S76+(H75/5),IF(I75="PV-303",K75-(G75*0.3),"")))) ->  | S76: =IF(AND(OR(I75="PV-304",I75="PV-305",I75="PV-306"),F75>=2.5),Q76-H75,"") ->  | T76: =IF(AND(OR(I75="PV-304",I75="PV-305",I75="PV-306"),L75="Tangent to Curve"),K75-(G75*0.3),IF(AND(OR(I75="PV-304",I75="PV-305",I75="PV-306"),L75="Spiral Curve"),K75,"")) ->  | U76: =IF(AND(OR(I75="PV-301",I75="PV-302"),F75>2.8),K75,IF(AND(OR(I75="PV-304",I75="PV-305",I75="PV-306"),F75>=3.6),K75,"")) ->  | V76: =IF(AND(OR(I75="PV-301",I75="PV-302"),F75<=2.8),K75,IF(AND(OR(I75="PV-304",I75="PV-305",I75="PV-306"),AND(F75>2.8,F75<3.6)),K75,"")) ->  | W76: =IF(AND(OR(I75="PV-304",I75="PV-305",I75="PV-306"),F75<=2.8),K75,"") ->  | X76: =IF(AND(OR(I75="PV-301",I75="PV-302",I75="PV-303"),F75>=M75),R76+(G75/F75)*(F75-M75),IF(AND(OR(I75="PV-304",I75="PV-305",I75="PV-306"),F75>=M75),T76+(G75/F75)*(F75-M75),"")) ->  | Y76: =IF(AND(OR(I75="PV-301",I75="PV-302",I75="PV-303"),M75+F75>=8),R76+(G75/F75)*(F75-(8-M75)),IF(AND(OR(I75="PV-304",I75="PV-305",I75="PV-306"),M75+F75>=8),T76+(G75/F75)*(F75-(8-M75)),"")) ->  | Z76: =IF(AND(OR(I75="PV-301",I75="PV-302",I75="PV-303"),F75>=7),R76+(F75-7)*(G75/F75),"") -> 
O77: =IF(OR(I77="PV-301",I77="PV-302"),P77-H77,IF(OR(I77="PV-304",I77="PV-305",I77="PV-306"),Q77-H77,IF(AND(I77="PV-303",N77="A"),P77-H77,IF(AND(I77="PV-303",N77="B"),R77-(G77-H77),"")))) ->  | P77: =IF(OR(I77="PV-301",I77="PV-302"),R77-G77,IF(OR(I77="PV-304",I77="PV-305",I77="PV-306"),O77+H77/5,IF(AND(I77="PV-303",N77="A"),R77-G77,""))) ->  | Q77: =IF(OR(I77="PV-301",I77="PV-302"),P77+H77,IF(OR(I77="PV-304",I77="PV-305",I77="PV-306"),T77-G77,IF(I77="PV-303",J77,""))) ->  | R77: =IF(AND(OR(I77="PV-301",I77="PV-302"),L77="Tangent to Curve"),J77+(G77*0.3),IF(AND(OR(I77="PV-301",I77="PV-302"),L77="Spiral Curve"),J77,IF(AND(OR(I77="PV-304",I77="PV-305",I77="PV-306"),F77>=2),S77-(H77/5),IF(I77="PV-303",J77+(G77*0.3),"")))) ->  | S77: =IF(AND(OR(I77="PV-304",I77="PV-305",I77="PV-306"),F77>=2.5),Q77+H77,"") ->  | T77: =IF(AND(OR(I77="PV-304",I77="PV-305",I77="PV-306"),L77="Tangent to Curve"),J77+(G77*0.3),IF(AND(OR(I77="PV-304",I77="PV-305",I77="PV-306"),L77="Spiral Curve"),J77,"")) ->  | U77: =IF(AND(OR(I77="PV-301",I77="PV-302"),F77>2.8),J77,IF(AND(OR(I77="PV-304",I77="PV-305",I77="PV-306"),F77>=3.6),J77,"")) ->  | V77: =IF(AND(OR(I77="PV-301",I77="PV-302"),F77<=2.8),J77,IF(AND(OR(I77="PV-304",I77="PV-305",I77="PV-306"),AND(F77>2.8,F77<3.6)),J77,"")) ->  | W77: =IF(AND(OR(I77="PV-304",I77="PV-305",I77="PV-306"),F77<=2.8),J77,"") ->  | X77: =IF(AND(OR(I77="PV-301",I77="PV-302",I77="PV-303"),F77>=M77),R77-(G77/F77)*(F77-M77),IF(AND(OR(I77="PV-304",I77="PV-305",I77="PV-306"),F77>=M77),T77-(G77/F77)*(F77-M77),"")) ->  | Y77: =IF(AND(OR(I77="PV-301",I77="PV-302",I77="PV-303"),M77+F77>=8),R77-(G77/F77)*(F77-(8-M77)),IF(AND(OR(I77="PV-304",I77="PV-305",I77="PV-306"),M77+F77>=8),T77-(G77/F77)*(F77-(8-M77)),"")) ->  | Z77: =IF(AND(OR(I77="PV-301",I77="PV-302",I77="PV-303"),F77>=7),R77-(F77-7)*(G77/F77),"") -> 
O78: =IF(OR(I77="PV-301",I77="PV-302"),P78+H77,IF(OR(I77="PV-304",I77="PV-305",I77="PV-306"),Q78+H77,IF(AND(I77="PV-303",N77="A"),P78+H77,IF(AND(I77="PV-303",N77="B"),R78+(G77-H77),"")))) ->  | P78: =IF(OR(I77="PV-301",I77="PV-302"),R78+G77,IF(OR(I77="PV-304",I77="PV-305",I77="PV-306"),O78-H77/5,IF(AND(I77="PV-303",N77="A"),R78+G77,""))) ->  | Q78: =IF(OR(I77="PV-301",I77="PV-302"),P78-H77,IF(OR(I77="PV-304",I77="PV-305",I77="PV-306"),T78+G77,IF(I77="PV-303",K77,""))) ->  | R78: =IF(AND(OR(I77="PV-301",I77="PV-302"),L77="Tangent to Curve"),K77-(G77*0.3),IF(AND(OR(I77="PV-301",I77="PV-302"),L77="Spiral Curve"),K77,IF(AND(OR(I77="PV-304",I77="PV-305",I77="PV-306"),F77>=2),S78+(H77/5),IF(I77="PV-303",K77-(G77*0.3),"")))) ->  | S78: =IF(AND(OR(I77="PV-304",I77="PV-305",I77="PV-306"),F77>=2.5),Q78-H77,"") ->  | T78: =IF(AND(OR(I77="PV-304",I77="PV-305",I77="PV-306"),L77="Tangent to Curve"),K77-(G77*0.3),IF(AND(OR(I77="PV-304",I77="PV-305",I77="PV-306"),L77="Spiral Curve"),K77,"")) ->  | U78: =IF(AND(OR(I77="PV-301",I77="PV-302"),F77>2.8),K77,IF(AND(OR(I77="PV-304",I77="PV-305",I77="PV-306"),F77>=3.6),K77,"")) ->  | V78: =IF(AND(OR(I77="PV-301",I77="PV-302"),F77<=2.8),K77,IF(AND(OR(I77="PV-304",I77="PV-305",I77="PV-306"),AND(F77>2.8,F77<3.6)),K77,"")) ->  | W78: =IF(AND(OR(I77="PV-304",I77="PV-305",I77="PV-306"),F77<=2.8),K77,"") ->  | X78: =IF(AND(OR(I77="PV-301",I77="PV-302",I77="PV-303"),F77>=M77),R78+(G77/F77)*(F77-M77),IF(AND(OR(I77="PV-304",I77="PV-305",I77="PV-306"),F77>=M77),T78+(G77/F77)*(F77-M77),"")) ->  | Y78: =IF(AND(OR(I77="PV-301",I77="PV-302",I77="PV-303"),M77+F77>=8),R78+(G77/F77)*(F77-(8-M77)),IF(AND(OR(I77="PV-304",I77="PV-305",I77="PV-306"),M77+F77>=8),T78+(G77/F77)*(F77-(8-M77)),"")) ->  | Z78: =IF(AND(OR(I77="PV-301",I77="PV-302",I77="PV-303"),F77>=7),R78+(F77-7)*(G77/F77),"") -> 
O79: =IF(OR(I79="PV-301",I79="PV-302"),P79-H79,IF(OR(I79="PV-304",I79="PV-305",I79="PV-306"),Q79-H79,IF(AND(I79="PV-303",N79="A"),P79-H79,IF(AND(I79="PV-303",N79="B"),R79-(G79-H79),"")))) ->  | P79: =IF(OR(I79="PV-301",I79="PV-302"),R79-G79,IF(OR(I79="PV-304",I79="PV-305",I79="PV-306"),O79+H79/5,IF(AND(I79="PV-303",N79="A"),R79-G79,""))) ->  | Q79: =IF(OR(I79="PV-301",I79="PV-302"),P79+H79,IF(OR(I79="PV-304",I79="PV-305",I79="PV-306"),T79-G79,IF(I79="PV-303",J79,""))) ->  | R79: =IF(AND(OR(I79="PV-301",I79="PV-302"),L79="Tangent to Curve"),J79+(G79*0.3),IF(AND(OR(I79="PV-301",I79="PV-302"),L79="Spiral Curve"),J79,IF(AND(OR(I79="PV-304",I79="PV-305",I79="PV-306"),F79>=2),S79-(H79/5),IF(I79="PV-303",J79+(G79*0.3),"")))) ->  | S79: =IF(AND(OR(I79="PV-304",I79="PV-305",I79="PV-306"),F79>=2.5),Q79+H79,"") ->  | T79: =IF(AND(OR(I79="PV-304",I79="PV-305",I79="PV-306"),L79="Tangent to Curve"),J79+(G79*0.3),IF(AND(OR(I79="PV-304",I79="PV-305",I79="PV-306"),L79="Spiral Curve"),J79,"")) ->  | U79: =IF(AND(OR(I79="PV-301",I79="PV-302"),F79>2.8),J79,IF(AND(OR(I79="PV-304",I79="PV-305",I79="PV-306"),F79>=3.6),J79,"")) ->  | V79: =IF(AND(OR(I79="PV-301",I79="PV-302"),F79<=2.8),J79,IF(AND(OR(I79="PV-304",I79="PV-305",I79="PV-306"),AND(F79>2.8,F79<3.6)),J79,"")) ->  | W79: =IF(AND(OR(I79="PV-304",I79="PV-305",I79="PV-306"),F79<=2.8),J79,"") ->  | X79: =IF(AND(OR(I79="PV-301",I79="PV-302",I79="PV-303"),F79>=M79),R79-(G79/F79)*(F79-M79),IF(AND(OR(I79="PV-304",I79="PV-305",I79="PV-306"),F79>=M79),T79-(G79/F79)*(F79-M79),"")) ->  | Y79: =IF(AND(OR(I79="PV-301",I79="PV-302",I79="PV-303"),M79+F79>=8),R79-(G79/F79)*(F79-(8-M79)),IF(AND(OR(I79="PV-304",I79="PV-305",I79="PV-306"),M79+F79>=8),T79-(G79/F79)*(F79-(8-M79)),"")) ->  | Z79: =IF(AND(OR(I79="PV-301",I79="PV-302",I79="PV-303"),F79>=7),R79-(F79-7)*(G79/F79),"") -> 
O80: =IF(OR(I79="PV-301",I79="PV-302"),P80+H79,IF(OR(I79="PV-304",I79="PV-305",I79="PV-306"),Q80+H79,IF(AND(I79="PV-303",N79="A"),P80+H79,IF(AND(I79="PV-303",N79="B"),R80+(G79-H79),"")))) ->  | P80: =IF(OR(I79="PV-301",I79="PV-302"),R80+G79,IF(OR(I79="PV-304",I79="PV-305",I79="PV-306"),O80-H79/5,IF(AND(I79="PV-303",N79="A"),R80+G79,""))) ->  | Q80: =IF(OR(I79="PV-301",I79="PV-302"),P80-H79,IF(OR(I79="PV-304",I79="PV-305",I79="PV-306"),T80+G79,IF(I79="PV-303",K79,""))) ->  | R80: =IF(AND(OR(I79="PV-301",I79="PV-302"),L79="Tangent to Curve"),K79-(G79*0.3),IF(AND(OR(I79="PV-301",I79="PV-302"),L79="Spiral Curve"),K79,IF(AND(OR(I79="PV-304",I79="PV-305",I79="PV-306"),F79>=2),S80+(H79/5),IF(I79="PV-303",K79-(G79*0.3),"")))) ->  | S80: =IF(AND(OR(I79="PV-304",I79="PV-305",I79="PV-306"),F79>=2.5),Q80-H79,"") ->  | T80: =IF(AND(OR(I79="PV-304",I79="PV-305",I79="PV-306"),L79="Tangent to Curve"),K79-(G79*0.3),IF(AND(OR(I79="PV-304",I79="PV-305",I79="PV-306"),L79="Spiral Curve"),K79,"")) ->  | U80: =IF(AND(OR(I79="PV-301",I79="PV-302"),F79>2.8),K79,IF(AND(OR(I79="PV-304",I79="PV-305",I79="PV-306"),F79>=3.6),K79,"")) ->  | V80: =IF(AND(OR(I79="PV-301",I79="PV-302"),F79<=2.8),K79,IF(AND(OR(I79="PV-304",I79="PV-305",I79="PV-306"),AND(F79>2.8,F79<3.6)),K79,"")) ->  | W80: =IF(AND(OR(I79="PV-304",I79="PV-305",I79="PV-306"),F79<=2.8),K79,"") ->  | X80: =IF(AND(OR(I79="PV-301",I79="PV-302",I79="PV-303"),F79>=M79),R80+(G79/F79)*(F79-M79),IF(AND(OR(I79="PV-304",I79="PV-305",I79="PV-306"),F79>=M79),T80+(G79/F79)*(F79-M79),"")) ->  | Y80: =IF(AND(OR(I79="PV-301",I79="PV-302",I79="PV-303"),M79+F79>=8),R80+(G79/F79)*(F79-(8-M79)),IF(AND(OR(I79="PV-304",I79="PV-305",I79="PV-306"),M79+F79>=8),T80+(G79/F79)*(F79-(8-M79)),"")) ->  | Z80: =IF(AND(OR(I79="PV-301",I79="PV-302",I79="PV-303"),F79>=7),R80+(F79-7)*(G79/F79),"") -> 
O81: =IF(OR(I81="PV-301",I81="PV-302"),P81-H81,IF(OR(I81="PV-304",I81="PV-305",I81="PV-306"),Q81-H81,IF(AND(I81="PV-303",N81="A"),P81-H81,IF(AND(I81="PV-303",N81="B"),R81-(G81-H81),"")))) ->  | P81: =IF(OR(I81="PV-301",I81="PV-302"),R81-G81,IF(OR(I81="PV-304",I81="PV-305",I81="PV-306"),O81+H81/5,IF(AND(I81="PV-303",N81="A"),R81-G81,""))) ->  | Q81: =IF(OR(I81="PV-301",I81="PV-302"),P81+H81,IF(OR(I81="PV-304",I81="PV-305",I81="PV-306"),T81-G81,IF(I81="PV-303",J81,""))) ->  | R81: =IF(AND(OR(I81="PV-301",I81="PV-302"),L81="Tangent to Curve"),J81+(G81*0.3),IF(AND(OR(I81="PV-301",I81="PV-302"),L81="Spiral Curve"),J81,IF(AND(OR(I81="PV-304",I81="PV-305",I81="PV-306"),F81>=2),S81-(H81/5),IF(I81="PV-303",J81+(G81*0.3),"")))) ->  | S81: =IF(AND(OR(I81="PV-304",I81="PV-305",I81="PV-306"),F81>=2.5),Q81+H81,"") ->  | T81: =IF(AND(OR(I81="PV-304",I81="PV-305",I81="PV-306"),L81="Tangent to Curve"),J81+(G81*0.3),IF(AND(OR(I81="PV-304",I81="PV-305",I81="PV-306"),L81="Spiral Curve"),J81,"")) ->  | U81: =IF(AND(OR(I81="PV-301",I81="PV-302"),F81>2.8),J81,IF(AND(OR(I81="PV-304",I81="PV-305",I81="PV-306"),F81>=3.6),J81,"")) ->  | V81: =IF(AND(OR(I81="PV-301",I81="PV-302"),F81<=2.8),J81,IF(AND(OR(I81="PV-304",I81="PV-305",I81="PV-306"),AND(F81>2.8,F81<3.6)),J81,"")) ->  | W81: =IF(AND(OR(I81="PV-304",I81="PV-305",I81="PV-306"),F81<=2.8),J81,"") ->  | X81: =IF(AND(OR(I81="PV-301",I81="PV-302",I81="PV-303"),F81>=M81),R81-(G81/F81)*(F81-M81),IF(AND(OR(I81="PV-304",I81="PV-305",I81="PV-306"),F81>=M81),T81-(G81/F81)*(F81-M81),"")) ->  | Y81: =IF(AND(OR(I81="PV-301",I81="PV-302",I81="PV-303"),M81+F81>=8),R81-(G81/F81)*(F81-(8-M81)),IF(AND(OR(I81="PV-304",I81="PV-305",I81="PV-306"),M81+F81>=8),T81-(G81/F81)*(F81-(8-M81)),"")) ->  | Z81: =IF(AND(OR(I81="PV-301",I81="PV-302",I81="PV-303"),F81>=7),R81-(F81-7)*(G81/F81),"") -> 
O82: =IF(OR(I81="PV-301",I81="PV-302"),P82+H81,IF(OR(I81="PV-304",I81="PV-305",I81="PV-306"),Q82+H81,IF(AND(I81="PV-303",N81="A"),P82+H81,IF(AND(I81="PV-303",N81="B"),R82+(G81-H81),"")))) ->  | P82: =IF(OR(I81="PV-301",I81="PV-302"),R82+G81,IF(OR(I81="PV-304",I81="PV-305",I81="PV-306"),O82-H81/5,IF(AND(I81="PV-303",N81="A"),R82+G81,""))) ->  | Q82: =IF(OR(I81="PV-301",I81="PV-302"),P82-H81,IF(OR(I81="PV-304",I81="PV-305",I81="PV-306"),T82+G81,IF(I81="PV-303",K81,""))) ->  | R82: =IF(AND(OR(I81="PV-301",I81="PV-302"),L81="Tangent to Curve"),K81-(G81*0.3),IF(AND(OR(I81="PV-301",I81="PV-302"),L81="Spiral Curve"),K81,IF(AND(OR(I81="PV-304",I81="PV-305",I81="PV-306"),F81>=2),S82+(H81/5),IF(I81="PV-303",K81-(G81*0.3),"")))) ->  | S82: =IF(AND(OR(I81="PV-304",I81="PV-305",I81="PV-306"),F81>=2.5),Q82-H81,"") ->  | T82: =IF(AND(OR(I81="PV-304",I81="PV-305",I81="PV-306"),L81="Tangent to Curve"),K81-(G81*0.3),IF(AND(OR(I81="PV-304",I81="PV-305",I81="PV-306"),L81="Spiral Curve"),K81,"")) ->  | U82: =IF(AND(OR(I81="PV-301",I81="PV-302"),F81>2.8),K81,IF(AND(OR(I81="PV-304",I81="PV-305",I81="PV-306"),F81>=3.6),K81,"")) ->  | V82: =IF(AND(OR(I81="PV-301",I81="PV-302"),F81<=2.8),K81,IF(AND(OR(I81="PV-304",I81="PV-305",I81="PV-306"),AND(F81>2.8,F81<3.6)),K81,"")) ->  | W82: =IF(AND(OR(I81="PV-304",I81="PV-305",I81="PV-306"),F81<=2.8),K81,"") ->  | X82: =IF(AND(OR(I81="PV-301",I81="PV-302",I81="PV-303"),F81>=M81),R82+(G81/F81)*(F81-M81),IF(AND(OR(I81="PV-304",I81="PV-305",I81="PV-306"),F81>=M81),T82+(G81/F81)*(F81-M81),"")) ->  | Y82: =IF(AND(OR(I81="PV-301",I81="PV-302",I81="PV-303"),M81+F81>=8),R82+(G81/F81)*(F81-(8-M81)),IF(AND(OR(I81="PV-304",I81="PV-305",I81="PV-306"),M81+F81>=8),T82+(G81/F81)*(F81-(8-M81)),"")) ->  | Z82: =IF(AND(OR(I81="PV-301",I81="PV-302",I81="PV-303"),F81>=7),R82+(F81-7)*(G81/F81),"") -> 
O83: =IF(OR(I83="PV-301",I83="PV-302"),P83-H83,IF(OR(I83="PV-304",I83="PV-305",I83="PV-306"),Q83-H83,IF(AND(I83="PV-303",N83="A"),P83-H83,IF(AND(I83="PV-303",N83="B"),R83-(G83-H83),"")))) ->  | P83: =IF(OR(I83="PV-301",I83="PV-302"),R83-G83,IF(OR(I83="PV-304",I83="PV-305",I83="PV-306"),O83+H83/5,IF(AND(I83="PV-303",N83="A"),R83-G83,""))) ->  | Q83: =IF(OR(I83="PV-301",I83="PV-302"),P83+H83,IF(OR(I83="PV-304",I83="PV-305",I83="PV-306"),T83-G83,IF(I83="PV-303",J83,""))) ->  | R83: =IF(AND(OR(I83="PV-301",I83="PV-302"),L83="Tangent to Curve"),J83+(G83*0.3),IF(AND(OR(I83="PV-301",I83="PV-302"),L83="Spiral Curve"),J83,IF(AND(OR(I83="PV-304",I83="PV-305",I83="PV-306"),F83>=2),S83-(H83/5),IF(I83="PV-303",J83+(G83*0.3),"")))) ->  | S83: =IF(AND(OR(I83="PV-304",I83="PV-305",I83="PV-306"),F83>=2.5),Q83+H83,"") ->  | T83: =IF(AND(OR(I83="PV-304",I83="PV-305",I83="PV-306"),L83="Tangent to Curve"),J83+(G83*0.3),IF(AND(OR(I83="PV-304",I83="PV-305",I83="PV-306"),L83="Spiral Curve"),J83,"")) ->  | U83: =IF(AND(OR(I83="PV-301",I83="PV-302"),F83>2.8),J83,IF(AND(OR(I83="PV-304",I83="PV-305",I83="PV-306"),F83>=3.6),J83,"")) ->  | V83: =IF(AND(OR(I83="PV-301",I83="PV-302"),F83<=2.8),J83,IF(AND(OR(I83="PV-304",I83="PV-305",I83="PV-306"),AND(F83>2.8,F83<3.6)),J83,"")) ->  | W83: =IF(AND(OR(I83="PV-304",I83="PV-305",I83="PV-306"),F83<=2.8),J83,"") ->  | X83: =IF(AND(OR(I83="PV-301",I83="PV-302",I83="PV-303"),F83>=M83),R83-(G83/F83)*(F83-M83),IF(AND(OR(I83="PV-304",I83="PV-305",I83="PV-306"),F83>=M83),T83-(G83/F83)*(F83-M83),"")) ->  | Y83: =IF(AND(OR(I83="PV-301",I83="PV-302",I83="PV-303"),M83+F83>=8),R83-(G83/F83)*(F83-(8-M83)),IF(AND(OR(I83="PV-304",I83="PV-305",I83="PV-306"),M83+F83>=8),T83-(G83/F83)*(F83-(8-M83)),"")) ->  | Z83: =IF(AND(OR(I83="PV-301",I83="PV-302",I83="PV-303"),F83>=7),R83-(F83-7)*(G83/F83),"") -> 
O84: =IF(OR(I83="PV-301",I83="PV-302"),P84+H83,IF(OR(I83="PV-304",I83="PV-305",I83="PV-306"),Q84+H83,IF(AND(I83="PV-303",N83="A"),P84+H83,IF(AND(I83="PV-303",N83="B"),R84+(G83-H83),"")))) ->  | P84: =IF(OR(I83="PV-301",I83="PV-302"),R84+G83,IF(OR(I83="PV-304",I83="PV-305",I83="PV-306"),O84-H83/5,IF(AND(I83="PV-303",N83="A"),R84+G83,""))) ->  | Q84: =IF(OR(I83="PV-301",I83="PV-302"),P84-H83,IF(OR(I83="PV-304",I83="PV-305",I83="PV-306"),T84+G83,IF(I83="PV-303",K83,""))) ->  | R84: =IF(AND(OR(I83="PV-301",I83="PV-302"),L83="Tangent to Curve"),K83-(G83*0.3),IF(AND(OR(I83="PV-301",I83="PV-302"),L83="Spiral Curve"),K83,IF(AND(OR(I83="PV-304",I83="PV-305",I83="PV-306"),F83>=2),S84+(H83/5),IF(I83="PV-303",K83-(G83*0.3),"")))) ->  | S84: =IF(AND(OR(I83="PV-304",I83="PV-305",I83="PV-306"),F83>=2.5),Q84-H83,"") ->  | T84: =IF(AND(OR(I83="PV-304",I83="PV-305",I83="PV-306"),L83="Tangent to Curve"),K83-(G83*0.3),IF(AND(OR(I83="PV-304",I83="PV-305",I83="PV-306"),L83="Spiral Curve"),K83,"")) ->  | U84: =IF(AND(OR(I83="PV-301",I83="PV-302"),F83>2.8),K83,IF(AND(OR(I83="PV-304",I83="PV-305",I83="PV-306"),F83>=3.6),K83,"")) ->  | V84: =IF(AND(OR(I83="PV-301",I83="PV-302"),F83<=2.8),K83,IF(AND(OR(I83="PV-304",I83="PV-305",I83="PV-306"),AND(F83>2.8,F83<3.6)),K83,"")) ->  | W84: =IF(AND(OR(I83="PV-304",I83="PV-305",I83="PV-306"),F83<=2.8),K83,"") ->  | X84: =IF(AND(OR(I83="PV-301",I83="PV-302",I83="PV-303"),F83>=M83),R84+(G83/F83)*(F83-M83),IF(AND(OR(I83="PV-304",I83="PV-305",I83="PV-306"),F83>=M83),T84+(G83/F83)*(F83-M83),"")) ->  | Y84: =IF(AND(OR(I83="PV-301",I83="PV-302",I83="PV-303"),M83+F83>=8),R84+(G83/F83)*(F83-(8-M83)),IF(AND(OR(I83="PV-304",I83="PV-305",I83="PV-306"),M83+F83>=8),T84+(G83/F83)*(F83-(8-M83)),"")) ->  | Z84: =IF(AND(OR(I83="PV-301",I83="PV-302",I83="PV-303"),F83>=7),R84+(F83-7)*(G83/F83),"") -> 
O85: =IF(OR(I85="PV-301",I85="PV-302"),P85-H85,IF(OR(I85="PV-304",I85="PV-305",I85="PV-306"),Q85-H85,IF(AND(I85="PV-303",N85="A"),P85-H85,IF(AND(I85="PV-303",N85="B"),R85-(G85-H85),"")))) ->  | P85: =IF(OR(I85="PV-301",I85="PV-302"),R85-G85,IF(OR(I85="PV-304",I85="PV-305",I85="PV-306"),O85+H85/5,IF(AND(I85="PV-303",N85="A"),R85-G85,""))) ->  | Q85: =IF(OR(I85="PV-301",I85="PV-302"),P85+H85,IF(OR(I85="PV-304",I85="PV-305",I85="PV-306"),T85-G85,IF(I85="PV-303",J85,""))) ->  | R85: =IF(AND(OR(I85="PV-301",I85="PV-302"),L85="Tangent to Curve"),J85+(G85*0.3),IF(AND(OR(I85="PV-301",I85="PV-302"),L85="Spiral Curve"),J85,IF(AND(OR(I85="PV-304",I85="PV-305",I85="PV-306"),F85>=2),S85-(H85/5),IF(I85="PV-303",J85+(G85*0.3),"")))) ->  | S85: =IF(AND(OR(I85="PV-304",I85="PV-305",I85="PV-306"),F85>=2.5),Q85+H85,"") ->  | T85: =IF(AND(OR(I85="PV-304",I85="PV-305",I85="PV-306"),L85="Tangent to Curve"),J85+(G85*0.3),IF(AND(OR(I85="PV-304",I85="PV-305",I85="PV-306"),L85="Spiral Curve"),J85,"")) ->  | U85: =IF(AND(OR(I85="PV-301",I85="PV-302"),F85>2.8),J85,IF(AND(OR(I85="PV-304",I85="PV-305",I85="PV-306"),F85>=3.6),J85,"")) ->  | V85: =IF(AND(OR(I85="PV-301",I85="PV-302"),F85<=2.8),J85,IF(AND(OR(I85="PV-304",I85="PV-305",I85="PV-306"),AND(F85>2.8,F85<3.6)),J85,"")) ->  | W85: =IF(AND(OR(I85="PV-304",I85="PV-305",I85="PV-306"),F85<=2.8),J85,"") ->  | X85: =IF(AND(OR(I85="PV-301",I85="PV-302",I85="PV-303"),F85>=M85),R85-(G85/F85)*(F85-M85),IF(AND(OR(I85="PV-304",I85="PV-305",I85="PV-306"),F85>=M85),T85-(G85/F85)*(F85-M85),"")) ->  | Y85: =IF(AND(OR(I85="PV-301",I85="PV-302",I85="PV-303"),M85+F85>=8),R85-(G85/F85)*(F85-(8-M85)),IF(AND(OR(I85="PV-304",I85="PV-305",I85="PV-306"),M85+F85>=8),T85-(G85/F85)*(F85-(8-M85)),"")) ->  | Z85: =IF(AND(OR(I85="PV-301",I85="PV-302",I85="PV-303"),F85>=7),R85-(F85-7)*(G85/F85),"") -> 
O86: =IF(OR(I85="PV-301",I85="PV-302"),P86+H85,IF(OR(I85="PV-304",I85="PV-305",I85="PV-306"),Q86+H85,IF(AND(I85="PV-303",N85="A"),P86+H85,IF(AND(I85="PV-303",N85="B"),R86+(G85-H85),"")))) ->  | P86: =IF(OR(I85="PV-301",I85="PV-302"),R86+G85,IF(OR(I85="PV-304",I85="PV-305",I85="PV-306"),O86-H85/5,IF(AND(I85="PV-303",N85="A"),R86+G85,""))) ->  | Q86: =IF(OR(I85="PV-301",I85="PV-302"),P86-H85,IF(OR(I85="PV-304",I85="PV-305",I85="PV-306"),T86+G85,IF(I85="PV-303",K85,""))) ->  | R86: =IF(AND(OR(I85="PV-301",I85="PV-302"),L85="Tangent to Curve"),K85-(G85*0.3),IF(AND(OR(I85="PV-301",I85="PV-302"),L85="Spiral Curve"),K85,IF(AND(OR(I85="PV-304",I85="PV-305",I85="PV-306"),F85>=2),S86+(H85/5),IF(I85="PV-303",K85-(G85*0.3),"")))) ->  | S86: =IF(AND(OR(I85="PV-304",I85="PV-305",I85="PV-306"),F85>=2.5),Q86-H85,"") ->  | T86: =IF(AND(OR(I85="PV-304",I85="PV-305",I85="PV-306"),L85="Tangent to Curve"),K85-(G85*0.3),IF(AND(OR(I85="PV-304",I85="PV-305",I85="PV-306"),L85="Spiral Curve"),K85,"")) ->  | U86: =IF(AND(OR(I85="PV-301",I85="PV-302"),F85>2.8),K85,IF(AND(OR(I85="PV-304",I85="PV-305",I85="PV-306"),F85>=3.6),K85,"")) ->  | V86: =IF(AND(OR(I85="PV-301",I85="PV-302"),F85<=2.8),K85,IF(AND(OR(I85="PV-304",I85="PV-305",I85="PV-306"),AND(F85>2.8,F85<3.6)),K85,"")) ->  | W86: =IF(AND(OR(I85="PV-304",I85="PV-305",I85="PV-306"),F85<=2.8),K85,"") ->  | X86: =IF(AND(OR(I85="PV-301",I85="PV-302",I85="PV-303"),F85>=M85),R86+(G85/F85)*(F85-M85),IF(AND(OR(I85="PV-304",I85="PV-305",I85="PV-306"),F85>=M85),T86+(G85/F85)*(F85-M85),"")) ->  | Y86: =IF(AND(OR(I85="PV-301",I85="PV-302",I85="PV-303"),M85+F85>=8),R86+(G85/F85)*(F85-(8-M85)),IF(AND(OR(I85="PV-304",I85="PV-305",I85="PV-306"),M85+F85>=8),T86+(G85/F85)*(F85-(8-M85)),"")) ->  | Z86: =IF(AND(OR(I85="PV-301",I85="PV-302",I85="PV-303"),F85>=7),R86+(F85-7)*(G85/F85),"") -> 
O87: =IF(OR(I87="PV-301",I87="PV-302"),P87-H87,IF(OR(I87="PV-304",I87="PV-305",I87="PV-306"),Q87-H87,IF(AND(I87="PV-303",N87="A"),P87-H87,IF(AND(I87="PV-303",N87="B"),R87-(G87-H87),"")))) ->  | P87: =IF(OR(I87="PV-301",I87="PV-302"),R87-G87,IF(OR(I87="PV-304",I87="PV-305",I87="PV-306"),O87+H87/5,IF(AND(I87="PV-303",N87="A"),R87-G87,""))) ->  | Q87: =IF(OR(I87="PV-301",I87="PV-302"),P87+H87,IF(OR(I87="PV-304",I87="PV-305",I87="PV-306"),T87-G87,IF(I87="PV-303",J87,""))) ->  | R87: =IF(AND(OR(I87="PV-301",I87="PV-302"),L87="Tangent to Curve"),J87+(G87*0.3),IF(AND(OR(I87="PV-301",I87="PV-302"),L87="Spiral Curve"),J87,IF(AND(OR(I87="PV-304",I87="PV-305",I87="PV-306"),F87>=2),S87-(H87/5),IF(I87="PV-303",J87+(G87*0.3),"")))) ->  | S87: =IF(AND(OR(I87="PV-304",I87="PV-305",I87="PV-306"),F87>=2.5),Q87+H87,"") ->  | T87: =IF(AND(OR(I87="PV-304",I87="PV-305",I87="PV-306"),L87="Tangent to Curve"),J87+(G87*0.3),IF(AND(OR(I87="PV-304",I87="PV-305",I87="PV-306"),L87="Spiral Curve"),J87,"")) ->  | U87: =IF(AND(OR(I87="PV-301",I87="PV-302"),F87>2.8),J87,IF(AND(OR(I87="PV-304",I87="PV-305",I87="PV-306"),F87>=3.6),J87,"")) ->  | V87: =IF(AND(OR(I87="PV-301",I87="PV-302"),F87<=2.8),J87,IF(AND(OR(I87="PV-304",I87="PV-305",I87="PV-306"),AND(F87>2.8,F87<3.6)),J87,"")) ->  | W87: =IF(AND(OR(I87="PV-304",I87="PV-305",I87="PV-306"),F87<=2.8),J87,"") ->  | X87: =IF(AND(OR(I87="PV-301",I87="PV-302",I87="PV-303"),F87>=M87),R87-(G87/F87)*(F87-M87),IF(AND(OR(I87="PV-304",I87="PV-305",I87="PV-306"),F87>=M87),T87-(G87/F87)*(F87-M87),"")) ->  | Y87: =IF(AND(OR(I87="PV-301",I87="PV-302",I87="PV-303"),M87+F87>=8),R87-(G87/F87)*(F87-(8-M87)),IF(AND(OR(I87="PV-304",I87="PV-305",I87="PV-306"),M87+F87>=8),T87-(G87/F87)*(F87-(8-M87)),"")) ->  | Z87: =IF(AND(OR(I87="PV-301",I87="PV-302",I87="PV-303"),F87>=7),R87-(F87-7)*(G87/F87),"") -> 
O88: =IF(OR(I87="PV-301",I87="PV-302"),P88+H87,IF(OR(I87="PV-304",I87="PV-305",I87="PV-306"),Q88+H87,IF(AND(I87="PV-303",N87="A"),P88+H87,IF(AND(I87="PV-303",N87="B"),R88+(G87-H87),"")))) ->  | P88: =IF(OR(I87="PV-301",I87="PV-302"),R88+G87,IF(OR(I87="PV-304",I87="PV-305",I87="PV-306"),O88-H87/5,IF(AND(I87="PV-303",N87="A"),R88+G87,""))) ->  | Q88: =IF(OR(I87="PV-301",I87="PV-302"),P88-H87,IF(OR(I87="PV-304",I87="PV-305",I87="PV-306"),T88+G87,IF(I87="PV-303",K87,""))) ->  | R88: =IF(AND(OR(I87="PV-301",I87="PV-302"),L87="Tangent to Curve"),K87-(G87*0.3),IF(AND(OR(I87="PV-301",I87="PV-302"),L87="Spiral Curve"),K87,IF(AND(OR(I87="PV-304",I87="PV-305",I87="PV-306"),F87>=2),S88+(H87/5),IF(I87="PV-303",K87-(G87*0.3),"")))) ->  | S88: =IF(AND(OR(I87="PV-304",I87="PV-305",I87="PV-306"),F87>=2.5),Q88-H87,"") ->  | T88: =IF(AND(OR(I87="PV-304",I87="PV-305",I87="PV-306"),L87="Tangent to Curve"),K87-(G87*0.3),IF(AND(OR(I87="PV-304",I87="PV-305",I87="PV-306"),L87="Spiral Curve"),K87,"")) ->  | U88: =IF(AND(OR(I87="PV-301",I87="PV-302"),F87>2.8),K87,IF(AND(OR(I87="PV-304",I87="PV-305",I87="PV-306"),F87>=3.6),K87,"")) ->  | V88: =IF(AND(OR(I87="PV-301",I87="PV-302"),F87<=2.8),K87,IF(AND(OR(I87="PV-304",I87="PV-305",I87="PV-306"),AND(F87>2.8,F87<3.6)),K87,"")) ->  | W88: =IF(AND(OR(I87="PV-304",I87="PV-305",I87="PV-306"),F87<=2.8),K87,"") ->  | X88: =IF(AND(OR(I87="PV-301",I87="PV-302",I87="PV-303"),F87>=M87),R88+(G87/F87)*(F87-M87),IF(AND(OR(I87="PV-304",I87="PV-305",I87="PV-306"),F87>=M87),T88+(G87/F87)*(F87-M87),"")) ->  | Y88: =IF(AND(OR(I87="PV-301",I87="PV-302",I87="PV-303"),M87+F87>=8),R88+(G87/F87)*(F87-(8-M87)),IF(AND(OR(I87="PV-304",I87="PV-305",I87="PV-306"),M87+F87>=8),T88+(G87/F87)*(F87-(8-M87)),"")) ->  | Z88: =IF(AND(OR(I87="PV-301",I87="PV-302",I87="PV-303"),F87>=7),R88+(F87-7)*(G87/F87),"") -> 
O89: =IF(OR(I89="PV-301",I89="PV-302"),P89-H89,IF(OR(I89="PV-304",I89="PV-305",I89="PV-306"),Q89-H89,IF(AND(I89="PV-303",N89="A"),P89-H89,IF(AND(I89="PV-303",N89="B"),R89-(G89-H89),"")))) ->  | P89: =IF(OR(I89="PV-301",I89="PV-302"),R89-G89,IF(OR(I89="PV-304",I89="PV-305",I89="PV-306"),O89+H89/5,IF(AND(I89="PV-303",N89="A"),R89-G89,""))) ->  | Q89: =IF(OR(I89="PV-301",I89="PV-302"),P89+H89,IF(OR(I89="PV-304",I89="PV-305",I89="PV-306"),T89-G89,IF(I89="PV-303",J89,""))) ->  | R89: =IF(AND(OR(I89="PV-301",I89="PV-302"),L89="Tangent to Curve"),J89+(G89*0.3),IF(AND(OR(I89="PV-301",I89="PV-302"),L89="Spiral Curve"),J89,IF(AND(OR(I89="PV-304",I89="PV-305",I89="PV-306"),F89>=2),S89-(H89/5),IF(I89="PV-303",J89+(G89*0.3),"")))) ->  | S89: =IF(AND(OR(I89="PV-304",I89="PV-305",I89="PV-306"),F89>=2.5),Q89+H89,"") ->  | T89: =IF(AND(OR(I89="PV-304",I89="PV-305",I89="PV-306"),L89="Tangent to Curve"),J89+(G89*0.3),IF(AND(OR(I89="PV-304",I89="PV-305",I89="PV-306"),L89="Spiral Curve"),J89,"")) ->  | U89: =IF(AND(OR(I89="PV-301",I89="PV-302"),F89>2.8),J89,IF(AND(OR(I89="PV-304",I89="PV-305",I89="PV-306"),F89>=3.6),J89,"")) ->  | V89: =IF(AND(OR(I89="PV-301",I89="PV-302"),F89<=2.8),J89,IF(AND(OR(I89="PV-304",I89="PV-305",I89="PV-306"),AND(F89>2.8,F89<3.6)),J89,"")) ->  | W89: =IF(AND(OR(I89="PV-304",I89="PV-305",I89="PV-306"),F89<=2.8),J89,"") ->  | X89: =IF(AND(OR(I89="PV-301",I89="PV-302",I89="PV-303"),F89>=M89),R89-(G89/F89)*(F89-M89),IF(AND(OR(I89="PV-304",I89="PV-305",I89="PV-306"),F89>=M89),T89-(G89/F89)*(F89-M89),"")) ->  | Y89: =IF(AND(OR(I89="PV-301",I89="PV-302",I89="PV-303"),M89+F89>=8),R89-(G89/F89)*(F89-(8-M89)),IF(AND(OR(I89="PV-304",I89="PV-305",I89="PV-306"),M89+F89>=8),T89-(G89/F89)*(F89-(8-M89)),"")) ->  | Z89: =IF(AND(OR(I89="PV-301",I89="PV-302",I89="PV-303"),F89>=7),R89-(F89-7)*(G89/F89),"") -> 
O90: =IF(OR(I89="PV-301",I89="PV-302"),P90+H89,IF(OR(I89="PV-304",I89="PV-305",I89="PV-306"),Q90+H89,IF(AND(I89="PV-303",N89="A"),P90+H89,IF(AND(I89="PV-303",N89="B"),R90+(G89-H89),"")))) ->  | P90: =IF(OR(I89="PV-301",I89="PV-302"),R90+G89,IF(OR(I89="PV-304",I89="PV-305",I89="PV-306"),O90-H89/5,IF(AND(I89="PV-303",N89="A"),R90+G89,""))) ->  | Q90: =IF(OR(I89="PV-301",I89="PV-302"),P90-H89,IF(OR(I89="PV-304",I89="PV-305",I89="PV-306"),T90+G89,IF(I89="PV-303",K89,""))) ->  | R90: =IF(AND(OR(I89="PV-301",I89="PV-302"),L89="Tangent to Curve"),K89-(G89*0.3),IF(AND(OR(I89="PV-301",I89="PV-302"),L89="Spiral Curve"),K89,IF(AND(OR(I89="PV-304",I89="PV-305",I89="PV-306"),F89>=2),S90+(H89/5),IF(I89="PV-303",K89-(G89*0.3),"")))) ->  | S90: =IF(AND(OR(I89="PV-304",I89="PV-305",I89="PV-306"),F89>=2.5),Q90-H89,"") ->  | T90: =IF(AND(OR(I89="PV-304",I89="PV-305",I89="PV-306"),L89="Tangent to Curve"),K89-(G89*0.3),IF(AND(OR(I89="PV-304",I89="PV-305",I89="PV-306"),L89="Spiral Curve"),K89,"")) ->  | U90: =IF(AND(OR(I89="PV-301",I89="PV-302"),F89>2.8),K89,IF(AND(OR(I89="PV-304",I89="PV-305",I89="PV-306"),F89>=3.6),K89,"")) ->  | V90: =IF(AND(OR(I89="PV-301",I89="PV-302"),F89<=2.8),K89,IF(AND(OR(I89="PV-304",I89="PV-305",I89="PV-306"),AND(F89>2.8,F89<3.6)),K89,"")) ->  | W90: =IF(AND(OR(I89="PV-304",I89="PV-305",I89="PV-306"),F89<=2.8),K89,"") ->  | X90: =IF(AND(OR(I89="PV-301",I89="PV-302",I89="PV-303"),F89>=M89),R90+(G89/F89)*(F89-M89),IF(AND(OR(I89="PV-304",I89="PV-305",I89="PV-306"),F89>=M89),T90+(G89/F89)*(F89-M89),"")) ->  | Y90: =IF(AND(OR(I89="PV-301",I89="PV-302",I89="PV-303"),M89+F89>=8),R90+(G89/F89)*(F89-(8-M89)),IF(AND(OR(I89="PV-304",I89="PV-305",I89="PV-306"),M89+F89>=8),T90+(G89/F89)*(F89-(8-M89)),"")) ->  | Z90: =IF(AND(OR(I89="PV-301",I89="PV-302",I89="PV-303"),F89>=7),R90+(F89-7)*(G89/F89),"") -> 
O91: =IF(OR(I91="PV-301",I91="PV-302"),P91-H91,IF(OR(I91="PV-304",I91="PV-305",I91="PV-306"),Q91-H91,IF(AND(I91="PV-303",N91="A"),P91-H91,IF(AND(I91="PV-303",N91="B"),R91-(G91-H91),"")))) ->  | P91: =IF(OR(I91="PV-301",I91="PV-302"),R91-G91,IF(OR(I91="PV-304",I91="PV-305",I91="PV-306"),O91+H91/5,IF(AND(I91="PV-303",N91="A"),R91-G91,""))) ->  | Q91: =IF(OR(I91="PV-301",I91="PV-302"),P91+H91,IF(OR(I91="PV-304",I91="PV-305",I91="PV-306"),T91-G91,IF(I91="PV-303",J91,""))) ->  | R91: =IF(AND(OR(I91="PV-301",I91="PV-302"),L91="Tangent to Curve"),J91+(G91*0.3),IF(AND(OR(I91="PV-301",I91="PV-302"),L91="Spiral Curve"),J91,IF(AND(OR(I91="PV-304",I91="PV-305",I91="PV-306"),F91>=2),S91-(H91/5),IF(I91="PV-303",J91+(G91*0.3),"")))) ->  | S91: =IF(AND(OR(I91="PV-304",I91="PV-305",I91="PV-306"),F91>=2.5),Q91+H91,"") ->  | T91: =IF(AND(OR(I91="PV-304",I91="PV-305",I91="PV-306"),L91="Tangent to Curve"),J91+(G91*0.3),IF(AND(OR(I91="PV-304",I91="PV-305",I91="PV-306"),L91="Spiral Curve"),J91,"")) ->  | U91: =IF(AND(OR(I91="PV-301",I91="PV-302"),F91>2.8),J91,IF(AND(OR(I91="PV-304",I91="PV-305",I91="PV-306"),F91>=3.6),J91,"")) ->  | V91: =IF(AND(OR(I91="PV-301",I91="PV-302"),F91<=2.8),J91,IF(AND(OR(I91="PV-304",I91="PV-305",I91="PV-306"),AND(F91>2.8,F91<3.6)),J91,"")) ->  | W91: =IF(AND(OR(I91="PV-304",I91="PV-305",I91="PV-306"),F91<=2.8),J91,"") ->  | X91: =IF(AND(OR(I91="PV-301",I91="PV-302",I91="PV-303"),F91>=M91),R91-(G91/F91)*(F91-M91),IF(AND(OR(I91="PV-304",I91="PV-305",I91="PV-306"),F91>=M91),T91-(G91/F91)*(F91-M91),"")) ->  | Y91: =IF(AND(OR(I91="PV-301",I91="PV-302",I91="PV-303"),M91+F91>=8),R91-(G91/F91)*(F91-(8-M91)),IF(AND(OR(I91="PV-304",I91="PV-305",I91="PV-306"),M91+F91>=8),T91-(G91/F91)*(F91-(8-M91)),"")) ->  | Z91: =IF(AND(OR(I91="PV-301",I91="PV-302",I91="PV-303"),F91>=7),R91-(F91-7)*(G91/F91),"") -> 
O92: =IF(OR(I91="PV-301",I91="PV-302"),P92+H91,IF(OR(I91="PV-304",I91="PV-305",I91="PV-306"),Q92+H91,IF(AND(I91="PV-303",N91="A"),P92+H91,IF(AND(I91="PV-303",N91="B"),R92+(G91-H91),"")))) ->  | P92: =IF(OR(I91="PV-301",I91="PV-302"),R92+G91,IF(OR(I91="PV-304",I91="PV-305",I91="PV-306"),O92-H91/5,IF(AND(I91="PV-303",N91="A"),R92+G91,""))) ->  | Q92: =IF(OR(I91="PV-301",I91="PV-302"),P92-H91,IF(OR(I91="PV-304",I91="PV-305",I91="PV-306"),T92+G91,IF(I91="PV-303",K91,""))) ->  | R92: =IF(AND(OR(I91="PV-301",I91="PV-302"),L91="Tangent to Curve"),K91-(G91*0.3),IF(AND(OR(I91="PV-301",I91="PV-302"),L91="Spiral Curve"),K91,IF(AND(OR(I91="PV-304",I91="PV-305",I91="PV-306"),F91>=2),S92+(H91/5),IF(I91="PV-303",K91-(G91*0.3),"")))) ->  | S92: =IF(AND(OR(I91="PV-304",I91="PV-305",I91="PV-306"),F91>=2.5),Q92-H91,"") ->  | T92: =IF(AND(OR(I91="PV-304",I91="PV-305",I91="PV-306"),L91="Tangent to Curve"),K91-(G91*0.3),IF(AND(OR(I91="PV-304",I91="PV-305",I91="PV-306"),L91="Spiral Curve"),K91,"")) ->  | U92: =IF(AND(OR(I91="PV-301",I91="PV-302"),F91>2.8),K91,IF(AND(OR(I91="PV-304",I91="PV-305",I91="PV-306"),F91>=3.6),K91,"")) ->  | V92: =IF(AND(OR(I91="PV-301",I91="PV-302"),F91<=2.8),K91,IF(AND(OR(I91="PV-304",I91="PV-305",I91="PV-306"),AND(F91>2.8,F91<3.6)),K91,"")) ->  | W92: =IF(AND(OR(I91="PV-304",I91="PV-305",I91="PV-306"),F91<=2.8),K91,"") ->  | X92: =IF(AND(OR(I91="PV-301",I91="PV-302",I91="PV-303"),F91>=M91),R92+(G91/F91)*(F91-M91),IF(AND(OR(I91="PV-304",I91="PV-305",I91="PV-306"),F91>=M91),T92+(G91/F91)*(F91-M91),"")) ->  | Y92: =IF(AND(OR(I91="PV-301",I91="PV-302",I91="PV-303"),M91+F91>=8),R92+(G91/F91)*(F91-(8-M91)),IF(AND(OR(I91="PV-304",I91="PV-305",I91="PV-306"),M91+F91>=8),T92+(G91/F91)*(F91-(8-M91)),"")) ->  | Z92: =IF(AND(OR(I91="PV-301",I91="PV-302",I91="PV-303"),F91>=7),R92+(F91-7)*(G91/F91),"") -> 
O93: =IF(OR(I93="PV-301",I93="PV-302"),P93-H93,IF(OR(I93="PV-304",I93="PV-305",I93="PV-306"),Q93-H93,IF(AND(I93="PV-303",N93="A"),P93-H93,IF(AND(I93="PV-303",N93="B"),R93-(G93-H93),"")))) ->  | P93: =IF(OR(I93="PV-301",I93="PV-302"),R93-G93,IF(OR(I93="PV-304",I93="PV-305",I93="PV-306"),O93+H93/5,IF(AND(I93="PV-303",N93="A"),R93-G93,""))) ->  | Q93: =IF(OR(I93="PV-301",I93="PV-302"),P93+H93,IF(OR(I93="PV-304",I93="PV-305",I93="PV-306"),T93-G93,IF(I93="PV-303",J93,""))) ->  | R93: =IF(AND(OR(I93="PV-301",I93="PV-302"),L93="Tangent to Curve"),J93+(G93*0.3),IF(AND(OR(I93="PV-301",I93="PV-302"),L93="Spiral Curve"),J93,IF(AND(OR(I93="PV-304",I93="PV-305",I93="PV-306"),F93>=2),S93-(H93/5),IF(I93="PV-303",J93+(G93*0.3),"")))) ->  | S93: =IF(AND(OR(I93="PV-304",I93="PV-305",I93="PV-306"),F93>=2.5),Q93+H93,"") ->  | T93: =IF(AND(OR(I93="PV-304",I93="PV-305",I93="PV-306"),L93="Tangent to Curve"),J93+(G93*0.3),IF(AND(OR(I93="PV-304",I93="PV-305",I93="PV-306"),L93="Spiral Curve"),J93,"")) ->  | U93: =IF(AND(OR(I93="PV-301",I93="PV-302"),F93>2.8),J93,IF(AND(OR(I93="PV-304",I93="PV-305",I93="PV-306"),F93>=3.6),J93,"")) ->  | V93: =IF(AND(OR(I93="PV-301",I93="PV-302"),F93<=2.8),J93,IF(AND(OR(I93="PV-304",I93="PV-305",I93="PV-306"),AND(F93>2.8,F93<3.6)),J93,"")) ->  | W93: =IF(AND(OR(I93="PV-304",I93="PV-305",I93="PV-306"),F93<=2.8),J93,"") ->  | X93: =IF(AND(OR(I93="PV-301",I93="PV-302",I93="PV-303"),F93>=M93),R93-(G93/F93)*(F93-M93),IF(AND(OR(I93="PV-304",I93="PV-305",I93="PV-306"),F93>=M93),T93-(G93/F93)*(F93-M93),"")) ->  | Y93: =IF(AND(OR(I93="PV-301",I93="PV-302",I93="PV-303"),M93+F93>=8),R93-(G93/F93)*(F93-(8-M93)),IF(AND(OR(I93="PV-304",I93="PV-305",I93="PV-306"),M93+F93>=8),T93-(G93/F93)*(F93-(8-M93)),"")) ->  | Z93: =IF(AND(OR(I93="PV-301",I93="PV-302",I93="PV-303"),F93>=7),R93-(F93-7)*(G93/F93),"") -> 
O94: =IF(OR(I93="PV-301",I93="PV-302"),P94+H93,IF(OR(I93="PV-304",I93="PV-305",I93="PV-306"),Q94+H93,IF(AND(I93="PV-303",N93="A"),P94+H93,IF(AND(I93="PV-303",N93="B"),R94+(G93-H93),"")))) ->  | P94: =IF(OR(I93="PV-301",I93="PV-302"),R94+G93,IF(OR(I93="PV-304",I93="PV-305",I93="PV-306"),O94-H93/5,IF(AND(I93="PV-303",N93="A"),R94+G93,""))) ->  | Q94: =IF(OR(I93="PV-301",I93="PV-302"),P94-H93,IF(OR(I93="PV-304",I93="PV-305",I93="PV-306"),T94+G93,IF(I93="PV-303",K93,""))) ->  | R94: =IF(AND(OR(I93="PV-301",I93="PV-302"),L93="Tangent to Curve"),K93-(G93*0.3),IF(AND(OR(I93="PV-301",I93="PV-302"),L93="Spiral Curve"),K93,IF(AND(OR(I93="PV-304",I93="PV-305",I93="PV-306"),F93>=2),S94+(H93/5),IF(I93="PV-303",K93-(G93*0.3),"")))) ->  | S94: =IF(AND(OR(I93="PV-304",I93="PV-305",I93="PV-306"),F93>=2.5),Q94-H93,"") ->  | T94: =IF(AND(OR(I93="PV-304",I93="PV-305",I93="PV-306"),L93="Tangent to Curve"),K93-(G93*0.3),IF(AND(OR(I93="PV-304",I93="PV-305",I93="PV-306"),L93="Spiral Curve"),K93,"")) ->  | U94: =IF(AND(OR(I93="PV-301",I93="PV-302"),F93>2.8),K93,IF(AND(OR(I93="PV-304",I93="PV-305",I93="PV-306"),F93>=3.6),K93,"")) ->  | V94: =IF(AND(OR(I93="PV-301",I93="PV-302"),F93<=2.8),K93,IF(AND(OR(I93="PV-304",I93="PV-305",I93="PV-306"),AND(F93>2.8,F93<3.6)),K93,"")) ->  | W94: =IF(AND(OR(I93="PV-304",I93="PV-305",I93="PV-306"),F93<=2.8),K93,"") ->  | X94: =IF(AND(OR(I93="PV-301",I93="PV-302",I93="PV-303"),F93>=M93),R94+(G93/F93)*(F93-M93),IF(AND(OR(I93="PV-304",I93="PV-305",I93="PV-306"),F93>=M93),T94+(G93/F93)*(F93-M93),"")) ->  | Y94: =IF(AND(OR(I93="PV-301",I93="PV-302",I93="PV-303"),M93+F93>=8),R94+(G93/F93)*(F93-(8-M93)),IF(AND(OR(I93="PV-304",I93="PV-305",I93="PV-306"),M93+F93>=8),T94+(G93/F93)*(F93-(8-M93)),"")) ->  | Z94: =IF(AND(OR(I93="PV-301",I93="PV-302",I93="PV-303"),F93>=7),R94+(F93-7)*(G93/F93),"") -> 
O95: =IF(OR(I95="PV-301",I95="PV-302"),P95-H95,IF(OR(I95="PV-304",I95="PV-305",I95="PV-306"),Q95-H95,IF(AND(I95="PV-303",N95="A"),P95-H95,IF(AND(I95="PV-303",N95="B"),R95-(G95-H95),"")))) ->  | P95: =IF(OR(I95="PV-301",I95="PV-302"),R95-G95,IF(OR(I95="PV-304",I95="PV-305",I95="PV-306"),O95+H95/5,IF(AND(I95="PV-303",N95="A"),R95-G95,""))) ->  | Q95: =IF(OR(I95="PV-301",I95="PV-302"),P95+H95,IF(OR(I95="PV-304",I95="PV-305",I95="PV-306"),T95-G95,IF(I95="PV-303",J95,""))) ->  | R95: =IF(AND(OR(I95="PV-301",I95="PV-302"),L95="Tangent to Curve"),J95+(G95*0.3),IF(AND(OR(I95="PV-301",I95="PV-302"),L95="Spiral Curve"),J95,IF(AND(OR(I95="PV-304",I95="PV-305",I95="PV-306"),F95>=2),S95-(H95/5),IF(I95="PV-303",J95+(G95*0.3),"")))) ->  | S95: =IF(AND(OR(I95="PV-304",I95="PV-305",I95="PV-306"),F95>=2.5),Q95+H95,"") ->  | T95: =IF(AND(OR(I95="PV-304",I95="PV-305",I95="PV-306"),L95="Tangent to Curve"),J95+(G95*0.3),IF(AND(OR(I95="PV-304",I95="PV-305",I95="PV-306"),L95="Spiral Curve"),J95,"")) ->  | U95: =IF(AND(OR(I95="PV-301",I95="PV-302"),F95>2.8),J95,IF(AND(OR(I95="PV-304",I95="PV-305",I95="PV-306"),F95>=3.6),J95,"")) ->  | V95: =IF(AND(OR(I95="PV-301",I95="PV-302"),F95<=2.8),J95,IF(AND(OR(I95="PV-304",I95="PV-305",I95="PV-306"),AND(F95>2.8,F95<3.6)),J95,"")) ->  | W95: =IF(AND(OR(I95="PV-304",I95="PV-305",I95="PV-306"),F95<=2.8),J95,"") ->  | X95: =IF(AND(OR(I95="PV-301",I95="PV-302",I95="PV-303"),F95>=M95),R95-(G95/F95)*(F95-M95),IF(AND(OR(I95="PV-304",I95="PV-305",I95="PV-306"),F95>=M95),T95-(G95/F95)*(F95-M95),"")) ->  | Y95: =IF(AND(OR(I95="PV-301",I95="PV-302",I95="PV-303"),M95+F95>=8),R95-(G95/F95)*(F95-(8-M95)),IF(AND(OR(I95="PV-304",I95="PV-305",I95="PV-306"),M95+F95>=8),T95-(G95/F95)*(F95-(8-M95)),"")) ->  | Z95: =IF(AND(OR(I95="PV-301",I95="PV-302",I95="PV-303"),F95>=7),R95-(F95-7)*(G95/F95),"") -> 
O96: =IF(OR(I95="PV-301",I95="PV-302"),P96+H95,IF(OR(I95="PV-304",I95="PV-305",I95="PV-306"),Q96+H95,IF(AND(I95="PV-303",N95="A"),P96+H95,IF(AND(I95="PV-303",N95="B"),R96+(G95-H95),"")))) ->  | P96: =IF(OR(I95="PV-301",I95="PV-302"),R96+G95,IF(OR(I95="PV-304",I95="PV-305",I95="PV-306"),O96-H95/5,IF(AND(I95="PV-303",N95="A"),R96+G95,""))) ->  | Q96: =IF(OR(I95="PV-301",I95="PV-302"),P96-H95,IF(OR(I95="PV-304",I95="PV-305",I95="PV-306"),T96+G95,IF(I95="PV-303",K95,""))) ->  | R96: =IF(AND(OR(I95="PV-301",I95="PV-302"),L95="Tangent to Curve"),K95-(G95*0.3),IF(AND(OR(I95="PV-301",I95="PV-302"),L95="Spiral Curve"),K95,IF(AND(OR(I95="PV-304",I95="PV-305",I95="PV-306"),F95>=2),S96+(H95/5),IF(I95="PV-303",K95-(G95*0.3),"")))) ->  | S96: =IF(AND(OR(I95="PV-304",I95="PV-305",I95="PV-306"),F95>=2.5),Q96-H95,"") ->  | T96: =IF(AND(OR(I95="PV-304",I95="PV-305",I95="PV-306"),L95="Tangent to Curve"),K95-(G95*0.3),IF(AND(OR(I95="PV-304",I95="PV-305",I95="PV-306"),L95="Spiral Curve"),K95,"")) ->  | U96: =IF(AND(OR(I95="PV-301",I95="PV-302"),F95>2.8),K95,IF(AND(OR(I95="PV-304",I95="PV-305",I95="PV-306"),F95>=3.6),K95,"")) ->  | V96: =IF(AND(OR(I95="PV-301",I95="PV-302"),F95<=2.8),K95,IF(AND(OR(I95="PV-304",I95="PV-305",I95="PV-306"),AND(F95>2.8,F95<3.6)),K95,"")) ->  | W96: =IF(AND(OR(I95="PV-304",I95="PV-305",I95="PV-306"),F95<=2.8),K95,"") ->  | X96: =IF(AND(OR(I95="PV-301",I95="PV-302",I95="PV-303"),F95>=M95),R96+(G95/F95)*(F95-M95),IF(AND(OR(I95="PV-304",I95="PV-305",I95="PV-306"),F95>=M95),T96+(G95/F95)*(F95-M95),"")) ->  | Y96: =IF(AND(OR(I95="PV-301",I95="PV-302",I95="PV-303"),M95+F95>=8),R96+(G95/F95)*(F95-(8-M95)),IF(AND(OR(I95="PV-304",I95="PV-305",I95="PV-306"),M95+F95>=8),T96+(G95/F95)*(F95-(8-M95)),"")) ->  | Z96: =IF(AND(OR(I95="PV-301",I95="PV-302",I95="PV-303"),F95>=7),R96+(F95-7)*(G95/F95),"") -> 
O97: =IF(OR(I97="PV-301",I97="PV-302"),P97-H97,IF(OR(I97="PV-304",I97="PV-305",I97="PV-306"),Q97-H97,IF(AND(I97="PV-303",N97="A"),P97-H97,IF(AND(I97="PV-303",N97="B"),R97-(G97-H97),"")))) ->  | P97: =IF(OR(I97="PV-301",I97="PV-302"),R97-G97,IF(OR(I97="PV-304",I97="PV-305",I97="PV-306"),O97+H97/5,IF(AND(I97="PV-303",N97="A"),R97-G97,""))) ->  | Q97: =IF(OR(I97="PV-301",I97="PV-302"),P97+H97,IF(OR(I97="PV-304",I97="PV-305",I97="PV-306"),T97-G97,IF(I97="PV-303",J97,""))) ->  | R97: =IF(AND(OR(I97="PV-301",I97="PV-302"),L97="Tangent to Curve"),J97+(G97*0.3),IF(AND(OR(I97="PV-301",I97="PV-302"),L97="Spiral Curve"),J97,IF(AND(OR(I97="PV-304",I97="PV-305",I97="PV-306"),F97>=2),S97-(H97/5),IF(I97="PV-303",J97+(G97*0.3),"")))) ->  | S97: =IF(AND(OR(I97="PV-304",I97="PV-305",I97="PV-306"),F97>=2.5),Q97+H97,"") ->  | T97: =IF(AND(OR(I97="PV-304",I97="PV-305",I97="PV-306"),L97="Tangent to Curve"),J97+(G97*0.3),IF(AND(OR(I97="PV-304",I97="PV-305",I97="PV-306"),L97="Spiral Curve"),J97,"")) ->  | U97: =IF(AND(OR(I97="PV-301",I97="PV-302"),F97>2.8),J97,IF(AND(OR(I97="PV-304",I97="PV-305",I97="PV-306"),F97>=3.6),J97,"")) ->  | V97: =IF(AND(OR(I97="PV-301",I97="PV-302"),F97<=2.8),J97,IF(AND(OR(I97="PV-304",I97="PV-305",I97="PV-306"),AND(F97>2.8,F97<3.6)),J97,"")) ->  | W97: =IF(AND(OR(I97="PV-304",I97="PV-305",I97="PV-306"),F97<=2.8),J97,"") ->  | X97: =IF(AND(OR(I97="PV-301",I97="PV-302",I97="PV-303"),F97>=M97),R97-(G97/F97)*(F97-M97),IF(AND(OR(I97="PV-304",I97="PV-305",I97="PV-306"),F97>=M97),T97-(G97/F97)*(F97-M97),"")) ->  | Y97: =IF(AND(OR(I97="PV-301",I97="PV-302",I97="PV-303"),M97+F97>=8),R97-(G97/F97)*(F97-(8-M97)),IF(AND(OR(I97="PV-304",I97="PV-305",I97="PV-306"),M97+F97>=8),T97-(G97/F97)*(F97-(8-M97)),"")) ->  | Z97: =IF(AND(OR(I97="PV-301",I97="PV-302",I97="PV-303"),F97>=7),R97-(F97-7)*(G97/F97),"") -> 
O98: =IF(OR(I97="PV-301",I97="PV-302"),P98+H97,IF(OR(I97="PV-304",I97="PV-305",I97="PV-306"),Q98+H97,IF(AND(I97="PV-303",N97="A"),P98+H97,IF(AND(I97="PV-303",N97="B"),R98+(G97-H97),"")))) ->  | P98: =IF(OR(I97="PV-301",I97="PV-302"),R98+G97,IF(OR(I97="PV-304",I97="PV-305",I97="PV-306"),O98-H97/5,IF(AND(I97="PV-303",N97="A"),R98+G97,""))) ->  | Q98: =IF(OR(I97="PV-301",I97="PV-302"),P98-H97,IF(OR(I97="PV-304",I97="PV-305",I97="PV-306"),T98+G97,IF(I97="PV-303",K97,""))) ->  | R98: =IF(AND(OR(I97="PV-301",I97="PV-302"),L97="Tangent to Curve"),K97-(G97*0.3),IF(AND(OR(I97="PV-301",I97="PV-302"),L97="Spiral Curve"),K97,IF(AND(OR(I97="PV-304",I97="PV-305",I97="PV-306"),F97>=2),S98+(H97/5),IF(I97="PV-303",K97-(G97*0.3),"")))) ->  | S98: =IF(AND(OR(I97="PV-304",I97="PV-305",I97="PV-306"),F97>=2.5),Q98-H97,"") ->  | T98: =IF(AND(OR(I97="PV-304",I97="PV-305",I97="PV-306"),L97="Tangent to Curve"),K97-(G97*0.3),IF(AND(OR(I97="PV-304",I97="PV-305",I97="PV-306"),L97="Spiral Curve"),K97,"")) ->  | U98: =IF(AND(OR(I97="PV-301",I97="PV-302"),F97>2.8),K97,IF(AND(OR(I97="PV-304",I97="PV-305",I97="PV-306"),F97>=3.6),K97,"")) ->  | V98: =IF(AND(OR(I97="PV-301",I97="PV-302"),F97<=2.8),K97,IF(AND(OR(I97="PV-304",I97="PV-305",I97="PV-306"),AND(F97>2.8,F97<3.6)),K97,"")) ->  | W98: =IF(AND(OR(I97="PV-304",I97="PV-305",I97="PV-306"),F97<=2.8),K97,"") ->  | X98: =IF(AND(OR(I97="PV-301",I97="PV-302",I97="PV-303"),F97>=M97),R98+(G97/F97)*(F97-M97),IF(AND(OR(I97="PV-304",I97="PV-305",I97="PV-306"),F97>=M97),T98+(G97/F97)*(F97-M97),"")) ->  | Y98: =IF(AND(OR(I97="PV-301",I97="PV-302",I97="PV-303"),M97+F97>=8),R98+(G97/F97)*(F97-(8-M97)),IF(AND(OR(I97="PV-304",I97="PV-305",I97="PV-306"),M97+F97>=8),T98+(G97/F97)*(F97-(8-M97)),"")) ->  | Z98: =IF(AND(OR(I97="PV-301",I97="PV-302",I97="PV-303"),F97>=7),R98+(F97-7)*(G97/F97),"") -> 
O99: =IF(OR(I99="PV-301",I99="PV-302"),P99-H99,IF(OR(I99="PV-304",I99="PV-305",I99="PV-306"),Q99-H99,IF(AND(I99="PV-303",N99="A"),P99-H99,IF(AND(I99="PV-303",N99="B"),R99-(G99-H99),"")))) ->  | P99: =IF(OR(I99="PV-301",I99="PV-302"),R99-G99,IF(OR(I99="PV-304",I99="PV-305",I99="PV-306"),O99+H99/5,IF(AND(I99="PV-303",N99="A"),R99-G99,""))) ->  | Q99: =IF(OR(I99="PV-301",I99="PV-302"),P99+H99,IF(OR(I99="PV-304",I99="PV-305",I99="PV-306"),T99-G99,IF(I99="PV-303",J99,""))) ->  | R99: =IF(AND(OR(I99="PV-301",I99="PV-302"),L99="Tangent to Curve"),J99+(G99*0.3),IF(AND(OR(I99="PV-301",I99="PV-302"),L99="Spiral Curve"),J99,IF(AND(OR(I99="PV-304",I99="PV-305",I99="PV-306"),F99>=2),S99-(H99/5),IF(I99="PV-303",J99+(G99*0.3),"")))) ->  | S99: =IF(AND(OR(I99="PV-304",I99="PV-305",I99="PV-306"),F99>=2.5),Q99+H99,"") ->  | T99: =IF(AND(OR(I99="PV-304",I99="PV-305",I99="PV-306"),L99="Tangent to Curve"),J99+(G99*0.3),IF(AND(OR(I99="PV-304",I99="PV-305",I99="PV-306"),L99="Spiral Curve"),J99,"")) ->  | U99: =IF(AND(OR(I99="PV-301",I99="PV-302"),F99>2.8),J99,IF(AND(OR(I99="PV-304",I99="PV-305",I99="PV-306"),F99>=3.6),J99,"")) ->  | V99: =IF(AND(OR(I99="PV-301",I99="PV-302"),F99<=2.8),J99,IF(AND(OR(I99="PV-304",I99="PV-305",I99="PV-306"),AND(F99>2.8,F99<3.6)),J99,"")) ->  | W99: =IF(AND(OR(I99="PV-304",I99="PV-305",I99="PV-306"),F99<=2.8),J99,"") ->  | X99: =IF(AND(OR(I99="PV-301",I99="PV-302",I99="PV-303"),F99>=M99),R99-(G99/F99)*(F99-M99),IF(AND(OR(I99="PV-304",I99="PV-305",I99="PV-306"),F99>=M99),T99-(G99/F99)*(F99-M99),"")) ->  | Y99: =IF(AND(OR(I99="PV-301",I99="PV-302",I99="PV-303"),M99+F99>=8),R99-(G99/F99)*(F99-(8-M99)),IF(AND(OR(I99="PV-304",I99="PV-305",I99="PV-306"),M99+F99>=8),T99-(G99/F99)*(F99-(8-M99)),"")) ->  | Z99: =IF(AND(OR(I99="PV-301",I99="PV-302",I99="PV-303"),F99>=7),R99-(F99-7)*(G99/F99),"") -> 
O100: =IF(OR(I99="PV-301",I99="PV-302"),P100+H99,IF(OR(I99="PV-304",I99="PV-305",I99="PV-306"),Q100+H99,IF(AND(I99="PV-303",N99="A"),P100+H99,IF(AND(I99="PV-303",N99="B"),R100+(G99-H99),"")))) ->  | P100: =IF(OR(I99="PV-301",I99="PV-302"),R100+G99,IF(OR(I99="PV-304",I99="PV-305",I99="PV-306"),O100-H99/5,IF(AND(I99="PV-303",N99="A"),R100+G99,""))) ->  | Q100: =IF(OR(I99="PV-301",I99="PV-302"),P100-H99,IF(OR(I99="PV-304",I99="PV-305",I99="PV-306"),T100+G99,IF(I99="PV-303",K99,""))) ->  | R100: =IF(AND(OR(I99="PV-301",I99="PV-302"),L99="Tangent to Curve"),K99-(G99*0.3),IF(AND(OR(I99="PV-301",I99="PV-302"),L99="Spiral Curve"),K99,IF(AND(OR(I99="PV-304",I99="PV-305",I99="PV-306"),F99>=2),S100+(H99/5),IF(I99="PV-303",K99-(G99*0.3),"")))) ->  | S100: =IF(AND(OR(I99="PV-304",I99="PV-305",I99="PV-306"),F99>=2.5),Q100-H99,"") ->  | T100: =IF(AND(OR(I99="PV-304",I99="PV-305",I99="PV-306"),L99="Tangent to Curve"),K99-(G99*0.3),IF(AND(OR(I99="PV-304",I99="PV-305",I99="PV-306"),L99="Spiral Curve"),K99,"")) ->  | U100: =IF(AND(OR(I99="PV-301",I99="PV-302"),F99>2.8),K99,IF(AND(OR(I99="PV-304",I99="PV-305",I99="PV-306"),F99>=3.6),K99,"")) ->  | V100: =IF(AND(OR(I99="PV-301",I99="PV-302"),F99<=2.8),K99,IF(AND(OR(I99="PV-304",I99="PV-305",I99="PV-306"),AND(F99>2.8,F99<3.6)),K99,"")) ->  | W100: =IF(AND(OR(I99="PV-304",I99="PV-305",I99="PV-306"),F99<=2.8),K99,"") ->  | X100: =IF(AND(OR(I99="PV-301",I99="PV-302",I99="PV-303"),F99>=M99),R100+(G99/F99)*(F99-M99),IF(AND(OR(I99="PV-304",I99="PV-305",I99="PV-306"),F99>=M99),T100+(G99/F99)*(F99-M99),"")) ->  | Y100: =IF(AND(OR(I99="PV-301",I99="PV-302",I99="PV-303"),M99+F99>=8),R100+(G99/F99)*(F99-(8-M99)),IF(AND(OR(I99="PV-304",I99="PV-305",I99="PV-306"),M99+F99>=8),T100+(G99/F99)*(F99-(8-M99)),"")) ->  | Z100: =IF(AND(OR(I99="PV-301",I99="PV-302",I99="PV-303"),F99>=7),R100+(F99-7)*(G99/F99),"") -> 
O101: =IF(OR(I101="PV-301",I101="PV-302"),P101-H101,IF(OR(I101="PV-304",I101="PV-305",I101="PV-306"),Q101-H101,IF(AND(I101="PV-303",N101="A"),P101-H101,IF(AND(I101="PV-303",N101="B"),R101-(G101-H101),"")))) ->  | P101: =IF(OR(I101="PV-301",I101="PV-302"),R101-G101,IF(OR(I101="PV-304",I101="PV-305",I101="PV-306"),O101+H101/5,IF(AND(I101="PV-303",N101="A"),R101-G101,""))) ->  | Q101: =IF(OR(I101="PV-301",I101="PV-302"),P101+H101,IF(OR(I101="PV-304",I101="PV-305",I101="PV-306"),T101-G101,IF(I101="PV-303",J101,""))) ->  | R101: =IF(AND(OR(I101="PV-301",I101="PV-302"),L101="Tangent to Curve"),J101+(G101*0.3),IF(AND(OR(I101="PV-301",I101="PV-302"),L101="Spiral Curve"),J101,IF(AND(OR(I101="PV-304",I101="PV-305",I101="PV-306"),F101>=2),S101-(H101/5),IF(I101="PV-303",J101+(G101*0.3),"")))) ->  | S101: =IF(AND(OR(I101="PV-304",I101="PV-305",I101="PV-306"),F101>=2.5),Q101+H101,"") ->  | T101: =IF(AND(OR(I101="PV-304",I101="PV-305",I101="PV-306"),L101="Tangent to Curve"),J101+(G101*0.3),IF(AND(OR(I101="PV-304",I101="PV-305",I101="PV-306"),L101="Spiral Curve"),J101,"")) ->  | U101: =IF(AND(OR(I101="PV-301",I101="PV-302"),F101>2.8),J101,IF(AND(OR(I101="PV-304",I101="PV-305",I101="PV-306"),F101>=3.6),J101,"")) ->  | V101: =IF(AND(OR(I101="PV-301",I101="PV-302"),F101<=2.8),J101,IF(AND(OR(I101="PV-304",I101="PV-305",I101="PV-306"),AND(F101>2.8,F101<3.6)),J101,"")) ->  | W101: =IF(AND(OR(I101="PV-304",I101="PV-305",I101="PV-306"),F101<=2.8),J101,"") ->  | X101: =IF(AND(OR(I101="PV-301",I101="PV-302",I101="PV-303"),F101>=M101),R101-(G101/F101)*(F101-M101),IF(AND(OR(I101="PV-304",I101="PV-305",I101="PV-306"),F101>=M101),T101-(G101/F101)*(F101-M101),"")) ->  | Y101: =IF(AND(OR(I101="PV-301",I101="PV-302",I101="PV-303"),M101+F101>=8),R101-(G101/F101)*(F101-(8-M101)),IF(AND(OR(I101="PV-304",I101="PV-305",I101="PV-306"),M101+F101>=8),T101-(G101/F101)*(F101-(8-M101)),"")) ->  | Z101: =IF(AND(OR(I101="PV-301",I101="PV-302",I101="PV-303"),F101>=7),R101-(F101-7)*(G101/F101),"") -> 
O102: =IF(OR(I101="PV-301",I101="PV-302"),P102+H101,IF(OR(I101="PV-304",I101="PV-305",I101="PV-306"),Q102+H101,IF(AND(I101="PV-303",N101="A"),P102+H101,IF(AND(I101="PV-303",N101="B"),R102+(G101-H101),"")))) ->  | P102: =IF(OR(I101="PV-301",I101="PV-302"),R102+G101,IF(OR(I101="PV-304",I101="PV-305",I101="PV-306"),O102-H101/5,IF(AND(I101="PV-303",N101="A"),R102+G101,""))) ->  | Q102: =IF(OR(I101="PV-301",I101="PV-302"),P102-H101,IF(OR(I101="PV-304",I101="PV-305",I101="PV-306"),T102+G101,IF(I101="PV-303",K101,""))) ->  | R102: =IF(AND(OR(I101="PV-301",I101="PV-302"),L101="Tangent to Curve"),K101-(G101*0.3),IF(AND(OR(I101="PV-301",I101="PV-302"),L101="Spiral Curve"),K101,IF(AND(OR(I101="PV-304",I101="PV-305",I101="PV-306"),F101>=2),S102+(H101/5),IF(I101="PV-303",K101-(G101*0.3),"")))) ->  | S102: =IF(AND(OR(I101="PV-304",I101="PV-305",I101="PV-306"),F101>=2.5),Q102-H101,"") ->  | T102: =IF(AND(OR(I101="PV-304",I101="PV-305",I101="PV-306"),L101="Tangent to Curve"),K101-(G101*0.3),IF(AND(OR(I101="PV-304",I101="PV-305",I101="PV-306"),L101="Spiral Curve"),K101,"")) ->  | U102: =IF(AND(OR(I101="PV-301",I101="PV-302"),F101>2.8),K101,IF(AND(OR(I101="PV-304",I101="PV-305",I101="PV-306"),F101>=3.6),K101,"")) ->  | V102: =IF(AND(OR(I101="PV-301",I101="PV-302"),F101<=2.8),K101,IF(AND(OR(I101="PV-304",I101="PV-305",I101="PV-306"),AND(F101>2.8,F101<3.6)),K101,"")) ->  | W102: =IF(AND(OR(I101="PV-304",I101="PV-305",I101="PV-306"),F101<=2.8),K101,"") ->  | X102: =IF(AND(OR(I101="PV-301",I101="PV-302",I101="PV-303"),F101>=M101),R102+(G101/F101)*(F101-M101),IF(AND(OR(I101="PV-304",I101="PV-305",I101="PV-306"),F101>=M101),T102+(G101/F101)*(F101-M101),"")) ->  | Y102: =IF(AND(OR(I101="PV-301",I101="PV-302",I101="PV-303"),M101+F101>=8),R102+(G101/F101)*(F101-(8-M101)),IF(AND(OR(I101="PV-304",I101="PV-305",I101="PV-306"),M101+F101>=8),T102+(G101/F101)*(F101-(8-M101)),"")) ->  | Z102: =IF(AND(OR(I101="PV-301",I101="PV-302",I101="PV-303"),F101>=7),R102+(F101-7)*(G101/F101),"") -> 
O103: =IF(OR(I103="PV-301",I103="PV-302"),P103-H103,IF(OR(I103="PV-304",I103="PV-305",I103="PV-306"),Q103-H103,IF(AND(I103="PV-303",N103="A"),P103-H103,IF(AND(I103="PV-303",N103="B"),R103-(G103-H103),"")))) ->  | P103: =IF(OR(I103="PV-301",I103="PV-302"),R103-G103,IF(OR(I103="PV-304",I103="PV-305",I103="PV-306"),O103+H103/5,IF(AND(I103="PV-303",N103="A"),R103-G103,""))) ->  | Q103: =IF(OR(I103="PV-301",I103="PV-302"),P103+H103,IF(OR(I103="PV-304",I103="PV-305",I103="PV-306"),T103-G103,IF(I103="PV-303",J103,""))) ->  | R103: =IF(AND(OR(I103="PV-301",I103="PV-302"),L103="Tangent to Curve"),J103+(G103*0.3),IF(AND(OR(I103="PV-301",I103="PV-302"),L103="Spiral Curve"),J103,IF(AND(OR(I103="PV-304",I103="PV-305",I103="PV-306"),F103>=2),S103-(H103/5),IF(I103="PV-303",J103+(G103*0.3),"")))) ->  | S103: =IF(AND(OR(I103="PV-304",I103="PV-305",I103="PV-306"),F103>=2.5),Q103+H103,"") ->  | T103: =IF(AND(OR(I103="PV-304",I103="PV-305",I103="PV-306"),L103="Tangent to Curve"),J103+(G103*0.3),IF(AND(OR(I103="PV-304",I103="PV-305",I103="PV-306"),L103="Spiral Curve"),J103,"")) ->  | U103: =IF(AND(OR(I103="PV-301",I103="PV-302"),F103>2.8),J103,IF(AND(OR(I103="PV-304",I103="PV-305",I103="PV-306"),F103>=3.6),J103,"")) ->  | V103: =IF(AND(OR(I103="PV-301",I103="PV-302"),F103<=2.8),J103,IF(AND(OR(I103="PV-304",I103="PV-305",I103="PV-306"),AND(F103>2.8,F103<3.6)),J103,"")) ->  | W103: =IF(AND(OR(I103="PV-304",I103="PV-305",I103="PV-306"),F103<=2.8),J103,"") ->  | X103: =IF(AND(OR(I103="PV-301",I103="PV-302",I103="PV-303"),F103>=M103),R103-(G103/F103)*(F103-M103),IF(AND(OR(I103="PV-304",I103="PV-305",I103="PV-306"),F103>=M103),T103-(G103/F103)*(F103-M103),"")) ->  | Y103: =IF(AND(OR(I103="PV-301",I103="PV-302",I103="PV-303"),M103+F103>=8),R103-(G103/F103)*(F103-(8-M103)),IF(AND(OR(I103="PV-304",I103="PV-305",I103="PV-306"),M103+F103>=8),T103-(G103/F103)*(F103-(8-M103)),"")) ->  | Z103: =IF(AND(OR(I103="PV-301",I103="PV-302",I103="PV-303"),F103>=7),R103-(F103-7)*(G103/F103),"") -> 
O104: =IF(OR(I103="PV-301",I103="PV-302"),P104+H103,IF(OR(I103="PV-304",I103="PV-305",I103="PV-306"),Q104+H103,IF(AND(I103="PV-303",N103="A"),P104+H103,IF(AND(I103="PV-303",N103="B"),R104+(G103-H103),"")))) ->  | P104: =IF(OR(I103="PV-301",I103="PV-302"),R104+G103,IF(OR(I103="PV-304",I103="PV-305",I103="PV-306"),O104-H103/5,IF(AND(I103="PV-303",N103="A"),R104+G103,""))) ->  | Q104: =IF(OR(I103="PV-301",I103="PV-302"),P104-H103,IF(OR(I103="PV-304",I103="PV-305",I103="PV-306"),T104+G103,IF(I103="PV-303",K103,""))) ->  | R104: =IF(AND(OR(I103="PV-301",I103="PV-302"),L103="Tangent to Curve"),K103-(G103*0.3),IF(AND(OR(I103="PV-301",I103="PV-302"),L103="Spiral Curve"),K103,IF(AND(OR(I103="PV-304",I103="PV-305",I103="PV-306"),F103>=2),S104+(H103/5),IF(I103="PV-303",K103-(G103*0.3),"")))) ->  | S104: =IF(AND(OR(I103="PV-304",I103="PV-305",I103="PV-306"),F103>=2.5),Q104-H103,"") ->  | T104: =IF(AND(OR(I103="PV-304",I103="PV-305",I103="PV-306"),L103="Tangent to Curve"),K103-(G103*0.3),IF(AND(OR(I103="PV-304",I103="PV-305",I103="PV-306"),L103="Spiral Curve"),K103,"")) ->  | U104: =IF(AND(OR(I103="PV-301",I103="PV-302"),F103>2.8),K103,IF(AND(OR(I103="PV-304",I103="PV-305",I103="PV-306"),F103>=3.6),K103,"")) ->  | V104: =IF(AND(OR(I103="PV-301",I103="PV-302"),F103<=2.8),K103,IF(AND(OR(I103="PV-304",I103="PV-305",I103="PV-306"),AND(F103>2.8,F103<3.6)),K103,"")) ->  | W104: =IF(AND(OR(I103="PV-304",I103="PV-305",I103="PV-306"),F103<=2.8),K103,"") ->  | X104: =IF(AND(OR(I103="PV-301",I103="PV-302",I103="PV-303"),F103>=M103),R104+(G103/F103)*(F103-M103),IF(AND(OR(I103="PV-304",I103="PV-305",I103="PV-306"),F103>=M103),T104+(G103/F103)*(F103-M103),"")) ->  | Y104: =IF(AND(OR(I103="PV-301",I103="PV-302",I103="PV-303"),M103+F103>=8),R104+(G103/F103)*(F103-(8-M103)),IF(AND(OR(I103="PV-304",I103="PV-305",I103="PV-306"),M103+F103>=8),T104+(G103/F103)*(F103-(8-M103)),"")) ->  | Z104: =IF(AND(OR(I103="PV-301",I103="PV-302",I103="PV-303"),F103>=7),R104+(F103-7)*(G103/F103),"") -> 
O105: =IF(OR(I105="PV-301",I105="PV-302"),P105-H105,IF(OR(I105="PV-304",I105="PV-305",I105="PV-306"),Q105-H105,IF(AND(I105="PV-303",N105="A"),P105-H105,IF(AND(I105="PV-303",N105="B"),R105-(G105-H105),"")))) ->  | P105: =IF(OR(I105="PV-301",I105="PV-302"),R105-G105,IF(OR(I105="PV-304",I105="PV-305",I105="PV-306"),O105+H105/5,IF(AND(I105="PV-303",N105="A"),R105-G105,""))) ->  | Q105: =IF(OR(I105="PV-301",I105="PV-302"),P105+H105,IF(OR(I105="PV-304",I105="PV-305",I105="PV-306"),T105-G105,IF(I105="PV-303",J105,""))) ->  | R105: =IF(AND(OR(I105="PV-301",I105="PV-302"),L105="Tangent to Curve"),J105+(G105*0.3),IF(AND(OR(I105="PV-301",I105="PV-302"),L105="Spiral Curve"),J105,IF(AND(OR(I105="PV-304",I105="PV-305",I105="PV-306"),F105>=2),S105-(H105/5),IF(I105="PV-303",J105+(G105*0.3),"")))) ->  | S105: =IF(AND(OR(I105="PV-304",I105="PV-305",I105="PV-306"),F105>=2.5),Q105+H105,"") ->  | T105: =IF(AND(OR(I105="PV-304",I105="PV-305",I105="PV-306"),L105="Tangent to Curve"),J105+(G105*0.3),IF(AND(OR(I105="PV-304",I105="PV-305",I105="PV-306"),L105="Spiral Curve"),J105,"")) ->  | U105: =IF(AND(OR(I105="PV-301",I105="PV-302"),F105>2.8),J105,IF(AND(OR(I105="PV-304",I105="PV-305",I105="PV-306"),F105>=3.6),J105,"")) ->  | V105: =IF(AND(OR(I105="PV-301",I105="PV-302"),F105<=2.8),J105,IF(AND(OR(I105="PV-304",I105="PV-305",I105="PV-306"),AND(F105>2.8,F105<3.6)),J105,"")) ->  | W105: =IF(AND(OR(I105="PV-304",I105="PV-305",I105="PV-306"),F105<=2.8),J105,"") ->  | X105: =IF(AND(OR(I105="PV-301",I105="PV-302",I105="PV-303"),F105>=M105),R105-(G105/F105)*(F105-M105),IF(AND(OR(I105="PV-304",I105="PV-305",I105="PV-306"),F105>=M105),T105-(G105/F105)*(F105-M105),"")) ->  | Y105: =IF(AND(OR(I105="PV-301",I105="PV-302",I105="PV-303"),M105+F105>=8),R105-(G105/F105)*(F105-(8-M105)),IF(AND(OR(I105="PV-304",I105="PV-305",I105="PV-306"),M105+F105>=8),T105-(G105/F105)*(F105-(8-M105)),"")) ->  | Z105: =IF(AND(OR(I105="PV-301",I105="PV-302",I105="PV-303"),F105>=7),R105-(F105-7)*(G105/F105),"") -> 
O106: =IF(OR(I105="PV-301",I105="PV-302"),P106+H105,IF(OR(I105="PV-304",I105="PV-305",I105="PV-306"),Q106+H105,IF(AND(I105="PV-303",N105="A"),P106+H105,IF(AND(I105="PV-303",N105="B"),R106+(G105-H105),"")))) ->  | P106: =IF(OR(I105="PV-301",I105="PV-302"),R106+G105,IF(OR(I105="PV-304",I105="PV-305",I105="PV-306"),O106-H105/5,IF(AND(I105="PV-303",N105="A"),R106+G105,""))) ->  | Q106: =IF(OR(I105="PV-301",I105="PV-302"),P106-H105,IF(OR(I105="PV-304",I105="PV-305",I105="PV-306"),T106+G105,IF(I105="PV-303",K105,""))) ->  | R106: =IF(AND(OR(I105="PV-301",I105="PV-302"),L105="Tangent to Curve"),K105-(G105*0.3),IF(AND(OR(I105="PV-301",I105="PV-302"),L105="Spiral Curve"),K105,IF(AND(OR(I105="PV-304",I105="PV-305",I105="PV-306"),F105>=2),S106+(H105/5),IF(I105="PV-303",K105-(G105*0.3),"")))) ->  | S106: =IF(AND(OR(I105="PV-304",I105="PV-305",I105="PV-306"),F105>=2.5),Q106-H105,"") ->  | T106: =IF(AND(OR(I105="PV-304",I105="PV-305",I105="PV-306"),L105="Tangent to Curve"),K105-(G105*0.3),IF(AND(OR(I105="PV-304",I105="PV-305",I105="PV-306"),L105="Spiral Curve"),K105,"")) ->  | U106: =IF(AND(OR(I105="PV-301",I105="PV-302"),F105>2.8),K105,IF(AND(OR(I105="PV-304",I105="PV-305",I105="PV-306"),F105>=3.6),K105,"")) ->  | V106: =IF(AND(OR(I105="PV-301",I105="PV-302"),F105<=2.8),K105,IF(AND(OR(I105="PV-304",I105="PV-305",I105="PV-306"),AND(F105>2.8,F105<3.6)),K105,"")) ->  | W106: =IF(AND(OR(I105="PV-304",I105="PV-305",I105="PV-306"),F105<=2.8),K105,"") ->  | X106: =IF(AND(OR(I105="PV-301",I105="PV-302",I105="PV-303"),F105>=M105),R106+(G105/F105)*(F105-M105),IF(AND(OR(I105="PV-304",I105="PV-305",I105="PV-306"),F105>=M105),T106+(G105/F105)*(F105-M105),"")) ->  | Y106: =IF(AND(OR(I105="PV-301",I105="PV-302",I105="PV-303"),M105+F105>=8),R106+(G105/F105)*(F105-(8-M105)),IF(AND(OR(I105="PV-304",I105="PV-305",I105="PV-306"),M105+F105>=8),T106+(G105/F105)*(F105-(8-M105)),"")) ->  | Z106: =IF(AND(OR(I105="PV-301",I105="PV-302",I105="PV-303"),F105>=7),R106+(F105-7)*(G105/F105),"") -> 
O107: =IF(OR(I107="PV-301",I107="PV-302"),P107-H107,IF(OR(I107="PV-304",I107="PV-305",I107="PV-306"),Q107-H107,IF(AND(I107="PV-303",N107="A"),P107-H107,IF(AND(I107="PV-303",N107="B"),R107-(G107-H107),"")))) ->  | P107: =IF(OR(I107="PV-301",I107="PV-302"),R107-G107,IF(OR(I107="PV-304",I107="PV-305",I107="PV-306"),O107+H107/5,IF(AND(I107="PV-303",N107="A"),R107-G107,""))) ->  | Q107: =IF(OR(I107="PV-301",I107="PV-302"),P107+H107,IF(OR(I107="PV-304",I107="PV-305",I107="PV-306"),T107-G107,IF(I107="PV-303",J107,""))) ->  | R107: =IF(AND(OR(I107="PV-301",I107="PV-302"),L107="Tangent to Curve"),J107+(G107*0.3),IF(AND(OR(I107="PV-301",I107="PV-302"),L107="Spiral Curve"),J107,IF(AND(OR(I107="PV-304",I107="PV-305",I107="PV-306"),F107>=2),S107-(H107/5),IF(I107="PV-303",J107+(G107*0.3),"")))) ->  | S107: =IF(AND(OR(I107="PV-304",I107="PV-305",I107="PV-306"),F107>=2.5),Q107+H107,"") ->  | T107: =IF(AND(OR(I107="PV-304",I107="PV-305",I107="PV-306"),L107="Tangent to Curve"),J107+(G107*0.3),IF(AND(OR(I107="PV-304",I107="PV-305",I107="PV-306"),L107="Spiral Curve"),J107,"")) ->  | U107: =IF(AND(OR(I107="PV-301",I107="PV-302"),F107>2.8),J107,IF(AND(OR(I107="PV-304",I107="PV-305",I107="PV-306"),F107>=3.6),J107,"")) ->  | V107: =IF(AND(OR(I107="PV-301",I107="PV-302"),F107<=2.8),J107,IF(AND(OR(I107="PV-304",I107="PV-305",I107="PV-306"),AND(F107>2.8,F107<3.6)),J107,"")) ->  | W107: =IF(AND(OR(I107="PV-304",I107="PV-305",I107="PV-306"),F107<=2.8),J107,"") ->  | X107: =IF(AND(OR(I107="PV-301",I107="PV-302",I107="PV-303"),F107>=M107),R107-(G107/F107)*(F107-M107),IF(AND(OR(I107="PV-304",I107="PV-305",I107="PV-306"),F107>=M107),T107-(G107/F107)*(F107-M107),"")) ->  | Y107: =IF(AND(OR(I107="PV-301",I107="PV-302",I107="PV-303"),M107+F107>=8),R107-(G107/F107)*(F107-(8-M107)),IF(AND(OR(I107="PV-304",I107="PV-305",I107="PV-306"),M107+F107>=8),T107-(G107/F107)*(F107-(8-M107)),"")) ->  | Z107: =IF(AND(OR(I107="PV-301",I107="PV-302",I107="PV-303"),F107>=7),R107-(F107-7)*(G107/F107),"") -> 
O108: =IF(OR(I107="PV-301",I107="PV-302"),P108+H107,IF(OR(I107="PV-304",I107="PV-305",I107="PV-306"),Q108+H107,IF(AND(I107="PV-303",N107="A"),P108+H107,IF(AND(I107="PV-303",N107="B"),R108+(G107-H107),"")))) ->  | P108: =IF(OR(I107="PV-301",I107="PV-302"),R108+G107,IF(OR(I107="PV-304",I107="PV-305",I107="PV-306"),O108-H107/5,IF(AND(I107="PV-303",N107="A"),R108+G107,""))) ->  | Q108: =IF(OR(I107="PV-301",I107="PV-302"),P108-H107,IF(OR(I107="PV-304",I107="PV-305",I107="PV-306"),T108+G107,IF(I107="PV-303",K107,""))) ->  | R108: =IF(AND(OR(I107="PV-301",I107="PV-302"),L107="Tangent to Curve"),K107-(G107*0.3),IF(AND(OR(I107="PV-301",I107="PV-302"),L107="Spiral Curve"),K107,IF(AND(OR(I107="PV-304",I107="PV-305",I107="PV-306"),F107>=2),S108+(H107/5),IF(I107="PV-303",K107-(G107*0.3),"")))) ->  | S108: =IF(AND(OR(I107="PV-304",I107="PV-305",I107="PV-306"),F107>=2.5),Q108-H107,"") ->  | T108: =IF(AND(OR(I107="PV-304",I107="PV-305",I107="PV-306"),L107="Tangent to Curve"),K107-(G107*0.3),IF(AND(OR(I107="PV-304",I107="PV-305",I107="PV-306"),L107="Spiral Curve"),K107,"")) ->  | U108: =IF(AND(OR(I107="PV-301",I107="PV-302"),F107>2.8),K107,IF(AND(OR(I107="PV-304",I107="PV-305",I107="PV-306"),F107>=3.6),K107,"")) ->  | V108: =IF(AND(OR(I107="PV-301",I107="PV-302"),F107<=2.8),K107,IF(AND(OR(I107="PV-304",I107="PV-305",I107="PV-306"),AND(F107>2.8,F107<3.6)),K107,"")) ->  | W108: =IF(AND(OR(I107="PV-304",I107="PV-305",I107="PV-306"),F107<=2.8),K107,"") ->  | X108: =IF(AND(OR(I107="PV-301",I107="PV-302",I107="PV-303"),F107>=M107),R108+(G107/F107)*(F107-M107),IF(AND(OR(I107="PV-304",I107="PV-305",I107="PV-306"),F107>=M107),T108+(G107/F107)*(F107-M107),"")) ->  | Y108: =IF(AND(OR(I107="PV-301",I107="PV-302",I107="PV-303"),M107+F107>=8),R108+(G107/F107)*(F107-(8-M107)),IF(AND(OR(I107="PV-304",I107="PV-305",I107="PV-306"),M107+F107>=8),T108+(G107/F107)*(F107-(8-M107)),"")) ->  | Z108: =IF(AND(OR(I107="PV-301",I107="PV-302",I107="PV-303"),F107>=7),R108+(F107-7)*(G107/F107),"") -> 
O109: =IF(OR(I109="PV-301",I109="PV-302"),P109-H109,IF(OR(I109="PV-304",I109="PV-305",I109="PV-306"),Q109-H109,IF(AND(I109="PV-303",N109="A"),P109-H109,IF(AND(I109="PV-303",N109="B"),R109-(G109-H109),"")))) ->  | P109: =IF(OR(I109="PV-301",I109="PV-302"),R109-G109,IF(OR(I109="PV-304",I109="PV-305",I109="PV-306"),O109+H109/5,IF(AND(I109="PV-303",N109="A"),R109-G109,""))) ->  | Q109: =IF(OR(I109="PV-301",I109="PV-302"),P109+H109,IF(OR(I109="PV-304",I109="PV-305",I109="PV-306"),T109-G109,IF(I109="PV-303",J109,""))) ->  | R109: =IF(AND(OR(I109="PV-301",I109="PV-302"),L109="Tangent to Curve"),J109+(G109*0.3),IF(AND(OR(I109="PV-301",I109="PV-302"),L109="Spiral Curve"),J109,IF(AND(OR(I109="PV-304",I109="PV-305",I109="PV-306"),F109>=2),S109-(H109/5),IF(I109="PV-303",J109+(G109*0.3),"")))) ->  | S109: =IF(AND(OR(I109="PV-304",I109="PV-305",I109="PV-306"),F109>=2.5),Q109+H109,"") ->  | T109: =IF(AND(OR(I109="PV-304",I109="PV-305",I109="PV-306"),L109="Tangent to Curve"),J109+(G109*0.3),IF(AND(OR(I109="PV-304",I109="PV-305",I109="PV-306"),L109="Spiral Curve"),J109,"")) ->  | U109: =IF(AND(OR(I109="PV-301",I109="PV-302"),F109>2.8),J109,IF(AND(OR(I109="PV-304",I109="PV-305",I109="PV-306"),F109>=3.6),J109,"")) ->  | V109: =IF(AND(OR(I109="PV-301",I109="PV-302"),F109<=2.8),J109,IF(AND(OR(I109="PV-304",I109="PV-305",I109="PV-306"),AND(F109>2.8,F109<3.6)),J109,"")) ->  | W109: =IF(AND(OR(I109="PV-304",I109="PV-305",I109="PV-306"),F109<=2.8),J109,"") ->  | X109: =IF(AND(OR(I109="PV-301",I109="PV-302",I109="PV-303"),F109>=M109),R109-(G109/F109)*(F109-M109),IF(AND(OR(I109="PV-304",I109="PV-305",I109="PV-306"),F109>=M109),T109-(G109/F109)*(F109-M109),"")) ->  | Y109: =IF(AND(OR(I109="PV-301",I109="PV-302",I109="PV-303"),M109+F109>=8),R109-(G109/F109)*(F109-(8-M109)),IF(AND(OR(I109="PV-304",I109="PV-305",I109="PV-306"),M109+F109>=8),T109-(G109/F109)*(F109-(8-M109)),"")) ->  | Z109: =IF(AND(OR(I109="PV-301",I109="PV-302",I109="PV-303"),F109>=7),R109-(F109-7)*(G109/F109),"") -> 
O110: =IF(OR(I109="PV-301",I109="PV-302"),P110+H109,IF(OR(I109="PV-304",I109="PV-305",I109="PV-306"),Q110+H109,IF(AND(I109="PV-303",N109="A"),P110+H109,IF(AND(I109="PV-303",N109="B"),R110+(G109-H109),"")))) ->  | P110: =IF(OR(I109="PV-301",I109="PV-302"),R110+G109,IF(OR(I109="PV-304",I109="PV-305",I109="PV-306"),O110-H109/5,IF(AND(I109="PV-303",N109="A"),R110+G109,""))) ->  | Q110: =IF(OR(I109="PV-301",I109="PV-302"),P110-H109,IF(OR(I109="PV-304",I109="PV-305",I109="PV-306"),T110+G109,IF(I109="PV-303",K109,""))) ->  | R110: =IF(AND(OR(I109="PV-301",I109="PV-302"),L109="Tangent to Curve"),K109-(G109*0.3),IF(AND(OR(I109="PV-301",I109="PV-302"),L109="Spiral Curve"),K109,IF(AND(OR(I109="PV-304",I109="PV-305",I109="PV-306"),F109>=2),S110+(H109/5),IF(I109="PV-303",K109-(G109*0.3),"")))) ->  | S110: =IF(AND(OR(I109="PV-304",I109="PV-305",I109="PV-306"),F109>=2.5),Q110-H109,"") ->  | T110: =IF(AND(OR(I109="PV-304",I109="PV-305",I109="PV-306"),L109="Tangent to Curve"),K109-(G109*0.3),IF(AND(OR(I109="PV-304",I109="PV-305",I109="PV-306"),L109="Spiral Curve"),K109,"")) ->  | U110: =IF(AND(OR(I109="PV-301",I109="PV-302"),F109>2.8),K109,IF(AND(OR(I109="PV-304",I109="PV-305",I109="PV-306"),F109>=3.6),K109,"")) ->  | V110: =IF(AND(OR(I109="PV-301",I109="PV-302"),F109<=2.8),K109,IF(AND(OR(I109="PV-304",I109="PV-305",I109="PV-306"),AND(F109>2.8,F109<3.6)),K109,"")) ->  | W110: =IF(AND(OR(I109="PV-304",I109="PV-305",I109="PV-306"),F109<=2.8),K109,"") ->  | X110: =IF(AND(OR(I109="PV-301",I109="PV-302",I109="PV-303"),F109>=M109),R110+(G109/F109)*(F109-M109),IF(AND(OR(I109="PV-304",I109="PV-305",I109="PV-306"),F109>=M109),T110+(G109/F109)*(F109-M109),"")) ->  | Y110: =IF(AND(OR(I109="PV-301",I109="PV-302",I109="PV-303"),M109+F109>=8),R110+(G109/F109)*(F109-(8-M109)),IF(AND(OR(I109="PV-304",I109="PV-305",I109="PV-306"),M109+F109>=8),T110+(G109/F109)*(F109-(8-M109)),"")) ->  | Z110: =IF(AND(OR(I109="PV-301",I109="PV-302",I109="PV-303"),F109>=7),R110+(F109-7)*(G109/F109),"") -> 
O111: =IF(OR(I111="PV-301",I111="PV-302"),P111-H111,IF(OR(I111="PV-304",I111="PV-305",I111="PV-306"),Q111-H111,IF(AND(I111="PV-303",N111="A"),P111-H111,IF(AND(I111="PV-303",N111="B"),R111-(G111-H111),"")))) ->  | P111: =IF(OR(I111="PV-301",I111="PV-302"),R111-G111,IF(OR(I111="PV-304",I111="PV-305",I111="PV-306"),O111+H111/5,IF(AND(I111="PV-303",N111="A"),R111-G111,""))) ->  | Q111: =IF(OR(I111="PV-301",I111="PV-302"),P111+H111,IF(OR(I111="PV-304",I111="PV-305",I111="PV-306"),T111-G111,IF(I111="PV-303",J111,""))) ->  | R111: =IF(AND(OR(I111="PV-301",I111="PV-302"),L111="Tangent to Curve"),J111+(G111*0.3),IF(AND(OR(I111="PV-301",I111="PV-302"),L111="Spiral Curve"),J111,IF(AND(OR(I111="PV-304",I111="PV-305",I111="PV-306"),F111>=2),S111-(H111/5),IF(I111="PV-303",J111+(G111*0.3),"")))) ->  | S111: =IF(AND(OR(I111="PV-304",I111="PV-305",I111="PV-306"),F111>=2.5),Q111+H111,"") ->  | T111: =IF(AND(OR(I111="PV-304",I111="PV-305",I111="PV-306"),L111="Tangent to Curve"),J111+(G111*0.3),IF(AND(OR(I111="PV-304",I111="PV-305",I111="PV-306"),L111="Spiral Curve"),J111,"")) ->  | U111: =IF(AND(OR(I111="PV-301",I111="PV-302"),F111>2.8),J111,IF(AND(OR(I111="PV-304",I111="PV-305",I111="PV-306"),F111>=3.6),J111,"")) ->  | V111: =IF(AND(OR(I111="PV-301",I111="PV-302"),F111<=2.8),J111,IF(AND(OR(I111="PV-304",I111="PV-305",I111="PV-306"),AND(F111>2.8,F111<3.6)),J111,"")) ->  | W111: =IF(AND(OR(I111="PV-304",I111="PV-305",I111="PV-306"),F111<=2.8),J111,"") ->  | X111: =IF(AND(OR(I111="PV-301",I111="PV-302",I111="PV-303"),F111>=M111),R111-(G111/F111)*(F111-M111),IF(AND(OR(I111="PV-304",I111="PV-305",I111="PV-306"),F111>=M111),T111-(G111/F111)*(F111-M111),"")) ->  | Y111: =IF(AND(OR(I111="PV-301",I111="PV-302",I111="PV-303"),M111+F111>=8),R111-(G111/F111)*(F111-(8-M111)),IF(AND(OR(I111="PV-304",I111="PV-305",I111="PV-306"),M111+F111>=8),T111-(G111/F111)*(F111-(8-M111)),"")) ->  | Z111: =IF(AND(OR(I111="PV-301",I111="PV-302",I111="PV-303"),F111>=7),R111-(F111-7)*(G111/F111),"") -> 
O112: =IF(OR(I111="PV-301",I111="PV-302"),P112+H111,IF(OR(I111="PV-304",I111="PV-305",I111="PV-306"),Q112+H111,IF(AND(I111="PV-303",N111="A"),P112+H111,IF(AND(I111="PV-303",N111="B"),R112+(G111-H111),"")))) ->  | P112: =IF(OR(I111="PV-301",I111="PV-302"),R112+G111,IF(OR(I111="PV-304",I111="PV-305",I111="PV-306"),O112-H111/5,IF(AND(I111="PV-303",N111="A"),R112+G111,""))) ->  | Q112: =IF(OR(I111="PV-301",I111="PV-302"),P112-H111,IF(OR(I111="PV-304",I111="PV-305",I111="PV-306"),T112+G111,IF(I111="PV-303",K111,""))) ->  | R112: =IF(AND(OR(I111="PV-301",I111="PV-302"),L111="Tangent to Curve"),K111-(G111*0.3),IF(AND(OR(I111="PV-301",I111="PV-302"),L111="Spiral Curve"),K111,IF(AND(OR(I111="PV-304",I111="PV-305",I111="PV-306"),F111>=2),S112+(H111/5),IF(I111="PV-303",K111-(G111*0.3),"")))) ->  | S112: =IF(AND(OR(I111="PV-304",I111="PV-305",I111="PV-306"),F111>=2.5),Q112-H111,"") ->  | T112: =IF(AND(OR(I111="PV-304",I111="PV-305",I111="PV-306"),L111="Tangent to Curve"),K111-(G111*0.3),IF(AND(OR(I111="PV-304",I111="PV-305",I111="PV-306"),L111="Spiral Curve"),K111,"")) ->  | U112: =IF(AND(OR(I111="PV-301",I111="PV-302"),F111>2.8),K111,IF(AND(OR(I111="PV-304",I111="PV-305",I111="PV-306"),F111>=3.6),K111,"")) ->  | V112: =IF(AND(OR(I111="PV-301",I111="PV-302"),F111<=2.8),K111,IF(AND(OR(I111="PV-304",I111="PV-305",I111="PV-306"),AND(F111>2.8,F111<3.6)),K111,"")) ->  | W112: =IF(AND(OR(I111="PV-304",I111="PV-305",I111="PV-306"),F111<=2.8),K111,"") ->  | X112: =IF(AND(OR(I111="PV-301",I111="PV-302",I111="PV-303"),F111>=M111),R112+(G111/F111)*(F111-M111),IF(AND(OR(I111="PV-304",I111="PV-305",I111="PV-306"),F111>=M111),T112+(G111/F111)*(F111-M111),"")) ->  | Y112: =IF(AND(OR(I111="PV-301",I111="PV-302",I111="PV-303"),M111+F111>=8),R112+(G111/F111)*(F111-(8-M111)),IF(AND(OR(I111="PV-304",I111="PV-305",I111="PV-306"),M111+F111>=8),T112+(G111/F111)*(F111-(8-M111)),"")) ->  | Z112: =IF(AND(OR(I111="PV-301",I111="PV-302",I111="PV-303"),F111>=7),R112+(F111-7)*(G111/F111),"") -> 
O113: =IF(OR(I113="PV-301",I113="PV-302"),P113-H113,IF(OR(I113="PV-304",I113="PV-305",I113="PV-306"),Q113-H113,IF(AND(I113="PV-303",N113="A"),P113-H113,IF(AND(I113="PV-303",N113="B"),R113-(G113-H113),"")))) ->  | P113: =IF(OR(I113="PV-301",I113="PV-302"),R113-G113,IF(OR(I113="PV-304",I113="PV-305",I113="PV-306"),O113+H113/5,IF(AND(I113="PV-303",N113="A"),R113-G113,""))) ->  | Q113: =IF(OR(I113="PV-301",I113="PV-302"),P113+H113,IF(OR(I113="PV-304",I113="PV-305",I113="PV-306"),T113-G113,IF(I113="PV-303",J113,""))) ->  | R113: =IF(AND(OR(I113="PV-301",I113="PV-302"),L113="Tangent to Curve"),J113+(G113*0.3),IF(AND(OR(I113="PV-301",I113="PV-302"),L113="Spiral Curve"),J113,IF(AND(OR(I113="PV-304",I113="PV-305",I113="PV-306"),F113>=2),S113-(H113/5),IF(I113="PV-303",J113+(G113*0.3),"")))) ->  | S113: =IF(AND(OR(I113="PV-304",I113="PV-305",I113="PV-306"),F113>=2.5),Q113+H113,"") ->  | T113: =IF(AND(OR(I113="PV-304",I113="PV-305",I113="PV-306"),L113="Tangent to Curve"),J113+(G113*0.3),IF(AND(OR(I113="PV-304",I113="PV-305",I113="PV-306"),L113="Spiral Curve"),J113,"")) ->  | U113: =IF(AND(OR(I113="PV-301",I113="PV-302"),F113>2.8),J113,IF(AND(OR(I113="PV-304",I113="PV-305",I113="PV-306"),F113>=3.6),J113,"")) ->  | V113: =IF(AND(OR(I113="PV-301",I113="PV-302"),F113<=2.8),J113,IF(AND(OR(I113="PV-304",I113="PV-305",I113="PV-306"),AND(F113>2.8,F113<3.6)),J113,"")) ->  | W113: =IF(AND(OR(I113="PV-304",I113="PV-305",I113="PV-306"),F113<=2.8),J113,"") ->  | X113: =IF(AND(OR(I113="PV-301",I113="PV-302",I113="PV-303"),F113>=M113),R113-(G113/F113)*(F113-M113),IF(AND(OR(I113="PV-304",I113="PV-305",I113="PV-306"),F113>=M113),T113-(G113/F113)*(F113-M113),"")) ->  | Y113: =IF(AND(OR(I113="PV-301",I113="PV-302",I113="PV-303"),M113+F113>=8),R113-(G113/F113)*(F113-(8-M113)),IF(AND(OR(I113="PV-304",I113="PV-305",I113="PV-306"),M113+F113>=8),T113-(G113/F113)*(F113-(8-M113)),"")) ->  | Z113: =IF(AND(OR(I113="PV-301",I113="PV-302",I113="PV-303"),F113>=7),R113-(F113-7)*(G113/F113),"") -> 
O114: =IF(OR(I113="PV-301",I113="PV-302"),P114+H113,IF(OR(I113="PV-304",I113="PV-305",I113="PV-306"),Q114+H113,IF(AND(I113="PV-303",N113="A"),P114+H113,IF(AND(I113="PV-303",N113="B"),R114+(G113-H113),"")))) ->  | P114: =IF(OR(I113="PV-301",I113="PV-302"),R114+G113,IF(OR(I113="PV-304",I113="PV-305",I113="PV-306"),O114-H113/5,IF(AND(I113="PV-303",N113="A"),R114+G113,""))) ->  | Q114: =IF(OR(I113="PV-301",I113="PV-302"),P114-H113,IF(OR(I113="PV-304",I113="PV-305",I113="PV-306"),T114+G113,IF(I113="PV-303",K113,""))) ->  | R114: =IF(AND(OR(I113="PV-301",I113="PV-302"),L113="Tangent to Curve"),K113-(G113*0.3),IF(AND(OR(I113="PV-301",I113="PV-302"),L113="Spiral Curve"),K113,IF(AND(OR(I113="PV-304",I113="PV-305",I113="PV-306"),F113>=2),S114+(H113/5),IF(I113="PV-303",K113-(G113*0.3),"")))) ->  | S114: =IF(AND(OR(I113="PV-304",I113="PV-305",I113="PV-306"),F113>=2.5),Q114-H113,"") ->  | T114: =IF(AND(OR(I113="PV-304",I113="PV-305",I113="PV-306"),L113="Tangent to Curve"),K113-(G113*0.3),IF(AND(OR(I113="PV-304",I113="PV-305",I113="PV-306"),L113="Spiral Curve"),K113,"")) ->  | U114: =IF(AND(OR(I113="PV-301",I113="PV-302"),F113>2.8),K113,IF(AND(OR(I113="PV-304",I113="PV-305",I113="PV-306"),F113>=3.6),K113,"")) ->  | V114: =IF(AND(OR(I113="PV-301",I113="PV-302"),F113<=2.8),K113,IF(AND(OR(I113="PV-304",I113="PV-305",I113="PV-306"),AND(F113>2.8,F113<3.6)),K113,"")) ->  | W114: =IF(AND(OR(I113="PV-304",I113="PV-305",I113="PV-306"),F113<=2.8),K113,"") ->  | X114: =IF(AND(OR(I113="PV-301",I113="PV-302",I113="PV-303"),F113>=M113),R114+(G113/F113)*(F113-M113),IF(AND(OR(I113="PV-304",I113="PV-305",I113="PV-306"),F113>=M113),T114+(G113/F113)*(F113-M113),"")) ->  | Y114: =IF(AND(OR(I113="PV-301",I113="PV-302",I113="PV-303"),M113+F113>=8),R114+(G113/F113)*(F113-(8-M113)),IF(AND(OR(I113="PV-304",I113="PV-305",I113="PV-306"),M113+F113>=8),T114+(G113/F113)*(F113-(8-M113)),"")) ->  | Z114: =IF(AND(OR(I113="PV-301",I113="PV-302",I113="PV-303"),F113>=7),R114+(F113-7)*(G113/F113),"") -> 
O115: =IF(OR(I115="PV-301",I115="PV-302"),P115-H115,IF(OR(I115="PV-304",I115="PV-305",I115="PV-306"),Q115-H115,IF(AND(I115="PV-303",N115="A"),P115-H115,IF(AND(I115="PV-303",N115="B"),R115-(G115-H115),"")))) ->  | P115: =IF(OR(I115="PV-301",I115="PV-302"),R115-G115,IF(OR(I115="PV-304",I115="PV-305",I115="PV-306"),O115+H115/5,IF(AND(I115="PV-303",N115="A"),R115-G115,""))) ->  | Q115: =IF(OR(I115="PV-301",I115="PV-302"),P115+H115,IF(OR(I115="PV-304",I115="PV-305",I115="PV-306"),T115-G115,IF(I115="PV-303",J115,""))) ->  | R115: =IF(AND(OR(I115="PV-301",I115="PV-302"),L115="Tangent to Curve"),J115+(G115*0.3),IF(AND(OR(I115="PV-301",I115="PV-302"),L115="Spiral Curve"),J115,IF(AND(OR(I115="PV-304",I115="PV-305",I115="PV-306"),F115>=2),S115-(H115/5),IF(I115="PV-303",J115+(G115*0.3),"")))) ->  | S115: =IF(AND(OR(I115="PV-304",I115="PV-305",I115="PV-306"),F115>=2.5),Q115+H115,"") ->  | T115: =IF(AND(OR(I115="PV-304",I115="PV-305",I115="PV-306"),L115="Tangent to Curve"),J115+(G115*0.3),IF(AND(OR(I115="PV-304",I115="PV-305",I115="PV-306"),L115="Spiral Curve"),J115,"")) ->  | U115: =IF(AND(OR(I115="PV-301",I115="PV-302"),F115>2.8),J115,IF(AND(OR(I115="PV-304",I115="PV-305",I115="PV-306"),F115>=3.6),J115,"")) ->  | V115: =IF(AND(OR(I115="PV-301",I115="PV-302"),F115<=2.8),J115,IF(AND(OR(I115="PV-304",I115="PV-305",I115="PV-306"),AND(F115>2.8,F115<3.6)),J115,"")) ->  | W115: =IF(AND(OR(I115="PV-304",I115="PV-305",I115="PV-306"),F115<=2.8),J115,"") ->  | X115: =IF(AND(OR(I115="PV-301",I115="PV-302",I115="PV-303"),F115>=M115),R115-(G115/F115)*(F115-M115),IF(AND(OR(I115="PV-304",I115="PV-305",I115="PV-306"),F115>=M115),T115-(G115/F115)*(F115-M115),"")) ->  | Y115: =IF(AND(OR(I115="PV-301",I115="PV-302",I115="PV-303"),M115+F115>=8),R115-(G115/F115)*(F115-(8-M115)),IF(AND(OR(I115="PV-304",I115="PV-305",I115="PV-306"),M115+F115>=8),T115-(G115/F115)*(F115-(8-M115)),"")) ->  | Z115: =IF(AND(OR(I115="PV-301",I115="PV-302",I115="PV-303"),F115>=7),R115-(F115-7)*(G115/F115),"") -> 
O116: =IF(OR(I115="PV-301",I115="PV-302"),P116+H115,IF(OR(I115="PV-304",I115="PV-305",I115="PV-306"),Q116+H115,IF(AND(I115="PV-303",N115="A"),P116+H115,IF(AND(I115="PV-303",N115="B"),R116+(G115-H115),"")))) ->  | P116: =IF(OR(I115="PV-301",I115="PV-302"),R116+G115,IF(OR(I115="PV-304",I115="PV-305",I115="PV-306"),O116-H115/5,IF(AND(I115="PV-303",N115="A"),R116+G115,""))) ->  | Q116: =IF(OR(I115="PV-301",I115="PV-302"),P116-H115,IF(OR(I115="PV-304",I115="PV-305",I115="PV-306"),T116+G115,IF(I115="PV-303",K115,""))) ->  | R116: =IF(AND(OR(I115="PV-301",I115="PV-302"),L115="Tangent to Curve"),K115-(G115*0.3),IF(AND(OR(I115="PV-301",I115="PV-302"),L115="Spiral Curve"),K115,IF(AND(OR(I115="PV-304",I115="PV-305",I115="PV-306"),F115>=2),S116+(H115/5),IF(I115="PV-303",K115-(G115*0.3),"")))) ->  | S116: =IF(AND(OR(I115="PV-304",I115="PV-305",I115="PV-306"),F115>=2.5),Q116-H115,"") ->  | T116: =IF(AND(OR(I115="PV-304",I115="PV-305",I115="PV-306"),L115="Tangent to Curve"),K115-(G115*0.3),IF(AND(OR(I115="PV-304",I115="PV-305",I115="PV-306"),L115="Spiral Curve"),K115,"")) ->  | U116: =IF(AND(OR(I115="PV-301",I115="PV-302"),F115>2.8),K115,IF(AND(OR(I115="PV-304",I115="PV-305",I115="PV-306"),F115>=3.6),K115,"")) ->  | V116: =IF(AND(OR(I115="PV-301",I115="PV-302"),F115<=2.8),K115,IF(AND(OR(I115="PV-304",I115="PV-305",I115="PV-306"),AND(F115>2.8,F115<3.6)),K115,"")) ->  | W116: =IF(AND(OR(I115="PV-304",I115="PV-305",I115="PV-306"),F115<=2.8),K115,"") ->  | X116: =IF(AND(OR(I115="PV-301",I115="PV-302",I115="PV-303"),F115>=M115),R116+(G115/F115)*(F115-M115),IF(AND(OR(I115="PV-304",I115="PV-305",I115="PV-306"),F115>=M115),T116+(G115/F115)*(F115-M115),"")) ->  | Y116: =IF(AND(OR(I115="PV-301",I115="PV-302",I115="PV-303"),M115+F115>=8),R116+(G115/F115)*(F115-(8-M115)),IF(AND(OR(I115="PV-304",I115="PV-305",I115="PV-306"),M115+F115>=8),T116+(G115/F115)*(F115-(8-M115)),"")) ->  | Z116: =IF(AND(OR(I115="PV-301",I115="PV-302",I115="PV-303"),F115>=7),R116+(F115-7)*(G115/F115),"") -> 
O117: =IF(OR(I117="PV-301",I117="PV-302"),P117-H117,IF(OR(I117="PV-304",I117="PV-305",I117="PV-306"),Q117-H117,IF(AND(I117="PV-303",N117="A"),P117-H117,IF(AND(I117="PV-303",N117="B"),R117-(G117-H117),"")))) ->  | P117: =IF(OR(I117="PV-301",I117="PV-302"),R117-G117,IF(OR(I117="PV-304",I117="PV-305",I117="PV-306"),O117+H117/5,IF(AND(I117="PV-303",N117="A"),R117-G117,""))) ->  | Q117: =IF(OR(I117="PV-301",I117="PV-302"),P117+H117,IF(OR(I117="PV-304",I117="PV-305",I117="PV-306"),T117-G117,IF(I117="PV-303",J117,""))) ->  | R117: =IF(AND(OR(I117="PV-301",I117="PV-302"),L117="Tangent to Curve"),J117+(G117*0.3),IF(AND(OR(I117="PV-301",I117="PV-302"),L117="Spiral Curve"),J117,IF(AND(OR(I117="PV-304",I117="PV-305",I117="PV-306"),F117>=2),S117-(H117/5),IF(I117="PV-303",J117+(G117*0.3),"")))) ->  | S117: =IF(AND(OR(I117="PV-304",I117="PV-305",I117="PV-306"),F117>=2.5),Q117+H117,"") ->  | T117: =IF(AND(OR(I117="PV-304",I117="PV-305",I117="PV-306"),L117="Tangent to Curve"),J117+(G117*0.3),IF(AND(OR(I117="PV-304",I117="PV-305",I117="PV-306"),L117="Spiral Curve"),J117,"")) ->  | U117: =IF(AND(OR(I117="PV-301",I117="PV-302"),F117>2.8),J117,IF(AND(OR(I117="PV-304",I117="PV-305",I117="PV-306"),F117>=3.6),J117,"")) ->  | V117: =IF(AND(OR(I117="PV-301",I117="PV-302"),F117<=2.8),J117,IF(AND(OR(I117="PV-304",I117="PV-305",I117="PV-306"),AND(F117>2.8,F117<3.6)),J117,"")) ->  | W117: =IF(AND(OR(I117="PV-304",I117="PV-305",I117="PV-306"),F117<=2.8),J117,"") ->  | X117: =IF(AND(OR(I117="PV-301",I117="PV-302",I117="PV-303"),F117>=M117),R117-(G117/F117)*(F117-M117),IF(AND(OR(I117="PV-304",I117="PV-305",I117="PV-306"),F117>=M117),T117-(G117/F117)*(F117-M117),"")) ->  | Y117: =IF(AND(OR(I117="PV-301",I117="PV-302",I117="PV-303"),M117+F117>=8),R117-(G117/F117)*(F117-(8-M117)),IF(AND(OR(I117="PV-304",I117="PV-305",I117="PV-306"),M117+F117>=8),T117-(G117/F117)*(F117-(8-M117)),"")) ->  | Z117: =IF(AND(OR(I117="PV-301",I117="PV-302",I117="PV-303"),F117>=7),R117-(F117-7)*(G117/F117),"") -> 
O118: =IF(OR(I117="PV-301",I117="PV-302"),P118+H117,IF(OR(I117="PV-304",I117="PV-305",I117="PV-306"),Q118+H117,IF(AND(I117="PV-303",N117="A"),P118+H117,IF(AND(I117="PV-303",N117="B"),R118+(G117-H117),"")))) ->  | P118: =IF(OR(I117="PV-301",I117="PV-302"),R118+G117,IF(OR(I117="PV-304",I117="PV-305",I117="PV-306"),O118-H117/5,IF(AND(I117="PV-303",N117="A"),R118+G117,""))) ->  | Q118: =IF(OR(I117="PV-301",I117="PV-302"),P118-H117,IF(OR(I117="PV-304",I117="PV-305",I117="PV-306"),T118+G117,IF(I117="PV-303",K117,""))) ->  | R118: =IF(AND(OR(I117="PV-301",I117="PV-302"),L117="Tangent to Curve"),K117-(G117*0.3),IF(AND(OR(I117="PV-301",I117="PV-302"),L117="Spiral Curve"),K117,IF(AND(OR(I117="PV-304",I117="PV-305",I117="PV-306"),F117>=2),S118+(H117/5),IF(I117="PV-303",K117-(G117*0.3),"")))) ->  | S118: =IF(AND(OR(I117="PV-304",I117="PV-305",I117="PV-306"),F117>=2.5),Q118-H117,"") ->  | T118: =IF(AND(OR(I117="PV-304",I117="PV-305",I117="PV-306"),L117="Tangent to Curve"),K117-(G117*0.3),IF(AND(OR(I117="PV-304",I117="PV-305",I117="PV-306"),L117="Spiral Curve"),K117,"")) ->  | U118: =IF(AND(OR(I117="PV-301",I117="PV-302"),F117>2.8),K117,IF(AND(OR(I117="PV-304",I117="PV-305",I117="PV-306"),F117>=3.6),K117,"")) ->  | V118: =IF(AND(OR(I117="PV-301",I117="PV-302"),F117<=2.8),K117,IF(AND(OR(I117="PV-304",I117="PV-305",I117="PV-306"),AND(F117>2.8,F117<3.6)),K117,"")) ->  | W118: =IF(AND(OR(I117="PV-304",I117="PV-305",I117="PV-306"),F117<=2.8),K117,"") ->  | X118: =IF(AND(OR(I117="PV-301",I117="PV-302",I117="PV-303"),F117>=M117),R118+(G117/F117)*(F117-M117),IF(AND(OR(I117="PV-304",I117="PV-305",I117="PV-306"),F117>=M117),T118+(G117/F117)*(F117-M117),"")) ->  | Y118: =IF(AND(OR(I117="PV-301",I117="PV-302",I117="PV-303"),M117+F117>=8),R118+(G117/F117)*(F117-(8-M117)),IF(AND(OR(I117="PV-304",I117="PV-305",I117="PV-306"),M117+F117>=8),T118+(G117/F117)*(F117-(8-M117)),"")) ->  | Z118: =IF(AND(OR(I117="PV-301",I117="PV-302",I117="PV-303"),F117>=7),R118+(F117-7)*(G117/F117),"") -> 
O119: =IF(OR(I119="PV-301",I119="PV-302"),P119-H119,IF(OR(I119="PV-304",I119="PV-305",I119="PV-306"),Q119-H119,IF(AND(I119="PV-303",N119="A"),P119-H119,IF(AND(I119="PV-303",N119="B"),R119-(G119-H119),"")))) ->  | P119: =IF(OR(I119="PV-301",I119="PV-302"),R119-G119,IF(OR(I119="PV-304",I119="PV-305",I119="PV-306"),O119+H119/5,IF(AND(I119="PV-303",N119="A"),R119-G119,""))) ->  | Q119: =IF(OR(I119="PV-301",I119="PV-302"),P119+H119,IF(OR(I119="PV-304",I119="PV-305",I119="PV-306"),T119-G119,IF(I119="PV-303",J119,""))) ->  | R119: =IF(AND(OR(I119="PV-301",I119="PV-302"),L119="Tangent to Curve"),J119+(G119*0.3),IF(AND(OR(I119="PV-301",I119="PV-302"),L119="Spiral Curve"),J119,IF(AND(OR(I119="PV-304",I119="PV-305",I119="PV-306"),F119>=2),S119-(H119/5),IF(I119="PV-303",J119+(G119*0.3),"")))) ->  | S119: =IF(AND(OR(I119="PV-304",I119="PV-305",I119="PV-306"),F119>=2.5),Q119+H119,"") ->  | T119: =IF(AND(OR(I119="PV-304",I119="PV-305",I119="PV-306"),L119="Tangent to Curve"),J119+(G119*0.3),IF(AND(OR(I119="PV-304",I119="PV-305",I119="PV-306"),L119="Spiral Curve"),J119,"")) ->  | U119: =IF(AND(OR(I119="PV-301",I119="PV-302"),F119>2.8),J119,IF(AND(OR(I119="PV-304",I119="PV-305",I119="PV-306"),F119>=3.6),J119,"")) ->  | V119: =IF(AND(OR(I119="PV-301",I119="PV-302"),F119<=2.8),J119,IF(AND(OR(I119="PV-304",I119="PV-305",I119="PV-306"),AND(F119>2.8,F119<3.6)),J119,"")) ->  | W119: =IF(AND(OR(I119="PV-304",I119="PV-305",I119="PV-306"),F119<=2.8),J119,"") ->  | X119: =IF(AND(OR(I119="PV-301",I119="PV-302",I119="PV-303"),F119>=M119),R119-(G119/F119)*(F119-M119),IF(AND(OR(I119="PV-304",I119="PV-305",I119="PV-306"),F119>=M119),T119-(G119/F119)*(F119-M119),"")) ->  | Y119: =IF(AND(OR(I119="PV-301",I119="PV-302",I119="PV-303"),M119+F119>=8),R119-(G119/F119)*(F119-(8-M119)),IF(AND(OR(I119="PV-304",I119="PV-305",I119="PV-306"),M119+F119>=8),T119-(G119/F119)*(F119-(8-M119)),"")) ->  | Z119: =IF(AND(OR(I119="PV-301",I119="PV-302",I119="PV-303"),F119>=7),R119-(F119-7)*(G119/F119),"") -> 
O120: =IF(OR(I119="PV-301",I119="PV-302"),P120+H119,IF(OR(I119="PV-304",I119="PV-305",I119="PV-306"),Q120+H119,IF(AND(I119="PV-303",N119="A"),P120+H119,IF(AND(I119="PV-303",N119="B"),R120+(G119-H119),"")))) ->  | P120: =IF(OR(I119="PV-301",I119="PV-302"),R120+G119,IF(OR(I119="PV-304",I119="PV-305",I119="PV-306"),O120-H119/5,IF(AND(I119="PV-303",N119="A"),R120+G119,""))) ->  | Q120: =IF(OR(I119="PV-301",I119="PV-302"),P120-H119,IF(OR(I119="PV-304",I119="PV-305",I119="PV-306"),T120+G119,IF(I119="PV-303",K119,""))) ->  | R120: =IF(AND(OR(I119="PV-301",I119="PV-302"),L119="Tangent to Curve"),K119-(G119*0.3),IF(AND(OR(I119="PV-301",I119="PV-302"),L119="Spiral Curve"),K119,IF(AND(OR(I119="PV-304",I119="PV-305",I119="PV-306"),F119>=2),S120+(H119/5),IF(I119="PV-303",K119-(G119*0.3),"")))) ->  | S120: =IF(AND(OR(I119="PV-304",I119="PV-305",I119="PV-306"),F119>=2.5),Q120-H119,"") ->  | T120: =IF(AND(OR(I119="PV-304",I119="PV-305",I119="PV-306"),L119="Tangent to Curve"),K119-(G119*0.3),IF(AND(OR(I119="PV-304",I119="PV-305",I119="PV-306"),L119="Spiral Curve"),K119,"")) ->  | U120: =IF(AND(OR(I119="PV-301",I119="PV-302"),F119>2.8),K119,IF(AND(OR(I119="PV-304",I119="PV-305",I119="PV-306"),F119>=3.6),K119,"")) ->  | V120: =IF(AND(OR(I119="PV-301",I119="PV-302"),F119<=2.8),K119,IF(AND(OR(I119="PV-304",I119="PV-305",I119="PV-306"),AND(F119>2.8,F119<3.6)),K119,"")) ->  | W120: =IF(AND(OR(I119="PV-304",I119="PV-305",I119="PV-306"),F119<=2.8),K119,"") ->  | X120: =IF(AND(OR(I119="PV-301",I119="PV-302",I119="PV-303"),F119>=M119),R120+(G119/F119)*(F119-M119),IF(AND(OR(I119="PV-304",I119="PV-305",I119="PV-306"),F119>=M119),T120+(G119/F119)*(F119-M119),"")) ->  | Y120: =IF(AND(OR(I119="PV-301",I119="PV-302",I119="PV-303"),M119+F119>=8),R120+(G119/F119)*(F119-(8-M119)),IF(AND(OR(I119="PV-304",I119="PV-305",I119="PV-306"),M119+F119>=8),T120+(G119/F119)*(F119-(8-M119)),"")) ->  | Z120: =IF(AND(OR(I119="PV-301",I119="PV-302",I119="PV-303"),F119>=7),R120+(F119-7)*(G119/F119),"") -> 
O121: =IF(OR(I121="PV-301",I121="PV-302"),P121-H121,IF(OR(I121="PV-304",I121="PV-305",I121="PV-306"),Q121-H121,IF(AND(I121="PV-303",N121="A"),P121-H121,IF(AND(I121="PV-303",N121="B"),R121-(G121-H121),"")))) ->  | P121: =IF(OR(I121="PV-301",I121="PV-302"),R121-G121,IF(OR(I121="PV-304",I121="PV-305",I121="PV-306"),O121+H121/5,IF(AND(I121="PV-303",N121="A"),R121-G121,""))) ->  | Q121: =IF(OR(I121="PV-301",I121="PV-302"),P121+H121,IF(OR(I121="PV-304",I121="PV-305",I121="PV-306"),T121-G121,IF(I121="PV-303",J121,""))) ->  | R121: =IF(AND(OR(I121="PV-301",I121="PV-302"),L121="Tangent to Curve"),J121+(G121*0.3),IF(AND(OR(I121="PV-301",I121="PV-302"),L121="Spiral Curve"),J121,IF(AND(OR(I121="PV-304",I121="PV-305",I121="PV-306"),F121>=2),S121-(H121/5),IF(I121="PV-303",J121+(G121*0.3),"")))) ->  | S121: =IF(AND(OR(I121="PV-304",I121="PV-305",I121="PV-306"),F121>=2.5),Q121+H121,"") ->  | T121: =IF(AND(OR(I121="PV-304",I121="PV-305",I121="PV-306"),L121="Tangent to Curve"),J121+(G121*0.3),IF(AND(OR(I121="PV-304",I121="PV-305",I121="PV-306"),L121="Spiral Curve"),J121,"")) ->  | U121: =IF(AND(OR(I121="PV-301",I121="PV-302"),F121>2.8),J121,IF(AND(OR(I121="PV-304",I121="PV-305",I121="PV-306"),F121>=3.6),J121,"")) ->  | V121: =IF(AND(OR(I121="PV-301",I121="PV-302"),F121<=2.8),J121,IF(AND(OR(I121="PV-304",I121="PV-305",I121="PV-306"),AND(F121>2.8,F121<3.6)),J121,"")) ->  | W121: =IF(AND(OR(I121="PV-304",I121="PV-305",I121="PV-306"),F121<=2.8),J121,"") ->  | X121: =IF(AND(OR(I121="PV-301",I121="PV-302",I121="PV-303"),F121>=M121),R121-(G121/F121)*(F121-M121),IF(AND(OR(I121="PV-304",I121="PV-305",I121="PV-306"),F121>=M121),T121-(G121/F121)*(F121-M121),"")) ->  | Y121: =IF(AND(OR(I121="PV-301",I121="PV-302",I121="PV-303"),M121+F121>=8),R121-(G121/F121)*(F121-(8-M121)),IF(AND(OR(I121="PV-304",I121="PV-305",I121="PV-306"),M121+F121>=8),T121-(G121/F121)*(F121-(8-M121)),"")) ->  | Z121: =IF(AND(OR(I121="PV-301",I121="PV-302",I121="PV-303"),F121>=7),R121-(F121-7)*(G121/F121),"") -> 
O122: =IF(OR(I121="PV-301",I121="PV-302"),P122+H121,IF(OR(I121="PV-304",I121="PV-305",I121="PV-306"),Q122+H121,IF(AND(I121="PV-303",N121="A"),P122+H121,IF(AND(I121="PV-303",N121="B"),R122+(G121-H121),"")))) ->  | P122: =IF(OR(I121="PV-301",I121="PV-302"),R122+G121,IF(OR(I121="PV-304",I121="PV-305",I121="PV-306"),O122-H121/5,IF(AND(I121="PV-303",N121="A"),R122+G121,""))) ->  | Q122: =IF(OR(I121="PV-301",I121="PV-302"),P122-H121,IF(OR(I121="PV-304",I121="PV-305",I121="PV-306"),T122+G121,IF(I121="PV-303",K121,""))) ->  | R122: =IF(AND(OR(I121="PV-301",I121="PV-302"),L121="Tangent to Curve"),K121-(G121*0.3),IF(AND(OR(I121="PV-301",I121="PV-302"),L121="Spiral Curve"),K121,IF(AND(OR(I121="PV-304",I121="PV-305",I121="PV-306"),F121>=2),S122+(H121/5),IF(I121="PV-303",K121-(G121*0.3),"")))) ->  | S122: =IF(AND(OR(I121="PV-304",I121="PV-305",I121="PV-306"),F121>=2.5),Q122-H121,"") ->  | T122: =IF(AND(OR(I121="PV-304",I121="PV-305",I121="PV-306"),L121="Tangent to Curve"),K121-(G121*0.3),IF(AND(OR(I121="PV-304",I121="PV-305",I121="PV-306"),L121="Spiral Curve"),K121,"")) ->  | U122: =IF(AND(OR(I121="PV-301",I121="PV-302"),F121>2.8),K121,IF(AND(OR(I121="PV-304",I121="PV-305",I121="PV-306"),F121>=3.6),K121,"")) ->  | V122: =IF(AND(OR(I121="PV-301",I121="PV-302"),F121<=2.8),K121,IF(AND(OR(I121="PV-304",I121="PV-305",I121="PV-306"),AND(F121>2.8,F121<3.6)),K121,"")) ->  | W122: =IF(AND(OR(I121="PV-304",I121="PV-305",I121="PV-306"),F121<=2.8),K121,"") ->  | X122: =IF(AND(OR(I121="PV-301",I121="PV-302",I121="PV-303"),F121>=M121),R122+(G121/F121)*(F121-M121),IF(AND(OR(I121="PV-304",I121="PV-305",I121="PV-306"),F121>=M121),T122+(G121/F121)*(F121-M121),"")) ->  | Y122: =IF(AND(OR(I121="PV-301",I121="PV-302",I121="PV-303"),M121+F121>=8),R122+(G121/F121)*(F121-(8-M121)),IF(AND(OR(I121="PV-304",I121="PV-305",I121="PV-306"),M121+F121>=8),T122+(G121/F121)*(F121-(8-M121)),"")) ->  | Z122: =IF(AND(OR(I121="PV-301",I121="PV-302",I121="PV-303"),F121>=7),R122+(F121-7)*(G121/F121),"") -> 
O123: =IF(OR(I123="PV-301",I123="PV-302"),P123-H123,IF(OR(I123="PV-304",I123="PV-305",I123="PV-306"),Q123-H123,IF(AND(I123="PV-303",N123="A"),P123-H123,IF(AND(I123="PV-303",N123="B"),R123-(G123-H123),"")))) ->  | P123: =IF(OR(I123="PV-301",I123="PV-302"),R123-G123,IF(OR(I123="PV-304",I123="PV-305",I123="PV-306"),O123+H123/5,IF(AND(I123="PV-303",N123="A"),R123-G123,""))) ->  | Q123: =IF(OR(I123="PV-301",I123="PV-302"),P123+H123,IF(OR(I123="PV-304",I123="PV-305",I123="PV-306"),T123-G123,IF(I123="PV-303",J123,""))) ->  | R123: =IF(AND(OR(I123="PV-301",I123="PV-302"),L123="Tangent to Curve"),J123+(G123*0.3),IF(AND(OR(I123="PV-301",I123="PV-302"),L123="Spiral Curve"),J123,IF(AND(OR(I123="PV-304",I123="PV-305",I123="PV-306"),F123>=2),S123-(H123/5),IF(I123="PV-303",J123+(G123*0.3),"")))) ->  | S123: =IF(AND(OR(I123="PV-304",I123="PV-305",I123="PV-306"),F123>=2.5),Q123+H123,"") ->  | T123: =IF(AND(OR(I123="PV-304",I123="PV-305",I123="PV-306"),L123="Tangent to Curve"),J123+(G123*0.3),IF(AND(OR(I123="PV-304",I123="PV-305",I123="PV-306"),L123="Spiral Curve"),J123,"")) ->  | U123: =IF(AND(OR(I123="PV-301",I123="PV-302"),F123>2.8),J123,IF(AND(OR(I123="PV-304",I123="PV-305",I123="PV-306"),F123>=3.6),J123,"")) ->  | V123: =IF(AND(OR(I123="PV-301",I123="PV-302"),F123<=2.8),J123,IF(AND(OR(I123="PV-304",I123="PV-305",I123="PV-306"),AND(F123>2.8,F123<3.6)),J123,"")) ->  | W123: =IF(AND(OR(I123="PV-304",I123="PV-305",I123="PV-306"),F123<=2.8),J123,"") ->  | X123: =IF(AND(OR(I123="PV-301",I123="PV-302",I123="PV-303"),F123>=M123),R123-(G123/F123)*(F123-M123),IF(AND(OR(I123="PV-304",I123="PV-305",I123="PV-306"),F123>=M123),T123-(G123/F123)*(F123-M123),"")) ->  | Y123: =IF(AND(OR(I123="PV-301",I123="PV-302",I123="PV-303"),M123+F123>=8),R123-(G123/F123)*(F123-(8-M123)),IF(AND(OR(I123="PV-304",I123="PV-305",I123="PV-306"),M123+F123>=8),T123-(G123/F123)*(F123-(8-M123)),"")) ->  | Z123: =IF(AND(OR(I123="PV-301",I123="PV-302",I123="PV-303"),F123>=7),R123-(F123-7)*(G123/F123),"") -> 
O124: =IF(OR(I123="PV-301",I123="PV-302"),P124+H123,IF(OR(I123="PV-304",I123="PV-305",I123="PV-306"),Q124+H123,IF(AND(I123="PV-303",N123="A"),P124+H123,IF(AND(I123="PV-303",N123="B"),R124+(G123-H123),"")))) ->  | P124: =IF(OR(I123="PV-301",I123="PV-302"),R124+G123,IF(OR(I123="PV-304",I123="PV-305",I123="PV-306"),O124-H123/5,IF(AND(I123="PV-303",N123="A"),R124+G123,""))) ->  | Q124: =IF(OR(I123="PV-301",I123="PV-302"),P124-H123,IF(OR(I123="PV-304",I123="PV-305",I123="PV-306"),T124+G123,IF(I123="PV-303",K123,""))) ->  | R124: =IF(AND(OR(I123="PV-301",I123="PV-302"),L123="Tangent to Curve"),K123-(G123*0.3),IF(AND(OR(I123="PV-301",I123="PV-302"),L123="Spiral Curve"),K123,IF(AND(OR(I123="PV-304",I123="PV-305",I123="PV-306"),F123>=2),S124+(H123/5),IF(I123="PV-303",K123-(G123*0.3),"")))) ->  | S124: =IF(AND(OR(I123="PV-304",I123="PV-305",I123="PV-306"),F123>=2.5),Q124-H123,"") ->  | T124: =IF(AND(OR(I123="PV-304",I123="PV-305",I123="PV-306"),L123="Tangent to Curve"),K123-(G123*0.3),IF(AND(OR(I123="PV-304",I123="PV-305",I123="PV-306"),L123="Spiral Curve"),K123,"")) ->  | U124: =IF(AND(OR(I123="PV-301",I123="PV-302"),F123>2.8),K123,IF(AND(OR(I123="PV-304",I123="PV-305",I123="PV-306"),F123>=3.6),K123,"")) ->  | V124: =IF(AND(OR(I123="PV-301",I123="PV-302"),F123<=2.8),K123,IF(AND(OR(I123="PV-304",I123="PV-305",I123="PV-306"),AND(F123>2.8,F123<3.6)),K123,"")) ->  | W124: =IF(AND(OR(I123="PV-304",I123="PV-305",I123="PV-306"),F123<=2.8),K123,"") ->  | X124: =IF(AND(OR(I123="PV-301",I123="PV-302",I123="PV-303"),F123>=M123),R124+(G123/F123)*(F123-M123),IF(AND(OR(I123="PV-304",I123="PV-305",I123="PV-306"),F123>=M123),T124+(G123/F123)*(F123-M123),"")) ->  | Y124: =IF(AND(OR(I123="PV-301",I123="PV-302",I123="PV-303"),M123+F123>=8),R124+(G123/F123)*(F123-(8-M123)),IF(AND(OR(I123="PV-304",I123="PV-305",I123="PV-306"),M123+F123>=8),T124+(G123/F123)*(F123-(8-M123)),"")) ->  | Z124: =IF(AND(OR(I123="PV-301",I123="PV-302",I123="PV-303"),F123>=7),R124+(F123-7)*(G123/F123),"") -> 
O125: =IF(OR(I125="PV-301",I125="PV-302"),P125-H125,IF(OR(I125="PV-304",I125="PV-305",I125="PV-306"),Q125-H125,IF(AND(I125="PV-303",N125="A"),P125-H125,IF(AND(I125="PV-303",N125="B"),R125-(G125-H125),"")))) ->  | P125: =IF(OR(I125="PV-301",I125="PV-302"),R125-G125,IF(OR(I125="PV-304",I125="PV-305",I125="PV-306"),O125+H125/5,IF(AND(I125="PV-303",N125="A"),R125-G125,""))) ->  | Q125: =IF(OR(I125="PV-301",I125="PV-302"),P125+H125,IF(OR(I125="PV-304",I125="PV-305",I125="PV-306"),T125-G125,IF(I125="PV-303",J125,""))) ->  | R125: =IF(AND(OR(I125="PV-301",I125="PV-302"),L125="Tangent to Curve"),J125+(G125*0.3),IF(AND(OR(I125="PV-301",I125="PV-302"),L125="Spiral Curve"),J125,IF(AND(OR(I125="PV-304",I125="PV-305",I125="PV-306"),F125>=2),S125-(H125/5),IF(I125="PV-303",J125+(G125*0.3),"")))) ->  | S125: =IF(AND(OR(I125="PV-304",I125="PV-305",I125="PV-306"),F125>=2.5),Q125+H125,"") ->  | T125: =IF(AND(OR(I125="PV-304",I125="PV-305",I125="PV-306"),L125="Tangent to Curve"),J125+(G125*0.3),IF(AND(OR(I125="PV-304",I125="PV-305",I125="PV-306"),L125="Spiral Curve"),J125,"")) ->  | U125: =IF(AND(OR(I125="PV-301",I125="PV-302"),F125>2.8),J125,IF(AND(OR(I125="PV-304",I125="PV-305",I125="PV-306"),F125>=3.6),J125,"")) ->  | V125: =IF(AND(OR(I125="PV-301",I125="PV-302"),F125<=2.8),J125,IF(AND(OR(I125="PV-304",I125="PV-305",I125="PV-306"),AND(F125>2.8,F125<3.6)),J125,"")) ->  | W125: =IF(AND(OR(I125="PV-304",I125="PV-305",I125="PV-306"),F125<=2.8),J125,"") ->  | X125: =IF(AND(OR(I125="PV-301",I125="PV-302",I125="PV-303"),F125>=M125),R125-(G125/F125)*(F125-M125),IF(AND(OR(I125="PV-304",I125="PV-305",I125="PV-306"),F125>=M125),T125-(G125/F125)*(F125-M125),"")) ->  | Y125: =IF(AND(OR(I125="PV-301",I125="PV-302",I125="PV-303"),M125+F125>=8),R125-(G125/F125)*(F125-(8-M125)),IF(AND(OR(I125="PV-304",I125="PV-305",I125="PV-306"),M125+F125>=8),T125-(G125/F125)*(F125-(8-M125)),"")) ->  | Z125: =IF(AND(OR(I125="PV-301",I125="PV-302",I125="PV-303"),F125>=7),R125-(F125-7)*(G125/F125),"") -> 
O126: =IF(OR(I125="PV-301",I125="PV-302"),P126+H125,IF(OR(I125="PV-304",I125="PV-305",I125="PV-306"),Q126+H125,IF(AND(I125="PV-303",N125="A"),P126+H125,IF(AND(I125="PV-303",N125="B"),R126+(G125-H125),"")))) ->  | P126: =IF(OR(I125="PV-301",I125="PV-302"),R126+G125,IF(OR(I125="PV-304",I125="PV-305",I125="PV-306"),O126-H125/5,IF(AND(I125="PV-303",N125="A"),R126+G125,""))) ->  | Q126: =IF(OR(I125="PV-301",I125="PV-302"),P126-H125,IF(OR(I125="PV-304",I125="PV-305",I125="PV-306"),T126+G125,IF(I125="PV-303",K125,""))) ->  | R126: =IF(AND(OR(I125="PV-301",I125="PV-302"),L125="Tangent to Curve"),K125-(G125*0.3),IF(AND(OR(I125="PV-301",I125="PV-302"),L125="Spiral Curve"),K125,IF(AND(OR(I125="PV-304",I125="PV-305",I125="PV-306"),F125>=2),S126+(H125/5),IF(I125="PV-303",K125-(G125*0.3),"")))) ->  | S126: =IF(AND(OR(I125="PV-304",I125="PV-305",I125="PV-306"),F125>=2.5),Q126-H125,"") ->  | T126: =IF(AND(OR(I125="PV-304",I125="PV-305",I125="PV-306"),L125="Tangent to Curve"),K125-(G125*0.3),IF(AND(OR(I125="PV-304",I125="PV-305",I125="PV-306"),L125="Spiral Curve"),K125,"")) ->  | U126: =IF(AND(OR(I125="PV-301",I125="PV-302"),F125>2.8),K125,IF(AND(OR(I125="PV-304",I125="PV-305",I125="PV-306"),F125>=3.6),K125,"")) ->  | V126: =IF(AND(OR(I125="PV-301",I125="PV-302"),F125<=2.8),K125,IF(AND(OR(I125="PV-304",I125="PV-305",I125="PV-306"),AND(F125>2.8,F125<3.6)),K125,"")) ->  | W126: =IF(AND(OR(I125="PV-304",I125="PV-305",I125="PV-306"),F125<=2.8),K125,"") ->  | X126: =IF(AND(OR(I125="PV-301",I125="PV-302",I125="PV-303"),F125>=M125),R126+(G125/F125)*(F125-M125),IF(AND(OR(I125="PV-304",I125="PV-305",I125="PV-306"),F125>=M125),T126+(G125/F125)*(F125-M125),"")) ->  | Y126: =IF(AND(OR(I125="PV-301",I125="PV-302",I125="PV-303"),M125+F125>=8),R126+(G125/F125)*(F125-(8-M125)),IF(AND(OR(I125="PV-304",I125="PV-305",I125="PV-306"),M125+F125>=8),T126+(G125/F125)*(F125-(8-M125)),"")) ->  | Z126: =IF(AND(OR(I125="PV-301",I125="PV-302",I125="PV-303"),F125>=7),R126+(F125-7)*(G125/F125),"") -> 
O127: =IF(OR(I127="PV-301",I127="PV-302"),P127-H127,IF(OR(I127="PV-304",I127="PV-305",I127="PV-306"),Q127-H127,IF(AND(I127="PV-303",N127="A"),P127-H127,IF(AND(I127="PV-303",N127="B"),R127-(G127-H127),"")))) ->  | P127: =IF(OR(I127="PV-301",I127="PV-302"),R127-G127,IF(OR(I127="PV-304",I127="PV-305",I127="PV-306"),O127+H127/5,IF(AND(I127="PV-303",N127="A"),R127-G127,""))) ->  | Q127: =IF(OR(I127="PV-301",I127="PV-302"),P127+H127,IF(OR(I127="PV-304",I127="PV-305",I127="PV-306"),T127-G127,IF(I127="PV-303",J127,""))) ->  | R127: =IF(AND(OR(I127="PV-301",I127="PV-302"),L127="Tangent to Curve"),J127+(G127*0.3),IF(AND(OR(I127="PV-301",I127="PV-302"),L127="Spiral Curve"),J127,IF(AND(OR(I127="PV-304",I127="PV-305",I127="PV-306"),F127>=2),S127-(H127/5),IF(I127="PV-303",J127+(G127*0.3),"")))) ->  | S127: =IF(AND(OR(I127="PV-304",I127="PV-305",I127="PV-306"),F127>=2.5),Q127+H127,"") ->  | T127: =IF(AND(OR(I127="PV-304",I127="PV-305",I127="PV-306"),L127="Tangent to Curve"),J127+(G127*0.3),IF(AND(OR(I127="PV-304",I127="PV-305",I127="PV-306"),L127="Spiral Curve"),J127,"")) ->  | U127: =IF(AND(OR(I127="PV-301",I127="PV-302"),F127>2.8),J127,IF(AND(OR(I127="PV-304",I127="PV-305",I127="PV-306"),F127>=3.6),J127,"")) ->  | V127: =IF(AND(OR(I127="PV-301",I127="PV-302"),F127<=2.8),J127,IF(AND(OR(I127="PV-304",I127="PV-305",I127="PV-306"),AND(F127>2.8,F127<3.6)),J127,"")) ->  | W127: =IF(AND(OR(I127="PV-304",I127="PV-305",I127="PV-306"),F127<=2.8),J127,"") ->  | X127: =IF(AND(OR(I127="PV-301",I127="PV-302",I127="PV-303"),F127>=M127),R127-(G127/F127)*(F127-M127),IF(AND(OR(I127="PV-304",I127="PV-305",I127="PV-306"),F127>=M127),T127-(G127/F127)*(F127-M127),"")) ->  | Y127: =IF(AND(OR(I127="PV-301",I127="PV-302",I127="PV-303"),M127+F127>=8),R127-(G127/F127)*(F127-(8-M127)),IF(AND(OR(I127="PV-304",I127="PV-305",I127="PV-306"),M127+F127>=8),T127-(G127/F127)*(F127-(8-M127)),"")) ->  | Z127: =IF(AND(OR(I127="PV-301",I127="PV-302",I127="PV-303"),F127>=7),R127-(F127-7)*(G127/F127),"") -> 
O128: =IF(OR(I127="PV-301",I127="PV-302"),P128+H127,IF(OR(I127="PV-304",I127="PV-305",I127="PV-306"),Q128+H127,IF(AND(I127="PV-303",N127="A"),P128+H127,IF(AND(I127="PV-303",N127="B"),R128+(G127-H127),"")))) ->  | P128: =IF(OR(I127="PV-301",I127="PV-302"),R128+G127,IF(OR(I127="PV-304",I127="PV-305",I127="PV-306"),O128-H127/5,IF(AND(I127="PV-303",N127="A"),R128+G127,""))) ->  | Q128: =IF(OR(I127="PV-301",I127="PV-302"),P128-H127,IF(OR(I127="PV-304",I127="PV-305",I127="PV-306"),T128+G127,IF(I127="PV-303",K127,""))) ->  | R128: =IF(AND(OR(I127="PV-301",I127="PV-302"),L127="Tangent to Curve"),K127-(G127*0.3),IF(AND(OR(I127="PV-301",I127="PV-302"),L127="Spiral Curve"),K127,IF(AND(OR(I127="PV-304",I127="PV-305",I127="PV-306"),F127>=2),S128+(H127/5),IF(I127="PV-303",K127-(G127*0.3),"")))) ->  | S128: =IF(AND(OR(I127="PV-304",I127="PV-305",I127="PV-306"),F127>=2.5),Q128-H127,"") ->  | T128: =IF(AND(OR(I127="PV-304",I127="PV-305",I127="PV-306"),L127="Tangent to Curve"),K127-(G127*0.3),IF(AND(OR(I127="PV-304",I127="PV-305",I127="PV-306"),L127="Spiral Curve"),K127,"")) ->  | U128: =IF(AND(OR(I127="PV-301",I127="PV-302"),F127>2.8),K127,IF(AND(OR(I127="PV-304",I127="PV-305",I127="PV-306"),F127>=3.6),K127,"")) ->  | V128: =IF(AND(OR(I127="PV-301",I127="PV-302"),F127<=2.8),K127,IF(AND(OR(I127="PV-304",I127="PV-305",I127="PV-306"),AND(F127>2.8,F127<3.6)),K127,"")) ->  | W128: =IF(AND(OR(I127="PV-304",I127="PV-305",I127="PV-306"),F127<=2.8),K127,"") ->  | X128: =IF(AND(OR(I127="PV-301",I127="PV-302",I127="PV-303"),F127>=M127),R128+(G127/F127)*(F127-M127),IF(AND(OR(I127="PV-304",I127="PV-305",I127="PV-306"),F127>=M127),T128+(G127/F127)*(F127-M127),"")) ->  | Y128: =IF(AND(OR(I127="PV-301",I127="PV-302",I127="PV-303"),M127+F127>=8),R128+(G127/F127)*(F127-(8-M127)),IF(AND(OR(I127="PV-304",I127="PV-305",I127="PV-306"),M127+F127>=8),T128+(G127/F127)*(F127-(8-M127)),"")) ->  | Z128: =IF(AND(OR(I127="PV-301",I127="PV-302",I127="PV-303"),F127>=7),R128+(F127-7)*(G127/F127),"") -> 
O129: =IF(OR(I129="PV-301",I129="PV-302"),P129-H129,IF(OR(I129="PV-304",I129="PV-305",I129="PV-306"),Q129-H129,IF(AND(I129="PV-303",N129="A"),P129-H129,IF(AND(I129="PV-303",N129="B"),R129-(G129-H129),"")))) ->  | P129: =IF(OR(I129="PV-301",I129="PV-302"),R129-G129,IF(OR(I129="PV-304",I129="PV-305",I129="PV-306"),O129+H129/5,IF(AND(I129="PV-303",N129="A"),R129-G129,""))) ->  | Q129: =IF(OR(I129="PV-301",I129="PV-302"),P129+H129,IF(OR(I129="PV-304",I129="PV-305",I129="PV-306"),T129-G129,IF(I129="PV-303",J129,""))) ->  | R129: =IF(AND(OR(I129="PV-301",I129="PV-302"),L129="Tangent to Curve"),J129+(G129*0.3),IF(AND(OR(I129="PV-301",I129="PV-302"),L129="Spiral Curve"),J129,IF(AND(OR(I129="PV-304",I129="PV-305",I129="PV-306"),F129>=2),S129-(H129/5),IF(I129="PV-303",J129+(G129*0.3),"")))) ->  | S129: =IF(AND(OR(I129="PV-304",I129="PV-305",I129="PV-306"),F129>=2.5),Q129+H129,"") ->  | T129: =IF(AND(OR(I129="PV-304",I129="PV-305",I129="PV-306"),L129="Tangent to Curve"),J129+(G129*0.3),IF(AND(OR(I129="PV-304",I129="PV-305",I129="PV-306"),L129="Spiral Curve"),J129,"")) ->  | U129: =IF(AND(OR(I129="PV-301",I129="PV-302"),F129>2.8),J129,IF(AND(OR(I129="PV-304",I129="PV-305",I129="PV-306"),F129>=3.6),J129,"")) ->  | V129: =IF(AND(OR(I129="PV-301",I129="PV-302"),F129<=2.8),J129,IF(AND(OR(I129="PV-304",I129="PV-305",I129="PV-306"),AND(F129>2.8,F129<3.6)),J129,"")) ->  | W129: =IF(AND(OR(I129="PV-304",I129="PV-305",I129="PV-306"),F129<=2.8),J129,"") ->  | X129: =IF(AND(OR(I129="PV-301",I129="PV-302",I129="PV-303"),F129>=M129),R129-(G129/F129)*(F129-M129),IF(AND(OR(I129="PV-304",I129="PV-305",I129="PV-306"),F129>=M129),T129-(G129/F129)*(F129-M129),"")) ->  | Y129: =IF(AND(OR(I129="PV-301",I129="PV-302",I129="PV-303"),M129+F129>=8),R129-(G129/F129)*(F129-(8-M129)),IF(AND(OR(I129="PV-304",I129="PV-305",I129="PV-306"),M129+F129>=8),T129-(G129/F129)*(F129-(8-M129)),"")) ->  | Z129: =IF(AND(OR(I129="PV-301",I129="PV-302",I129="PV-303"),F129>=7),R129-(F129-7)*(G129/F129),"") -> 
O130: =IF(OR(I129="PV-301",I129="PV-302"),P130+H129,IF(OR(I129="PV-304",I129="PV-305",I129="PV-306"),Q130+H129,IF(AND(I129="PV-303",N129="A"),P130+H129,IF(AND(I129="PV-303",N129="B"),R130+(G129-H129),"")))) ->  | P130: =IF(OR(I129="PV-301",I129="PV-302"),R130+G129,IF(OR(I129="PV-304",I129="PV-305",I129="PV-306"),O130-H129/5,IF(AND(I129="PV-303",N129="A"),R130+G129,""))) ->  | Q130: =IF(OR(I129="PV-301",I129="PV-302"),P130-H129,IF(OR(I129="PV-304",I129="PV-305",I129="PV-306"),T130+G129,IF(I129="PV-303",K129,""))) ->  | R130: =IF(AND(OR(I129="PV-301",I129="PV-302"),L129="Tangent to Curve"),K129-(G129*0.3),IF(AND(OR(I129="PV-301",I129="PV-302"),L129="Spiral Curve"),K129,IF(AND(OR(I129="PV-304",I129="PV-305",I129="PV-306"),F129>=2),S130+(H129/5),IF(I129="PV-303",K129-(G129*0.3),"")))) ->  | S130: =IF(AND(OR(I129="PV-304",I129="PV-305",I129="PV-306"),F129>=2.5),Q130-H129,"") ->  | T130: =IF(AND(OR(I129="PV-304",I129="PV-305",I129="PV-306"),L129="Tangent to Curve"),K129-(G129*0.3),IF(AND(OR(I129="PV-304",I129="PV-305",I129="PV-306"),L129="Spiral Curve"),K129,"")) ->  | U130: =IF(AND(OR(I129="PV-301",I129="PV-302"),F129>2.8),K129,IF(AND(OR(I129="PV-304",I129="PV-305",I129="PV-306"),F129>=3.6),K129,"")) ->  | V130: =IF(AND(OR(I129="PV-301",I129="PV-302"),F129<=2.8),K129,IF(AND(OR(I129="PV-304",I129="PV-305",I129="PV-306"),AND(F129>2.8,F129<3.6)),K129,"")) ->  | W130: =IF(AND(OR(I129="PV-304",I129="PV-305",I129="PV-306"),F129<=2.8),K129,"") ->  | X130: =IF(AND(OR(I129="PV-301",I129="PV-302",I129="PV-303"),F129>=M129),R130+(G129/F129)*(F129-M129),IF(AND(OR(I129="PV-304",I129="PV-305",I129="PV-306"),F129>=M129),T130+(G129/F129)*(F129-M129),"")) ->  | Y130: =IF(AND(OR(I129="PV-301",I129="PV-302",I129="PV-303"),M129+F129>=8),R130+(G129/F129)*(F129-(8-M129)),IF(AND(OR(I129="PV-304",I129="PV-305",I129="PV-306"),M129+F129>=8),T130+(G129/F129)*(F129-(8-M129)),"")) ->  | Z130: =IF(AND(OR(I129="PV-301",I129="PV-302",I129="PV-303"),F129>=7),R130+(F129-7)*(G129/F129),"") -> 
O131: =IF(OR(I131="PV-301",I131="PV-302"),P131-H131,IF(OR(I131="PV-304",I131="PV-305",I131="PV-306"),Q131-H131,IF(AND(I131="PV-303",N131="A"),P131-H131,IF(AND(I131="PV-303",N131="B"),R131-(G131-H131),"")))) ->  | P131: =IF(OR(I131="PV-301",I131="PV-302"),R131-G131,IF(OR(I131="PV-304",I131="PV-305",I131="PV-306"),O131+H131/5,IF(AND(I131="PV-303",N131="A"),R131-G131,""))) ->  | Q131: =IF(OR(I131="PV-301",I131="PV-302"),P131+H131,IF(OR(I131="PV-304",I131="PV-305",I131="PV-306"),T131-G131,IF(I131="PV-303",J131,""))) ->  | R131: =IF(AND(OR(I131="PV-301",I131="PV-302"),L131="Tangent to Curve"),J131+(G131*0.3),IF(AND(OR(I131="PV-301",I131="PV-302"),L131="Spiral Curve"),J131,IF(AND(OR(I131="PV-304",I131="PV-305",I131="PV-306"),F131>=2),S131-(H131/5),IF(I131="PV-303",J131+(G131*0.3),"")))) ->  | S131: =IF(AND(OR(I131="PV-304",I131="PV-305",I131="PV-306"),F131>=2.5),Q131+H131,"") ->  | T131: =IF(AND(OR(I131="PV-304",I131="PV-305",I131="PV-306"),L131="Tangent to Curve"),J131+(G131*0.3),IF(AND(OR(I131="PV-304",I131="PV-305",I131="PV-306"),L131="Spiral Curve"),J131,"")) ->  | U131: =IF(AND(OR(I131="PV-301",I131="PV-302"),F131>2.8),J131,IF(AND(OR(I131="PV-304",I131="PV-305",I131="PV-306"),F131>=3.6),J131,"")) ->  | V131: =IF(AND(OR(I131="PV-301",I131="PV-302"),F131<=2.8),J131,IF(AND(OR(I131="PV-304",I131="PV-305",I131="PV-306"),AND(F131>2.8,F131<3.6)),J131,"")) ->  | W131: =IF(AND(OR(I131="PV-304",I131="PV-305",I131="PV-306"),F131<=2.8),J131,"") ->  | X131: =IF(AND(OR(I131="PV-301",I131="PV-302",I131="PV-303"),F131>=M131),R131-(G131/F131)*(F131-M131),IF(AND(OR(I131="PV-304",I131="PV-305",I131="PV-306"),F131>=M131),T131-(G131/F131)*(F131-M131),"")) ->  | Y131: =IF(AND(OR(I131="PV-301",I131="PV-302",I131="PV-303"),M131+F131>=8),R131-(G131/F131)*(F131-(8-M131)),IF(AND(OR(I131="PV-304",I131="PV-305",I131="PV-306"),M131+F131>=8),T131-(G131/F131)*(F131-(8-M131)),"")) ->  | Z131: =IF(AND(OR(I131="PV-301",I131="PV-302",I131="PV-303"),F131>=7),R131-(F131-7)*(G131/F131),"") -> 
O132: =IF(OR(I131="PV-301",I131="PV-302"),P132+H131,IF(OR(I131="PV-304",I131="PV-305",I131="PV-306"),Q132+H131,IF(AND(I131="PV-303",N131="A"),P132+H131,IF(AND(I131="PV-303",N131="B"),R132+(G131-H131),"")))) ->  | P132: =IF(OR(I131="PV-301",I131="PV-302"),R132+G131,IF(OR(I131="PV-304",I131="PV-305",I131="PV-306"),O132-H131/5,IF(AND(I131="PV-303",N131="A"),R132+G131,""))) ->  | Q132: =IF(OR(I131="PV-301",I131="PV-302"),P132-H131,IF(OR(I131="PV-304",I131="PV-305",I131="PV-306"),T132+G131,IF(I131="PV-303",K131,""))) ->  | R132: =IF(AND(OR(I131="PV-301",I131="PV-302"),L131="Tangent to Curve"),K131-(G131*0.3),IF(AND(OR(I131="PV-301",I131="PV-302"),L131="Spiral Curve"),K131,IF(AND(OR(I131="PV-304",I131="PV-305",I131="PV-306"),F131>=2),S132+(H131/5),IF(I131="PV-303",K131-(G131*0.3),"")))) ->  | S132: =IF(AND(OR(I131="PV-304",I131="PV-305",I131="PV-306"),F131>=2.5),Q132-H131,"") ->  | T132: =IF(AND(OR(I131="PV-304",I131="PV-305",I131="PV-306"),L131="Tangent to Curve"),K131-(G131*0.3),IF(AND(OR(I131="PV-304",I131="PV-305",I131="PV-306"),L131="Spiral Curve"),K131,"")) ->  | U132: =IF(AND(OR(I131="PV-301",I131="PV-302"),F131>2.8),K131,IF(AND(OR(I131="PV-304",I131="PV-305",I131="PV-306"),F131>=3.6),K131,"")) ->  | V132: =IF(AND(OR(I131="PV-301",I131="PV-302"),F131<=2.8),K131,IF(AND(OR(I131="PV-304",I131="PV-305",I131="PV-306"),AND(F131>2.8,F131<3.6)),K131,"")) ->  | W132: =IF(AND(OR(I131="PV-304",I131="PV-305",I131="PV-306"),F131<=2.8),K131,"") ->  | X132: =IF(AND(OR(I131="PV-301",I131="PV-302",I131="PV-303"),F131>=M131),R132+(G131/F131)*(F131-M131),IF(AND(OR(I131="PV-304",I131="PV-305",I131="PV-306"),F131>=M131),T132+(G131/F131)*(F131-M131),"")) ->  | Y132: =IF(AND(OR(I131="PV-301",I131="PV-302",I131="PV-303"),M131+F131>=8),R132+(G131/F131)*(F131-(8-M131)),IF(AND(OR(I131="PV-304",I131="PV-305",I131="PV-306"),M131+F131>=8),T132+(G131/F131)*(F131-(8-M131)),"")) ->  | Z132: =IF(AND(OR(I131="PV-301",I131="PV-302",I131="PV-303"),F131>=7),R132+(F131-7)*(G131/F131),"") -> 
O133: =IF(OR(I133="PV-301",I133="PV-302"),P133-H133,IF(OR(I133="PV-304",I133="PV-305",I133="PV-306"),Q133-H133,IF(AND(I133="PV-303",N133="A"),P133-H133,IF(AND(I133="PV-303",N133="B"),R133-(G133-H133),"")))) ->  | P133: =IF(OR(I133="PV-301",I133="PV-302"),R133-G133,IF(OR(I133="PV-304",I133="PV-305",I133="PV-306"),O133+H133/5,IF(AND(I133="PV-303",N133="A"),R133-G133,""))) ->  | Q133: =IF(OR(I133="PV-301",I133="PV-302"),P133+H133,IF(OR(I133="PV-304",I133="PV-305",I133="PV-306"),T133-G133,IF(I133="PV-303",J133,""))) ->  | R133: =IF(AND(OR(I133="PV-301",I133="PV-302"),L133="Tangent to Curve"),J133+(G133*0.3),IF(AND(OR(I133="PV-301",I133="PV-302"),L133="Spiral Curve"),J133,IF(AND(OR(I133="PV-304",I133="PV-305",I133="PV-306"),F133>=2),S133-(H133/5),IF(I133="PV-303",J133+(G133*0.3),"")))) ->  | S133: =IF(AND(OR(I133="PV-304",I133="PV-305",I133="PV-306"),F133>=2.5),Q133+H133,"") ->  | T133: =IF(AND(OR(I133="PV-304",I133="PV-305",I133="PV-306"),L133="Tangent to Curve"),J133+(G133*0.3),IF(AND(OR(I133="PV-304",I133="PV-305",I133="PV-306"),L133="Spiral Curve"),J133,"")) ->  | U133: =IF(AND(OR(I133="PV-301",I133="PV-302"),F133>2.8),J133,IF(AND(OR(I133="PV-304",I133="PV-305",I133="PV-306"),F133>=3.6),J133,"")) ->  | V133: =IF(AND(OR(I133="PV-301",I133="PV-302"),F133<=2.8),J133,IF(AND(OR(I133="PV-304",I133="PV-305",I133="PV-306"),AND(F133>2.8,F133<3.6)),J133,"")) ->  | W133: =IF(AND(OR(I133="PV-304",I133="PV-305",I133="PV-306"),F133<=2.8),J133,"") ->  | X133: =IF(AND(OR(I133="PV-301",I133="PV-302",I133="PV-303"),F133>=M133),R133-(G133/F133)*(F133-M133),IF(AND(OR(I133="PV-304",I133="PV-305",I133="PV-306"),F133>=M133),T133-(G133/F133)*(F133-M133),"")) ->  | Y133: =IF(AND(OR(I133="PV-301",I133="PV-302",I133="PV-303"),M133+F133>=8),R133-(G133/F133)*(F133-(8-M133)),IF(AND(OR(I133="PV-304",I133="PV-305",I133="PV-306"),M133+F133>=8),T133-(G133/F133)*(F133-(8-M133)),"")) ->  | Z133: =IF(AND(OR(I133="PV-301",I133="PV-302",I133="PV-303"),F133>=7),R133-(F133-7)*(G133/F133),"") -> 
O134: =IF(OR(I133="PV-301",I133="PV-302"),P134+H133,IF(OR(I133="PV-304",I133="PV-305",I133="PV-306"),Q134+H133,IF(AND(I133="PV-303",N133="A"),P134+H133,IF(AND(I133="PV-303",N133="B"),R134+(G133-H133),"")))) ->  | P134: =IF(OR(I133="PV-301",I133="PV-302"),R134+G133,IF(OR(I133="PV-304",I133="PV-305",I133="PV-306"),O134-H133/5,IF(AND(I133="PV-303",N133="A"),R134+G133,""))) ->  | Q134: =IF(OR(I133="PV-301",I133="PV-302"),P134-H133,IF(OR(I133="PV-304",I133="PV-305",I133="PV-306"),T134+G133,IF(I133="PV-303",K133,""))) ->  | R134: =IF(AND(OR(I133="PV-301",I133="PV-302"),L133="Tangent to Curve"),K133-(G133*0.3),IF(AND(OR(I133="PV-301",I133="PV-302"),L133="Spiral Curve"),K133,IF(AND(OR(I133="PV-304",I133="PV-305",I133="PV-306"),F133>=2),S134+(H133/5),IF(I133="PV-303",K133-(G133*0.3),"")))) ->  | S134: =IF(AND(OR(I133="PV-304",I133="PV-305",I133="PV-306"),F133>=2.5),Q134-H133,"") ->  | T134: =IF(AND(OR(I133="PV-304",I133="PV-305",I133="PV-306"),L133="Tangent to Curve"),K133-(G133*0.3),IF(AND(OR(I133="PV-304",I133="PV-305",I133="PV-306"),L133="Spiral Curve"),K133,"")) ->  | U134: =IF(AND(OR(I133="PV-301",I133="PV-302"),F133>2.8),K133,IF(AND(OR(I133="PV-304",I133="PV-305",I133="PV-306"),F133>=3.6),K133,"")) ->  | V134: =IF(AND(OR(I133="PV-301",I133="PV-302"),F133<=2.8),K133,IF(AND(OR(I133="PV-304",I133="PV-305",I133="PV-306"),AND(F133>2.8,F133<3.6)),K133,"")) ->  | W134: =IF(AND(OR(I133="PV-304",I133="PV-305",I133="PV-306"),F133<=2.8),K133,"") ->  | X134: =IF(AND(OR(I133="PV-301",I133="PV-302",I133="PV-303"),F133>=M133),R134+(G133/F133)*(F133-M133),IF(AND(OR(I133="PV-304",I133="PV-305",I133="PV-306"),F133>=M133),T134+(G133/F133)*(F133-M133),"")) ->  | Y134: =IF(AND(OR(I133="PV-301",I133="PV-302",I133="PV-303"),M133+F133>=8),R134+(G133/F133)*(F133-(8-M133)),IF(AND(OR(I133="PV-304",I133="PV-305",I133="PV-306"),M133+F133>=8),T134+(G133/F133)*(F133-(8-M133)),"")) ->  | Z134: =IF(AND(OR(I133="PV-301",I133="PV-302",I133="PV-303"),F133>=7),R134+(F133-7)*(G133/F133),"") -> 
O135: =IF(OR(I135="PV-301",I135="PV-302"),P135-H135,IF(OR(I135="PV-304",I135="PV-305",I135="PV-306"),Q135-H135,IF(AND(I135="PV-303",N135="A"),P135-H135,IF(AND(I135="PV-303",N135="B"),R135-(G135-H135),"")))) ->  | P135: =IF(OR(I135="PV-301",I135="PV-302"),R135-G135,IF(OR(I135="PV-304",I135="PV-305",I135="PV-306"),O135+H135/5,IF(AND(I135="PV-303",N135="A"),R135-G135,""))) ->  | Q135: =IF(OR(I135="PV-301",I135="PV-302"),P135+H135,IF(OR(I135="PV-304",I135="PV-305",I135="PV-306"),T135-G135,IF(I135="PV-303",J135,""))) ->  | R135: =IF(AND(OR(I135="PV-301",I135="PV-302"),L135="Tangent to Curve"),J135+(G135*0.3),IF(AND(OR(I135="PV-301",I135="PV-302"),L135="Spiral Curve"),J135,IF(AND(OR(I135="PV-304",I135="PV-305",I135="PV-306"),F135>=2),S135-(H135/5),IF(I135="PV-303",J135+(G135*0.3),"")))) ->  | S135: =IF(AND(OR(I135="PV-304",I135="PV-305",I135="PV-306"),F135>=2.5),Q135+H135,"") ->  | T135: =IF(AND(OR(I135="PV-304",I135="PV-305",I135="PV-306"),L135="Tangent to Curve"),J135+(G135*0.3),IF(AND(OR(I135="PV-304",I135="PV-305",I135="PV-306"),L135="Spiral Curve"),J135,"")) ->  | U135: =IF(AND(OR(I135="PV-301",I135="PV-302"),F135>2.8),J135,IF(AND(OR(I135="PV-304",I135="PV-305",I135="PV-306"),F135>=3.6),J135,"")) ->  | V135: =IF(AND(OR(I135="PV-301",I135="PV-302"),F135<=2.8),J135,IF(AND(OR(I135="PV-304",I135="PV-305",I135="PV-306"),AND(F135>2.8,F135<3.6)),J135,"")) ->  | W135: =IF(AND(OR(I135="PV-304",I135="PV-305",I135="PV-306"),F135<=2.8),J135,"") ->  | X135: =IF(AND(OR(I135="PV-301",I135="PV-302",I135="PV-303"),F135>=M135),R135-(G135/F135)*(F135-M135),IF(AND(OR(I135="PV-304",I135="PV-305",I135="PV-306"),F135>=M135),T135-(G135/F135)*(F135-M135),"")) ->  | Y135: =IF(AND(OR(I135="PV-301",I135="PV-302",I135="PV-303"),M135+F135>=8),R135-(G135/F135)*(F135-(8-M135)),IF(AND(OR(I135="PV-304",I135="PV-305",I135="PV-306"),M135+F135>=8),T135-(G135/F135)*(F135-(8-M135)),"")) ->  | Z135: =IF(AND(OR(I135="PV-301",I135="PV-302",I135="PV-303"),F135>=7),R135-(F135-7)*(G135/F135),"") -> 
O136: =IF(OR(I135="PV-301",I135="PV-302"),P136+H135,IF(OR(I135="PV-304",I135="PV-305",I135="PV-306"),Q136+H135,IF(AND(I135="PV-303",N135="A"),P136+H135,IF(AND(I135="PV-303",N135="B"),R136+(G135-H135),"")))) ->  | P136: =IF(OR(I135="PV-301",I135="PV-302"),R136+G135,IF(OR(I135="PV-304",I135="PV-305",I135="PV-306"),O136-H135/5,IF(AND(I135="PV-303",N135="A"),R136+G135,""))) ->  | Q136: =IF(OR(I135="PV-301",I135="PV-302"),P136-H135,IF(OR(I135="PV-304",I135="PV-305",I135="PV-306"),T136+G135,IF(I135="PV-303",K135,""))) ->  | R136: =IF(AND(OR(I135="PV-301",I135="PV-302"),L135="Tangent to Curve"),K135-(G135*0.3),IF(AND(OR(I135="PV-301",I135="PV-302"),L135="Spiral Curve"),K135,IF(AND(OR(I135="PV-304",I135="PV-305",I135="PV-306"),F135>=2),S136+(H135/5),IF(I135="PV-303",K135-(G135*0.3),"")))) ->  | S136: =IF(AND(OR(I135="PV-304",I135="PV-305",I135="PV-306"),F135>=2.5),Q136-H135,"") ->  | T136: =IF(AND(OR(I135="PV-304",I135="PV-305",I135="PV-306"),L135="Tangent to Curve"),K135-(G135*0.3),IF(AND(OR(I135="PV-304",I135="PV-305",I135="PV-306"),L135="Spiral Curve"),K135,"")) ->  | U136: =IF(AND(OR(I135="PV-301",I135="PV-302"),F135>2.8),K135,IF(AND(OR(I135="PV-304",I135="PV-305",I135="PV-306"),F135>=3.6),K135,"")) ->  | V136: =IF(AND(OR(I135="PV-301",I135="PV-302"),F135<=2.8),K135,IF(AND(OR(I135="PV-304",I135="PV-305",I135="PV-306"),AND(F135>2.8,F135<3.6)),K135,"")) ->  | W136: =IF(AND(OR(I135="PV-304",I135="PV-305",I135="PV-306"),F135<=2.8),K135,"") ->  | X136: =IF(AND(OR(I135="PV-301",I135="PV-302",I135="PV-303"),F135>=M135),R136+(G135/F135)*(F135-M135),IF(AND(OR(I135="PV-304",I135="PV-305",I135="PV-306"),F135>=M135),T136+(G135/F135)*(F135-M135),"")) ->  | Y136: =IF(AND(OR(I135="PV-301",I135="PV-302",I135="PV-303"),M135+F135>=8),R136+(G135/F135)*(F135-(8-M135)),IF(AND(OR(I135="PV-304",I135="PV-305",I135="PV-306"),M135+F135>=8),T136+(G135/F135)*(F135-(8-M135)),"")) ->  | Z136: =IF(AND(OR(I135="PV-301",I135="PV-302",I135="PV-303"),F135>=7),R136+(F135-7)*(G135/F135),"") -> 
O137: =IF(OR(I137="PV-301",I137="PV-302"),P137-H137,IF(OR(I137="PV-304",I137="PV-305",I137="PV-306"),Q137-H137,IF(AND(I137="PV-303",N137="A"),P137-H137,IF(AND(I137="PV-303",N137="B"),R137-(G137-H137),"")))) ->  | P137: =IF(OR(I137="PV-301",I137="PV-302"),R137-G137,IF(OR(I137="PV-304",I137="PV-305",I137="PV-306"),O137+H137/5,IF(AND(I137="PV-303",N137="A"),R137-G137,""))) ->  | Q137: =IF(OR(I137="PV-301",I137="PV-302"),P137+H137,IF(OR(I137="PV-304",I137="PV-305",I137="PV-306"),T137-G137,IF(I137="PV-303",J137,""))) ->  | R137: =IF(AND(OR(I137="PV-301",I137="PV-302"),L137="Tangent to Curve"),J137+(G137*0.3),IF(AND(OR(I137="PV-301",I137="PV-302"),L137="Spiral Curve"),J137,IF(AND(OR(I137="PV-304",I137="PV-305",I137="PV-306"),F137>=2),S137-(H137/5),IF(I137="PV-303",J137+(G137*0.3),"")))) ->  | S137: =IF(AND(OR(I137="PV-304",I137="PV-305",I137="PV-306"),F137>=2.5),Q137+H137,"") ->  | T137: =IF(AND(OR(I137="PV-304",I137="PV-305",I137="PV-306"),L137="Tangent to Curve"),J137+(G137*0.3),IF(AND(OR(I137="PV-304",I137="PV-305",I137="PV-306"),L137="Spiral Curve"),J137,"")) ->  | U137: =IF(AND(OR(I137="PV-301",I137="PV-302"),F137>2.8),J137,IF(AND(OR(I137="PV-304",I137="PV-305",I137="PV-306"),F137>=3.6),J137,"")) ->  | V137: =IF(AND(OR(I137="PV-301",I137="PV-302"),F137<=2.8),J137,IF(AND(OR(I137="PV-304",I137="PV-305",I137="PV-306"),AND(F137>2.8,F137<3.6)),J137,"")) ->  | W137: =IF(AND(OR(I137="PV-304",I137="PV-305",I137="PV-306"),F137<=2.8),J137,"") ->  | X137: =IF(AND(OR(I137="PV-301",I137="PV-302",I137="PV-303"),F137>=M137),R137-(G137/F137)*(F137-M137),IF(AND(OR(I137="PV-304",I137="PV-305",I137="PV-306"),F137>=M137),T137-(G137/F137)*(F137-M137),"")) ->  | Y137: =IF(AND(OR(I137="PV-301",I137="PV-302",I137="PV-303"),M137+F137>=8),R137-(G137/F137)*(F137-(8-M137)),IF(AND(OR(I137="PV-304",I137="PV-305",I137="PV-306"),M137+F137>=8),T137-(G137/F137)*(F137-(8-M137)),"")) ->  | Z137: =IF(AND(OR(I137="PV-301",I137="PV-302",I137="PV-303"),F137>=7),R137-(F137-7)*(G137/F137),"") -> 
O138: =IF(OR(I137="PV-301",I137="PV-302"),P138+H137,IF(OR(I137="PV-304",I137="PV-305",I137="PV-306"),Q138+H137,IF(AND(I137="PV-303",N137="A"),P138+H137,IF(AND(I137="PV-303",N137="B"),R138+(G137-H137),"")))) ->  | P138: =IF(OR(I137="PV-301",I137="PV-302"),R138+G137,IF(OR(I137="PV-304",I137="PV-305",I137="PV-306"),O138-H137/5,IF(AND(I137="PV-303",N137="A"),R138+G137,""))) ->  | Q138: =IF(OR(I137="PV-301",I137="PV-302"),P138-H137,IF(OR(I137="PV-304",I137="PV-305",I137="PV-306"),T138+G137,IF(I137="PV-303",K137,""))) ->  | R138: =IF(AND(OR(I137="PV-301",I137="PV-302"),L137="Tangent to Curve"),K137-(G137*0.3),IF(AND(OR(I137="PV-301",I137="PV-302"),L137="Spiral Curve"),K137,IF(AND(OR(I137="PV-304",I137="PV-305",I137="PV-306"),F137>=2),S138+(H137/5),IF(I137="PV-303",K137-(G137*0.3),"")))) ->  | S138: =IF(AND(OR(I137="PV-304",I137="PV-305",I137="PV-306"),F137>=2.5),Q138-H137,"") ->  | T138: =IF(AND(OR(I137="PV-304",I137="PV-305",I137="PV-306"),L137="Tangent to Curve"),K137-(G137*0.3),IF(AND(OR(I137="PV-304",I137="PV-305",I137="PV-306"),L137="Spiral Curve"),K137,"")) ->  | U138: =IF(AND(OR(I137="PV-301",I137="PV-302"),F137>2.8),K137,IF(AND(OR(I137="PV-304",I137="PV-305",I137="PV-306"),F137>=3.6),K137,"")) ->  | V138: =IF(AND(OR(I137="PV-301",I137="PV-302"),F137<=2.8),K137,IF(AND(OR(I137="PV-304",I137="PV-305",I137="PV-306"),AND(F137>2.8,F137<3.6)),K137,"")) ->  | W138: =IF(AND(OR(I137="PV-304",I137="PV-305",I137="PV-306"),F137<=2.8),K137,"") ->  | X138: =IF(AND(OR(I137="PV-301",I137="PV-302",I137="PV-303"),F137>=M137),R138+(G137/F137)*(F137-M137),IF(AND(OR(I137="PV-304",I137="PV-305",I137="PV-306"),F137>=M137),T138+(G137/F137)*(F137-M137),"")) ->  | Y138: =IF(AND(OR(I137="PV-301",I137="PV-302",I137="PV-303"),M137+F137>=8),R138+(G137/F137)*(F137-(8-M137)),IF(AND(OR(I137="PV-304",I137="PV-305",I137="PV-306"),M137+F137>=8),T138+(G137/F137)*(F137-(8-M137)),"")) ->  | Z138: =IF(AND(OR(I137="PV-301",I137="PV-302",I137="PV-303"),F137>=7),R138+(F137-7)*(G137/F137),"") -> 
O139: =IF(OR(I139="PV-301",I139="PV-302"),P139-H139,IF(OR(I139="PV-304",I139="PV-305",I139="PV-306"),Q139-H139,IF(AND(I139="PV-303",N139="A"),P139-H139,IF(AND(I139="PV-303",N139="B"),R139-(G139-H139),"")))) ->  | P139: =IF(OR(I139="PV-301",I139="PV-302"),R139-G139,IF(OR(I139="PV-304",I139="PV-305",I139="PV-306"),O139+H139/5,IF(AND(I139="PV-303",N139="A"),R139-G139,""))) ->  | Q139: =IF(OR(I139="PV-301",I139="PV-302"),P139+H139,IF(OR(I139="PV-304",I139="PV-305",I139="PV-306"),T139-G139,IF(I139="PV-303",J139,""))) ->  | R139: =IF(AND(OR(I139="PV-301",I139="PV-302"),L139="Tangent to Curve"),J139+(G139*0.3),IF(AND(OR(I139="PV-301",I139="PV-302"),L139="Spiral Curve"),J139,IF(AND(OR(I139="PV-304",I139="PV-305",I139="PV-306"),F139>=2),S139-(H139/5),IF(I139="PV-303",J139+(G139*0.3),"")))) ->  | S139: =IF(AND(OR(I139="PV-304",I139="PV-305",I139="PV-306"),F139>=2.5),Q139+H139,"") ->  | T139: =IF(AND(OR(I139="PV-304",I139="PV-305",I139="PV-306"),L139="Tangent to Curve"),J139+(G139*0.3),IF(AND(OR(I139="PV-304",I139="PV-305",I139="PV-306"),L139="Spiral Curve"),J139,"")) ->  | U139: =IF(AND(OR(I139="PV-301",I139="PV-302"),F139>2.8),J139,IF(AND(OR(I139="PV-304",I139="PV-305",I139="PV-306"),F139>=3.6),J139,"")) ->  | V139: =IF(AND(OR(I139="PV-301",I139="PV-302"),F139<=2.8),J139,IF(AND(OR(I139="PV-304",I139="PV-305",I139="PV-306"),AND(F139>2.8,F139<3.6)),J139,"")) ->  | W139: =IF(AND(OR(I139="PV-304",I139="PV-305",I139="PV-306"),F139<=2.8),J139,"") ->  | X139: =IF(AND(OR(I139="PV-301",I139="PV-302",I139="PV-303"),F139>=M139),R139-(G139/F139)*(F139-M139),IF(AND(OR(I139="PV-304",I139="PV-305",I139="PV-306"),F139>=M139),T139-(G139/F139)*(F139-M139),"")) ->  | Y139: =IF(AND(OR(I139="PV-301",I139="PV-302",I139="PV-303"),M139+F139>=8),R139-(G139/F139)*(F139-(8-M139)),IF(AND(OR(I139="PV-304",I139="PV-305",I139="PV-306"),M139+F139>=8),T139-(G139/F139)*(F139-(8-M139)),"")) ->  | Z139: =IF(AND(OR(I139="PV-301",I139="PV-302",I139="PV-303"),F139>=7),R139-(F139-7)*(G139/F139),"") -> 
O140: =IF(OR(I139="PV-301",I139="PV-302"),P140+H139,IF(OR(I139="PV-304",I139="PV-305",I139="PV-306"),Q140+H139,IF(AND(I139="PV-303",N139="A"),P140+H139,IF(AND(I139="PV-303",N139="B"),R140+(G139-H139),"")))) ->  | P140: =IF(OR(I139="PV-301",I139="PV-302"),R140+G139,IF(OR(I139="PV-304",I139="PV-305",I139="PV-306"),O140-H139/5,IF(AND(I139="PV-303",N139="A"),R140+G139,""))) ->  | Q140: =IF(OR(I139="PV-301",I139="PV-302"),P140-H139,IF(OR(I139="PV-304",I139="PV-305",I139="PV-306"),T140+G139,IF(I139="PV-303",K139,""))) ->  | R140: =IF(AND(OR(I139="PV-301",I139="PV-302"),L139="Tangent to Curve"),K139-(G139*0.3),IF(AND(OR(I139="PV-301",I139="PV-302"),L139="Spiral Curve"),K139,IF(AND(OR(I139="PV-304",I139="PV-305",I139="PV-306"),F139>=2),S140+(H139/5),IF(I139="PV-303",K139-(G139*0.3),"")))) ->  | S140: =IF(AND(OR(I139="PV-304",I139="PV-305",I139="PV-306"),F139>=2.5),Q140-H139,"") ->  | T140: =IF(AND(OR(I139="PV-304",I139="PV-305",I139="PV-306"),L139="Tangent to Curve"),K139-(G139*0.3),IF(AND(OR(I139="PV-304",I139="PV-305",I139="PV-306"),L139="Spiral Curve"),K139,"")) ->  | U140: =IF(AND(OR(I139="PV-301",I139="PV-302"),F139>2.8),K139,IF(AND(OR(I139="PV-304",I139="PV-305",I139="PV-306"),F139>=3.6),K139,"")) ->  | V140: =IF(AND(OR(I139="PV-301",I139="PV-302"),F139<=2.8),K139,IF(AND(OR(I139="PV-304",I139="PV-305",I139="PV-306"),AND(F139>2.8,F139<3.6)),K139,"")) ->  | W140: =IF(AND(OR(I139="PV-304",I139="PV-305",I139="PV-306"),F139<=2.8),K139,"") ->  | X140: =IF(AND(OR(I139="PV-301",I139="PV-302",I139="PV-303"),F139>=M139),R140+(G139/F139)*(F139-M139),IF(AND(OR(I139="PV-304",I139="PV-305",I139="PV-306"),F139>=M139),T140+(G139/F139)*(F139-M139),"")) ->  | Y140: =IF(AND(OR(I139="PV-301",I139="PV-302",I139="PV-303"),M139+F139>=8),R140+(G139/F139)*(F139-(8-M139)),IF(AND(OR(I139="PV-304",I139="PV-305",I139="PV-306"),M139+F139>=8),T140+(G139/F139)*(F139-(8-M139)),"")) ->  | Z140: =IF(AND(OR(I139="PV-301",I139="PV-302",I139="PV-303"),F139>=7),R140+(F139-7)*(G139/F139),"") -> 
O141: =IF(OR(I141="PV-301",I141="PV-302"),P141-H141,IF(OR(I141="PV-304",I141="PV-305",I141="PV-306"),Q141-H141,IF(AND(I141="PV-303",N141="A"),P141-H141,IF(AND(I141="PV-303",N141="B"),R141-(G141-H141),"")))) ->  | P141: =IF(OR(I141="PV-301",I141="PV-302"),R141-G141,IF(OR(I141="PV-304",I141="PV-305",I141="PV-306"),O141+H141/5,IF(AND(I141="PV-303",N141="A"),R141-G141,""))) ->  | Q141: =IF(OR(I141="PV-301",I141="PV-302"),P141+H141,IF(OR(I141="PV-304",I141="PV-305",I141="PV-306"),T141-G141,IF(I141="PV-303",J141,""))) ->  | R141: =IF(AND(OR(I141="PV-301",I141="PV-302"),L141="Tangent to Curve"),J141+(G141*0.3),IF(AND(OR(I141="PV-301",I141="PV-302"),L141="Spiral Curve"),J141,IF(AND(OR(I141="PV-304",I141="PV-305",I141="PV-306"),F141>=2),S141-(H141/5),IF(I141="PV-303",J141+(G141*0.3),"")))) ->  | S141: =IF(AND(OR(I141="PV-304",I141="PV-305",I141="PV-306"),F141>=2.5),Q141+H141,"") ->  | T141: =IF(AND(OR(I141="PV-304",I141="PV-305",I141="PV-306"),L141="Tangent to Curve"),J141+(G141*0.3),IF(AND(OR(I141="PV-304",I141="PV-305",I141="PV-306"),L141="Spiral Curve"),J141,"")) ->  | U141: =IF(AND(OR(I141="PV-301",I141="PV-302"),F141>2.8),J141,IF(AND(OR(I141="PV-304",I141="PV-305",I141="PV-306"),F141>=3.6),J141,"")) ->  | V141: =IF(AND(OR(I141="PV-301",I141="PV-302"),F141<=2.8),J141,IF(AND(OR(I141="PV-304",I141="PV-305",I141="PV-306"),AND(F141>2.8,F141<3.6)),J141,"")) ->  | W141: =IF(AND(OR(I141="PV-304",I141="PV-305",I141="PV-306"),F141<=2.8),J141,"") ->  | X141: =IF(AND(OR(I141="PV-301",I141="PV-302",I141="PV-303"),F141>=M141),R141-(G141/F141)*(F141-M141),IF(AND(OR(I141="PV-304",I141="PV-305",I141="PV-306"),F141>=M141),T141-(G141/F141)*(F141-M141),"")) ->  | Y141: =IF(AND(OR(I141="PV-301",I141="PV-302",I141="PV-303"),M141+F141>=8),R141-(G141/F141)*(F141-(8-M141)),IF(AND(OR(I141="PV-304",I141="PV-305",I141="PV-306"),M141+F141>=8),T141-(G141/F141)*(F141-(8-M141)),"")) ->  | Z141: =IF(AND(OR(I141="PV-301",I141="PV-302",I141="PV-303"),F141>=7),R141-(F141-7)*(G141/F141),"") -> 
O142: =IF(OR(I141="PV-301",I141="PV-302"),P142+H141,IF(OR(I141="PV-304",I141="PV-305",I141="PV-306"),Q142+H141,IF(AND(I141="PV-303",N141="A"),P142+H141,IF(AND(I141="PV-303",N141="B"),R142+(G141-H141),"")))) ->  | P142: =IF(OR(I141="PV-301",I141="PV-302"),R142+G141,IF(OR(I141="PV-304",I141="PV-305",I141="PV-306"),O142-H141/5,IF(AND(I141="PV-303",N141="A"),R142+G141,""))) ->  | Q142: =IF(OR(I141="PV-301",I141="PV-302"),P142-H141,IF(OR(I141="PV-304",I141="PV-305",I141="PV-306"),T142+G141,IF(I141="PV-303",K141,""))) ->  | R142: =IF(AND(OR(I141="PV-301",I141="PV-302"),L141="Tangent to Curve"),K141-(G141*0.3),IF(AND(OR(I141="PV-301",I141="PV-302"),L141="Spiral Curve"),K141,IF(AND(OR(I141="PV-304",I141="PV-305",I141="PV-306"),F141>=2),S142+(H141/5),IF(I141="PV-303",K141-(G141*0.3),"")))) ->  | S142: =IF(AND(OR(I141="PV-304",I141="PV-305",I141="PV-306"),F141>=2.5),Q142-H141,"") ->  | T142: =IF(AND(OR(I141="PV-304",I141="PV-305",I141="PV-306"),L141="Tangent to Curve"),K141-(G141*0.3),IF(AND(OR(I141="PV-304",I141="PV-305",I141="PV-306"),L141="Spiral Curve"),K141,"")) ->  | U142: =IF(AND(OR(I141="PV-301",I141="PV-302"),F141>2.8),K141,IF(AND(OR(I141="PV-304",I141="PV-305",I141="PV-306"),F141>=3.6),K141,"")) ->  | V142: =IF(AND(OR(I141="PV-301",I141="PV-302"),F141<=2.8),K141,IF(AND(OR(I141="PV-304",I141="PV-305",I141="PV-306"),AND(F141>2.8,F141<3.6)),K141,"")) ->  | W142: =IF(AND(OR(I141="PV-304",I141="PV-305",I141="PV-306"),F141<=2.8),K141,"") ->  | X142: =IF(AND(OR(I141="PV-301",I141="PV-302",I141="PV-303"),F141>=M141),R142+(G141/F141)*(F141-M141),IF(AND(OR(I141="PV-304",I141="PV-305",I141="PV-306"),F141>=M141),T142+(G141/F141)*(F141-M141),"")) ->  | Y142: =IF(AND(OR(I141="PV-301",I141="PV-302",I141="PV-303"),M141+F141>=8),R142+(G141/F141)*(F141-(8-M141)),IF(AND(OR(I141="PV-304",I141="PV-305",I141="PV-306"),M141+F141>=8),T142+(G141/F141)*(F141-(8-M141)),"")) ->  | Z142: =IF(AND(OR(I141="PV-301",I141="PV-302",I141="PV-303"),F141>=7),R142+(F141-7)*(G141/F141),"") -> 
O143: =IF(OR(I143="PV-301",I143="PV-302"),P143-H143,IF(OR(I143="PV-304",I143="PV-305",I143="PV-306"),Q143-H143,IF(AND(I143="PV-303",N143="A"),P143-H143,IF(AND(I143="PV-303",N143="B"),R143-(G143-H143),"")))) ->  | P143: =IF(OR(I143="PV-301",I143="PV-302"),R143-G143,IF(OR(I143="PV-304",I143="PV-305",I143="PV-306"),O143+H143/5,IF(AND(I143="PV-303",N143="A"),R143-G143,""))) ->  | Q143: =IF(OR(I143="PV-301",I143="PV-302"),P143+H143,IF(OR(I143="PV-304",I143="PV-305",I143="PV-306"),T143-G143,IF(I143="PV-303",J143,""))) ->  | R143: =IF(AND(OR(I143="PV-301",I143="PV-302"),L143="Tangent to Curve"),J143+(G143*0.3),IF(AND(OR(I143="PV-301",I143="PV-302"),L143="Spiral Curve"),J143,IF(AND(OR(I143="PV-304",I143="PV-305",I143="PV-306"),F143>=2),S143-(H143/5),IF(I143="PV-303",J143+(G143*0.3),"")))) ->  | S143: =IF(AND(OR(I143="PV-304",I143="PV-305",I143="PV-306"),F143>=2.5),Q143+H143,"") ->  | T143: =IF(AND(OR(I143="PV-304",I143="PV-305",I143="PV-306"),L143="Tangent to Curve"),J143+(G143*0.3),IF(AND(OR(I143="PV-304",I143="PV-305",I143="PV-306"),L143="Spiral Curve"),J143,"")) ->  | U143: =IF(AND(OR(I143="PV-301",I143="PV-302"),F143>2.8),J143,IF(AND(OR(I143="PV-304",I143="PV-305",I143="PV-306"),F143>=3.6),J143,"")) ->  | V143: =IF(AND(OR(I143="PV-301",I143="PV-302"),F143<=2.8),J143,IF(AND(OR(I143="PV-304",I143="PV-305",I143="PV-306"),AND(F143>2.8,F143<3.6)),J143,"")) ->  | W143: =IF(AND(OR(I143="PV-304",I143="PV-305",I143="PV-306"),F143<=2.8),J143,"") ->  | X143: =IF(AND(OR(I143="PV-301",I143="PV-302",I143="PV-303"),F143>=M143),R143-(G143/F143)*(F143-M143),IF(AND(OR(I143="PV-304",I143="PV-305",I143="PV-306"),F143>=M143),T143-(G143/F143)*(F143-M143),"")) ->  | Y143: =IF(AND(OR(I143="PV-301",I143="PV-302",I143="PV-303"),M143+F143>=8),R143-(G143/F143)*(F143-(8-M143)),IF(AND(OR(I143="PV-304",I143="PV-305",I143="PV-306"),M143+F143>=8),T143-(G143/F143)*(F143-(8-M143)),"")) ->  | Z143: =IF(AND(OR(I143="PV-301",I143="PV-302",I143="PV-303"),F143>=7),R143-(F143-7)*(G143/F143),"") -> 
O144: =IF(OR(I143="PV-301",I143="PV-302"),P144+H143,IF(OR(I143="PV-304",I143="PV-305",I143="PV-306"),Q144+H143,IF(AND(I143="PV-303",N143="A"),P144+H143,IF(AND(I143="PV-303",N143="B"),R144+(G143-H143),"")))) ->  | P144: =IF(OR(I143="PV-301",I143="PV-302"),R144+G143,IF(OR(I143="PV-304",I143="PV-305",I143="PV-306"),O144-H143/5,IF(AND(I143="PV-303",N143="A"),R144+G143,""))) ->  | Q144: =IF(OR(I143="PV-301",I143="PV-302"),P144-H143,IF(OR(I143="PV-304",I143="PV-305",I143="PV-306"),T144+G143,IF(I143="PV-303",K143,""))) ->  | R144: =IF(AND(OR(I143="PV-301",I143="PV-302"),L143="Tangent to Curve"),K143-(G143*0.3),IF(AND(OR(I143="PV-301",I143="PV-302"),L143="Spiral Curve"),K143,IF(AND(OR(I143="PV-304",I143="PV-305",I143="PV-306"),F143>=2),S144+(H143/5),IF(I143="PV-303",K143-(G143*0.3),"")))) ->  | S144: =IF(AND(OR(I143="PV-304",I143="PV-305",I143="PV-306"),F143>=2.5),Q144-H143,"") ->  | T144: =IF(AND(OR(I143="PV-304",I143="PV-305",I143="PV-306"),L143="Tangent to Curve"),K143-(G143*0.3),IF(AND(OR(I143="PV-304",I143="PV-305",I143="PV-306"),L143="Spiral Curve"),K143,"")) ->  | U144: =IF(AND(OR(I143="PV-301",I143="PV-302"),F143>2.8),K143,IF(AND(OR(I143="PV-304",I143="PV-305",I143="PV-306"),F143>=3.6),K143,"")) ->  | V144: =IF(AND(OR(I143="PV-301",I143="PV-302"),F143<=2.8),K143,IF(AND(OR(I143="PV-304",I143="PV-305",I143="PV-306"),AND(F143>2.8,F143<3.6)),K143,"")) ->  | W144: =IF(AND(OR(I143="PV-304",I143="PV-305",I143="PV-306"),F143<=2.8),K143,"") ->  | X144: =IF(AND(OR(I143="PV-301",I143="PV-302",I143="PV-303"),F143>=M143),R144+(G143/F143)*(F143-M143),IF(AND(OR(I143="PV-304",I143="PV-305",I143="PV-306"),F143>=M143),T144+(G143/F143)*(F143-M143),"")) ->  | Y144: =IF(AND(OR(I143="PV-301",I143="PV-302",I143="PV-303"),M143+F143>=8),R144+(G143/F143)*(F143-(8-M143)),IF(AND(OR(I143="PV-304",I143="PV-305",I143="PV-306"),M143+F143>=8),T144+(G143/F143)*(F143-(8-M143)),"")) ->  | Z144: =IF(AND(OR(I143="PV-301",I143="PV-302",I143="PV-303"),F143>=7),R144+(F143-7)*(G143/F143),"") -> 
O145: =IF(OR(I145="PV-301",I145="PV-302"),P145-H145,IF(OR(I145="PV-304",I145="PV-305",I145="PV-306"),Q145-H145,IF(AND(I145="PV-303",N145="A"),P145-H145,IF(AND(I145="PV-303",N145="B"),R145-(G145-H145),"")))) ->  | P145: =IF(OR(I145="PV-301",I145="PV-302"),R145-G145,IF(OR(I145="PV-304",I145="PV-305",I145="PV-306"),O145+H145/5,IF(AND(I145="PV-303",N145="A"),R145-G145,""))) ->  | Q145: =IF(OR(I145="PV-301",I145="PV-302"),P145+H145,IF(OR(I145="PV-304",I145="PV-305",I145="PV-306"),T145-G145,IF(I145="PV-303",J145,""))) ->  | R145: =IF(AND(OR(I145="PV-301",I145="PV-302"),L145="Tangent to Curve"),J145+(G145*0.3),IF(AND(OR(I145="PV-301",I145="PV-302"),L145="Spiral Curve"),J145,IF(AND(OR(I145="PV-304",I145="PV-305",I145="PV-306"),F145>=2),S145-(H145/5),IF(I145="PV-303",J145+(G145*0.3),"")))) ->  | S145: =IF(AND(OR(I145="PV-304",I145="PV-305",I145="PV-306"),F145>=2.5),Q145+H145,"") ->  | T145: =IF(AND(OR(I145="PV-304",I145="PV-305",I145="PV-306"),L145="Tangent to Curve"),J145+(G145*0.3),IF(AND(OR(I145="PV-304",I145="PV-305",I145="PV-306"),L145="Spiral Curve"),J145,"")) ->  | U145: =IF(AND(OR(I145="PV-301",I145="PV-302"),F145>2.8),J145,IF(AND(OR(I145="PV-304",I145="PV-305",I145="PV-306"),F145>=3.6),J145,"")) ->  | V145: =IF(AND(OR(I145="PV-301",I145="PV-302"),F145<=2.8),J145,IF(AND(OR(I145="PV-304",I145="PV-305",I145="PV-306"),AND(F145>2.8,F145<3.6)),J145,"")) ->  | W145: =IF(AND(OR(I145="PV-304",I145="PV-305",I145="PV-306"),F145<=2.8),J145,"") ->  | X145: =IF(AND(OR(I145="PV-301",I145="PV-302",I145="PV-303"),F145>=M145),R145-(G145/F145)*(F145-M145),IF(AND(OR(I145="PV-304",I145="PV-305",I145="PV-306"),F145>=M145),T145-(G145/F145)*(F145-M145),"")) ->  | Y145: =IF(AND(OR(I145="PV-301",I145="PV-302",I145="PV-303"),M145+F145>=8),R145-(G145/F145)*(F145-(8-M145)),IF(AND(OR(I145="PV-304",I145="PV-305",I145="PV-306"),M145+F145>=8),T145-(G145/F145)*(F145-(8-M145)),"")) ->  | Z145: =IF(AND(OR(I145="PV-301",I145="PV-302",I145="PV-303"),F145>=7),R145-(F145-7)*(G145/F145),"") -> 
O146: =IF(OR(I145="PV-301",I145="PV-302"),P146+H145,IF(OR(I145="PV-304",I145="PV-305",I145="PV-306"),Q146+H145,IF(AND(I145="PV-303",N145="A"),P146+H145,IF(AND(I145="PV-303",N145="B"),R146+(G145-H145),"")))) ->  | P146: =IF(OR(I145="PV-301",I145="PV-302"),R146+G145,IF(OR(I145="PV-304",I145="PV-305",I145="PV-306"),O146-H145/5,IF(AND(I145="PV-303",N145="A"),R146+G145,""))) ->  | Q146: =IF(OR(I145="PV-301",I145="PV-302"),P146-H145,IF(OR(I145="PV-304",I145="PV-305",I145="PV-306"),T146+G145,IF(I145="PV-303",K145,""))) ->  | R146: =IF(AND(OR(I145="PV-301",I145="PV-302"),L145="Tangent to Curve"),K145-(G145*0.3),IF(AND(OR(I145="PV-301",I145="PV-302"),L145="Spiral Curve"),K145,IF(AND(OR(I145="PV-304",I145="PV-305",I145="PV-306"),F145>=2),S146+(H145/5),IF(I145="PV-303",K145-(G145*0.3),"")))) ->  | S146: =IF(AND(OR(I145="PV-304",I145="PV-305",I145="PV-306"),F145>=2.5),Q146-H145,"") ->  | T146: =IF(AND(OR(I145="PV-304",I145="PV-305",I145="PV-306"),L145="Tangent to Curve"),K145-(G145*0.3),IF(AND(OR(I145="PV-304",I145="PV-305",I145="PV-306"),L145="Spiral Curve"),K145,"")) ->  | U146: =IF(AND(OR(I145="PV-301",I145="PV-302"),F145>2.8),K145,IF(AND(OR(I145="PV-304",I145="PV-305",I145="PV-306"),F145>=3.6),K145,"")) ->  | V146: =IF(AND(OR(I145="PV-301",I145="PV-302"),F145<=2.8),K145,IF(AND(OR(I145="PV-304",I145="PV-305",I145="PV-306"),AND(F145>2.8,F145<3.6)),K145,"")) ->  | W146: =IF(AND(OR(I145="PV-304",I145="PV-305",I145="PV-306"),F145<=2.8),K145,"") ->  | X146: =IF(AND(OR(I145="PV-301",I145="PV-302",I145="PV-303"),F145>=M145),R146+(G145/F145)*(F145-M145),IF(AND(OR(I145="PV-304",I145="PV-305",I145="PV-306"),F145>=M145),T146+(G145/F145)*(F145-M145),"")) ->  | Y146: =IF(AND(OR(I145="PV-301",I145="PV-302",I145="PV-303"),M145+F145>=8),R146+(G145/F145)*(F145-(8-M145)),IF(AND(OR(I145="PV-304",I145="PV-305",I145="PV-306"),M145+F145>=8),T146+(G145/F145)*(F145-(8-M145)),"")) ->  | Z146: =IF(AND(OR(I145="PV-301",I145="PV-302",I145="PV-303"),F145>=7),R146+(F145-7)*(G145/F145),"") -> 
O147: =IF(OR(I147="PV-301",I147="PV-302"),P147-H147,IF(OR(I147="PV-304",I147="PV-305",I147="PV-306"),Q147-H147,IF(AND(I147="PV-303",N147="A"),P147-H147,IF(AND(I147="PV-303",N147="B"),R147-(G147-H147),"")))) ->  | P147: =IF(OR(I147="PV-301",I147="PV-302"),R147-G147,IF(OR(I147="PV-304",I147="PV-305",I147="PV-306"),O147+H147/5,IF(AND(I147="PV-303",N147="A"),R147-G147,""))) ->  | Q147: =IF(OR(I147="PV-301",I147="PV-302"),P147+H147,IF(OR(I147="PV-304",I147="PV-305",I147="PV-306"),T147-G147,IF(I147="PV-303",J147,""))) ->  | R147: =IF(AND(OR(I147="PV-301",I147="PV-302"),L147="Tangent to Curve"),J147+(G147*0.3),IF(AND(OR(I147="PV-301",I147="PV-302"),L147="Spiral Curve"),J147,IF(AND(OR(I147="PV-304",I147="PV-305",I147="PV-306"),F147>=2),S147-(H147/5),IF(I147="PV-303",J147+(G147*0.3),"")))) ->  | S147: =IF(AND(OR(I147="PV-304",I147="PV-305",I147="PV-306"),F147>=2.5),Q147+H147,"") ->  | T147: =IF(AND(OR(I147="PV-304",I147="PV-305",I147="PV-306"),L147="Tangent to Curve"),J147+(G147*0.3),IF(AND(OR(I147="PV-304",I147="PV-305",I147="PV-306"),L147="Spiral Curve"),J147,"")) ->  | U147: =IF(AND(OR(I147="PV-301",I147="PV-302"),F147>2.8),J147,IF(AND(OR(I147="PV-304",I147="PV-305",I147="PV-306"),F147>=3.6),J147,"")) ->  | V147: =IF(AND(OR(I147="PV-301",I147="PV-302"),F147<=2.8),J147,IF(AND(OR(I147="PV-304",I147="PV-305",I147="PV-306"),AND(F147>2.8,F147<3.6)),J147,"")) ->  | W147: =IF(AND(OR(I147="PV-304",I147="PV-305",I147="PV-306"),F147<=2.8),J147,"") ->  | X147: =IF(AND(OR(I147="PV-301",I147="PV-302",I147="PV-303"),F147>=M147),R147-(G147/F147)*(F147-M147),IF(AND(OR(I147="PV-304",I147="PV-305",I147="PV-306"),F147>=M147),T147-(G147/F147)*(F147-M147),"")) ->  | Y147: =IF(AND(OR(I147="PV-301",I147="PV-302",I147="PV-303"),M147+F147>=8),R147-(G147/F147)*(F147-(8-M147)),IF(AND(OR(I147="PV-304",I147="PV-305",I147="PV-306"),M147+F147>=8),T147-(G147/F147)*(F147-(8-M147)),"")) ->  | Z147: =IF(AND(OR(I147="PV-301",I147="PV-302",I147="PV-303"),F147>=7),R147-(F147-7)*(G147/F147),"") -> 
O148: =IF(OR(I147="PV-301",I147="PV-302"),P148+H147,IF(OR(I147="PV-304",I147="PV-305",I147="PV-306"),Q148+H147,IF(AND(I147="PV-303",N147="A"),P148+H147,IF(AND(I147="PV-303",N147="B"),R148+(G147-H147),"")))) ->  | P148: =IF(OR(I147="PV-301",I147="PV-302"),R148+G147,IF(OR(I147="PV-304",I147="PV-305",I147="PV-306"),O148-H147/5,IF(AND(I147="PV-303",N147="A"),R148+G147,""))) ->  | Q148: =IF(OR(I147="PV-301",I147="PV-302"),P148-H147,IF(OR(I147="PV-304",I147="PV-305",I147="PV-306"),T148+G147,IF(I147="PV-303",K147,""))) ->  | R148: =IF(AND(OR(I147="PV-301",I147="PV-302"),L147="Tangent to Curve"),K147-(G147*0.3),IF(AND(OR(I147="PV-301",I147="PV-302"),L147="Spiral Curve"),K147,IF(AND(OR(I147="PV-304",I147="PV-305",I147="PV-306"),F147>=2),S148+(H147/5),IF(I147="PV-303",K147-(G147*0.3),"")))) ->  | S148: =IF(AND(OR(I147="PV-304",I147="PV-305",I147="PV-306"),F147>=2.5),Q148-H147,"") ->  | T148: =IF(AND(OR(I147="PV-304",I147="PV-305",I147="PV-306"),L147="Tangent to Curve"),K147-(G147*0.3),IF(AND(OR(I147="PV-304",I147="PV-305",I147="PV-306"),L147="Spiral Curve"),K147,"")) ->  | U148: =IF(AND(OR(I147="PV-301",I147="PV-302"),F147>2.8),K147,IF(AND(OR(I147="PV-304",I147="PV-305",I147="PV-306"),F147>=3.6),K147,"")) ->  | V148: =IF(AND(OR(I147="PV-301",I147="PV-302"),F147<=2.8),K147,IF(AND(OR(I147="PV-304",I147="PV-305",I147="PV-306"),AND(F147>2.8,F147<3.6)),K147,"")) ->  | W148: =IF(AND(OR(I147="PV-304",I147="PV-305",I147="PV-306"),F147<=2.8),K147,"") ->  | X148: =IF(AND(OR(I147="PV-301",I147="PV-302",I147="PV-303"),F147>=M147),R148+(G147/F147)*(F147-M147),IF(AND(OR(I147="PV-304",I147="PV-305",I147="PV-306"),F147>=M147),T148+(G147/F147)*(F147-M147),"")) ->  | Y148: =IF(AND(OR(I147="PV-301",I147="PV-302",I147="PV-303"),M147+F147>=8),R148+(G147/F147)*(F147-(8-M147)),IF(AND(OR(I147="PV-304",I147="PV-305",I147="PV-306"),M147+F147>=8),T148+(G147/F147)*(F147-(8-M147)),"")) ->  | Z148: =IF(AND(OR(I147="PV-301",I147="PV-302",I147="PV-303"),F147>=7),R148+(F147-7)*(G147/F147),"") -> 
O149: =IF(OR(I149="PV-301",I149="PV-302"),P149-H149,IF(OR(I149="PV-304",I149="PV-305",I149="PV-306"),Q149-H149,IF(AND(I149="PV-303",N149="A"),P149-H149,IF(AND(I149="PV-303",N149="B"),R149-(G149-H149),"")))) ->  | P149: =IF(OR(I149="PV-301",I149="PV-302"),R149-G149,IF(OR(I149="PV-304",I149="PV-305",I149="PV-306"),O149+H149/5,IF(AND(I149="PV-303",N149="A"),R149-G149,""))) ->  | Q149: =IF(OR(I149="PV-301",I149="PV-302"),P149+H149,IF(OR(I149="PV-304",I149="PV-305",I149="PV-306"),T149-G149,IF(I149="PV-303",J149,""))) ->  | R149: =IF(AND(OR(I149="PV-301",I149="PV-302"),L149="Tangent to Curve"),J149+(G149*0.3),IF(AND(OR(I149="PV-301",I149="PV-302"),L149="Spiral Curve"),J149,IF(AND(OR(I149="PV-304",I149="PV-305",I149="PV-306"),F149>=2),S149-(H149/5),IF(I149="PV-303",J149+(G149*0.3),"")))) ->  | S149: =IF(AND(OR(I149="PV-304",I149="PV-305",I149="PV-306"),F149>=2.5),Q149+H149,"") ->  | T149: =IF(AND(OR(I149="PV-304",I149="PV-305",I149="PV-306"),L149="Tangent to Curve"),J149+(G149*0.3),IF(AND(OR(I149="PV-304",I149="PV-305",I149="PV-306"),L149="Spiral Curve"),J149,"")) ->  | U149: =IF(AND(OR(I149="PV-301",I149="PV-302"),F149>2.8),J149,IF(AND(OR(I149="PV-304",I149="PV-305",I149="PV-306"),F149>=3.6),J149,"")) ->  | V149: =IF(AND(OR(I149="PV-301",I149="PV-302"),F149<=2.8),J149,IF(AND(OR(I149="PV-304",I149="PV-305",I149="PV-306"),AND(F149>2.8,F149<3.6)),J149,"")) ->  | W149: =IF(AND(OR(I149="PV-304",I149="PV-305",I149="PV-306"),F149<=2.8),J149,"") ->  | X149: =IF(AND(OR(I149="PV-301",I149="PV-302",I149="PV-303"),F149>=M149),R149-(G149/F149)*(F149-M149),IF(AND(OR(I149="PV-304",I149="PV-305",I149="PV-306"),F149>=M149),T149-(G149/F149)*(F149-M149),"")) ->  | Y149: =IF(AND(OR(I149="PV-301",I149="PV-302",I149="PV-303"),M149+F149>=8),R149-(G149/F149)*(F149-(8-M149)),IF(AND(OR(I149="PV-304",I149="PV-305",I149="PV-306"),M149+F149>=8),T149-(G149/F149)*(F149-(8-M149)),"")) ->  | Z149: =IF(AND(OR(I149="PV-301",I149="PV-302",I149="PV-303"),F149>=7),R149-(F149-7)*(G149/F149),"") -> 
O150: =IF(OR(I149="PV-301",I149="PV-302"),P150+H149,IF(OR(I149="PV-304",I149="PV-305",I149="PV-306"),Q150+H149,IF(AND(I149="PV-303",N149="A"),P150+H149,IF(AND(I149="PV-303",N149="B"),R150+(G149-H149),"")))) ->  | P150: =IF(OR(I149="PV-301",I149="PV-302"),R150+G149,IF(OR(I149="PV-304",I149="PV-305",I149="PV-306"),O150-H149/5,IF(AND(I149="PV-303",N149="A"),R150+G149,""))) ->  | Q150: =IF(OR(I149="PV-301",I149="PV-302"),P150-H149,IF(OR(I149="PV-304",I149="PV-305",I149="PV-306"),T150+G149,IF(I149="PV-303",K149,""))) ->  | R150: =IF(AND(OR(I149="PV-301",I149="PV-302"),L149="Tangent to Curve"),K149-(G149*0.3),IF(AND(OR(I149="PV-301",I149="PV-302"),L149="Spiral Curve"),K149,IF(AND(OR(I149="PV-304",I149="PV-305",I149="PV-306"),F149>=2),S150+(H149/5),IF(I149="PV-303",K149-(G149*0.3),"")))) ->  | S150: =IF(AND(OR(I149="PV-304",I149="PV-305",I149="PV-306"),F149>=2.5),Q150-H149,"") ->  | T150: =IF(AND(OR(I149="PV-304",I149="PV-305",I149="PV-306"),L149="Tangent to Curve"),K149-(G149*0.3),IF(AND(OR(I149="PV-304",I149="PV-305",I149="PV-306"),L149="Spiral Curve"),K149,"")) ->  | U150: =IF(AND(OR(I149="PV-301",I149="PV-302"),F149>2.8),K149,IF(AND(OR(I149="PV-304",I149="PV-305",I149="PV-306"),F149>=3.6),K149,"")) ->  | V150: =IF(AND(OR(I149="PV-301",I149="PV-302"),F149<=2.8),K149,IF(AND(OR(I149="PV-304",I149="PV-305",I149="PV-306"),AND(F149>2.8,F149<3.6)),K149,"")) ->  | W150: =IF(AND(OR(I149="PV-304",I149="PV-305",I149="PV-306"),F149<=2.8),K149,"") ->  | X150: =IF(AND(OR(I149="PV-301",I149="PV-302",I149="PV-303"),F149>=M149),R150+(G149/F149)*(F149-M149),IF(AND(OR(I149="PV-304",I149="PV-305",I149="PV-306"),F149>=M149),T150+(G149/F149)*(F149-M149),"")) ->  | Y150: =IF(AND(OR(I149="PV-301",I149="PV-302",I149="PV-303"),M149+F149>=8),R150+(G149/F149)*(F149-(8-M149)),IF(AND(OR(I149="PV-304",I149="PV-305",I149="PV-306"),M149+F149>=8),T150+(G149/F149)*(F149-(8-M149)),"")) ->  | Z150: =IF(AND(OR(I149="PV-301",I149="PV-302",I149="PV-303"),F149>=7),R150+(F149-7)*(G149/F149),"") -> 
O151: =IF(OR(I151="PV-301",I151="PV-302"),P151-H151,IF(OR(I151="PV-304",I151="PV-305",I151="PV-306"),Q151-H151,IF(AND(I151="PV-303",N151="A"),P151-H151,IF(AND(I151="PV-303",N151="B"),R151-(G151-H151),"")))) ->  | P151: =IF(OR(I151="PV-301",I151="PV-302"),R151-G151,IF(OR(I151="PV-304",I151="PV-305",I151="PV-306"),O151+H151/5,IF(AND(I151="PV-303",N151="A"),R151-G151,""))) ->  | Q151: =IF(OR(I151="PV-301",I151="PV-302"),P151+H151,IF(OR(I151="PV-304",I151="PV-305",I151="PV-306"),T151-G151,IF(I151="PV-303",J151,""))) ->  | R151: =IF(AND(OR(I151="PV-301",I151="PV-302"),L151="Tangent to Curve"),J151+(G151*0.3),IF(AND(OR(I151="PV-301",I151="PV-302"),L151="Spiral Curve"),J151,IF(AND(OR(I151="PV-304",I151="PV-305",I151="PV-306"),F151>=2),S151-(H151/5),IF(I151="PV-303",J151+(G151*0.3),"")))) ->  | S151: =IF(AND(OR(I151="PV-304",I151="PV-305",I151="PV-306"),F151>=2.5),Q151+H151,"") ->  | T151: =IF(AND(OR(I151="PV-304",I151="PV-305",I151="PV-306"),L151="Tangent to Curve"),J151+(G151*0.3),IF(AND(OR(I151="PV-304",I151="PV-305",I151="PV-306"),L151="Spiral Curve"),J151,"")) ->  | U151: =IF(AND(OR(I151="PV-301",I151="PV-302"),F151>2.8),J151,IF(AND(OR(I151="PV-304",I151="PV-305",I151="PV-306"),F151>=3.6),J151,"")) ->  | V151: =IF(AND(OR(I151="PV-301",I151="PV-302"),F151<=2.8),J151,IF(AND(OR(I151="PV-304",I151="PV-305",I151="PV-306"),AND(F151>2.8,F151<3.6)),J151,"")) ->  | W151: =IF(AND(OR(I151="PV-304",I151="PV-305",I151="PV-306"),F151<=2.8),J151,"") ->  | X151: =IF(AND(OR(I151="PV-301",I151="PV-302",I151="PV-303"),F151>=M151),R151-(G151/F151)*(F151-M151),IF(AND(OR(I151="PV-304",I151="PV-305",I151="PV-306"),F151>=M151),T151-(G151/F151)*(F151-M151),"")) ->  | Y151: =IF(AND(OR(I151="PV-301",I151="PV-302",I151="PV-303"),M151+F151>=8),R151-(G151/F151)*(F151-(8-M151)),IF(AND(OR(I151="PV-304",I151="PV-305",I151="PV-306"),M151+F151>=8),T151-(G151/F151)*(F151-(8-M151)),"")) ->  | Z151: =IF(AND(OR(I151="PV-301",I151="PV-302",I151="PV-303"),F151>=7),R151-(F151-7)*(G151/F151),"") -> 
O152: =IF(OR(I151="PV-301",I151="PV-302"),P152+H151,IF(OR(I151="PV-304",I151="PV-305",I151="PV-306"),Q152+H151,IF(AND(I151="PV-303",N151="A"),P152+H151,IF(AND(I151="PV-303",N151="B"),R152+(G151-H151),"")))) ->  | P152: =IF(OR(I151="PV-301",I151="PV-302"),R152+G151,IF(OR(I151="PV-304",I151="PV-305",I151="PV-306"),O152-H151/5,IF(AND(I151="PV-303",N151="A"),R152+G151,""))) ->  | Q152: =IF(OR(I151="PV-301",I151="PV-302"),P152-H151,IF(OR(I151="PV-304",I151="PV-305",I151="PV-306"),T152+G151,IF(I151="PV-303",K151,""))) ->  | R152: =IF(AND(OR(I151="PV-301",I151="PV-302"),L151="Tangent to Curve"),K151-(G151*0.3),IF(AND(OR(I151="PV-301",I151="PV-302"),L151="Spiral Curve"),K151,IF(AND(OR(I151="PV-304",I151="PV-305",I151="PV-306"),F151>=2),S152+(H151/5),IF(I151="PV-303",K151-(G151*0.3),"")))) ->  | S152: =IF(AND(OR(I151="PV-304",I151="PV-305",I151="PV-306"),F151>=2.5),Q152-H151,"") ->  | T152: =IF(AND(OR(I151="PV-304",I151="PV-305",I151="PV-306"),L151="Tangent to Curve"),K151-(G151*0.3),IF(AND(OR(I151="PV-304",I151="PV-305",I151="PV-306"),L151="Spiral Curve"),K151,"")) ->  | U152: =IF(AND(OR(I151="PV-301",I151="PV-302"),F151>2.8),K151,IF(AND(OR(I151="PV-304",I151="PV-305",I151="PV-306"),F151>=3.6),K151,"")) ->  | V152: =IF(AND(OR(I151="PV-301",I151="PV-302"),F151<=2.8),K151,IF(AND(OR(I151="PV-304",I151="PV-305",I151="PV-306"),AND(F151>2.8,F151<3.6)),K151,"")) ->  | W152: =IF(AND(OR(I151="PV-304",I151="PV-305",I151="PV-306"),F151<=2.8),K151,"") ->  | X152: =IF(AND(OR(I151="PV-301",I151="PV-302",I151="PV-303"),F151>=M151),R152+(G151/F151)*(F151-M151),IF(AND(OR(I151="PV-304",I151="PV-305",I151="PV-306"),F151>=M151),T152+(G151/F151)*(F151-M151),"")) ->  | Y152: =IF(AND(OR(I151="PV-301",I151="PV-302",I151="PV-303"),M151+F151>=8),R152+(G151/F151)*(F151-(8-M151)),IF(AND(OR(I151="PV-304",I151="PV-305",I151="PV-306"),M151+F151>=8),T152+(G151/F151)*(F151-(8-M151)),"")) ->  | Z152: =IF(AND(OR(I151="PV-301",I151="PV-302",I151="PV-303"),F151>=7),R152+(F151-7)*(G151/F151),"") -> 
O153: =IF(OR(I153="PV-301",I153="PV-302"),P153-H153,IF(OR(I153="PV-304",I153="PV-305",I153="PV-306"),Q153-H153,IF(AND(I153="PV-303",N153="A"),P153-H153,IF(AND(I153="PV-303",N153="B"),R153-(G153-H153),"")))) ->  | P153: =IF(OR(I153="PV-301",I153="PV-302"),R153-G153,IF(OR(I153="PV-304",I153="PV-305",I153="PV-306"),O153+H153/5,IF(AND(I153="PV-303",N153="A"),R153-G153,""))) ->  | Q153: =IF(OR(I153="PV-301",I153="PV-302"),P153+H153,IF(OR(I153="PV-304",I153="PV-305",I153="PV-306"),T153-G153,IF(I153="PV-303",J153,""))) ->  | R153: =IF(AND(OR(I153="PV-301",I153="PV-302"),L153="Tangent to Curve"),J153+(G153*0.3),IF(AND(OR(I153="PV-301",I153="PV-302"),L153="Spiral Curve"),J153,IF(AND(OR(I153="PV-304",I153="PV-305",I153="PV-306"),F153>=2),S153-(H153/5),IF(I153="PV-303",J153+(G153*0.3),"")))) ->  | S153: =IF(AND(OR(I153="PV-304",I153="PV-305",I153="PV-306"),F153>=2.5),Q153+H153,"") ->  | T153: =IF(AND(OR(I153="PV-304",I153="PV-305",I153="PV-306"),L153="Tangent to Curve"),J153+(G153*0.3),IF(AND(OR(I153="PV-304",I153="PV-305",I153="PV-306"),L153="Spiral Curve"),J153,"")) ->  | U153: =IF(AND(OR(I153="PV-301",I153="PV-302"),F153>2.8),J153,IF(AND(OR(I153="PV-304",I153="PV-305",I153="PV-306"),F153>=3.6),J153,"")) ->  | V153: =IF(AND(OR(I153="PV-301",I153="PV-302"),F153<=2.8),J153,IF(AND(OR(I153="PV-304",I153="PV-305",I153="PV-306"),AND(F153>2.8,F153<3.6)),J153,"")) ->  | W153: =IF(AND(OR(I153="PV-304",I153="PV-305",I153="PV-306"),F153<=2.8),J153,"") ->  | X153: =IF(AND(OR(I153="PV-301",I153="PV-302",I153="PV-303"),F153>=M153),R153-(G153/F153)*(F153-M153),IF(AND(OR(I153="PV-304",I153="PV-305",I153="PV-306"),F153>=M153),T153-(G153/F153)*(F153-M153),"")) ->  | Y153: =IF(AND(OR(I153="PV-301",I153="PV-302",I153="PV-303"),M153+F153>=8),R153-(G153/F153)*(F153-(8-M153)),IF(AND(OR(I153="PV-304",I153="PV-305",I153="PV-306"),M153+F153>=8),T153-(G153/F153)*(F153-(8-M153)),"")) ->  | Z153: =IF(AND(OR(I153="PV-301",I153="PV-302",I153="PV-303"),F153>=7),R153-(F153-7)*(G153/F153),"") -> 
O154: =IF(OR(I153="PV-301",I153="PV-302"),P154+H153,IF(OR(I153="PV-304",I153="PV-305",I153="PV-306"),Q154+H153,IF(AND(I153="PV-303",N153="A"),P154+H153,IF(AND(I153="PV-303",N153="B"),R154+(G153-H153),"")))) ->  | P154: =IF(OR(I153="PV-301",I153="PV-302"),R154+G153,IF(OR(I153="PV-304",I153="PV-305",I153="PV-306"),O154-H153/5,IF(AND(I153="PV-303",N153="A"),R154+G153,""))) ->  | Q154: =IF(OR(I153="PV-301",I153="PV-302"),P154-H153,IF(OR(I153="PV-304",I153="PV-305",I153="PV-306"),T154+G153,IF(I153="PV-303",K153,""))) ->  | R154: =IF(AND(OR(I153="PV-301",I153="PV-302"),L153="Tangent to Curve"),K153-(G153*0.3),IF(AND(OR(I153="PV-301",I153="PV-302"),L153="Spiral Curve"),K153,IF(AND(OR(I153="PV-304",I153="PV-305",I153="PV-306"),F153>=2),S154+(H153/5),IF(I153="PV-303",K153-(G153*0.3),"")))) ->  | S154: =IF(AND(OR(I153="PV-304",I153="PV-305",I153="PV-306"),F153>=2.5),Q154-H153,"") ->  | T154: =IF(AND(OR(I153="PV-304",I153="PV-305",I153="PV-306"),L153="Tangent to Curve"),K153-(G153*0.3),IF(AND(OR(I153="PV-304",I153="PV-305",I153="PV-306"),L153="Spiral Curve"),K153,"")) ->  | U154: =IF(AND(OR(I153="PV-301",I153="PV-302"),F153>2.8),K153,IF(AND(OR(I153="PV-304",I153="PV-305",I153="PV-306"),F153>=3.6),K153,"")) ->  | V154: =IF(AND(OR(I153="PV-301",I153="PV-302"),F153<=2.8),K153,IF(AND(OR(I153="PV-304",I153="PV-305",I153="PV-306"),AND(F153>2.8,F153<3.6)),K153,"")) ->  | W154: =IF(AND(OR(I153="PV-304",I153="PV-305",I153="PV-306"),F153<=2.8),K153,"") ->  | X154: =IF(AND(OR(I153="PV-301",I153="PV-302",I153="PV-303"),F153>=M153),R154+(G153/F153)*(F153-M153),IF(AND(OR(I153="PV-304",I153="PV-305",I153="PV-306"),F153>=M153),T154+(G153/F153)*(F153-M153),"")) ->  | Y154: =IF(AND(OR(I153="PV-301",I153="PV-302",I153="PV-303"),M153+F153>=8),R154+(G153/F153)*(F153-(8-M153)),IF(AND(OR(I153="PV-304",I153="PV-305",I153="PV-306"),M153+F153>=8),T154+(G153/F153)*(F153-(8-M153)),"")) ->  | Z154: =IF(AND(OR(I153="PV-301",I153="PV-302",I153="PV-303"),F153>=7),R154+(F153-7)*(G153/F153),"") -> 
O155: =IF(OR(I155="PV-301",I155="PV-302"),P155-H155,IF(OR(I155="PV-304",I155="PV-305",I155="PV-306"),Q155-H155,IF(AND(I155="PV-303",N155="A"),P155-H155,IF(AND(I155="PV-303",N155="B"),R155-(G155-H155),"")))) ->  | P155: =IF(OR(I155="PV-301",I155="PV-302"),R155-G155,IF(OR(I155="PV-304",I155="PV-305",I155="PV-306"),O155+H155/5,IF(AND(I155="PV-303",N155="A"),R155-G155,""))) ->  | Q155: =IF(OR(I155="PV-301",I155="PV-302"),P155+H155,IF(OR(I155="PV-304",I155="PV-305",I155="PV-306"),T155-G155,IF(I155="PV-303",J155,""))) ->  | R155: =IF(AND(OR(I155="PV-301",I155="PV-302"),L155="Tangent to Curve"),J155+(G155*0.3),IF(AND(OR(I155="PV-301",I155="PV-302"),L155="Spiral Curve"),J155,IF(AND(OR(I155="PV-304",I155="PV-305",I155="PV-306"),F155>=2),S155-(H155/5),IF(I155="PV-303",J155+(G155*0.3),"")))) ->  | S155: =IF(AND(OR(I155="PV-304",I155="PV-305",I155="PV-306"),F155>=2.5),Q155+H155,"") ->  | T155: =IF(AND(OR(I155="PV-304",I155="PV-305",I155="PV-306"),L155="Tangent to Curve"),J155+(G155*0.3),IF(AND(OR(I155="PV-304",I155="PV-305",I155="PV-306"),L155="Spiral Curve"),J155,"")) ->  | U155: =IF(AND(OR(I155="PV-301",I155="PV-302"),F155>2.8),J155,IF(AND(OR(I155="PV-304",I155="PV-305",I155="PV-306"),F155>=3.6),J155,"")) ->  | V155: =IF(AND(OR(I155="PV-301",I155="PV-302"),F155<=2.8),J155,IF(AND(OR(I155="PV-304",I155="PV-305",I155="PV-306"),AND(F155>2.8,F155<3.6)),J155,"")) ->  | W155: =IF(AND(OR(I155="PV-304",I155="PV-305",I155="PV-306"),F155<=2.8),J155,"") ->  | X155: =IF(AND(OR(I155="PV-301",I155="PV-302",I155="PV-303"),F155>=M155),R155-(G155/F155)*(F155-M155),IF(AND(OR(I155="PV-304",I155="PV-305",I155="PV-306"),F155>=M155),T155-(G155/F155)*(F155-M155),"")) ->  | Y155: =IF(AND(OR(I155="PV-301",I155="PV-302",I155="PV-303"),M155+F155>=8),R155-(G155/F155)*(F155-(8-M155)),IF(AND(OR(I155="PV-304",I155="PV-305",I155="PV-306"),M155+F155>=8),T155-(G155/F155)*(F155-(8-M155)),"")) ->  | Z155: =IF(AND(OR(I155="PV-301",I155="PV-302",I155="PV-303"),F155>=7),R155-(F155-7)*(G155/F155),"") -> 
O156: =IF(OR(I155="PV-301",I155="PV-302"),P156+H155,IF(OR(I155="PV-304",I155="PV-305",I155="PV-306"),Q156+H155,IF(AND(I155="PV-303",N155="A"),P156+H155,IF(AND(I155="PV-303",N155="B"),R156+(G155-H155),"")))) ->  | P156: =IF(OR(I155="PV-301",I155="PV-302"),R156+G155,IF(OR(I155="PV-304",I155="PV-305",I155="PV-306"),O156-H155/5,IF(AND(I155="PV-303",N155="A"),R156+G155,""))) ->  | Q156: =IF(OR(I155="PV-301",I155="PV-302"),P156-H155,IF(OR(I155="PV-304",I155="PV-305",I155="PV-306"),T156+G155,IF(I155="PV-303",K155,""))) ->  | R156: =IF(AND(OR(I155="PV-301",I155="PV-302"),L155="Tangent to Curve"),K155-(G155*0.3),IF(AND(OR(I155="PV-301",I155="PV-302"),L155="Spiral Curve"),K155,IF(AND(OR(I155="PV-304",I155="PV-305",I155="PV-306"),F155>=2),S156+(H155/5),IF(I155="PV-303",K155-(G155*0.3),"")))) ->  | S156: =IF(AND(OR(I155="PV-304",I155="PV-305",I155="PV-306"),F155>=2.5),Q156-H155,"") ->  | T156: =IF(AND(OR(I155="PV-304",I155="PV-305",I155="PV-306"),L155="Tangent to Curve"),K155-(G155*0.3),IF(AND(OR(I155="PV-304",I155="PV-305",I155="PV-306"),L155="Spiral Curve"),K155,"")) ->  | U156: =IF(AND(OR(I155="PV-301",I155="PV-302"),F155>2.8),K155,IF(AND(OR(I155="PV-304",I155="PV-305",I155="PV-306"),F155>=3.6),K155,"")) ->  | V156: =IF(AND(OR(I155="PV-301",I155="PV-302"),F155<=2.8),K155,IF(AND(OR(I155="PV-304",I155="PV-305",I155="PV-306"),AND(F155>2.8,F155<3.6)),K155,"")) ->  | W156: =IF(AND(OR(I155="PV-304",I155="PV-305",I155="PV-306"),F155<=2.8),K155,"") ->  | X156: =IF(AND(OR(I155="PV-301",I155="PV-302",I155="PV-303"),F155>=M155),R156+(G155/F155)*(F155-M155),IF(AND(OR(I155="PV-304",I155="PV-305",I155="PV-306"),F155>=M155),T156+(G155/F155)*(F155-M155),"")) ->  | Y156: =IF(AND(OR(I155="PV-301",I155="PV-302",I155="PV-303"),M155+F155>=8),R156+(G155/F155)*(F155-(8-M155)),IF(AND(OR(I155="PV-304",I155="PV-305",I155="PV-306"),M155+F155>=8),T156+(G155/F155)*(F155-(8-M155)),"")) ->  | Z156: =IF(AND(OR(I155="PV-301",I155="PV-302",I155="PV-303"),F155>=7),R156+(F155-7)*(G155/F155),"") -> 
O157: =IF(OR(I157="PV-301",I157="PV-302"),P157-H157,IF(OR(I157="PV-304",I157="PV-305",I157="PV-306"),Q157-H157,IF(AND(I157="PV-303",N157="A"),P157-H157,IF(AND(I157="PV-303",N157="B"),R157-(G157-H157),"")))) ->  | P157: =IF(OR(I157="PV-301",I157="PV-302"),R157-G157,IF(OR(I157="PV-304",I157="PV-305",I157="PV-306"),O157+H157/5,IF(AND(I157="PV-303",N157="A"),R157-G157,""))) ->  | Q157: =IF(OR(I157="PV-301",I157="PV-302"),P157+H157,IF(OR(I157="PV-304",I157="PV-305",I157="PV-306"),T157-G157,IF(I157="PV-303",J157,""))) ->  | R157: =IF(AND(OR(I157="PV-301",I157="PV-302"),L157="Tangent to Curve"),J157+(G157*0.3),IF(AND(OR(I157="PV-301",I157="PV-302"),L157="Spiral Curve"),J157,IF(AND(OR(I157="PV-304",I157="PV-305",I157="PV-306"),F157>=2),S157-(H157/5),IF(I157="PV-303",J157+(G157*0.3),"")))) ->  | S157: =IF(AND(OR(I157="PV-304",I157="PV-305",I157="PV-306"),F157>=2.5),Q157+H157,"") ->  | T157: =IF(AND(OR(I157="PV-304",I157="PV-305",I157="PV-306"),L157="Tangent to Curve"),J157+(G157*0.3),IF(AND(OR(I157="PV-304",I157="PV-305",I157="PV-306"),L157="Spiral Curve"),J157,"")) ->  | U157: =IF(AND(OR(I157="PV-301",I157="PV-302"),F157>2.8),J157,IF(AND(OR(I157="PV-304",I157="PV-305",I157="PV-306"),F157>=3.6),J157,"")) ->  | V157: =IF(AND(OR(I157="PV-301",I157="PV-302"),F157<=2.8),J157,IF(AND(OR(I157="PV-304",I157="PV-305",I157="PV-306"),AND(F157>2.8,F157<3.6)),J157,"")) ->  | W157: =IF(AND(OR(I157="PV-304",I157="PV-305",I157="PV-306"),F157<=2.8),J157,"") ->  | X157: =IF(AND(OR(I157="PV-301",I157="PV-302",I157="PV-303"),F157>=M157),R157-(G157/F157)*(F157-M157),IF(AND(OR(I157="PV-304",I157="PV-305",I157="PV-306"),F157>=M157),T157-(G157/F157)*(F157-M157),"")) ->  | Y157: =IF(AND(OR(I157="PV-301",I157="PV-302",I157="PV-303"),M157+F157>=8),R157-(G157/F157)*(F157-(8-M157)),IF(AND(OR(I157="PV-304",I157="PV-305",I157="PV-306"),M157+F157>=8),T157-(G157/F157)*(F157-(8-M157)),"")) ->  | Z157: =IF(AND(OR(I157="PV-301",I157="PV-302",I157="PV-303"),F157>=7),R157-(F157-7)*(G157/F157),"") -> 
O158: =IF(OR(I157="PV-301",I157="PV-302"),P158+H157,IF(OR(I157="PV-304",I157="PV-305",I157="PV-306"),Q158+H157,IF(AND(I157="PV-303",N157="A"),P158+H157,IF(AND(I157="PV-303",N157="B"),R158+(G157-H157),"")))) ->  | P158: =IF(OR(I157="PV-301",I157="PV-302"),R158+G157,IF(OR(I157="PV-304",I157="PV-305",I157="PV-306"),O158-H157/5,IF(AND(I157="PV-303",N157="A"),R158+G157,""))) ->  | Q158: =IF(OR(I157="PV-301",I157="PV-302"),P158-H157,IF(OR(I157="PV-304",I157="PV-305",I157="PV-306"),T158+G157,IF(I157="PV-303",K157,""))) ->  | R158: =IF(AND(OR(I157="PV-301",I157="PV-302"),L157="Tangent to Curve"),K157-(G157*0.3),IF(AND(OR(I157="PV-301",I157="PV-302"),L157="Spiral Curve"),K157,IF(AND(OR(I157="PV-304",I157="PV-305",I157="PV-306"),F157>=2),S158+(H157/5),IF(I157="PV-303",K157-(G157*0.3),"")))) ->  | S158: =IF(AND(OR(I157="PV-304",I157="PV-305",I157="PV-306"),F157>=2.5),Q158-H157,"") ->  | T158: =IF(AND(OR(I157="PV-304",I157="PV-305",I157="PV-306"),L157="Tangent to Curve"),K157-(G157*0.3),IF(AND(OR(I157="PV-304",I157="PV-305",I157="PV-306"),L157="Spiral Curve"),K157,"")) ->  | U158: =IF(AND(OR(I157="PV-301",I157="PV-302"),F157>2.8),K157,IF(AND(OR(I157="PV-304",I157="PV-305",I157="PV-306"),F157>=3.6),K157,"")) ->  | V158: =IF(AND(OR(I157="PV-301",I157="PV-302"),F157<=2.8),K157,IF(AND(OR(I157="PV-304",I157="PV-305",I157="PV-306"),AND(F157>2.8,F157<3.6)),K157,"")) ->  | W158: =IF(AND(OR(I157="PV-304",I157="PV-305",I157="PV-306"),F157<=2.8),K157,"") ->  | X158: =IF(AND(OR(I157="PV-301",I157="PV-302",I157="PV-303"),F157>=M157),R158+(G157/F157)*(F157-M157),IF(AND(OR(I157="PV-304",I157="PV-305",I157="PV-306"),F157>=M157),T158+(G157/F157)*(F157-M157),"")) ->  | Y158: =IF(AND(OR(I157="PV-301",I157="PV-302",I157="PV-303"),M157+F157>=8),R158+(G157/F157)*(F157-(8-M157)),IF(AND(OR(I157="PV-304",I157="PV-305",I157="PV-306"),M157+F157>=8),T158+(G157/F157)*(F157-(8-M157)),"")) ->  | Z158: =IF(AND(OR(I157="PV-301",I157="PV-302",I157="PV-303"),F157>=7),R158+(F157-7)*(G157/F157),"") -> 
O159: =IF(OR(I159="PV-301",I159="PV-302"),P159-H159,IF(OR(I159="PV-304",I159="PV-305",I159="PV-306"),Q159-H159,IF(AND(I159="PV-303",N159="A"),P159-H159,IF(AND(I159="PV-303",N159="B"),R159-(G159-H159),"")))) ->  | P159: =IF(OR(I159="PV-301",I159="PV-302"),R159-G159,IF(OR(I159="PV-304",I159="PV-305",I159="PV-306"),O159+H159/5,IF(AND(I159="PV-303",N159="A"),R159-G159,""))) ->  | Q159: =IF(OR(I159="PV-301",I159="PV-302"),P159+H159,IF(OR(I159="PV-304",I159="PV-305",I159="PV-306"),T159-G159,IF(I159="PV-303",J159,""))) ->  | R159: =IF(AND(OR(I159="PV-301",I159="PV-302"),L159="Tangent to Curve"),J159+(G159*0.3),IF(AND(OR(I159="PV-301",I159="PV-302"),L159="Spiral Curve"),J159,IF(AND(OR(I159="PV-304",I159="PV-305",I159="PV-306"),F159>=2),S159-(H159/5),IF(I159="PV-303",J159+(G159*0.3),"")))) ->  | S159: =IF(AND(OR(I159="PV-304",I159="PV-305",I159="PV-306"),F159>=2.5),Q159+H159,"") ->  | T159: =IF(AND(OR(I159="PV-304",I159="PV-305",I159="PV-306"),L159="Tangent to Curve"),J159+(G159*0.3),IF(AND(OR(I159="PV-304",I159="PV-305",I159="PV-306"),L159="Spiral Curve"),J159,"")) ->  | U159: =IF(AND(OR(I159="PV-301",I159="PV-302"),F159>2.8),J159,IF(AND(OR(I159="PV-304",I159="PV-305",I159="PV-306"),F159>=3.6),J159,"")) ->  | V159: =IF(AND(OR(I159="PV-301",I159="PV-302"),F159<=2.8),J159,IF(AND(OR(I159="PV-304",I159="PV-305",I159="PV-306"),AND(F159>2.8,F159<3.6)),J159,"")) ->  | W159: =IF(AND(OR(I159="PV-304",I159="PV-305",I159="PV-306"),F159<=2.8),J159,"") ->  | X159: =IF(AND(OR(I159="PV-301",I159="PV-302",I159="PV-303"),F159>=M159),R159-(G159/F159)*(F159-M159),IF(AND(OR(I159="PV-304",I159="PV-305",I159="PV-306"),F159>=M159),T159-(G159/F159)*(F159-M159),"")) ->  | Y159: =IF(AND(OR(I159="PV-301",I159="PV-302",I159="PV-303"),M159+F159>=8),R159-(G159/F159)*(F159-(8-M159)),IF(AND(OR(I159="PV-304",I159="PV-305",I159="PV-306"),M159+F159>=8),T159-(G159/F159)*(F159-(8-M159)),"")) ->  | Z159: =IF(AND(OR(I159="PV-301",I159="PV-302",I159="PV-303"),F159>=7),R159-(F159-7)*(G159/F159),"") -> 
O160: =IF(OR(I159="PV-301",I159="PV-302"),P160+H159,IF(OR(I159="PV-304",I159="PV-305",I159="PV-306"),Q160+H159,IF(AND(I159="PV-303",N159="A"),P160+H159,IF(AND(I159="PV-303",N159="B"),R160+(G159-H159),"")))) ->  | P160: =IF(OR(I159="PV-301",I159="PV-302"),R160+G159,IF(OR(I159="PV-304",I159="PV-305",I159="PV-306"),O160-H159/5,IF(AND(I159="PV-303",N159="A"),R160+G159,""))) ->  | Q160: =IF(OR(I159="PV-301",I159="PV-302"),P160-H159,IF(OR(I159="PV-304",I159="PV-305",I159="PV-306"),T160+G159,IF(I159="PV-303",K159,""))) ->  | R160: =IF(AND(OR(I159="PV-301",I159="PV-302"),L159="Tangent to Curve"),K159-(G159*0.3),IF(AND(OR(I159="PV-301",I159="PV-302"),L159="Spiral Curve"),K159,IF(AND(OR(I159="PV-304",I159="PV-305",I159="PV-306"),F159>=2),S160+(H159/5),IF(I159="PV-303",K159-(G159*0.3),"")))) ->  | S160: =IF(AND(OR(I159="PV-304",I159="PV-305",I159="PV-306"),F159>=2.5),Q160-H159,"") ->  | T160: =IF(AND(OR(I159="PV-304",I159="PV-305",I159="PV-306"),L159="Tangent to Curve"),K159-(G159*0.3),IF(AND(OR(I159="PV-304",I159="PV-305",I159="PV-306"),L159="Spiral Curve"),K159,"")) ->  | U160: =IF(AND(OR(I159="PV-301",I159="PV-302"),F159>2.8),K159,IF(AND(OR(I159="PV-304",I159="PV-305",I159="PV-306"),F159>=3.6),K159,"")) ->  | V160: =IF(AND(OR(I159="PV-301",I159="PV-302"),F159<=2.8),K159,IF(AND(OR(I159="PV-304",I159="PV-305",I159="PV-306"),AND(F159>2.8,F159<3.6)),K159,"")) ->  | W160: =IF(AND(OR(I159="PV-304",I159="PV-305",I159="PV-306"),F159<=2.8),K159,"") ->  | X160: =IF(AND(OR(I159="PV-301",I159="PV-302",I159="PV-303"),F159>=M159),R160+(G159/F159)*(F159-M159),IF(AND(OR(I159="PV-304",I159="PV-305",I159="PV-306"),F159>=M159),T160+(G159/F159)*(F159-M159),"")) ->  | Y160: =IF(AND(OR(I159="PV-301",I159="PV-302",I159="PV-303"),M159+F159>=8),R160+(G159/F159)*(F159-(8-M159)),IF(AND(OR(I159="PV-304",I159="PV-305",I159="PV-306"),M159+F159>=8),T160+(G159/F159)*(F159-(8-M159)),"")) ->  | Z160: =IF(AND(OR(I159="PV-301",I159="PV-302",I159="PV-303"),F159>=7),R160+(F159-7)*(G159/F159),"") -> 
O161: =IF(OR(I161="PV-301",I161="PV-302"),P161-H161,IF(OR(I161="PV-304",I161="PV-305",I161="PV-306"),Q161-H161,IF(AND(I161="PV-303",N161="A"),P161-H161,IF(AND(I161="PV-303",N161="B"),R161-(G161-H161),"")))) ->  | P161: =IF(OR(I161="PV-301",I161="PV-302"),R161-G161,IF(OR(I161="PV-304",I161="PV-305",I161="PV-306"),O161+H161/5,IF(AND(I161="PV-303",N161="A"),R161-G161,""))) ->  | Q161: =IF(OR(I161="PV-301",I161="PV-302"),P161+H161,IF(OR(I161="PV-304",I161="PV-305",I161="PV-306"),T161-G161,IF(I161="PV-303",J161,""))) ->  | R161: =IF(AND(OR(I161="PV-301",I161="PV-302"),L161="Tangent to Curve"),J161+(G161*0.3),IF(AND(OR(I161="PV-301",I161="PV-302"),L161="Spiral Curve"),J161,IF(AND(OR(I161="PV-304",I161="PV-305",I161="PV-306"),F161>=2),S161-(H161/5),IF(I161="PV-303",J161+(G161*0.3),"")))) ->  | S161: =IF(AND(OR(I161="PV-304",I161="PV-305",I161="PV-306"),F161>=2.5),Q161+H161,"") ->  | T161: =IF(AND(OR(I161="PV-304",I161="PV-305",I161="PV-306"),L161="Tangent to Curve"),J161+(G161*0.3),IF(AND(OR(I161="PV-304",I161="PV-305",I161="PV-306"),L161="Spiral Curve"),J161,"")) ->  | U161: =IF(AND(OR(I161="PV-301",I161="PV-302"),F161>2.8),J161,IF(AND(OR(I161="PV-304",I161="PV-305",I161="PV-306"),F161>=3.6),J161,"")) ->  | V161: =IF(AND(OR(I161="PV-301",I161="PV-302"),F161<=2.8),J161,IF(AND(OR(I161="PV-304",I161="PV-305",I161="PV-306"),AND(F161>2.8,F161<3.6)),J161,"")) ->  | W161: =IF(AND(OR(I161="PV-304",I161="PV-305",I161="PV-306"),F161<=2.8),J161,"") ->  | X161: =IF(AND(OR(I161="PV-301",I161="PV-302",I161="PV-303"),F161>=M161),R161-(G161/F161)*(F161-M161),IF(AND(OR(I161="PV-304",I161="PV-305",I161="PV-306"),F161>=M161),T161-(G161/F161)*(F161-M161),"")) ->  | Y161: =IF(AND(OR(I161="PV-301",I161="PV-302",I161="PV-303"),M161+F161>=8),R161-(G161/F161)*(F161-(8-M161)),IF(AND(OR(I161="PV-304",I161="PV-305",I161="PV-306"),M161+F161>=8),T161-(G161/F161)*(F161-(8-M161)),"")) ->  | Z161: =IF(AND(OR(I161="PV-301",I161="PV-302",I161="PV-303"),F161>=7),R161-(F161-7)*(G161/F161),"") -> 
O162: =IF(OR(I161="PV-301",I161="PV-302"),P162+H161,IF(OR(I161="PV-304",I161="PV-305",I161="PV-306"),Q162+H161,IF(AND(I161="PV-303",N161="A"),P162+H161,IF(AND(I161="PV-303",N161="B"),R162+(G161-H161),"")))) ->  | P162: =IF(OR(I161="PV-301",I161="PV-302"),R162+G161,IF(OR(I161="PV-304",I161="PV-305",I161="PV-306"),O162-H161/5,IF(AND(I161="PV-303",N161="A"),R162+G161,""))) ->  | Q162: =IF(OR(I161="PV-301",I161="PV-302"),P162-H161,IF(OR(I161="PV-304",I161="PV-305",I161="PV-306"),T162+G161,IF(I161="PV-303",K161,""))) ->  | R162: =IF(AND(OR(I161="PV-301",I161="PV-302"),L161="Tangent to Curve"),K161-(G161*0.3),IF(AND(OR(I161="PV-301",I161="PV-302"),L161="Spiral Curve"),K161,IF(AND(OR(I161="PV-304",I161="PV-305",I161="PV-306"),F161>=2),S162+(H161/5),IF(I161="PV-303",K161-(G161*0.3),"")))) ->  | S162: =IF(AND(OR(I161="PV-304",I161="PV-305",I161="PV-306"),F161>=2.5),Q162-H161,"") ->  | T162: =IF(AND(OR(I161="PV-304",I161="PV-305",I161="PV-306"),L161="Tangent to Curve"),K161-(G161*0.3),IF(AND(OR(I161="PV-304",I161="PV-305",I161="PV-306"),L161="Spiral Curve"),K161,"")) ->  | U162: =IF(AND(OR(I161="PV-301",I161="PV-302"),F161>2.8),K161,IF(AND(OR(I161="PV-304",I161="PV-305",I161="PV-306"),F161>=3.6),K161,"")) ->  | V162: =IF(AND(OR(I161="PV-301",I161="PV-302"),F161<=2.8),K161,IF(AND(OR(I161="PV-304",I161="PV-305",I161="PV-306"),AND(F161>2.8,F161<3.6)),K161,"")) ->  | W162: =IF(AND(OR(I161="PV-304",I161="PV-305",I161="PV-306"),F161<=2.8),K161,"") ->  | X162: =IF(AND(OR(I161="PV-301",I161="PV-302",I161="PV-303"),F161>=M161),R162+(G161/F161)*(F161-M161),IF(AND(OR(I161="PV-304",I161="PV-305",I161="PV-306"),F161>=M161),T162+(G161/F161)*(F161-M161),"")) ->  | Y162: =IF(AND(OR(I161="PV-301",I161="PV-302",I161="PV-303"),M161+F161>=8),R162+(G161/F161)*(F161-(8-M161)),IF(AND(OR(I161="PV-304",I161="PV-305",I161="PV-306"),M161+F161>=8),T162+(G161/F161)*(F161-(8-M161)),"")) ->  | Z162: =IF(AND(OR(I161="PV-301",I161="PV-302",I161="PV-303"),F161>=7),R162+(F161-7)*(G161/F161),"") -> 
O163: =IF(OR(I163="PV-301",I163="PV-302"),P163-H163,IF(OR(I163="PV-304",I163="PV-305",I163="PV-306"),Q163-H163,IF(AND(I163="PV-303",N163="A"),P163-H163,IF(AND(I163="PV-303",N163="B"),R163-(G163-H163),"")))) ->  | P163: =IF(OR(I163="PV-301",I163="PV-302"),R163-G163,IF(OR(I163="PV-304",I163="PV-305",I163="PV-306"),O163+H163/5,IF(AND(I163="PV-303",N163="A"),R163-G163,""))) ->  | Q163: =IF(OR(I163="PV-301",I163="PV-302"),P163+H163,IF(OR(I163="PV-304",I163="PV-305",I163="PV-306"),T163-G163,IF(I163="PV-303",J163,""))) ->  | R163: =IF(AND(OR(I163="PV-301",I163="PV-302"),L163="Tangent to Curve"),J163+(G163*0.3),IF(AND(OR(I163="PV-301",I163="PV-302"),L163="Spiral Curve"),J163,IF(AND(OR(I163="PV-304",I163="PV-305",I163="PV-306"),F163>=2),S163-(H163/5),IF(I163="PV-303",J163+(G163*0.3),"")))) ->  | S163: =IF(AND(OR(I163="PV-304",I163="PV-305",I163="PV-306"),F163>=2.5),Q163+H163,"") ->  | T163: =IF(AND(OR(I163="PV-304",I163="PV-305",I163="PV-306"),L163="Tangent to Curve"),J163+(G163*0.3),IF(AND(OR(I163="PV-304",I163="PV-305",I163="PV-306"),L163="Spiral Curve"),J163,"")) ->  | U163: =IF(AND(OR(I163="PV-301",I163="PV-302"),F163>2.8),J163,IF(AND(OR(I163="PV-304",I163="PV-305",I163="PV-306"),F163>=3.6),J163,"")) ->  | V163: =IF(AND(OR(I163="PV-301",I163="PV-302"),F163<=2.8),J163,IF(AND(OR(I163="PV-304",I163="PV-305",I163="PV-306"),AND(F163>2.8,F163<3.6)),J163,"")) ->  | W163: =IF(AND(OR(I163="PV-304",I163="PV-305",I163="PV-306"),F163<=2.8),J163,"") ->  | X163: =IF(AND(OR(I163="PV-301",I163="PV-302",I163="PV-303"),F163>=M163),R163-(G163/F163)*(F163-M163),IF(AND(OR(I163="PV-304",I163="PV-305",I163="PV-306"),F163>=M163),T163-(G163/F163)*(F163-M163),"")) ->  | Y163: =IF(AND(OR(I163="PV-301",I163="PV-302",I163="PV-303"),M163+F163>=8),R163-(G163/F163)*(F163-(8-M163)),IF(AND(OR(I163="PV-304",I163="PV-305",I163="PV-306"),M163+F163>=8),T163-(G163/F163)*(F163-(8-M163)),"")) ->  | Z163: =IF(AND(OR(I163="PV-301",I163="PV-302",I163="PV-303"),F163>=7),R163-(F163-7)*(G163/F163),"") -> 
O164: =IF(OR(I163="PV-301",I163="PV-302"),P164+H163,IF(OR(I163="PV-304",I163="PV-305",I163="PV-306"),Q164+H163,IF(AND(I163="PV-303",N163="A"),P164+H163,IF(AND(I163="PV-303",N163="B"),R164+(G163-H163),"")))) ->  | P164: =IF(OR(I163="PV-301",I163="PV-302"),R164+G163,IF(OR(I163="PV-304",I163="PV-305",I163="PV-306"),O164-H163/5,IF(AND(I163="PV-303",N163="A"),R164+G163,""))) ->  | Q164: =IF(OR(I163="PV-301",I163="PV-302"),P164-H163,IF(OR(I163="PV-304",I163="PV-305",I163="PV-306"),T164+G163,IF(I163="PV-303",K163,""))) ->  | R164: =IF(AND(OR(I163="PV-301",I163="PV-302"),L163="Tangent to Curve"),K163-(G163*0.3),IF(AND(OR(I163="PV-301",I163="PV-302"),L163="Spiral Curve"),K163,IF(AND(OR(I163="PV-304",I163="PV-305",I163="PV-306"),F163>=2),S164+(H163/5),IF(I163="PV-303",K163-(G163*0.3),"")))) ->  | S164: =IF(AND(OR(I163="PV-304",I163="PV-305",I163="PV-306"),F163>=2.5),Q164-H163,"") ->  | T164: =IF(AND(OR(I163="PV-304",I163="PV-305",I163="PV-306"),L163="Tangent to Curve"),K163-(G163*0.3),IF(AND(OR(I163="PV-304",I163="PV-305",I163="PV-306"),L163="Spiral Curve"),K163,"")) ->  | U164: =IF(AND(OR(I163="PV-301",I163="PV-302"),F163>2.8),K163,IF(AND(OR(I163="PV-304",I163="PV-305",I163="PV-306"),F163>=3.6),K163,"")) ->  | V164: =IF(AND(OR(I163="PV-301",I163="PV-302"),F163<=2.8),K163,IF(AND(OR(I163="PV-304",I163="PV-305",I163="PV-306"),AND(F163>2.8,F163<3.6)),K163,"")) ->  | W164: =IF(AND(OR(I163="PV-304",I163="PV-305",I163="PV-306"),F163<=2.8),K163,"") ->  | X164: =IF(AND(OR(I163="PV-301",I163="PV-302",I163="PV-303"),F163>=M163),R164+(G163/F163)*(F163-M163),IF(AND(OR(I163="PV-304",I163="PV-305",I163="PV-306"),F163>=M163),T164+(G163/F163)*(F163-M163),"")) ->  | Y164: =IF(AND(OR(I163="PV-301",I163="PV-302",I163="PV-303"),M163+F163>=8),R164+(G163/F163)*(F163-(8-M163)),IF(AND(OR(I163="PV-304",I163="PV-305",I163="PV-306"),M163+F163>=8),T164+(G163/F163)*(F163-(8-M163)),"")) ->  | Z164: =IF(AND(OR(I163="PV-301",I163="PV-302",I163="PV-303"),F163>=7),R164+(F163-7)*(G163/F163),"") -> 
O165: =IF(OR(I165="PV-301",I165="PV-302"),P165-H165,IF(OR(I165="PV-304",I165="PV-305",I165="PV-306"),Q165-H165,IF(AND(I165="PV-303",N165="A"),P165-H165,IF(AND(I165="PV-303",N165="B"),R165-(G165-H165),"")))) ->  | P165: =IF(OR(I165="PV-301",I165="PV-302"),R165-G165,IF(OR(I165="PV-304",I165="PV-305",I165="PV-306"),O165+H165/5,IF(AND(I165="PV-303",N165="A"),R165-G165,""))) ->  | Q165: =IF(OR(I165="PV-301",I165="PV-302"),P165+H165,IF(OR(I165="PV-304",I165="PV-305",I165="PV-306"),T165-G165,IF(I165="PV-303",J165,""))) ->  | R165: =IF(AND(OR(I165="PV-301",I165="PV-302"),L165="Tangent to Curve"),J165+(G165*0.3),IF(AND(OR(I165="PV-301",I165="PV-302"),L165="Spiral Curve"),J165,IF(AND(OR(I165="PV-304",I165="PV-305",I165="PV-306"),F165>=2),S165-(H165/5),IF(I165="PV-303",J165+(G165*0.3),"")))) ->  | S165: =IF(AND(OR(I165="PV-304",I165="PV-305",I165="PV-306"),F165>=2.5),Q165+H165,"") ->  | T165: =IF(AND(OR(I165="PV-304",I165="PV-305",I165="PV-306"),L165="Tangent to Curve"),J165+(G165*0.3),IF(AND(OR(I165="PV-304",I165="PV-305",I165="PV-306"),L165="Spiral Curve"),J165,"")) ->  | U165: =IF(AND(OR(I165="PV-301",I165="PV-302"),F165>2.8),J165,IF(AND(OR(I165="PV-304",I165="PV-305",I165="PV-306"),F165>=3.6),J165,"")) ->  | V165: =IF(AND(OR(I165="PV-301",I165="PV-302"),F165<=2.8),J165,IF(AND(OR(I165="PV-304",I165="PV-305",I165="PV-306"),AND(F165>2.8,F165<3.6)),J165,"")) ->  | W165: =IF(AND(OR(I165="PV-304",I165="PV-305",I165="PV-306"),F165<=2.8),J165,"") ->  | X165: =IF(AND(OR(I165="PV-301",I165="PV-302",I165="PV-303"),F165>=M165),R165-(G165/F165)*(F165-M165),IF(AND(OR(I165="PV-304",I165="PV-305",I165="PV-306"),F165>=M165),T165-(G165/F165)*(F165-M165),"")) ->  | Y165: =IF(AND(OR(I165="PV-301",I165="PV-302",I165="PV-303"),M165+F165>=8),R165-(G165/F165)*(F165-(8-M165)),IF(AND(OR(I165="PV-304",I165="PV-305",I165="PV-306"),M165+F165>=8),T165-(G165/F165)*(F165-(8-M165)),"")) ->  | Z165: =IF(AND(OR(I165="PV-301",I165="PV-302",I165="PV-303"),F165>=7),R165-(F165-7)*(G165/F165),"") -> 
O166: =IF(OR(I165="PV-301",I165="PV-302"),P166+H165,IF(OR(I165="PV-304",I165="PV-305",I165="PV-306"),Q166+H165,IF(AND(I165="PV-303",N165="A"),P166+H165,IF(AND(I165="PV-303",N165="B"),R166+(G165-H165),"")))) ->  | P166: =IF(OR(I165="PV-301",I165="PV-302"),R166+G165,IF(OR(I165="PV-304",I165="PV-305",I165="PV-306"),O166-H165/5,IF(AND(I165="PV-303",N165="A"),R166+G165,""))) ->  | Q166: =IF(OR(I165="PV-301",I165="PV-302"),P166-H165,IF(OR(I165="PV-304",I165="PV-305",I165="PV-306"),T166+G165,IF(I165="PV-303",K165,""))) ->  | R166: =IF(AND(OR(I165="PV-301",I165="PV-302"),L165="Tangent to Curve"),K165-(G165*0.3),IF(AND(OR(I165="PV-301",I165="PV-302"),L165="Spiral Curve"),K165,IF(AND(OR(I165="PV-304",I165="PV-305",I165="PV-306"),F165>=2),S166+(H165/5),IF(I165="PV-303",K165-(G165*0.3),"")))) ->  | S166: =IF(AND(OR(I165="PV-304",I165="PV-305",I165="PV-306"),F165>=2.5),Q166-H165,"") ->  | T166: =IF(AND(OR(I165="PV-304",I165="PV-305",I165="PV-306"),L165="Tangent to Curve"),K165-(G165*0.3),IF(AND(OR(I165="PV-304",I165="PV-305",I165="PV-306"),L165="Spiral Curve"),K165,"")) ->  | U166: =IF(AND(OR(I165="PV-301",I165="PV-302"),F165>2.8),K165,IF(AND(OR(I165="PV-304",I165="PV-305",I165="PV-306"),F165>=3.6),K165,"")) ->  | V166: =IF(AND(OR(I165="PV-301",I165="PV-302"),F165<=2.8),K165,IF(AND(OR(I165="PV-304",I165="PV-305",I165="PV-306"),AND(F165>2.8,F165<3.6)),K165,"")) ->  | W166: =IF(AND(OR(I165="PV-304",I165="PV-305",I165="PV-306"),F165<=2.8),K165,"") ->  | X166: =IF(AND(OR(I165="PV-301",I165="PV-302",I165="PV-303"),F165>=M165),R166+(G165/F165)*(F165-M165),IF(AND(OR(I165="PV-304",I165="PV-305",I165="PV-306"),F165>=M165),T166+(G165/F165)*(F165-M165),"")) ->  | Y166: =IF(AND(OR(I165="PV-301",I165="PV-302",I165="PV-303"),M165+F165>=8),R166+(G165/F165)*(F165-(8-M165)),IF(AND(OR(I165="PV-304",I165="PV-305",I165="PV-306"),M165+F165>=8),T166+(G165/F165)*(F165-(8-M165)),"")) ->  | Z166: =IF(AND(OR(I165="PV-301",I165="PV-302",I165="PV-303"),F165>=7),R166+(F165-7)*(G165/F165),"") -> 
O167: =IF(OR(I167="PV-301",I167="PV-302"),P167-H167,IF(OR(I167="PV-304",I167="PV-305",I167="PV-306"),Q167-H167,IF(AND(I167="PV-303",N167="A"),P167-H167,IF(AND(I167="PV-303",N167="B"),R167-(G167-H167),"")))) ->  | P167: =IF(OR(I167="PV-301",I167="PV-302"),R167-G167,IF(OR(I167="PV-304",I167="PV-305",I167="PV-306"),O167+H167/5,IF(AND(I167="PV-303",N167="A"),R167-G167,""))) ->  | Q167: =IF(OR(I167="PV-301",I167="PV-302"),P167+H167,IF(OR(I167="PV-304",I167="PV-305",I167="PV-306"),T167-G167,IF(I167="PV-303",J167,""))) ->  | R167: =IF(AND(OR(I167="PV-301",I167="PV-302"),L167="Tangent to Curve"),J167+(G167*0.3),IF(AND(OR(I167="PV-301",I167="PV-302"),L167="Spiral Curve"),J167,IF(AND(OR(I167="PV-304",I167="PV-305",I167="PV-306"),F167>=2),S167-(H167/5),IF(I167="PV-303",J167+(G167*0.3),"")))) ->  | S167: =IF(AND(OR(I167="PV-304",I167="PV-305",I167="PV-306"),F167>=2.5),Q167+H167,"") ->  | T167: =IF(AND(OR(I167="PV-304",I167="PV-305",I167="PV-306"),L167="Tangent to Curve"),J167+(G167*0.3),IF(AND(OR(I167="PV-304",I167="PV-305",I167="PV-306"),L167="Spiral Curve"),J167,"")) ->  | U167: =IF(AND(OR(I167="PV-301",I167="PV-302"),F167>2.8),J167,IF(AND(OR(I167="PV-304",I167="PV-305",I167="PV-306"),F167>=3.6),J167,"")) ->  | V167: =IF(AND(OR(I167="PV-301",I167="PV-302"),F167<=2.8),J167,IF(AND(OR(I167="PV-304",I167="PV-305",I167="PV-306"),AND(F167>2.8,F167<3.6)),J167,"")) ->  | W167: =IF(AND(OR(I167="PV-304",I167="PV-305",I167="PV-306"),F167<=2.8),J167,"") ->  | X167: =IF(AND(OR(I167="PV-301",I167="PV-302",I167="PV-303"),F167>=M167),R167-(G167/F167)*(F167-M167),IF(AND(OR(I167="PV-304",I167="PV-305",I167="PV-306"),F167>=M167),T167-(G167/F167)*(F167-M167),"")) ->  | Y167: =IF(AND(OR(I167="PV-301",I167="PV-302",I167="PV-303"),M167+F167>=8),R167-(G167/F167)*(F167-(8-M167)),IF(AND(OR(I167="PV-304",I167="PV-305",I167="PV-306"),M167+F167>=8),T167-(G167/F167)*(F167-(8-M167)),"")) ->  | Z167: =IF(AND(OR(I167="PV-301",I167="PV-302",I167="PV-303"),F167>=7),R167-(F167-7)*(G167/F167),"") -> 
O168: =IF(OR(I167="PV-301",I167="PV-302"),P168+H167,IF(OR(I167="PV-304",I167="PV-305",I167="PV-306"),Q168+H167,IF(AND(I167="PV-303",N167="A"),P168+H167,IF(AND(I167="PV-303",N167="B"),R168+(G167-H167),"")))) ->  | P168: =IF(OR(I167="PV-301",I167="PV-302"),R168+G167,IF(OR(I167="PV-304",I167="PV-305",I167="PV-306"),O168-H167/5,IF(AND(I167="PV-303",N167="A"),R168+G167,""))) ->  | Q168: =IF(OR(I167="PV-301",I167="PV-302"),P168-H167,IF(OR(I167="PV-304",I167="PV-305",I167="PV-306"),T168+G167,IF(I167="PV-303",K167,""))) ->  | R168: =IF(AND(OR(I167="PV-301",I167="PV-302"),L167="Tangent to Curve"),K167-(G167*0.3),IF(AND(OR(I167="PV-301",I167="PV-302"),L167="Spiral Curve"),K167,IF(AND(OR(I167="PV-304",I167="PV-305",I167="PV-306"),F167>=2),S168+(H167/5),IF(I167="PV-303",K167-(G167*0.3),"")))) ->  | S168: =IF(AND(OR(I167="PV-304",I167="PV-305",I167="PV-306"),F167>=2.5),Q168-H167,"") ->  | T168: =IF(AND(OR(I167="PV-304",I167="PV-305",I167="PV-306"),L167="Tangent to Curve"),K167-(G167*0.3),IF(AND(OR(I167="PV-304",I167="PV-305",I167="PV-306"),L167="Spiral Curve"),K167,"")) ->  | U168: =IF(AND(OR(I167="PV-301",I167="PV-302"),F167>2.8),K167,IF(AND(OR(I167="PV-304",I167="PV-305",I167="PV-306"),F167>=3.6),K167,"")) ->  | V168: =IF(AND(OR(I167="PV-301",I167="PV-302"),F167<=2.8),K167,IF(AND(OR(I167="PV-304",I167="PV-305",I167="PV-306"),AND(F167>2.8,F167<3.6)),K167,"")) ->  | W168: =IF(AND(OR(I167="PV-304",I167="PV-305",I167="PV-306"),F167<=2.8),K167,"") ->  | X168: =IF(AND(OR(I167="PV-301",I167="PV-302",I167="PV-303"),F167>=M167),R168+(G167/F167)*(F167-M167),IF(AND(OR(I167="PV-304",I167="PV-305",I167="PV-306"),F167>=M167),T168+(G167/F167)*(F167-M167),"")) ->  | Y168: =IF(AND(OR(I167="PV-301",I167="PV-302",I167="PV-303"),M167+F167>=8),R168+(G167/F167)*(F167-(8-M167)),IF(AND(OR(I167="PV-304",I167="PV-305",I167="PV-306"),M167+F167>=8),T168+(G167/F167)*(F167-(8-M167)),"")) ->  | Z168: =IF(AND(OR(I167="PV-301",I167="PV-302",I167="PV-303"),F167>=7),R168+(F167-7)*(G167/F167),"") -> 
O169: =IF(OR(I169="PV-301",I169="PV-302"),P169-H169,IF(OR(I169="PV-304",I169="PV-305",I169="PV-306"),Q169-H169,IF(AND(I169="PV-303",N169="A"),P169-H169,IF(AND(I169="PV-303",N169="B"),R169-(G169-H169),"")))) ->  | P169: =IF(OR(I169="PV-301",I169="PV-302"),R169-G169,IF(OR(I169="PV-304",I169="PV-305",I169="PV-306"),O169+H169/5,IF(AND(I169="PV-303",N169="A"),R169-G169,""))) ->  | Q169: =IF(OR(I169="PV-301",I169="PV-302"),P169+H169,IF(OR(I169="PV-304",I169="PV-305",I169="PV-306"),T169-G169,IF(I169="PV-303",J169,""))) ->  | R169: =IF(AND(OR(I169="PV-301",I169="PV-302"),L169="Tangent to Curve"),J169+(G169*0.3),IF(AND(OR(I169="PV-301",I169="PV-302"),L169="Spiral Curve"),J169,IF(AND(OR(I169="PV-304",I169="PV-305",I169="PV-306"),F169>=2),S169-(H169/5),IF(I169="PV-303",J169+(G169*0.3),"")))) ->  | S169: =IF(AND(OR(I169="PV-304",I169="PV-305",I169="PV-306"),F169>=2.5),Q169+H169,"") ->  | T169: =IF(AND(OR(I169="PV-304",I169="PV-305",I169="PV-306"),L169="Tangent to Curve"),J169+(G169*0.3),IF(AND(OR(I169="PV-304",I169="PV-305",I169="PV-306"),L169="Spiral Curve"),J169,"")) ->  | U169: =IF(AND(OR(I169="PV-301",I169="PV-302"),F169>2.8),J169,IF(AND(OR(I169="PV-304",I169="PV-305",I169="PV-306"),F169>=3.6),J169,"")) ->  | V169: =IF(AND(OR(I169="PV-301",I169="PV-302"),F169<=2.8),J169,IF(AND(OR(I169="PV-304",I169="PV-305",I169="PV-306"),AND(F169>2.8,F169<3.6)),J169,"")) ->  | W169: =IF(AND(OR(I169="PV-304",I169="PV-305",I169="PV-306"),F169<=2.8),J169,"") ->  | X169: =IF(AND(OR(I169="PV-301",I169="PV-302",I169="PV-303"),F169>=M169),R169-(G169/F169)*(F169-M169),IF(AND(OR(I169="PV-304",I169="PV-305",I169="PV-306"),F169>=M169),T169-(G169/F169)*(F169-M169),"")) ->  | Y169: =IF(AND(OR(I169="PV-301",I169="PV-302",I169="PV-303"),M169+F169>=8),R169-(G169/F169)*(F169-(8-M169)),IF(AND(OR(I169="PV-304",I169="PV-305",I169="PV-306"),M169+F169>=8),T169-(G169/F169)*(F169-(8-M169)),"")) ->  | Z169: =IF(AND(OR(I169="PV-301",I169="PV-302",I169="PV-303"),F169>=7),R169-(F169-7)*(G169/F169),"") -> 
O170: =IF(OR(I169="PV-301",I169="PV-302"),P170+H169,IF(OR(I169="PV-304",I169="PV-305",I169="PV-306"),Q170+H169,IF(AND(I169="PV-303",N169="A"),P170+H169,IF(AND(I169="PV-303",N169="B"),R170+(G169-H169),"")))) ->  | P170: =IF(OR(I169="PV-301",I169="PV-302"),R170+G169,IF(OR(I169="PV-304",I169="PV-305",I169="PV-306"),O170-H169/5,IF(AND(I169="PV-303",N169="A"),R170+G169,""))) ->  | Q170: =IF(OR(I169="PV-301",I169="PV-302"),P170-H169,IF(OR(I169="PV-304",I169="PV-305",I169="PV-306"),T170+G169,IF(I169="PV-303",K169,""))) ->  | R170: =IF(AND(OR(I169="PV-301",I169="PV-302"),L169="Tangent to Curve"),K169-(G169*0.3),IF(AND(OR(I169="PV-301",I169="PV-302"),L169="Spiral Curve"),K169,IF(AND(OR(I169="PV-304",I169="PV-305",I169="PV-306"),F169>=2),S170+(H169/5),IF(I169="PV-303",K169-(G169*0.3),"")))) ->  | S170: =IF(AND(OR(I169="PV-304",I169="PV-305",I169="PV-306"),F169>=2.5),Q170-H169,"") ->  | T170: =IF(AND(OR(I169="PV-304",I169="PV-305",I169="PV-306"),L169="Tangent to Curve"),K169-(G169*0.3),IF(AND(OR(I169="PV-304",I169="PV-305",I169="PV-306"),L169="Spiral Curve"),K169,"")) ->  | U170: =IF(AND(OR(I169="PV-301",I169="PV-302"),F169>2.8),K169,IF(AND(OR(I169="PV-304",I169="PV-305",I169="PV-306"),F169>=3.6),K169,"")) ->  | V170: =IF(AND(OR(I169="PV-301",I169="PV-302"),F169<=2.8),K169,IF(AND(OR(I169="PV-304",I169="PV-305",I169="PV-306"),AND(F169>2.8,F169<3.6)),K169,"")) ->  | W170: =IF(AND(OR(I169="PV-304",I169="PV-305",I169="PV-306"),F169<=2.8),K169,"") ->  | X170: =IF(AND(OR(I169="PV-301",I169="PV-302",I169="PV-303"),F169>=M169),R170+(G169/F169)*(F169-M169),IF(AND(OR(I169="PV-304",I169="PV-305",I169="PV-306"),F169>=M169),T170+(G169/F169)*(F169-M169),"")) ->  | Y170: =IF(AND(OR(I169="PV-301",I169="PV-302",I169="PV-303"),M169+F169>=8),R170+(G169/F169)*(F169-(8-M169)),IF(AND(OR(I169="PV-304",I169="PV-305",I169="PV-306"),M169+F169>=8),T170+(G169/F169)*(F169-(8-M169)),"")) ->  | Z170: =IF(AND(OR(I169="PV-301",I169="PV-302",I169="PV-303"),F169>=7),R170+(F169-7)*(G169/F169),"") -> 
O171: =IF(OR(I171="PV-301",I171="PV-302"),P171-H171,IF(OR(I171="PV-304",I171="PV-305",I171="PV-306"),Q171-H171,IF(AND(I171="PV-303",N171="A"),P171-H171,IF(AND(I171="PV-303",N171="B"),R171-(G171-H171),"")))) ->  | P171: =IF(OR(I171="PV-301",I171="PV-302"),R171-G171,IF(OR(I171="PV-304",I171="PV-305",I171="PV-306"),O171+H171/5,IF(AND(I171="PV-303",N171="A"),R171-G171,""))) ->  | Q171: =IF(OR(I171="PV-301",I171="PV-302"),P171+H171,IF(OR(I171="PV-304",I171="PV-305",I171="PV-306"),T171-G171,IF(I171="PV-303",J171,""))) ->  | R171: =IF(AND(OR(I171="PV-301",I171="PV-302"),L171="Tangent to Curve"),J171+(G171*0.3),IF(AND(OR(I171="PV-301",I171="PV-302"),L171="Spiral Curve"),J171,IF(AND(OR(I171="PV-304",I171="PV-305",I171="PV-306"),F171>=2),S171-(H171/5),IF(I171="PV-303",J171+(G171*0.3),"")))) ->  | S171: =IF(AND(OR(I171="PV-304",I171="PV-305",I171="PV-306"),F171>=2.5),Q171+H171,"") ->  | T171: =IF(AND(OR(I171="PV-304",I171="PV-305",I171="PV-306"),L171="Tangent to Curve"),J171+(G171*0.3),IF(AND(OR(I171="PV-304",I171="PV-305",I171="PV-306"),L171="Spiral Curve"),J171,"")) ->  | U171: =IF(AND(OR(I171="PV-301",I171="PV-302"),F171>2.8),J171,IF(AND(OR(I171="PV-304",I171="PV-305",I171="PV-306"),F171>=3.6),J171,"")) ->  | V171: =IF(AND(OR(I171="PV-301",I171="PV-302"),F171<=2.8),J171,IF(AND(OR(I171="PV-304",I171="PV-305",I171="PV-306"),AND(F171>2.8,F171<3.6)),J171,"")) ->  | W171: =IF(AND(OR(I171="PV-304",I171="PV-305",I171="PV-306"),F171<=2.8),J171,"") ->  | X171: =IF(AND(OR(I171="PV-301",I171="PV-302",I171="PV-303"),F171>=M171),R171-(G171/F171)*(F171-M171),IF(AND(OR(I171="PV-304",I171="PV-305",I171="PV-306"),F171>=M171),T171-(G171/F171)*(F171-M171),"")) ->  | Y171: =IF(AND(OR(I171="PV-301",I171="PV-302",I171="PV-303"),M171+F171>=8),R171-(G171/F171)*(F171-(8-M171)),IF(AND(OR(I171="PV-304",I171="PV-305",I171="PV-306"),M171+F171>=8),T171-(G171/F171)*(F171-(8-M171)),"")) ->  | Z171: =IF(AND(OR(I171="PV-301",I171="PV-302",I171="PV-303"),F171>=7),R171-(F171-7)*(G171/F171),"") -> 
O172: =IF(OR(I171="PV-301",I171="PV-302"),P172+H171,IF(OR(I171="PV-304",I171="PV-305",I171="PV-306"),Q172+H171,IF(AND(I171="PV-303",N171="A"),P172+H171,IF(AND(I171="PV-303",N171="B"),R172+(G171-H171),"")))) ->  | P172: =IF(OR(I171="PV-301",I171="PV-302"),R172+G171,IF(OR(I171="PV-304",I171="PV-305",I171="PV-306"),O172-H171/5,IF(AND(I171="PV-303",N171="A"),R172+G171,""))) ->  | Q172: =IF(OR(I171="PV-301",I171="PV-302"),P172-H171,IF(OR(I171="PV-304",I171="PV-305",I171="PV-306"),T172+G171,IF(I171="PV-303",K171,""))) ->  | R172: =IF(AND(OR(I171="PV-301",I171="PV-302"),L171="Tangent to Curve"),K171-(G171*0.3),IF(AND(OR(I171="PV-301",I171="PV-302"),L171="Spiral Curve"),K171,IF(AND(OR(I171="PV-304",I171="PV-305",I171="PV-306"),F171>=2),S172+(H171/5),IF(I171="PV-303",K171-(G171*0.3),"")))) ->  | S172: =IF(AND(OR(I171="PV-304",I171="PV-305",I171="PV-306"),F171>=2.5),Q172-H171,"") ->  | T172: =IF(AND(OR(I171="PV-304",I171="PV-305",I171="PV-306"),L171="Tangent to Curve"),K171-(G171*0.3),IF(AND(OR(I171="PV-304",I171="PV-305",I171="PV-306"),L171="Spiral Curve"),K171,"")) ->  | U172: =IF(AND(OR(I171="PV-301",I171="PV-302"),F171>2.8),K171,IF(AND(OR(I171="PV-304",I171="PV-305",I171="PV-306"),F171>=3.6),K171,"")) ->  | V172: =IF(AND(OR(I171="PV-301",I171="PV-302"),F171<=2.8),K171,IF(AND(OR(I171="PV-304",I171="PV-305",I171="PV-306"),AND(F171>2.8,F171<3.6)),K171,"")) ->  | W172: =IF(AND(OR(I171="PV-304",I171="PV-305",I171="PV-306"),F171<=2.8),K171,"") ->  | X172: =IF(AND(OR(I171="PV-301",I171="PV-302",I171="PV-303"),F171>=M171),R172+(G171/F171)*(F171-M171),IF(AND(OR(I171="PV-304",I171="PV-305",I171="PV-306"),F171>=M171),T172+(G171/F171)*(F171-M171),"")) ->  | Y172: =IF(AND(OR(I171="PV-301",I171="PV-302",I171="PV-303"),M171+F171>=8),R172+(G171/F171)*(F171-(8-M171)),IF(AND(OR(I171="PV-304",I171="PV-305",I171="PV-306"),M171+F171>=8),T172+(G171/F171)*(F171-(8-M171)),"")) ->  | Z172: =IF(AND(OR(I171="PV-301",I171="PV-302",I171="PV-303"),F171>=7),R172+(F171-7)*(G171/F171),"") -> 
O173: =IF(OR(I173="PV-301",I173="PV-302"),P173-H173,IF(OR(I173="PV-304",I173="PV-305",I173="PV-306"),Q173-H173,IF(AND(I173="PV-303",N173="A"),P173-H173,IF(AND(I173="PV-303",N173="B"),R173-(G173-H173),"")))) ->  | P173: =IF(OR(I173="PV-301",I173="PV-302"),R173-G173,IF(OR(I173="PV-304",I173="PV-305",I173="PV-306"),O173+H173/5,IF(AND(I173="PV-303",N173="A"),R173-G173,""))) ->  | Q173: =IF(OR(I173="PV-301",I173="PV-302"),P173+H173,IF(OR(I173="PV-304",I173="PV-305",I173="PV-306"),T173-G173,IF(I173="PV-303",J173,""))) ->  | R173: =IF(AND(OR(I173="PV-301",I173="PV-302"),L173="Tangent to Curve"),J173+(G173*0.3),IF(AND(OR(I173="PV-301",I173="PV-302"),L173="Spiral Curve"),J173,IF(AND(OR(I173="PV-304",I173="PV-305",I173="PV-306"),F173>=2),S173-(H173/5),IF(I173="PV-303",J173+(G173*0.3),"")))) ->  | S173: =IF(AND(OR(I173="PV-304",I173="PV-305",I173="PV-306"),F173>=2.5),Q173+H173,"") ->  | T173: =IF(AND(OR(I173="PV-304",I173="PV-305",I173="PV-306"),L173="Tangent to Curve"),J173+(G173*0.3),IF(AND(OR(I173="PV-304",I173="PV-305",I173="PV-306"),L173="Spiral Curve"),J173,"")) ->  | U173: =IF(AND(OR(I173="PV-301",I173="PV-302"),F173>2.8),J173,IF(AND(OR(I173="PV-304",I173="PV-305",I173="PV-306"),F173>=3.6),J173,"")) ->  | V173: =IF(AND(OR(I173="PV-301",I173="PV-302"),F173<=2.8),J173,IF(AND(OR(I173="PV-304",I173="PV-305",I173="PV-306"),AND(F173>2.8,F173<3.6)),J173,"")) ->  | W173: =IF(AND(OR(I173="PV-304",I173="PV-305",I173="PV-306"),F173<=2.8),J173,"") ->  | X173: =IF(AND(OR(I173="PV-301",I173="PV-302",I173="PV-303"),F173>=M173),R173-(G173/F173)*(F173-M173),IF(AND(OR(I173="PV-304",I173="PV-305",I173="PV-306"),F173>=M173),T173-(G173/F173)*(F173-M173),"")) ->  | Y173: =IF(AND(OR(I173="PV-301",I173="PV-302",I173="PV-303"),M173+F173>=8),R173-(G173/F173)*(F173-(8-M173)),IF(AND(OR(I173="PV-304",I173="PV-305",I173="PV-306"),M173+F173>=8),T173-(G173/F173)*(F173-(8-M173)),"")) ->  | Z173: =IF(AND(OR(I173="PV-301",I173="PV-302",I173="PV-303"),F173>=7),R173-(F173-7)*(G173/F173),"") -> 
O174: =IF(OR(I173="PV-301",I173="PV-302"),P174+H173,IF(OR(I173="PV-304",I173="PV-305",I173="PV-306"),Q174+H173,IF(AND(I173="PV-303",N173="A"),P174+H173,IF(AND(I173="PV-303",N173="B"),R174+(G173-H173),"")))) ->  | P174: =IF(OR(I173="PV-301",I173="PV-302"),R174+G173,IF(OR(I173="PV-304",I173="PV-305",I173="PV-306"),O174-H173/5,IF(AND(I173="PV-303",N173="A"),R174+G173,""))) ->  | Q174: =IF(OR(I173="PV-301",I173="PV-302"),P174-H173,IF(OR(I173="PV-304",I173="PV-305",I173="PV-306"),T174+G173,IF(I173="PV-303",K173,""))) ->  | R174: =IF(AND(OR(I173="PV-301",I173="PV-302"),L173="Tangent to Curve"),K173-(G173*0.3),IF(AND(OR(I173="PV-301",I173="PV-302"),L173="Spiral Curve"),K173,IF(AND(OR(I173="PV-304",I173="PV-305",I173="PV-306"),F173>=2),S174+(H173/5),IF(I173="PV-303",K173-(G173*0.3),"")))) ->  | S174: =IF(AND(OR(I173="PV-304",I173="PV-305",I173="PV-306"),F173>=2.5),Q174-H173,"") ->  | T174: =IF(AND(OR(I173="PV-304",I173="PV-305",I173="PV-306"),L173="Tangent to Curve"),K173-(G173*0.3),IF(AND(OR(I173="PV-304",I173="PV-305",I173="PV-306"),L173="Spiral Curve"),K173,"")) ->  | U174: =IF(AND(OR(I173="PV-301",I173="PV-302"),F173>2.8),K173,IF(AND(OR(I173="PV-304",I173="PV-305",I173="PV-306"),F173>=3.6),K173,"")) ->  | V174: =IF(AND(OR(I173="PV-301",I173="PV-302"),F173<=2.8),K173,IF(AND(OR(I173="PV-304",I173="PV-305",I173="PV-306"),AND(F173>2.8,F173<3.6)),K173,"")) ->  | W174: =IF(AND(OR(I173="PV-304",I173="PV-305",I173="PV-306"),F173<=2.8),K173,"") ->  | X174: =IF(AND(OR(I173="PV-301",I173="PV-302",I173="PV-303"),F173>=M173),R174+(G173/F173)*(F173-M173),IF(AND(OR(I173="PV-304",I173="PV-305",I173="PV-306"),F173>=M173),T174+(G173/F173)*(F173-M173),"")) ->  | Y174: =IF(AND(OR(I173="PV-301",I173="PV-302",I173="PV-303"),M173+F173>=8),R174+(G173/F173)*(F173-(8-M173)),IF(AND(OR(I173="PV-304",I173="PV-305",I173="PV-306"),M173+F173>=8),T174+(G173/F173)*(F173-(8-M173)),"")) ->  | Z174: =IF(AND(OR(I173="PV-301",I173="PV-302",I173="PV-303"),F173>=7),R174+(F173-7)*(G173/F173),"") -> 
O175: =IF(OR(I175="PV-301",I175="PV-302"),P175-H175,IF(OR(I175="PV-304",I175="PV-305",I175="PV-306"),Q175-H175,IF(AND(I175="PV-303",N175="A"),P175-H175,IF(AND(I175="PV-303",N175="B"),R175-(G175-H175),"")))) ->  | P175: =IF(OR(I175="PV-301",I175="PV-302"),R175-G175,IF(OR(I175="PV-304",I175="PV-305",I175="PV-306"),O175+H175/5,IF(AND(I175="PV-303",N175="A"),R175-G175,""))) ->  | Q175: =IF(OR(I175="PV-301",I175="PV-302"),P175+H175,IF(OR(I175="PV-304",I175="PV-305",I175="PV-306"),T175-G175,IF(I175="PV-303",J175,""))) ->  | R175: =IF(AND(OR(I175="PV-301",I175="PV-302"),L175="Tangent to Curve"),J175+(G175*0.3),IF(AND(OR(I175="PV-301",I175="PV-302"),L175="Spiral Curve"),J175,IF(AND(OR(I175="PV-304",I175="PV-305",I175="PV-306"),F175>=2),S175-(H175/5),IF(I175="PV-303",J175+(G175*0.3),"")))) ->  | S175: =IF(AND(OR(I175="PV-304",I175="PV-305",I175="PV-306"),F175>=2.5),Q175+H175,"") ->  | T175: =IF(AND(OR(I175="PV-304",I175="PV-305",I175="PV-306"),L175="Tangent to Curve"),J175+(G175*0.3),IF(AND(OR(I175="PV-304",I175="PV-305",I175="PV-306"),L175="Spiral Curve"),J175,"")) ->  | U175: =IF(AND(OR(I175="PV-301",I175="PV-302"),F175>2.8),J175,IF(AND(OR(I175="PV-304",I175="PV-305",I175="PV-306"),F175>=3.6),J175,"")) ->  | V175: =IF(AND(OR(I175="PV-301",I175="PV-302"),F175<=2.8),J175,IF(AND(OR(I175="PV-304",I175="PV-305",I175="PV-306"),AND(F175>2.8,F175<3.6)),J175,"")) ->  | W175: =IF(AND(OR(I175="PV-304",I175="PV-305",I175="PV-306"),F175<=2.8),J175,"") ->  | X175: =IF(AND(OR(I175="PV-301",I175="PV-302",I175="PV-303"),F175>=M175),R175-(G175/F175)*(F175-M175),IF(AND(OR(I175="PV-304",I175="PV-305",I175="PV-306"),F175>=M175),T175-(G175/F175)*(F175-M175),"")) ->  | Y175: =IF(AND(OR(I175="PV-301",I175="PV-302",I175="PV-303"),M175+F175>=8),R175-(G175/F175)*(F175-(8-M175)),IF(AND(OR(I175="PV-304",I175="PV-305",I175="PV-306"),M175+F175>=8),T175-(G175/F175)*(F175-(8-M175)),"")) ->  | Z175: =IF(AND(OR(I175="PV-301",I175="PV-302",I175="PV-303"),F175>=7),R175-(F175-7)*(G175/F175),"") -> 
O176: =IF(OR(I175="PV-301",I175="PV-302"),P176+H175,IF(OR(I175="PV-304",I175="PV-305",I175="PV-306"),Q176+H175,IF(AND(I175="PV-303",N175="A"),P176+H175,IF(AND(I175="PV-303",N175="B"),R176+(G175-H175),"")))) ->  | P176: =IF(OR(I175="PV-301",I175="PV-302"),R176+G175,IF(OR(I175="PV-304",I175="PV-305",I175="PV-306"),O176-H175/5,IF(AND(I175="PV-303",N175="A"),R176+G175,""))) ->  | Q176: =IF(OR(I175="PV-301",I175="PV-302"),P176-H175,IF(OR(I175="PV-304",I175="PV-305",I175="PV-306"),T176+G175,IF(I175="PV-303",K175,""))) ->  | R176: =IF(AND(OR(I175="PV-301",I175="PV-302"),L175="Tangent to Curve"),K175-(G175*0.3),IF(AND(OR(I175="PV-301",I175="PV-302"),L175="Spiral Curve"),K175,IF(AND(OR(I175="PV-304",I175="PV-305",I175="PV-306"),F175>=2),S176+(H175/5),IF(I175="PV-303",K175-(G175*0.3),"")))) ->  | S176: =IF(AND(OR(I175="PV-304",I175="PV-305",I175="PV-306"),F175>=2.5),Q176-H175,"") ->  | T176: =IF(AND(OR(I175="PV-304",I175="PV-305",I175="PV-306"),L175="Tangent to Curve"),K175-(G175*0.3),IF(AND(OR(I175="PV-304",I175="PV-305",I175="PV-306"),L175="Spiral Curve"),K175,"")) ->  | U176: =IF(AND(OR(I175="PV-301",I175="PV-302"),F175>2.8),K175,IF(AND(OR(I175="PV-304",I175="PV-305",I175="PV-306"),F175>=3.6),K175,"")) ->  | V176: =IF(AND(OR(I175="PV-301",I175="PV-302"),F175<=2.8),K175,IF(AND(OR(I175="PV-304",I175="PV-305",I175="PV-306"),AND(F175>2.8,F175<3.6)),K175,"")) ->  | W176: =IF(AND(OR(I175="PV-304",I175="PV-305",I175="PV-306"),F175<=2.8),K175,"") ->  | X176: =IF(AND(OR(I175="PV-301",I175="PV-302",I175="PV-303"),F175>=M175),R176+(G175/F175)*(F175-M175),IF(AND(OR(I175="PV-304",I175="PV-305",I175="PV-306"),F175>=M175),T176+(G175/F175)*(F175-M175),"")) ->  | Y176: =IF(AND(OR(I175="PV-301",I175="PV-302",I175="PV-303"),M175+F175>=8),R176+(G175/F175)*(F175-(8-M175)),IF(AND(OR(I175="PV-304",I175="PV-305",I175="PV-306"),M175+F175>=8),T176+(G175/F175)*(F175-(8-M175)),"")) ->  | Z176: =IF(AND(OR(I175="PV-301",I175="PV-302",I175="PV-303"),F175>=7),R176+(F175-7)*(G175/F175),"") -> 
